Workbook

Sheet Használat
B2: Siklóernyős célraszálló verseny kiértékelő
B4: Használati utasítás | Q4: © készítette:
Q5: Gyarmati-Szabó István
B6: A helyes működéshez a fájl megnyitása után engedélyezni kell a makrók futtatását! | Q6: gyarmatiszi@gmail.com
B7: (Megnyitáskor megjelenő "Biztonsági figyelmeztetés" sávban a "Tartalom engedélyezését" választani)
B8: A munkalapokat nem szabad átnevezni!
B10: A következő színű cellákra lehet tölteni:
B11: A többi cella képlettel számolódik és írásvédett
B13: Használat rövid leírása (időrendben):
B14: 1. Competition fülön beállítani a verseny jellemzőit
B15: 2. Teams fülön felvinni a csapatok listáját
B16: 3. Pilots fülön felvinni a versenyzők listáját (sorszámuk a kapott rajtszám legyen)
B17: Fontos: az eredményszámításhoz ki kell tölteni a nemet (M/F) és hogy milyen versenyben vesz részt (Overall és/vagy tandem, X-elni)
B18: 4. Accuracy, Marker, XC füleken beírni a sorozatok eredményét és beállítani, hogy hány befejezett sorozat van
B19: 5. A Rankings és a Teams_results füleken gombnyomással lehet frissíteni az aktuális helyezéseket
B21: 6. A 4-5. pontot szükség szerint (azaz az újabb befejezett körök végén) ismételni
B22: + Ha a pilóták nevét változtatjuk, akkor az eredmény füleken (Rankings és Team_results) a Frissítés gombokat újra megnyomni
B25: Használat részletes leírása fülek szerint:
B27: Competition | C27: Itt beállítható a verseny neve, és a versenyszabályok - pl. hány körös lesz
C28: igen/nem paraméterrel állítható, hogy a legrosszabb eredmény eldobható-e
C29: utána a "Szabályok beállítása" gombot megnyomni! (ez elrejti a felesleges füleket és oszlopokat is)
B31: Pilots | C31: Itt kell megadni a nevezők listáját, nemüket, országukat, stb., illetve mely csapatban tagjai és a kapott rajtszámot - ez alapján keresődik be a név a többi lapon!
C32: FONTOS: Csapatnevet csak a Teams fülön megadott listából lehet választani! (az egyértelműség miatt)
C33: Országot csak az Countries fülön megadott listából lehet választani (szintén az egyértelműség miatt) - kettős állampolgárság esetére van egy második oszlop is
C34: FONTOS: Az egyéni (összesített) versenyben részt vevőknek az Overall, a tandemeseknek a tandem oszlopba kell X-et tenni.
C35: (Ha a tandem az egyéniben külön indul, akkor két külön névként kell szerepeltetni. Ha a tandemeredmény az egyénibe is beszámít, akkor mindkét oszlopba X kell.)
C36: A harmadik szűrő segítségével (itt is "X") lehet kezelni, ha egy szűkebb kört is szeretnénk kiértékelni (pl. magyar versenyzők, sárkányosok, stb.)
C37: A lap végén (jobb oldalon) van egy életkor statisztika is, ami figyeli a születésnapokat is, arra az esetre, ha valakit épp meg kell ünnepelni :)
B39: Teams | C39: Ha új csapat jelentkezik, akkor ide kell felvinni
C40: A csapatok tagjai a Registration fülön beállítottak szerint alakulnak ki
C41: A csapatméret definíciója (hány fős + hány női / ifjúsági tag lehet) a Competition fülön látható
C42: A létszámproblémákat automatikusan jelzi a "megjegyzés" oszlopban (de a többlet létszámot nem tudja szankcionálni, csak a hiányt)
B44: Rounds | C44: Itt kell vezetni az elért eredményeket: | H44: színű cellák
C45: Csak értelmes szám adható meg, vagy DNF (=nem repült), DSQ (=kizárás). A DNF és DSQ (vagy egyéb szöveg) értékek max. pontszámnak fognak számítani.
C46: A következő szín jelzi az olyan üres cellákat, ami már érvényes körben van (max pontnak fog számítani):
C47: FONTOS: Az XC eredményeknél elsősorban a manuálisan beírt perceket veszi figyelembe! Viszont ha ez nincs, de az időpontok fel vannak jegyezve, akkor abból kalkulál
C48: FONTOS: A Befejezett körök száma beállítandó minden kör végén! (innentől vesszük számításba)
B50: Results | C50: Itt csak a rajtszámok változtathatóak, a résztvevők neve rajtszám alapján bekeresődik a Registration fülről, az eredmények pedig az Accuracy, Marker, XC fülekről
C51: Fontos! Az Befejezett körök száma (amint befejeződött egy kör) ott beállítandó, mert az összpontszámba onnantól számít bele az adott futam eredménye
C52: A befejezett (érvényes) körök oszlopait az alábbi ikon jelzi: | I52: þ
C53: A még nem érvényes körök oszlopait az alábbi ikon jelzi: | I53: ¨
C54: Ha valakinél nincs eredmény beírva (azaz üresen marad) egy már befejezett körben, azt max. pontszámnak fog számítani! Ezt a következő színezés jelzi: | R54: 1000
C55: A törölt eredményt (a Szabályokban beállított számű kör elérése után) a következő szín jelzi: | L55: 1000
C56: A fájl azonnal kiszámolja az aktuális pontszámot, összesített helyezést és nők közötti helyezést (de sorbarendezve a Rankings fülön lesz)
C57: FONTOS: Jelzi azt is, ha az adott versenyző elért egy FAIjelvényt, rekordot döntött, vagy ha elérhet még valamilyen rekordot az adott verseny alatt
B59: Rankings | C59: A Frissítés gombra kattintás után frissíti a helyezéslistát (sorba téve), összesített és női kategóriában is. Az első 3 helyezettet színezéssel kiemeli
C60: Frissítéskor megjegyzi az aktuális időt (eredményhirdetés időpontja!)
C61: Illetve szűrő segítségével országonként (vagy bármilyen bontásban) külön is kiszámolható ugyanez - a használt szűrőt a Results fülön kell beállítani
B63: Details | C63: Szükség esetén a Frissítés gombra kattintás után frissíti a helyezéslistát (sorba téve), összesített és női kategóriában is
C64: Frissítéskor megjegyzi az aktuális időt (eredményhirdetés időpontja)
B66: Team_results_... | C66: A Frissítés gombra kattintás után frissíti a csapatok eredményét. Az első 3 helyezettet színezéssel kiemeli.
C67: Frissítéskor megjegyzi az aktuális időt (eredményhirdetés időpontja)
C68: Létszámhiány esetén körök száma * maximális pontszámot számol minden hiányzó főre
C69: Az adott körből figyelembe nem vett eredményeket (X legjobb eredményen kívüli) a következő szín jelzi: | N69: 1000
B71: Egyéb hasznos megjegyzések:
B72: - Jelenleg maximum 99 pilóta, 15 csapat (csapatonként max 10 taggal), és 12 körös verseny kezelésére van felkészítve a program - de mindez könnyen bővíthető szükség esetén
B73: - FONTOS: Ha a pilóták nevét változtatjuk (pl. elgépelés miatt) akkor az eredmény füleken (Rankings és Team_results) ne felejtsd el a Frissítés gombokat újra megnyomni

Sheet Competition
B2: Siklóernyős célraszálló verseny kiértékelő / Paragliding accuracy landing competition results calculator
B4: Verseny neve / Name of competition | C4: PG-HG Triathlon
B5: Date | C5: 2015
B7: Verseny szabályainak paraméterei / Competition rule parameters
B9: Tervezett körök száma | C9: Planned no. of rounds | D9: 6
B10: Tervezett körök száma: Célraszállás | C10: Planned no. of rounds: Accuracy | D10: 6
B11: Tervezett körök száma: Célbombázás | C11: Planned no. of rounds: Marker | D11: 6
B12: Tervezett körök száma: Termikelés | C12: Planned no. of rounds: XC | D12: 6
B14: Maximális pontszám | C14: Maximum point | D14: 500 | F14: - a célkör sugara (cm) / radius of measuring field (cm)
B16: A leggyengébb eredmény törlése | C16: Disregard the result of weakest round | D16: yes
B17: A leggyengébb eredmény törlődik, ha a körök száma | C17: Weakest result cleared if number of rounds reach | D17: 5 | E17: körtől / rounds
B19: Csapatok teljes létszáma | C19: Teams headcount | D19: =+SUM(D20:D22) -> 5 | E19: =IF(D19=SUM(D20:D22)," = "&D20&"+"&SUM(D21:D22)&" fős csapatverseny / "&D20&"+"&SUM(D21:D22)&" teams competition"," -- nem egyezik az alábontással!") -> = 4+1 fős csapatverseny / 4+1 teams competition
B20: általános | C20: general | D20: 4
B21: női | C21: female | D21: 0 | F21: a kettő közül csak az egyik kitöltendő | I21: please fill only one of the two cells | K21: =+IF(AND(D21<>0,D22<>0),"!!!","") -> 
B22: női vagy ifjúsági | C22: female or junior | D22: 1
B24: Csapateredmény számítása | C24: Teams point calculation | D24: 3 | E24: db legjobb eredmény a csapatból körönként / best results from each rounds | M24: =+IF(D24>D20,"???","") -> 
B26: ifjúsági korhatár | C26: Junior (years) | D26: 25 | E26: év / years

Sheet Teams
C1: headcount | D1: =+Paraméterek!$D$3 -> M | E1: =+Paraméterek!$D$4 -> F | F1: =+Paraméterek!$C$3 -> yes | G1: under needed
G2: =+SUM(G9:G38) -> 1 | I2: =30-COUNTBLANK($I$9:$I$38) -> 1
B4: =+"Csapatok listája / Teams list - "&Competition!$C$4 -> Csapatok listája / Teams list - PG-HG Triathlon | F4: Csapatok száma / Nr of teams:
B5: ="Versenyenként "&Competition!D20&"+"&SUM(Competition!D21:D22)&" fős csapatok / "&Competition!D20&"+"&SUM(Competition!D21:D22)&" teams by competitions" -> Versenyenként 4+1 fős csapatok / 4+1 teams by competitions | F5: =+COUNTA($B$8:$B$38) -> 6 | G5: X * max points!
B6: Team names | C6: Headcount | D6: Male | E6: Female | F6: Female / Junior | G6: Shortage
B7: Csapatok neve | C7: Létszám | D7: Férfi | E7: Nő | F7: Nő / Ifjúsági | G7: Létszám-hiány | I7: Megjegyzés
I8: =IF(ISBLANK($B8),"",IF(C8>Competition!#REF!,"túl sokan vannak a csapatban",IF(AND(#REF!="női",D8>0),"férfi van a női csapatban",IF(AND(#REF!="vegyes",E8<Competition!$D$21),"nincs elég nő a vegyes csapatban","")))) -> 
B9: Delta | C9: =+IF(ISBLANK($B9),"",COUNTIF(Pilots!$E$9:$E$108,$B9)) -> 5 | D9: =+IF(ISBLANK($B9),"",COUNTIFS(Pilots!$E$9:$E$108,$B9,Pilots!$D$9:$D$108,Teams!D$1)) -> 5 | E9: =+IF(ISBLANK($B9),"",COUNTIFS(Pilots!$E$9:$E$108,$B9,Pilots!$D$9:$D$108,Teams!E$1)) -> 0 | F9: =+IF(ISBLANK($B9),"",COUNTIFS(Pilots!$E$9:$E$108,$B9,Pilots!$Z$9:$Z$108,Teams!F$1)) -> 1 | G9: =IF(ISBLANK($B9),"",MAX(Competition!$D$24-C9,0)) -> 0 | I9: =IF(ISBLANK($B9),"",IF(G9>0,G9&" fő még hiányzik!",IF(C9>Competition!$D$19,"túl sokan vannak a csapatban!",IF(AND(Competition!$D$21>0,C9-E9>Competition!$D$20),"nincs (elég) nő a csapatban?",IF(AND(Competition!$D$22>0,C9-(E9+F9)>Competition!$D$20),"nincs (elég) női / ifjúsági tag a csapatban?",""))))) -> 
B10: a Házisárkány | C10: =+IF(ISBLANK($B10),"",COUNTIF(Pilots!$E$9:$E$108,$B10)) -> 4 | D10: =+IF(ISBLANK($B10),"",COUNTIFS(Pilots!$E$9:$E$108,$B10,Pilots!$D$9:$D$108,Teams!D$1)) -> 3 | E10: =+IF(ISBLANK($B10),"",COUNTIFS(Pilots!$E$9:$E$108,$B10,Pilots!$D$9:$D$108,Teams!E$1)) -> 1 | F10: =+IF(ISBLANK($B10),"",COUNTIFS(Pilots!$E$9:$E$108,$B10,Pilots!$Z$9:$Z$108,Teams!F$1)) -> 1 | G10: =IF(ISBLANK($B10),"",MAX(Competition!$D$24-C10,0)) -> 0 | I10: =IF(ISBLANK($B10),"",IF(G10>0,G10&" fő még hiányzik!",IF(C10>Competition!$D$19,"túl sokan vannak a csapatban!",IF(AND(Competition!$D$21>0,C10-E10>Competition!$D$20),"nincs (elég) nő a csapatban?",IF(AND(Competition!$D$22>0,C10-(E10+F10)>Competition!$D$20),"nincs (elég) női / ifjúsági tag a csapatban?",""))))) -> 
B11: Felhőút SE | C11: =+IF(ISBLANK($B11),"",COUNTIF(Pilots!$E$9:$E$108,$B11)) -> 5 | D11: =+IF(ISBLANK($B11),"",COUNTIFS(Pilots!$E$9:$E$108,$B11,Pilots!$D$9:$D$108,Teams!D$1)) -> 4 | E11: =+IF(ISBLANK($B11),"",COUNTIFS(Pilots!$E$9:$E$108,$B11,Pilots!$D$9:$D$108,Teams!E$1)) -> 1 | F11: =+IF(ISBLANK($B11),"",COUNTIFS(Pilots!$E$9:$E$108,$B11,Pilots!$Z$9:$Z$108,Teams!F$1)) -> 2 | G11: =IF(ISBLANK($B11),"",MAX(Competition!$D$24-C11,0)) -> 0 | I11: =IF(ISBLANK($B11),"",IF(G11>0,G11&" fő még hiányzik!",IF(C11>Competition!$D$19,"túl sokan vannak a csapatban!",IF(AND(Competition!$D$21>0,C11-E11>Competition!$D$20),"nincs (elég) nő a csapatban?",IF(AND(Competition!$D$22>0,C11-(E11+F11)>Competition!$D$20),"nincs (elég) női / ifjúsági tag a csapatban?",""))))) -> 
B12: Ivan Sarić | C12: =+IF(ISBLANK($B12),"",COUNTIF(Pilots!$E$9:$E$108,$B12)) -> 4 | D12: =+IF(ISBLANK($B12),"",COUNTIFS(Pilots!$E$9:$E$108,$B12,Pilots!$D$9:$D$108,Teams!D$1)) -> 4 | E12: =+IF(ISBLANK($B12),"",COUNTIFS(Pilots!$E$9:$E$108,$B12,Pilots!$D$9:$D$108,Teams!E$1)) -> 0 | F12: =+IF(ISBLANK($B12),"",COUNTIFS(Pilots!$E$9:$E$108,$B12,Pilots!$Z$9:$Z$108,Teams!F$1)) -> 0 | G12: =IF(ISBLANK($B12),"",MAX(Competition!$D$24-C12,0)) -> 0 | I12: =IF(ISBLANK($B12),"",IF(G12>0,G12&" fő még hiányzik!",IF(C12>Competition!$D$19,"túl sokan vannak a csapatban!",IF(AND(Competition!$D$21>0,C12-E12>Competition!$D$20),"nincs (elég) nő a csapatban?",IF(AND(Competition!$D$22>0,C12-(E12+F12)>Competition!$D$20),"nincs (elég) női / ifjúsági tag a csapatban?",""))))) -> 
B13: tandem | C13: =+IF(ISBLANK($B13),"",COUNTIF(Pilots!$E$9:$E$108,$B13)) -> 4 | D13: =+IF(ISBLANK($B13),"",COUNTIFS(Pilots!$E$9:$E$108,$B13,Pilots!$D$9:$D$108,Teams!D$1)) -> 3 | E13: =+IF(ISBLANK($B13),"",COUNTIFS(Pilots!$E$9:$E$108,$B13,Pilots!$D$9:$D$108,Teams!E$1)) -> 1 | F13: =+IF(ISBLANK($B13),"",COUNTIFS(Pilots!$E$9:$E$108,$B13,Pilots!$Z$9:$Z$108,Teams!F$1)) -> 1 | G13: =IF(ISBLANK($B13),"",MAX(Competition!$D$24-C13,0)) -> 0 | I13: =IF(ISBLANK($B13),"",IF(G13>0,G13&" fő még hiányzik!",IF(C13>Competition!$D$19,"túl sokan vannak a csapatban!",IF(AND(Competition!$D$21>0,C13-E13>Competition!$D$20),"nincs (elég) nő a csapatban?",IF(AND(Competition!$D$22>0,C13-(E13+F13)>Competition!$D$20),"nincs (elég) női / ifjúsági tag a csapatban?",""))))) -> 
B14: BERKUT | C14: =+IF(ISBLANK($B14),"",COUNTIF(Pilots!$E$9:$E$108,$B14)) -> 2 | D14: =+IF(ISBLANK($B14),"",COUNTIFS(Pilots!$E$9:$E$108,$B14,Pilots!$D$9:$D$108,Teams!D$1)) -> 2 | E14: =+IF(ISBLANK($B14),"",COUNTIFS(Pilots!$E$9:$E$108,$B14,Pilots!$D$9:$D$108,Teams!E$1)) -> 0 | F14: =+IF(ISBLANK($B14),"",COUNTIFS(Pilots!$E$9:$E$108,$B14,Pilots!$Z$9:$Z$108,Teams!F$1)) -> 0 | G14: =IF(ISBLANK($B14),"",MAX(Competition!$D$24-C14,0)) -> 1 | I14: =IF(ISBLANK($B14),"",IF(G14>0,G14&" fő még hiányzik!",IF(C14>Competition!$D$19,"túl sokan vannak a csapatban!",IF(AND(Competition!$D$21>0,C14-E14>Competition!$D$20),"nincs (elég) nő a csapatban?",IF(AND(Competition!$D$22>0,C14-(E14+F14)>Competition!$D$20),"nincs (elég) női / ifjúsági tag a csapatban?",""))))) -> 1 fő még hiányzik!
C15: =+IF(ISBLANK($B15),"",COUNTIF(Pilots!$E$9:$E$108,$B15)) ->  | D15: =+IF(ISBLANK($B15),"",COUNTIFS(Pilots!$E$9:$E$108,$B15,Pilots!$D$9:$D$108,Teams!D$1)) ->  | E15: =+IF(ISBLANK($B15),"",COUNTIFS(Pilots!$E$9:$E$108,$B15,Pilots!$D$9:$D$108,Teams!E$1)) ->  | F15: =+IF(ISBLANK($B15),"",COUNTIFS(Pilots!$E$9:$E$108,$B15,Pilots!$Z$9:$Z$108,Teams!F$1)) ->  | G15: =IF(ISBLANK($B15),"",MAX(Competition!$D$24-C15,0)) ->  | I15: =IF(ISBLANK($B15),"",IF(G15>0,G15&" fő még hiányzik!",IF(C15>Competition!$D$19,"túl sokan vannak a csapatban!",IF(AND(Competition!$D$21>0,C15-E15>Competition!$D$20),"nincs (elég) nő a csapatban?",IF(AND(Competition!$D$22>0,C15-(E15+F15)>Competition!$D$20),"nincs (elég) női / ifjúsági tag a csapatban?",""))))) -> 
C16: =+IF(ISBLANK($B16),"",COUNTIF(Pilots!$E$9:$E$108,$B16)) ->  | D16: =+IF(ISBLANK($B16),"",COUNTIFS(Pilots!$E$9:$E$108,$B16,Pilots!$D$9:$D$108,Teams!D$1)) ->  | E16: =+IF(ISBLANK($B16),"",COUNTIFS(Pilots!$E$9:$E$108,$B16,Pilots!$D$9:$D$108,Teams!E$1)) ->  | F16: =+IF(ISBLANK($B16),"",COUNTIFS(Pilots!$E$9:$E$108,$B16,Pilots!$Z$9:$Z$108,Teams!F$1)) ->  | G16: =IF(ISBLANK($B16),"",MAX(Competition!$D$24-C16,0)) ->  | I16: =IF(ISBLANK($B16),"",IF(G16>0,G16&" fő még hiányzik!",IF(C16>Competition!$D$19,"túl sokan vannak a csapatban!",IF(AND(Competition!$D$21>0,C16-E16>Competition!$D$20),"nincs (elég) nő a csapatban?",IF(AND(Competition!$D$22>0,C16-(E16+F16)>Competition!$D$20),"nincs (elég) női / ifjúsági tag a csapatban?",""))))) -> 
C17: =+IF(ISBLANK($B17),"",COUNTIF(Pilots!$E$9:$E$108,$B17)) ->  | D17: =+IF(ISBLANK($B17),"",COUNTIFS(Pilots!$E$9:$E$108,$B17,Pilots!$D$9:$D$108,Teams!D$1)) ->  | E17: =+IF(ISBLANK($B17),"",COUNTIFS(Pilots!$E$9:$E$108,$B17,Pilots!$D$9:$D$108,Teams!E$1)) ->  | F17: =+IF(ISBLANK($B17),"",COUNTIFS(Pilots!$E$9:$E$108,$B17,Pilots!$Z$9:$Z$108,Teams!F$1)) ->  | G17: =IF(ISBLANK($B17),"",MAX(Competition!$D$24-C17,0)) ->  | I17: =IF(ISBLANK($B17),"",IF(G17>0,G17&" fő még hiányzik!",IF(C17>Competition!$D$19,"túl sokan vannak a csapatban!",IF(AND(Competition!$D$21>0,C17-E17>Competition!$D$20),"nincs (elég) nő a csapatban?",IF(AND(Competition!$D$22>0,C17-(E17+F17)>Competition!$D$20),"nincs (elég) női / ifjúsági tag a csapatban?",""))))) -> 
C18: =+IF(ISBLANK($B18),"",COUNTIF(Pilots!$E$9:$E$108,$B18)) ->  | D18: =+IF(ISBLANK($B18),"",COUNTIFS(Pilots!$E$9:$E$108,$B18,Pilots!$D$9:$D$108,Teams!D$1)) ->  | E18: =+IF(ISBLANK($B18),"",COUNTIFS(Pilots!$E$9:$E$108,$B18,Pilots!$D$9:$D$108,Teams!E$1)) ->  | F18: =+IF(ISBLANK($B18),"",COUNTIFS(Pilots!$E$9:$E$108,$B18,Pilots!$Z$9:$Z$108,Teams!F$1)) ->  | G18: =IF(ISBLANK($B18),"",MAX(Competition!$D$24-C18,0)) ->  | I18: =IF(ISBLANK($B18),"",IF(G18>0,G18&" fő még hiányzik!",IF(C18>Competition!$D$19,"túl sokan vannak a csapatban!",IF(AND(Competition!$D$21>0,C18-E18>Competition!$D$20),"nincs (elég) nő a csapatban?",IF(AND(Competition!$D$22>0,C18-(E18+F18)>Competition!$D$20),"nincs (elég) női / ifjúsági tag a csapatban?",""))))) -> 
C19: =+IF(ISBLANK($B19),"",COUNTIF(Pilots!$E$9:$E$108,$B19)) ->  | D19: =+IF(ISBLANK($B19),"",COUNTIFS(Pilots!$E$9:$E$108,$B19,Pilots!$D$9:$D$108,Teams!D$1)) ->  | E19: =+IF(ISBLANK($B19),"",COUNTIFS(Pilots!$E$9:$E$108,$B19,Pilots!$D$9:$D$108,Teams!E$1)) ->  | F19: =+IF(ISBLANK($B19),"",COUNTIFS(Pilots!$E$9:$E$108,$B19,Pilots!$Z$9:$Z$108,Teams!F$1)) ->  | G19: =IF(ISBLANK($B19),"",MAX(Competition!$D$24-C19,0)) ->  | I19: =IF(ISBLANK($B19),"",IF(G19>0,G19&" fő még hiányzik!",IF(C19>Competition!$D$19,"túl sokan vannak a csapatban!",IF(AND(Competition!$D$21>0,C19-E19>Competition!$D$20),"nincs (elég) nő a csapatban?",IF(AND(Competition!$D$22>0,C19-(E19+F19)>Competition!$D$20),"nincs (elég) női / ifjúsági tag a csapatban?",""))))) -> 
C20: =+IF(ISBLANK($B20),"",COUNTIF(Pilots!$E$9:$E$108,$B20)) ->  | D20: =+IF(ISBLANK($B20),"",COUNTIFS(Pilots!$E$9:$E$108,$B20,Pilots!$D$9:$D$108,Teams!D$1)) ->  | E20: =+IF(ISBLANK($B20),"",COUNTIFS(Pilots!$E$9:$E$108,$B20,Pilots!$D$9:$D$108,Teams!E$1)) ->  | F20: =+IF(ISBLANK($B20),"",COUNTIFS(Pilots!$E$9:$E$108,$B20,Pilots!$Z$9:$Z$108,Teams!F$1)) ->  | G20: =IF(ISBLANK($B20),"",MAX(Competition!$D$24-C20,0)) ->  | I20: =IF(ISBLANK($B20),"",IF(G20>0,G20&" fő még hiányzik!",IF(C20>Competition!$D$19,"túl sokan vannak a csapatban!",IF(AND(Competition!$D$21>0,C20-E20>Competition!$D$20),"nincs (elég) nő a csapatban?",IF(AND(Competition!$D$22>0,C20-(E20+F20)>Competition!$D$20),"nincs (elég) női / ifjúsági tag a csapatban?",""))))) -> 
C21: =+IF(ISBLANK($B21),"",COUNTIF(Pilots!$E$9:$E$108,$B21)) ->  | D21: =+IF(ISBLANK($B21),"",COUNTIFS(Pilots!$E$9:$E$108,$B21,Pilots!$D$9:$D$108,Teams!D$1)) ->  | E21: =+IF(ISBLANK($B21),"",COUNTIFS(Pilots!$E$9:$E$108,$B21,Pilots!$D$9:$D$108,Teams!E$1)) ->  | F21: =+IF(ISBLANK($B21),"",COUNTIFS(Pilots!$E$9:$E$108,$B21,Pilots!$Z$9:$Z$108,Teams!F$1)) ->  | G21: =IF(ISBLANK($B21),"",MAX(Competition!$D$24-C21,0)) ->  | I21: =IF(ISBLANK($B21),"",IF(G21>0,G21&" fő még hiányzik!",IF(C21>Competition!$D$19,"túl sokan vannak a csapatban!",IF(AND(Competition!$D$21>0,C21-E21>Competition!$D$20),"nincs (elég) nő a csapatban?",IF(AND(Competition!$D$22>0,C21-(E21+F21)>Competition!$D$20),"nincs (elég) női / ifjúsági tag a csapatban?",""))))) -> 
C22: =+IF(ISBLANK($B22),"",COUNTIF(Pilots!$E$9:$E$108,$B22)) ->  | D22: =+IF(ISBLANK($B22),"",COUNTIFS(Pilots!$E$9:$E$108,$B22,Pilots!$D$9:$D$108,Teams!D$1)) ->  | E22: =+IF(ISBLANK($B22),"",COUNTIFS(Pilots!$E$9:$E$108,$B22,Pilots!$D$9:$D$108,Teams!E$1)) ->  | F22: =+IF(ISBLANK($B22),"",COUNTIFS(Pilots!$E$9:$E$108,$B22,Pilots!$Z$9:$Z$108,Teams!F$1)) ->  | G22: =IF(ISBLANK($B22),"",MAX(Competition!$D$24-C22,0)) ->  | I22: =IF(ISBLANK($B22),"",IF(G22>0,G22&" fő még hiányzik!",IF(C22>Competition!$D$19,"túl sokan vannak a csapatban!",IF(AND(Competition!$D$21>0,C22-E22>Competition!$D$20),"nincs (elég) nő a csapatban?",IF(AND(Competition!$D$22>0,C22-(E22+F22)>Competition!$D$20),"nincs (elég) női / ifjúsági tag a csapatban?",""))))) -> 
C23: =+IF(ISBLANK($B23),"",COUNTIF(Pilots!$E$9:$E$108,$B23)) ->  | D23: =+IF(ISBLANK($B23),"",COUNTIFS(Pilots!$E$9:$E$108,$B23,Pilots!$D$9:$D$108,Teams!D$1)) ->  | E23: =+IF(ISBLANK($B23),"",COUNTIFS(Pilots!$E$9:$E$108,$B23,Pilots!$D$9:$D$108,Teams!E$1)) ->  | F23: =+IF(ISBLANK($B23),"",COUNTIFS(Pilots!$E$9:$E$108,$B23,Pilots!$Z$9:$Z$108,Teams!F$1)) ->  | G23: =IF(ISBLANK($B23),"",MAX(Competition!$D$24-C23,0)) ->  | I23: =IF(ISBLANK($B23),"",IF(G23>0,G23&" fő még hiányzik!",IF(C23>Competition!$D$19,"túl sokan vannak a csapatban!",IF(AND(Competition!$D$21>0,C23-E23>Competition!$D$20),"nincs (elég) nő a csapatban?",IF(AND(Competition!$D$22>0,C23-(E23+F23)>Competition!$D$20),"nincs (elég) női / ifjúsági tag a csapatban?",""))))) -> 
C24: =+IF(ISBLANK($B24),"",COUNTIF(Pilots!$E$9:$E$108,$B24)) ->  | D24: =+IF(ISBLANK($B24),"",COUNTIFS(Pilots!$E$9:$E$108,$B24,Pilots!$D$9:$D$108,Teams!D$1)) ->  | E24: =+IF(ISBLANK($B24),"",COUNTIFS(Pilots!$E$9:$E$108,$B24,Pilots!$D$9:$D$108,Teams!E$1)) ->  | F24: =+IF(ISBLANK($B24),"",COUNTIFS(Pilots!$E$9:$E$108,$B24,Pilots!$Z$9:$Z$108,Teams!F$1)) ->  | G24: =IF(ISBLANK($B24),"",MAX(Competition!$D$24-C24,0)) ->  | I24: =IF(ISBLANK($B24),"",IF(G24>0,G24&" fő még hiányzik!",IF(C24>Competition!$D$19,"túl sokan vannak a csapatban!",IF(AND(Competition!$D$21>0,C24-E24>Competition!$D$20),"nincs (elég) nő a csapatban?",IF(AND(Competition!$D$22>0,C24-(E24+F24)>Competition!$D$20),"nincs (elég) női / ifjúsági tag a csapatban?",""))))) -> 
C25: =+IF(ISBLANK($B25),"",COUNTIF(Pilots!$E$9:$E$108,$B25)) ->  | D25: =+IF(ISBLANK($B25),"",COUNTIFS(Pilots!$E$9:$E$108,$B25,Pilots!$D$9:$D$108,Teams!D$1)) ->  | E25: =+IF(ISBLANK($B25),"",COUNTIFS(Pilots!$E$9:$E$108,$B25,Pilots!$D$9:$D$108,Teams!E$1)) ->  | F25: =+IF(ISBLANK($B25),"",COUNTIFS(Pilots!$E$9:$E$108,$B25,Pilots!$Z$9:$Z$108,Teams!F$1)) ->  | G25: =IF(ISBLANK($B25),"",MAX(Competition!$D$24-C25,0)) ->  | I25: =IF(ISBLANK($B25),"",IF(G25>0,G25&" fő még hiányzik!",IF(C25>Competition!$D$19,"túl sokan vannak a csapatban!",IF(AND(Competition!$D$21>0,C25-E25>Competition!$D$20),"nincs (elég) nő a csapatban?",IF(AND(Competition!$D$22>0,C25-(E25+F25)>Competition!$D$20),"nincs (elég) női / ifjúsági tag a csapatban?",""))))) -> 
C26: =+IF(ISBLANK($B26),"",COUNTIF(Pilots!$E$9:$E$108,$B26)) ->  | D26: =+IF(ISBLANK($B26),"",COUNTIFS(Pilots!$E$9:$E$108,$B26,Pilots!$D$9:$D$108,Teams!D$1)) ->  | E26: =+IF(ISBLANK($B26),"",COUNTIFS(Pilots!$E$9:$E$108,$B26,Pilots!$D$9:$D$108,Teams!E$1)) ->  | F26: =+IF(ISBLANK($B26),"",COUNTIFS(Pilots!$E$9:$E$108,$B26,Pilots!$Z$9:$Z$108,Teams!F$1)) ->  | G26: =IF(ISBLANK($B26),"",MAX(Competition!$D$24-C26,0)) ->  | I26: =IF(ISBLANK($B26),"",IF(G26>0,G26&" fő még hiányzik!",IF(C26>Competition!$D$19,"túl sokan vannak a csapatban!",IF(AND(Competition!$D$21>0,C26-E26>Competition!$D$20),"nincs (elég) nő a csapatban?",IF(AND(Competition!$D$22>0,C26-(E26+F26)>Competition!$D$20),"nincs (elég) női / ifjúsági tag a csapatban?",""))))) -> 
C27: =+IF(ISBLANK($B27),"",COUNTIF(Pilots!$E$9:$E$108,$B27)) ->  | D27: =+IF(ISBLANK($B27),"",COUNTIFS(Pilots!$E$9:$E$108,$B27,Pilots!$D$9:$D$108,Teams!D$1)) ->  | E27: =+IF(ISBLANK($B27),"",COUNTIFS(Pilots!$E$9:$E$108,$B27,Pilots!$D$9:$D$108,Teams!E$1)) ->  | F27: =+IF(ISBLANK($B27),"",COUNTIFS(Pilots!$E$9:$E$108,$B27,Pilots!$Z$9:$Z$108,Teams!F$1)) ->  | G27: =IF(ISBLANK($B27),"",MAX(Competition!$D$24-C27,0)) ->  | I27: =IF(ISBLANK($B27),"",IF(G27>0,G27&" fő még hiányzik!",IF(C27>Competition!$D$19,"túl sokan vannak a csapatban!",IF(AND(Competition!$D$21>0,C27-E27>Competition!$D$20),"nincs (elég) nő a csapatban?",IF(AND(Competition!$D$22>0,C27-(E27+F27)>Competition!$D$20),"nincs (elég) női / ifjúsági tag a csapatban?",""))))) -> 
C28: =+IF(ISBLANK($B28),"",COUNTIF(Pilots!$E$9:$E$108,$B28)) ->  | D28: =+IF(ISBLANK($B28),"",COUNTIFS(Pilots!$E$9:$E$108,$B28,Pilots!$D$9:$D$108,Teams!D$1)) ->  | E28: =+IF(ISBLANK($B28),"",COUNTIFS(Pilots!$E$9:$E$108,$B28,Pilots!$D$9:$D$108,Teams!E$1)) ->  | F28: =+IF(ISBLANK($B28),"",COUNTIFS(Pilots!$E$9:$E$108,$B28,Pilots!$Z$9:$Z$108,Teams!F$1)) ->  | G28: =IF(ISBLANK($B28),"",MAX(Competition!$D$24-C28,0)) ->  | I28: =IF(ISBLANK($B28),"",IF(G28>0,G28&" fő még hiányzik!",IF(C28>Competition!$D$19,"túl sokan vannak a csapatban!",IF(AND(Competition!$D$21>0,C28-E28>Competition!$D$20),"nincs (elég) nő a csapatban?",IF(AND(Competition!$D$22>0,C28-(E28+F28)>Competition!$D$20),"nincs (elég) női / ifjúsági tag a csapatban?",""))))) -> 
C29: =+IF(ISBLANK($B29),"",COUNTIF(Pilots!$E$9:$E$108,$B29)) ->  | D29: =+IF(ISBLANK($B29),"",COUNTIFS(Pilots!$E$9:$E$108,$B29,Pilots!$D$9:$D$108,Teams!D$1)) ->  | E29: =+IF(ISBLANK($B29),"",COUNTIFS(Pilots!$E$9:$E$108,$B29,Pilots!$D$9:$D$108,Teams!E$1)) ->  | F29: =+IF(ISBLANK($B29),"",COUNTIFS(Pilots!$E$9:$E$108,$B29,Pilots!$Z$9:$Z$108,Teams!F$1)) ->  | G29: =IF(ISBLANK($B29),"",MAX(Competition!$D$24-C29,0)) ->  | I29: =IF(ISBLANK($B29),"",IF(G29>0,G29&" fő még hiányzik!",IF(C29>Competition!$D$19,"túl sokan vannak a csapatban!",IF(AND(Competition!$D$21>0,C29-E29>Competition!$D$20),"nincs (elég) nő a csapatban?",IF(AND(Competition!$D$22>0,C29-(E29+F29)>Competition!$D$20),"nincs (elég) női / ifjúsági tag a csapatban?",""))))) -> 
C30: =+IF(ISBLANK($B30),"",COUNTIF(Pilots!$E$9:$E$108,$B30)) ->  | D30: =+IF(ISBLANK($B30),"",COUNTIFS(Pilots!$E$9:$E$108,$B30,Pilots!$D$9:$D$108,Teams!D$1)) ->  | E30: =+IF(ISBLANK($B30),"",COUNTIFS(Pilots!$E$9:$E$108,$B30,Pilots!$D$9:$D$108,Teams!E$1)) ->  | F30: =+IF(ISBLANK($B30),"",COUNTIFS(Pilots!$E$9:$E$108,$B30,Pilots!$Z$9:$Z$108,Teams!F$1)) ->  | G30: =IF(ISBLANK($B30),"",MAX(Competition!$D$24-C30,0)) ->  | I30: =IF(ISBLANK($B30),"",IF(G30>0,G30&" fő még hiányzik!",IF(C30>Competition!$D$19,"túl sokan vannak a csapatban!",IF(AND(Competition!$D$21>0,C30-E30>Competition!$D$20),"nincs (elég) nő a csapatban?",IF(AND(Competition!$D$22>0,C30-(E30+F30)>Competition!$D$20),"nincs (elég) női / ifjúsági tag a csapatban?",""))))) -> 
C31: =+IF(ISBLANK($B31),"",COUNTIF(Pilots!$E$9:$E$108,$B31)) ->  | D31: =+IF(ISBLANK($B31),"",COUNTIFS(Pilots!$E$9:$E$108,$B31,Pilots!$D$9:$D$108,Teams!D$1)) ->  | E31: =+IF(ISBLANK($B31),"",COUNTIFS(Pilots!$E$9:$E$108,$B31,Pilots!$D$9:$D$108,Teams!E$1)) ->  | F31: =+IF(ISBLANK($B31),"",COUNTIFS(Pilots!$E$9:$E$108,$B31,Pilots!$Z$9:$Z$108,Teams!F$1)) ->  | G31: =IF(ISBLANK($B31),"",MAX(Competition!$D$24-C31,0)) ->  | I31: =IF(ISBLANK($B31),"",IF(G31>0,G31&" fő még hiányzik!",IF(C31>Competition!$D$19,"túl sokan vannak a csapatban!",IF(AND(Competition!$D$21>0,C31-E31>Competition!$D$20),"nincs (elég) nő a csapatban?",IF(AND(Competition!$D$22>0,C31-(E31+F31)>Competition!$D$20),"nincs (elég) női / ifjúsági tag a csapatban?",""))))) -> 
C32: =+IF(ISBLANK($B32),"",COUNTIF(Pilots!$E$9:$E$108,$B32)) ->  | D32: =+IF(ISBLANK($B32),"",COUNTIFS(Pilots!$E$9:$E$108,$B32,Pilots!$D$9:$D$108,Teams!D$1)) ->  | E32: =+IF(ISBLANK($B32),"",COUNTIFS(Pilots!$E$9:$E$108,$B32,Pilots!$D$9:$D$108,Teams!E$1)) ->  | F32: =+IF(ISBLANK($B32),"",COUNTIFS(Pilots!$E$9:$E$108,$B32,Pilots!$Z$9:$Z$108,Teams!F$1)) ->  | G32: =IF(ISBLANK($B32),"",MAX(Competition!$D$24-C32,0)) ->  | I32: =IF(ISBLANK($B32),"",IF(G32>0,G32&" fő még hiányzik!",IF(C32>Competition!$D$19,"túl sokan vannak a csapatban!",IF(AND(Competition!$D$21>0,C32-E32>Competition!$D$20),"nincs (elég) nő a csapatban?",IF(AND(Competition!$D$22>0,C32-(E32+F32)>Competition!$D$20),"nincs (elég) női / ifjúsági tag a csapatban?",""))))) -> 
C33: =+IF(ISBLANK($B33),"",COUNTIF(Pilots!$E$9:$E$108,$B33)) ->  | D33: =+IF(ISBLANK($B33),"",COUNTIFS(Pilots!$E$9:$E$108,$B33,Pilots!$D$9:$D$108,Teams!D$1)) ->  | E33: =+IF(ISBLANK($B33),"",COUNTIFS(Pilots!$E$9:$E$108,$B33,Pilots!$D$9:$D$108,Teams!E$1)) ->  | F33: =+IF(ISBLANK($B33),"",COUNTIFS(Pilots!$E$9:$E$108,$B33,Pilots!$Z$9:$Z$108,Teams!F$1)) ->  | G33: =IF(ISBLANK($B33),"",MAX(Competition!$D$24-C33,0)) ->  | I33: =IF(ISBLANK($B33),"",IF(G33>0,G33&" fő még hiányzik!",IF(C33>Competition!$D$19,"túl sokan vannak a csapatban!",IF(AND(Competition!$D$21>0,C33-E33>Competition!$D$20),"nincs (elég) nő a csapatban?",IF(AND(Competition!$D$22>0,C33-(E33+F33)>Competition!$D$20),"nincs (elég) női / ifjúsági tag a csapatban?",""))))) -> 
C34: =+IF(ISBLANK($B34),"",COUNTIF(Pilots!$E$9:$E$108,$B34)) ->  | D34: =+IF(ISBLANK($B34),"",COUNTIFS(Pilots!$E$9:$E$108,$B34,Pilots!$D$9:$D$108,Teams!D$1)) ->  | E34: =+IF(ISBLANK($B34),"",COUNTIFS(Pilots!$E$9:$E$108,$B34,Pilots!$D$9:$D$108,Teams!E$1)) ->  | F34: =+IF(ISBLANK($B34),"",COUNTIFS(Pilots!$E$9:$E$108,$B34,Pilots!$Z$9:$Z$108,Teams!F$1)) ->  | G34: =IF(ISBLANK($B34),"",MAX(Competition!$D$24-C34,0)) ->  | I34: =IF(ISBLANK($B34),"",IF(G34>0,G34&" fő még hiányzik!",IF(C34>Competition!$D$19,"túl sokan vannak a csapatban!",IF(AND(Competition!$D$21>0,C34-E34>Competition!$D$20),"nincs (elég) nő a csapatban?",IF(AND(Competition!$D$22>0,C34-(E34+F34)>Competition!$D$20),"nincs (elég) női / ifjúsági tag a csapatban?",""))))) -> 
C35: =+IF(ISBLANK($B35),"",COUNTIF(Pilots!$E$9:$E$108,$B35)) ->  | D35: =+IF(ISBLANK($B35),"",COUNTIFS(Pilots!$E$9:$E$108,$B35,Pilots!$D$9:$D$108,Teams!D$1)) ->  | E35: =+IF(ISBLANK($B35),"",COUNTIFS(Pilots!$E$9:$E$108,$B35,Pilots!$D$9:$D$108,Teams!E$1)) ->  | F35: =+IF(ISBLANK($B35),"",COUNTIFS(Pilots!$E$9:$E$108,$B35,Pilots!$Z$9:$Z$108,Teams!F$1)) ->  | G35: =IF(ISBLANK($B35),"",MAX(Competition!$D$24-C35,0)) ->  | I35: =IF(ISBLANK($B35),"",IF(G35>0,G35&" fő még hiányzik!",IF(C35>Competition!$D$19,"túl sokan vannak a csapatban!",IF(AND(Competition!$D$21>0,C35-E35>Competition!$D$20),"nincs (elég) nő a csapatban?",IF(AND(Competition!$D$22>0,C35-(E35+F35)>Competition!$D$20),"nincs (elég) női / ifjúsági tag a csapatban?",""))))) -> 
C36: =+IF(ISBLANK($B36),"",COUNTIF(Pilots!$E$9:$E$108,$B36)) ->  | D36: =+IF(ISBLANK($B36),"",COUNTIFS(Pilots!$E$9:$E$108,$B36,Pilots!$D$9:$D$108,Teams!D$1)) ->  | E36: =+IF(ISBLANK($B36),"",COUNTIFS(Pilots!$E$9:$E$108,$B36,Pilots!$D$9:$D$108,Teams!E$1)) ->  | F36: =+IF(ISBLANK($B36),"",COUNTIFS(Pilots!$E$9:$E$108,$B36,Pilots!$Z$9:$Z$108,Teams!F$1)) ->  | G36: =IF(ISBLANK($B36),"",MAX(Competition!$D$24-C36,0)) ->  | I36: =IF(ISBLANK($B36),"",IF(G36>0,G36&" fő még hiányzik!",IF(C36>Competition!$D$19,"túl sokan vannak a csapatban!",IF(AND(Competition!$D$21>0,C36-E36>Competition!$D$20),"nincs (elég) nő a csapatban?",IF(AND(Competition!$D$22>0,C36-(E36+F36)>Competition!$D$20),"nincs (elég) női / ifjúsági tag a csapatban?",""))))) -> 
C37: =+IF(ISBLANK($B37),"",COUNTIF(Pilots!$E$9:$E$108,$B37)) ->  | D37: =+IF(ISBLANK($B37),"",COUNTIFS(Pilots!$E$9:$E$108,$B37,Pilots!$D$9:$D$108,Teams!D$1)) ->  | E37: =+IF(ISBLANK($B37),"",COUNTIFS(Pilots!$E$9:$E$108,$B37,Pilots!$D$9:$D$108,Teams!E$1)) ->  | F37: =+IF(ISBLANK($B37),"",COUNTIFS(Pilots!$E$9:$E$108,$B37,Pilots!$Z$9:$Z$108,Teams!F$1)) ->  | G37: =IF(ISBLANK($B37),"",MAX(Competition!$D$24-C37,0)) ->  | I37: =IF(ISBLANK($B37),"",IF(G37>0,G37&" fő még hiányzik!",IF(C37>Competition!$D$19,"túl sokan vannak a csapatban!",IF(AND(Competition!$D$21>0,C37-E37>Competition!$D$20),"nincs (elég) nő a csapatban?",IF(AND(Competition!$D$22>0,C37-(E37+F37)>Competition!$D$20),"nincs (elég) női / ifjúsági tag a csapatban?",""))))) -> 
C38: =+IF(ISBLANK($B38),"",COUNTIF(Pilots!$E$9:$E$108,$B38)) ->  | D38: =+IF(ISBLANK($B38),"",COUNTIFS(Pilots!$E$9:$E$108,$B38,Pilots!$D$9:$D$108,Teams!D$1)) ->  | E38: =+IF(ISBLANK($B38),"",COUNTIFS(Pilots!$E$9:$E$108,$B38,Pilots!$D$9:$D$108,Teams!E$1)) ->  | F38: =+IF(ISBLANK($B38),"",COUNTIFS(Pilots!$E$9:$E$108,$B38,Pilots!$Z$9:$Z$108,Teams!F$1)) ->  | G38: =IF(ISBLANK($B38),"",MAX(Competition!$D$24-C38,0)) ->  | I38: =IF(ISBLANK($B38),"",IF(G38>0,G38&" fő még hiányzik!",IF(C38>Competition!$D$19,"túl sokan vannak a csapatban!",IF(AND(Competition!$D$21>0,C38-E38>Competition!$D$20),"nincs (elég) nő a csapatban?",IF(AND(Competition!$D$22>0,C38-(E38+F38)>Competition!$D$20),"nincs (elég) női / ifjúsági tag a csapatban?",""))))) -> 

Sheet Pilots
B1: # | C1: Name | D1: Gender | E1: Team | F1: . | G1: =+G8 -> Overall | H1: =+H8 -> tandem | I1: =+I8 -> Hanggliding | J1: . | K1: Country | L1: 2nd nat | M1: . | N1: Club | O1: NAC | P1: Licence | Q1: FAI ID | R1: CIVL_ID | S1: Birthday | T1: Junior | U1: Glider | V1: Sponsor | W1: email | X1: mobile | Y1: vega | Z1: Female/Junior | AA1: . | AB1: . | AC1: . | AD1: . | AE1: . | AF1: . | AG1: . | AH1: . | AI1: Overrall | AJ1: Female | AK1: Tandem | AL1: Team | AM1: Overrall | AN1: Female | AO1: Tandem | AP1: Team | AQ1: No medal
D2: Female | E2: Team | K2: NAT | P2: Valid FAI licence | Q2: FAI ID | R2: CIVL ID | S2: Birthday | U2: Glider | V2: Sponsor | Z2: Female/Junior
B4: =+"Nevezett pilóták listája / Registered pilots - "&Competition!$C$4 -> Nevezett pilóták listája / Registered pilots - PG-HG Triathlon | G4: Jelöld "X"-szel / Sign with mark "X" | AI4: Accuracy Overall | AJ4: Accuracy Female | AK4: Accuracy Tandem | AL4: Accuracy Team | AM4: Triathlon Overall | AN4: Triathlon Female | AO4: Triathlon Tandem | AP4: Triathlon Team | AQ4: No medal
G5: =+COUNTIF(G$9:G$107,"X") -> 21 | H5: =+COUNTIF(H$9:H$107,"X") -> 3 | I5: =+COUNTIF(I$9:I$107,"X") -> 4 | K5: Nemzetiség | N5: Statisztikai adatok | AB5: Név | AC5: Szülinap? | AD5: Életkor | AE5: Átlagéletkor | AF5: Legfiatalabb | AG5: Legidősebb
B7: # | C7: Name | D7: Gender | E7: Team | G7: Verseny típusa / Competition type | H7: Verseny típusa / Competition type | I7: Verseny típusa / Competition type | K7: Country | L7: 2nd nat. | N7: Club | O7: NAC licence | P7: Valid FAI licence | Q7: FAI ID | R7: CIVL ID | S7: Birthday | T7: Junior | U7: Glider | V7: Sponsor | W7: Email | X7: Mobile phone | Y7: Vegetarian | Z7: Female/Junior | AF7: =+IFERROR(VLOOKUP(MAX($S$9:$S$108),$S:$AB,COLUMN($AB$5)-COLUMN($S$7)+1,0),"") -> Ivan Pavlov | AG7: =+IFERROR(VLOOKUP(MIN($S$9:$S$108),$S:$AB,COLUMN($AB$5)-COLUMN($S$7)+1,0),"") -> Jurica Katalinić | AI7: Medal won? | AJ7: Medal won? | AK7: Medal won? | AL7: Medal won? | AM7: Medal won? | AN7: Medal won? | AO7: Medal won? | AP7: Medal won? | AQ7: No medal
B8: Ssz. | C8: Név | D8: Nem | E8: Csapat | G8: Overall | H8: tandem | I8: Hanggliding | K8: Ország | L8: Másik nemz. | N8: Klub | O8: Nemzeti licenc | P8: Érvényes FAI licence | Q8: FAI ID | R8: CIVL ID | S8: Születési idő | T8: Ifjúsági | U8: Ernyő | V8: Szponzor | W8: Email | X8: Mobilszám | Y8: Vega | Z8: Női / ifjúsági | AE8: =+IFERROR(AVERAGE($AD$9:$AD$108),"") -> 36.66666667 | AF8: =+MIN($AD$9:$AD$108) -> 19 | AG8: =+MAX($AD$9:$AD$108) -> 61 | AI8: Érmet nyert? | AJ8: Érmet nyert? | AK8: Érmet nyert? | AL8: Érmet nyert? | AM8: Érmet nyert? | AN8: Érmet nyert? | AO8: Érmet nyert? | AP8: Érmet nyert? | AQ8: Nincs érem
B9: 9 | C9: Sándor Kaszás | D9: M | E9: Felhőút SE | G9: X | K9: HUN | N9: Szoboszlói Darazsak | O9: 4032 | P9: =+IF(OR(ISBLANK($C9),$C9=""),"",IF(OR(ISBLANK($Q9),$Q9="",$Q9=0),Paraméterek!$C$4,Paraméterek!$C$3)) -> yes | Q9: X | S9: 1973-10-12 | T9: =+IF(ISBLANK($C9),"",IF(IF(ISERROR(YEAR(TODAY())-YEAR(S9)),100,(YEAR(TODAY())-YEAR(S9)))<Competition!$D$26+1,Paraméterek!$C$3,Paraméterek!$C$4)) -> no | U9: BDG Adam | X9: 36303471249 | Z9: =+IF(OR(D9=Paraméterek!$D$4,T9=Paraméterek!$C$3),Paraméterek!$C$3,Paraméterek!$C$4) -> no | AB9: =+IF(C9="","",C9) -> Sándor Kaszás | AC9: =+IF(ISERROR(MONTH($S9)),"",IF(MONTH($S9)=MONTH(TODAY()),IF(DAY($S9)=DAY(TODAY()),"szülinapos!",IF(DAY($S9)-DAY(TODAY())=1,"holnap lesz",IF(DAY($S9)-DAY(TODAY())=-1,"tegnap volt","-"))),"-")) -> - | AD9: =IF(OR(ISERROR(YEAR($S9)),$S9=""),"",ROUNDDOWN((TODAY()-$S9)/365,0)) -> 41 | AI9: =IFERROR(IF(VLOOKUP($C9,Rankings!$C:$CD,MATCH("Helyezettek",Rankings!$C$1:$CD$1,0),0)="X","X",""),"") -> X | AJ9: =IFERROR(IF(VLOOKUP($C9,Rankings!$G:$CD,MATCH("Helyezettek",Rankings!$G$1:$CD$1,0),0)="X","X",""),"") ->  | AK9: =IFERROR(IF(VLOOKUP($C9,Rankings!$K:$CD,MATCH("Helyezettek",Rankings!$K$1:$CD$1,0),0)="X","X",""),"") ->  | AL9: =IFERROR(IF(VLOOKUP($C9,Team_results_accuracy!$E:$AN,MATCH("Helyezettek",Team_results_accuracy!$E$5:$AN$5,0),0)="X","X",""),"") -> X | AM9: =IFERROR(IF(VLOOKUP($C9,Rankings!$O:$CD,MATCH("Helyezettek",Rankings!$O$1:$CD$1,0),0)="X","X",""),"") -> X | AN9: =IFERROR(IF(VLOOKUP($C9,Rankings!$S:$CD,MATCH("Helyezettek",Rankings!$S$1:$CD$1,0),0)="X","X",""),"") ->  | AO9: =IFERROR(IF(VLOOKUP($C9,Rankings!$W:$CD,MATCH("Helyezettek",Rankings!$W$1:$CD$1,0),0)="X","X",""),"") ->  | AP9: =IFERROR(IF(VLOOKUP($C9,Team_results_triathlon!$E:$BL,MATCH("Helyezettek",Team_results_triathlon!$E$6:$BL$6,0),0)="X","X",""),"") -> X | AQ9: =+IF(C9="","",IF(COUNTIF(AI9:AP9,"X")>0,"","X")) -> 
B10: 22 | C10: Sándor Kaszás tandem | D10: M | E10: tandem | H10: X | K10: HUN | N10: Szoboszlói Darazsak | P10: =+IF(OR(ISBLANK($C10),$C10=""),"",IF(OR(ISBLANK($Q10),$Q10="",$Q10=0),Paraméterek!$C$4,Paraméterek!$C$3)) -> yes | Q10: X | T10: =+IF(ISBLANK($C10),"",IF(IF(ISERROR(YEAR(TODAY())-YEAR(S10)),100,(YEAR(TODAY())-YEAR(S10)))<Competition!$D$26+1,Paraméterek!$C$3,Paraméterek!$C$4)) -> no | Z10: =+IF(OR(D10=Paraméterek!$D$4,T10=Paraméterek!$C$3),Paraméterek!$C$3,Paraméterek!$C$4) -> no | AB10: Sándor Kaszás tandem | AC10: =+IF(ISERROR(MONTH($S10)),"",IF(MONTH($S10)=MONTH(TODAY()),IF(DAY($S10)=DAY(TODAY()),"szülinapos!",IF(DAY($S10)-DAY(TODAY())=1,"holnap lesz",IF(DAY($S10)-DAY(TODAY())=-1,"tegnap volt","-"))),"-")) -> - | AD10: =IF(OR(ISERROR(YEAR($S10)),$S10=""),"",ROUNDDOWN((TODAY()-$S10)/365,0)) ->  | AI10: =IFERROR(IF(VLOOKUP($C10,Rankings!$C:$CD,MATCH("Helyezettek",Rankings!$C$1:$CD$1,0),0)="X","X",""),"") ->  | AJ10: =IFERROR(IF(VLOOKUP($C10,Rankings!$G:$CD,MATCH("Helyezettek",Rankings!$G$1:$CD$1,0),0)="X","X",""),"") ->  | AK10: =IFERROR(IF(VLOOKUP($C10,Rankings!$K:$CD,MATCH("Helyezettek",Rankings!$K$1:$CD$1,0),0)="X","X",""),"") -> X | AL10: =IFERROR(IF(VLOOKUP($C10,Team_results_accuracy!$E:$AN,MATCH("Helyezettek",Team_results_accuracy!$E$5:$AN$5,0),0)="X","X",""),"") -> X | AM10: =IFERROR(IF(VLOOKUP($C10,Rankings!$O:$CD,MATCH("Helyezettek",Rankings!$O$1:$CD$1,0),0)="X","X",""),"") ->  | AN10: =IFERROR(IF(VLOOKUP($C10,Rankings!$S:$CD,MATCH("Helyezettek",Rankings!$S$1:$CD$1,0),0)="X","X",""),"") ->  | AO10: =IFERROR(IF(VLOOKUP($C10,Rankings!$W:$CD,MATCH("Helyezettek",Rankings!$W$1:$CD$1,0),0)="X","X",""),"") -> X | AP10: =IFERROR(IF(VLOOKUP($C10,Team_results_triathlon!$E:$BL,MATCH("Helyezettek",Team_results_triathlon!$E$6:$BL$6,0),0)="X","X",""),"") -> X | AQ10: =+IF(C10="","",IF(COUNTIF(AI10:AP10,"X")>0,"","X")) -> 
B11: 21 | C11: Viola Vass | D11: F | E11: a Házisárkány | G11: X | I11: X | K11: HUN | N11: MSE | P11: =+IF(OR(ISBLANK($C11),$C11=""),"",IF(OR(ISBLANK($Q11),$Q11="",$Q11=0),Paraméterek!$C$4,Paraméterek!$C$3)) -> yes | Q11: X | S11: 1982-01-23 | T11: =+IF(ISBLANK($C11),"",IF(IF(ISERROR(YEAR(TODAY())-YEAR(S11)),100,(YEAR(TODAY())-YEAR(S11)))<Competition!$D$26+1,Paraméterek!$C$3,Paraméterek!$C$4)) -> no | W11: aviovio@gmail.com | X11: 36706735216 | Z11: =+IF(OR(D11=Paraméterek!$D$4,T11=Paraméterek!$C$3),Paraméterek!$C$3,Paraméterek!$C$4) -> yes | AB11: Viola Vass | AC11: - | AD11: 33 | AI11: =IFERROR(IF(VLOOKUP($C11,Rankings!$C:$CD,MATCH("Helyezettek",Rankings!$C$1:$CD$1,0),0)="X","X",""),"") ->  | AJ11: =IFERROR(IF(VLOOKUP($C11,Rankings!$G:$CD,MATCH("Helyezettek",Rankings!$G$1:$CD$1,0),0)="X","X",""),"") -> X | AK11: =IFERROR(IF(VLOOKUP($C11,Rankings!$K:$CD,MATCH("Helyezettek",Rankings!$K$1:$CD$1,0),0)="X","X",""),"") ->  | AL11: =IFERROR(IF(VLOOKUP($C11,Team_results_accuracy!$E:$AN,MATCH("Helyezettek",Team_results_accuracy!$E$5:$AN$5,0),0)="X","X",""),"") ->  | AM11: =IFERROR(IF(VLOOKUP($C11,Rankings!$O:$CD,MATCH("Helyezettek",Rankings!$O$1:$CD$1,0),0)="X","X",""),"") ->  | AN11: =IFERROR(IF(VLOOKUP($C11,Rankings!$S:$CD,MATCH("Helyezettek",Rankings!$S$1:$CD$1,0),0)="X","X",""),"") -> X | AO11: =IFERROR(IF(VLOOKUP($C11,Rankings!$W:$CD,MATCH("Helyezettek",Rankings!$W$1:$CD$1,0),0)="X","X",""),"") ->  | AP11: =IFERROR(IF(VLOOKUP($C11,Team_results_triathlon!$E:$BL,MATCH("Helyezettek",Team_results_triathlon!$E$6:$BL$6,0),0)="X","X",""),"") -> 
B12: 15 | C12: József Nagy | D12: M | E12: a Házisárkány | G12: X | I12: X | K12: HUN | N12: MSE | P12: =+IF(OR(ISBLANK($C12),$C12=""),"",IF(OR(ISBLANK($Q12),$Q12="",$Q12=0),Paraméterek!$C$4,Paraméterek!$C$3)) -> yes | Q12: X | S12: 1972-04-11 | T12: =+IF(ISBLANK($C12),"",IF(IF(ISERROR(YEAR(TODAY())-YEAR(S12)),100,(YEAR(TODAY())-YEAR(S12)))<Competition!$D$26+1,Paraméterek!$C$3,Paraméterek!$C$4)) -> no | W12: bigdzso@diplomacia.hu | X12: 36209640774 | Z12: =+IF(OR(D12=Paraméterek!$D$4,T12=Paraméterek!$C$3),Paraméterek!$C$3,Paraméterek!$C$4) -> no | AB12: József Nagy | AC12: - | AD12: 43 | AI12: =IFERROR(IF(VLOOKUP($C12,Rankings!$C:$CD,MATCH("Helyezettek",Rankings!$C$1:$CD$1,0),0)="X","X",""),"") ->  | AJ12: =IFERROR(IF(VLOOKUP($C12,Rankings!$G:$CD,MATCH("Helyezettek",Rankings!$G$1:$CD$1,0),0)="X","X",""),"") ->  | AK12: =IFERROR(IF(VLOOKUP($C12,Rankings!$K:$CD,MATCH("Helyezettek",Rankings!$K$1:$CD$1,0),0)="X","X",""),"") ->  | AL12: =IFERROR(IF(VLOOKUP($C12,Team_results_accuracy!$E:$AN,MATCH("Helyezettek",Team_results_accuracy!$E$5:$AN$5,0),0)="X","X",""),"") ->  | AM12: =IFERROR(IF(VLOOKUP($C12,Rankings!$O:$CD,MATCH("Helyezettek",Rankings!$O$1:$CD$1,0),0)="X","X",""),"") ->  | AN12: =IFERROR(IF(VLOOKUP($C12,Rankings!$S:$CD,MATCH("Helyezettek",Rankings!$S$1:$CD$1,0),0)="X","X",""),"") ->  | AO12: =IFERROR(IF(VLOOKUP($C12,Rankings!$W:$CD,MATCH("Helyezettek",Rankings!$W$1:$CD$1,0),0)="X","X",""),"") ->  | AP12: =IFERROR(IF(VLOOKUP($C12,Team_results_triathlon!$E:$BL,MATCH("Helyezettek",Team_results_triathlon!$E$6:$BL$6,0),0)="X","X",""),"") ->  | AQ12: X
B13: 3 | C13: Jurica Katalinić | D13: M | E13: Ivan Sarić | G13: X | K13: SRB | N13: Ivan Saric | P13: =+IF(OR(ISBLANK($C13),$C13=""),"",IF(OR(ISBLANK($Q13),$Q13="",$Q13=0),Paraméterek!$C$4,Paraméterek!$C$3)) -> yes | Q13: X | S13: 1954-03-20 | T13: =+IF(ISBLANK($C13),"",IF(IF(ISERROR(YEAR(TODAY())-YEAR(S13)),100,(YEAR(TODAY())-YEAR(S13)))<Competition!$D$26+1,Paraméterek!$C$3,Paraméterek!$C$4)) -> no | W13: george@mts.rs | X13: 38162207654 | Z13: =+IF(OR(D13=Paraméterek!$D$4,T13=Paraméterek!$C$3),Paraméterek!$C$3,Paraméterek!$C$4) -> no | AB13: Jurica Katalinić | AC13: - | AD13: 61 | AI13: =IFERROR(IF(VLOOKUP($C13,Rankings!$C:$CD,MATCH("Helyezettek",Rankings!$C$1:$CD$1,0),0)="X","X",""),"") ->  | AJ13: =IFERROR(IF(VLOOKUP($C13,Rankings!$G:$CD,MATCH("Helyezettek",Rankings!$G$1:$CD$1,0),0)="X","X",""),"") ->  | AK13: =IFERROR(IF(VLOOKUP($C13,Rankings!$K:$CD,MATCH("Helyezettek",Rankings!$K$1:$CD$1,0),0)="X","X",""),"") ->  | AL13: =IFERROR(IF(VLOOKUP($C13,Team_results_accuracy!$E:$AN,MATCH("Helyezettek",Team_results_accuracy!$E$5:$AN$5,0),0)="X","X",""),"") ->  | AM13: =IFERROR(IF(VLOOKUP($C13,Rankings!$O:$CD,MATCH("Helyezettek",Rankings!$O$1:$CD$1,0),0)="X","X",""),"") ->  | AN13: =IFERROR(IF(VLOOKUP($C13,Rankings!$S:$CD,MATCH("Helyezettek",Rankings!$S$1:$CD$1,0),0)="X","X",""),"") ->  | AO13: =IFERROR(IF(VLOOKUP($C13,Rankings!$W:$CD,MATCH("Helyezettek",Rankings!$W$1:$CD$1,0),0)="X","X",""),"") ->  | AP13: =IFERROR(IF(VLOOKUP($C13,Team_results_triathlon!$E:$BL,MATCH("Helyezettek",Team_results_triathlon!$E$6:$BL$6,0),0)="X","X",""),"") ->  | AQ13: X
B14: 20 | C14: Miklós Ónódi | D14: M | E14: Delta | G14: X | K14: SRB | L14: HUN | N14: Delta | P14: =+IF(OR(ISBLANK($C14),$C14=""),"",IF(OR(ISBLANK($Q14),$Q14="",$Q14=0),Paraméterek!$C$4,Paraméterek!$C$3)) -> yes | Q14: X | S14: 1960-06-12 | T14: =+IF(ISBLANK($C14),"",IF(IF(ISERROR(YEAR(TODAY())-YEAR(S14)),100,(YEAR(TODAY())-YEAR(S14)))<Competition!$D$26+1,Paraméterek!$C$3,Paraméterek!$C$4)) -> no | U14: Gradient Taurni | W14: onodimiklos@gmail.com | X14: 38163590823 | Z14: =+IF(OR(D14=Paraméterek!$D$4,T14=Paraméterek!$C$3),Paraméterek!$C$3,Paraméterek!$C$4) -> no | AB14: Miklós Ónódi | AC14: - | AD14: 54 | AI14: =IFERROR(IF(VLOOKUP($C14,Rankings!$C:$CD,MATCH("Helyezettek",Rankings!$C$1:$CD$1,0),0)="X","X",""),"") ->  | AJ14: =IFERROR(IF(VLOOKUP($C14,Rankings!$G:$CD,MATCH("Helyezettek",Rankings!$G$1:$CD$1,0),0)="X","X",""),"") ->  | AK14: =IFERROR(IF(VLOOKUP($C14,Rankings!$K:$CD,MATCH("Helyezettek",Rankings!$K$1:$CD$1,0),0)="X","X",""),"") ->  | AL14: =IFERROR(IF(VLOOKUP($C14,Team_results_accuracy!$E:$AN,MATCH("Helyezettek",Team_results_accuracy!$E$5:$AN$5,0),0)="X","X",""),"") -> X | AM14: =IFERROR(IF(VLOOKUP($C14,Rankings!$O:$CD,MATCH("Helyezettek",Rankings!$O$1:$CD$1,0),0)="X","X",""),"") ->  | AN14: =IFERROR(IF(VLOOKUP($C14,Rankings!$S:$CD,MATCH("Helyezettek",Rankings!$S$1:$CD$1,0),0)="X","X",""),"") ->  | AO14: =IFERROR(IF(VLOOKUP($C14,Rankings!$W:$CD,MATCH("Helyezettek",Rankings!$W$1:$CD$1,0),0)="X","X",""),"") ->  | AP14: =IFERROR(IF(VLOOKUP($C14,Team_results_triathlon!$E:$BL,MATCH("Helyezettek",Team_results_triathlon!$E$6:$BL$6,0),0)="X","X",""),"") -> X
B15: 19 | C15: Srđan Kesić | D15: M | E15: Delta | G15: X | K15: SRB | N15: Delta | P15: =+IF(OR(ISBLANK($C15),$C15=""),"",IF(OR(ISBLANK($Q15),$Q15="",$Q15=0),Paraméterek!$C$4,Paraméterek!$C$3)) -> yes | Q15: X | S15: 1979-03-11 | T15: =+IF(ISBLANK($C15),"",IF(IF(ISERROR(YEAR(TODAY())-YEAR(S15)),100,(YEAR(TODAY())-YEAR(S15)))<Competition!$D$26+1,Paraméterek!$C$3,Paraméterek!$C$4)) -> no | U15: Skywalk Chili 3 | W15: srdjan.kesic@gmail.com | X15: 381638135872 | Z15: =+IF(OR(D15=Paraméterek!$D$4,T15=Paraméterek!$C$3),Paraméterek!$C$3,Paraméterek!$C$4) -> no | AB15: Srđan Kesić | AC15: - | AD15: 36 | AI15: =IFERROR(IF(VLOOKUP($C15,Rankings!$C:$CD,MATCH("Helyezettek",Rankings!$C$1:$CD$1,0),0)="X","X",""),"") ->  | AJ15: =IFERROR(IF(VLOOKUP($C15,Rankings!$G:$CD,MATCH("Helyezettek",Rankings!$G$1:$CD$1,0),0)="X","X",""),"") ->  | AK15: =IFERROR(IF(VLOOKUP($C15,Rankings!$K:$CD,MATCH("Helyezettek",Rankings!$K$1:$CD$1,0),0)="X","X",""),"") ->  | AL15: =IFERROR(IF(VLOOKUP($C15,Team_results_accuracy!$E:$AN,MATCH("Helyezettek",Team_results_accuracy!$E$5:$AN$5,0),0)="X","X",""),"") -> X | AM15: =IFERROR(IF(VLOOKUP($C15,Rankings!$O:$CD,MATCH("Helyezettek",Rankings!$O$1:$CD$1,0),0)="X","X",""),"") ->  | AN15: =IFERROR(IF(VLOOKUP($C15,Rankings!$S:$CD,MATCH("Helyezettek",Rankings!$S$1:$CD$1,0),0)="X","X",""),"") ->  | AO15: =IFERROR(IF(VLOOKUP($C15,Rankings!$W:$CD,MATCH("Helyezettek",Rankings!$W$1:$CD$1,0),0)="X","X",""),"") ->  | AP15: =IFERROR(IF(VLOOKUP($C15,Team_results_triathlon!$E:$BL,MATCH("Helyezettek",Team_results_triathlon!$E$6:$BL$6,0),0)="X","X",""),"") -> X
B16: 17 | C16: Josip File | D16: M | E16: Ivan Sarić | G16: X | K16: SRB | N16: Ivan Saric | P16: =+IF(OR(ISBLANK($C16),$C16=""),"",IF(OR(ISBLANK($Q16),$Q16="",$Q16=0),Paraméterek!$C$4,Paraméterek!$C$3)) -> yes | Q16: X | S16: 1968-08-07 | T16: =+IF(ISBLANK($C16),"",IF(IF(ISERROR(YEAR(TODAY())-YEAR(S16)),100,(YEAR(TODAY())-YEAR(S16)))<Competition!$D$26+1,Paraméterek!$C$3,Paraméterek!$C$4)) -> no | U16: Compact II | Z16: =+IF(OR(D16=Paraméterek!$D$4,T16=Paraméterek!$C$3),Paraméterek!$C$3,Paraméterek!$C$4) -> no | AB16: Josip File | AC16: - | AD16: 46 | AI16: =IFERROR(IF(VLOOKUP($C16,Rankings!$C:$CD,MATCH("Helyezettek",Rankings!$C$1:$CD$1,0),0)="X","X",""),"") ->  | AJ16: =IFERROR(IF(VLOOKUP($C16,Rankings!$G:$CD,MATCH("Helyezettek",Rankings!$G$1:$CD$1,0),0)="X","X",""),"") ->  | AK16: =IFERROR(IF(VLOOKUP($C16,Rankings!$K:$CD,MATCH("Helyezettek",Rankings!$K$1:$CD$1,0),0)="X","X",""),"") ->  | AL16: =IFERROR(IF(VLOOKUP($C16,Team_results_accuracy!$E:$AN,MATCH("Helyezettek",Team_results_accuracy!$E$5:$AN$5,0),0)="X","X",""),"") ->  | AM16: =IFERROR(IF(VLOOKUP($C16,Rankings!$O:$CD,MATCH("Helyezettek",Rankings!$O$1:$CD$1,0),0)="X","X",""),"") ->  | AN16: =IFERROR(IF(VLOOKUP($C16,Rankings!$S:$CD,MATCH("Helyezettek",Rankings!$S$1:$CD$1,0),0)="X","X",""),"") ->  | AO16: =IFERROR(IF(VLOOKUP($C16,Rankings!$W:$CD,MATCH("Helyezettek",Rankings!$W$1:$CD$1,0),0)="X","X",""),"") ->  | AP16: =IFERROR(IF(VLOOKUP($C16,Team_results_triathlon!$E:$BL,MATCH("Helyezettek",Team_results_triathlon!$E$6:$BL$6,0),0)="X","X",""),"") ->  | AQ16: X
B17: 7 | C17: Dejan Valek | D17: M | E17: Delta | G17: X | K17: SRB | N17: Kosava | P17: =+IF(OR(ISBLANK($C17),$C17=""),"",IF(OR(ISBLANK($Q17),$Q17="",$Q17=0),Paraméterek!$C$4,Paraméterek!$C$3)) -> yes | Q17: X | S17: 1983-10-12 | T17: =+IF(ISBLANK($C17),"",IF(IF(ISERROR(YEAR(TODAY())-YEAR(S17)),100,(YEAR(TODAY())-YEAR(S17)))<Competition!$D$26+1,Paraméterek!$C$3,Paraméterek!$C$4)) -> no | U17: Skywalk Mescal 4 | Z17: =+IF(OR(D17=Paraméterek!$D$4,T17=Paraméterek!$C$3),Paraméterek!$C$3,Paraméterek!$C$4) -> no | AB17: Dejan Valek | AC17: - | AD17: 31 | AI17: =IFERROR(IF(VLOOKUP($C17,Rankings!$C:$CD,MATCH("Helyezettek",Rankings!$C$1:$CD$1,0),0)="X","X",""),"") -> X | AJ17: =IFERROR(IF(VLOOKUP($C17,Rankings!$G:$CD,MATCH("Helyezettek",Rankings!$G$1:$CD$1,0),0)="X","X",""),"") ->  | AK17: =IFERROR(IF(VLOOKUP($C17,Rankings!$K:$CD,MATCH("Helyezettek",Rankings!$K$1:$CD$1,0),0)="X","X",""),"") ->  | AL17: =IFERROR(IF(VLOOKUP($C17,Team_results_accuracy!$E:$AN,MATCH("Helyezettek",Team_results_accuracy!$E$5:$AN$5,0),0)="X","X",""),"") -> X | AM17: =IFERROR(IF(VLOOKUP($C17,Rankings!$O:$CD,MATCH("Helyezettek",Rankings!$O$1:$CD$1,0),0)="X","X",""),"") -> X | AN17: =IFERROR(IF(VLOOKUP($C17,Rankings!$S:$CD,MATCH("Helyezettek",Rankings!$S$1:$CD$1,0),0)="X","X",""),"") ->  | AO17: =IFERROR(IF(VLOOKUP($C17,Rankings!$W:$CD,MATCH("Helyezettek",Rankings!$W$1:$CD$1,0),0)="X","X",""),"") ->  | AP17: =IFERROR(IF(VLOOKUP($C17,Team_results_triathlon!$E:$BL,MATCH("Helyezettek",Team_results_triathlon!$E$6:$BL$6,0),0)="X","X",""),"") -> X
B18: 1 | C18: Ivan Pavlov | D18: M | E18: Delta | G18: X | K18: SRB | N18: Delta | P18: =+IF(OR(ISBLANK($C18),$C18=""),"",IF(OR(ISBLANK($Q18),$Q18="",$Q18=0),Paraméterek!$C$4,Paraméterek!$C$3)) -> yes | Q18: X | S18: 1995-08-24 | T18: =+IF(ISBLANK($C18),"",IF(IF(ISERROR(YEAR(TODAY())-YEAR(S18)),100,(YEAR(TODAY())-YEAR(S18)))<Competition!$D$26+1,Paraméterek!$C$3,Paraméterek!$C$4)) -> yes | U18: Gradient Bright | Z18: =+IF(OR(D18=Paraméterek!$D$4,T18=Paraméterek!$C$3),Paraméterek!$C$3,Paraméterek!$C$4) -> yes | AB18: Ivan Pavlov | AC18: - | AD18: 19 | AI18: =IFERROR(IF(VLOOKUP($C18,Rankings!$C:$CD,MATCH("Helyezettek",Rankings!$C$1:$CD$1,0),0)="X","X",""),"") -> X | AJ18: =IFERROR(IF(VLOOKUP($C18,Rankings!$G:$CD,MATCH("Helyezettek",Rankings!$G$1:$CD$1,0),0)="X","X",""),"") ->  | AK18: =IFERROR(IF(VLOOKUP($C18,Rankings!$K:$CD,MATCH("Helyezettek",Rankings!$K$1:$CD$1,0),0)="X","X",""),"") ->  | AL18: =IFERROR(IF(VLOOKUP($C18,Team_results_accuracy!$E:$AN,MATCH("Helyezettek",Team_results_accuracy!$E$5:$AN$5,0),0)="X","X",""),"") -> X | AM18: =IFERROR(IF(VLOOKUP($C18,Rankings!$O:$CD,MATCH("Helyezettek",Rankings!$O$1:$CD$1,0),0)="X","X",""),"") -> X | AN18: =IFERROR(IF(VLOOKUP($C18,Rankings!$S:$CD,MATCH("Helyezettek",Rankings!$S$1:$CD$1,0),0)="X","X",""),"") ->  | AO18: =IFERROR(IF(VLOOKUP($C18,Rankings!$W:$CD,MATCH("Helyezettek",Rankings!$W$1:$CD$1,0),0)="X","X",""),"") ->  | AP18: =IFERROR(IF(VLOOKUP($C18,Team_results_triathlon!$E:$BL,MATCH("Helyezettek",Team_results_triathlon!$E$6:$BL$6,0),0)="X","X",""),"") -> X
B19: 18 | C19: Ivan Pavlov tandem | D19: M | E19: tandem | H19: X | K19: SRB | N19: Delta | P19: =+IF(OR(ISBLANK($C19),$C19=""),"",IF(OR(ISBLANK($Q19),$Q19="",$Q19=0),Paraméterek!$C$4,Paraméterek!$C$3)) -> yes | Q19: X | T19: =+IF(ISBLANK($C19),"",IF(IF(ISERROR(YEAR(TODAY())-YEAR(S19)),100,(YEAR(TODAY())-YEAR(S19)))<Competition!$D$26+1,Paraméterek!$C$3,Paraméterek!$C$4)) -> no | Z19: =+IF(OR(D19=Paraméterek!$D$4,T19=Paraméterek!$C$3),Paraméterek!$C$3,Paraméterek!$C$4) -> no | AB19: Ivan Pavlov tandem | AC19: - | AI19: =IFERROR(IF(VLOOKUP($C19,Rankings!$C:$CD,MATCH("Helyezettek",Rankings!$C$1:$CD$1,0),0)="X","X",""),"") ->  | AJ19: =IFERROR(IF(VLOOKUP($C19,Rankings!$G:$CD,MATCH("Helyezettek",Rankings!$G$1:$CD$1,0),0)="X","X",""),"") ->  | AK19: =IFERROR(IF(VLOOKUP($C19,Rankings!$K:$CD,MATCH("Helyezettek",Rankings!$K$1:$CD$1,0),0)="X","X",""),"") -> X | AL19: =IFERROR(IF(VLOOKUP($C19,Team_results_accuracy!$E:$AN,MATCH("Helyezettek",Team_results_accuracy!$E$5:$AN$5,0),0)="X","X",""),"") -> X | AM19: =IFERROR(IF(VLOOKUP($C19,Rankings!$O:$CD,MATCH("Helyezettek",Rankings!$O$1:$CD$1,0),0)="X","X",""),"") ->  | AN19: =IFERROR(IF(VLOOKUP($C19,Rankings!$S:$CD,MATCH("Helyezettek",Rankings!$S$1:$CD$1,0),0)="X","X",""),"") ->  | AO19: =IFERROR(IF(VLOOKUP($C19,Rankings!$W:$CD,MATCH("Helyezettek",Rankings!$W$1:$CD$1,0),0)="X","X",""),"") -> X | AP19: =IFERROR(IF(VLOOKUP($C19,Team_results_triathlon!$E:$BL,MATCH("Helyezettek",Team_results_triathlon!$E$6:$BL$6,0),0)="X","X",""),"") -> X
B20: 4 | C20: István Gyarmati-Szabó | D20: M | E20: Delta | G20: X | K20: HUN | N20: FreeAir | P20: =+IF(OR(ISBLANK($C20),$C20=""),"",IF(OR(ISBLANK($Q20),$Q20="",$Q20=0),Paraméterek!$C$4,Paraméterek!$C$3)) -> yes | Q20: X | S20: 1981-09-22 | T20: =+IF(ISBLANK($C20),"",IF(IF(ISERROR(YEAR(TODAY())-YEAR(S20)),100,(YEAR(TODAY())-YEAR(S20)))<Competition!$D$26+1,Paraméterek!$C$3,Paraméterek!$C$4)) -> no | U20: Gin Sprint | Z20: =+IF(OR(D20=Paraméterek!$D$4,T20=Paraméterek!$C$3),Paraméterek!$C$3,Paraméterek!$C$4) -> no | AB20: István Gyarmati-Szabó | AC20: - | AD20: 33 | AI20: =IFERROR(IF(VLOOKUP($C20,Rankings!$C:$CD,MATCH("Helyezettek",Rankings!$C$1:$CD$1,0),0)="X","X",""),"") ->  | AJ20: =IFERROR(IF(VLOOKUP($C20,Rankings!$G:$CD,MATCH("Helyezettek",Rankings!$G$1:$CD$1,0),0)="X","X",""),"") ->  | AK20: =IFERROR(IF(VLOOKUP($C20,Rankings!$K:$CD,MATCH("Helyezettek",Rankings!$K$1:$CD$1,0),0)="X","X",""),"") ->  | AL20: =IFERROR(IF(VLOOKUP($C20,Team_results_accuracy!$E:$AN,MATCH("Helyezettek",Team_results_accuracy!$E$5:$AN$5,0),0)="X","X",""),"") -> X | AM20: =IFERROR(IF(VLOOKUP($C20,Rankings!$O:$CD,MATCH("Helyezettek",Rankings!$O$1:$CD$1,0),0)="X","X",""),"") ->  | AN20: =IFERROR(IF(VLOOKUP($C20,Rankings!$S:$CD,MATCH("Helyezettek",Rankings!$S$1:$CD$1,0),0)="X","X",""),"") ->  | AO20: =IFERROR(IF(VLOOKUP($C20,Rankings!$W:$CD,MATCH("Helyezettek",Rankings!$W$1:$CD$1,0),0)="X","X",""),"") ->  | AP20: =IFERROR(IF(VLOOKUP($C20,Team_results_triathlon!$E:$BL,MATCH("Helyezettek",Team_results_triathlon!$E$6:$BL$6,0),0)="X","X",""),"") -> X
B21: 11 | C21: Richárd Nagy | D21: M | E21: a Házisárkány | G21: X | I21: X | K21: HUN | N21: MSE / PiSE | P21: =+IF(OR(ISBLANK($C21),$C21=""),"",IF(OR(ISBLANK($Q21),$Q21="",$Q21=0),Paraméterek!$C$4,Paraméterek!$C$3)) -> yes | Q21: X | S21: 1979-12-18 | T21: =+IF(ISBLANK($C21),"",IF(IF(ISERROR(YEAR(TODAY())-YEAR(S21)),100,(YEAR(TODAY())-YEAR(S21)))<Competition!$D$26+1,Paraméterek!$C$3,Paraméterek!$C$4)) -> no | U21: Star | Z21: =+IF(OR(D21=Paraméterek!$D$4,T21=Paraméterek!$C$3),Paraméterek!$C$3,Paraméterek!$C$4) -> no | AB21: Richárd Nagy | AC21: - | AD21: 35 | AI21: =IFERROR(IF(VLOOKUP($C21,Rankings!$C:$CD,MATCH("Helyezettek",Rankings!$C$1:$CD$1,0),0)="X","X",""),"") ->  | AJ21: =IFERROR(IF(VLOOKUP($C21,Rankings!$G:$CD,MATCH("Helyezettek",Rankings!$G$1:$CD$1,0),0)="X","X",""),"") ->  | AK21: =IFERROR(IF(VLOOKUP($C21,Rankings!$K:$CD,MATCH("Helyezettek",Rankings!$K$1:$CD$1,0),0)="X","X",""),"") ->  | AL21: =IFERROR(IF(VLOOKUP($C21,Team_results_accuracy!$E:$AN,MATCH("Helyezettek",Team_results_accuracy!$E$5:$AN$5,0),0)="X","X",""),"") ->  | AM21: =IFERROR(IF(VLOOKUP($C21,Rankings!$O:$CD,MATCH("Helyezettek",Rankings!$O$1:$CD$1,0),0)="X","X",""),"") ->  | AN21: =IFERROR(IF(VLOOKUP($C21,Rankings!$S:$CD,MATCH("Helyezettek",Rankings!$S$1:$CD$1,0),0)="X","X",""),"") ->  | AO21: =IFERROR(IF(VLOOKUP($C21,Rankings!$W:$CD,MATCH("Helyezettek",Rankings!$W$1:$CD$1,0),0)="X","X",""),"") ->  | AP21: =IFERROR(IF(VLOOKUP($C21,Team_results_triathlon!$E:$BL,MATCH("Helyezettek",Team_results_triathlon!$E$6:$BL$6,0),0)="X","X",""),"") ->  | AQ21: X
B22: 10 | C22: Edina Szabóné Koleszár | D22: F | E22: Felhőút SE | G22: X | K22: HUN | N22: Felhőút SE | P22: =+IF(OR(ISBLANK($C22),$C22=""),"",IF(OR(ISBLANK($Q22),$Q22="",$Q22=0),Paraméterek!$C$4,Paraméterek!$C$3)) -> yes | Q22: X | S22: 1974-12-03 | T22: =+IF(ISBLANK($C22),"",IF(IF(ISERROR(YEAR(TODAY())-YEAR(S22)),100,(YEAR(TODAY())-YEAR(S22)))<Competition!$D$26+1,Paraméterek!$C$3,Paraméterek!$C$4)) -> no | Z22: =+IF(OR(D22=Paraméterek!$D$4,T22=Paraméterek!$C$3),Paraméterek!$C$3,Paraméterek!$C$4) -> yes | AB22: Edina Szabóné Koleszár | AC22: - | AD22: 40 | AI22: =IFERROR(IF(VLOOKUP($C22,Rankings!$C:$CD,MATCH("Helyezettek",Rankings!$C$1:$CD$1,0),0)="X","X",""),"") ->  | AJ22: =IFERROR(IF(VLOOKUP($C22,Rankings!$G:$CD,MATCH("Helyezettek",Rankings!$G$1:$CD$1,0),0)="X","X",""),"") -> X | AK22: =IFERROR(IF(VLOOKUP($C22,Rankings!$K:$CD,MATCH("Helyezettek",Rankings!$K$1:$CD$1,0),0)="X","X",""),"") ->  | AL22: =IFERROR(IF(VLOOKUP($C22,Team_results_accuracy!$E:$AN,MATCH("Helyezettek",Team_results_accuracy!$E$5:$AN$5,0),0)="X","X",""),"") -> X | AM22: =IFERROR(IF(VLOOKUP($C22,Rankings!$O:$CD,MATCH("Helyezettek",Rankings!$O$1:$CD$1,0),0)="X","X",""),"") ->  | AN22: =IFERROR(IF(VLOOKUP($C22,Rankings!$S:$CD,MATCH("Helyezettek",Rankings!$S$1:$CD$1,0),0)="X","X",""),"") -> X | AO22: =IFERROR(IF(VLOOKUP($C22,Rankings!$W:$CD,MATCH("Helyezettek",Rankings!$W$1:$CD$1,0),0)="X","X",""),"") ->  | AP22: =IFERROR(IF(VLOOKUP($C22,Team_results_triathlon!$E:$BL,MATCH("Helyezettek",Team_results_triathlon!$E$6:$BL$6,0),0)="X","X",""),"") -> X
B23: 5 | C23: Dániel Hartmann | D23: M | E23: Felhőút SE | G23: X | K23: HUN | N23: Felhőút SE | P23: =+IF(OR(ISBLANK($C23),$C23=""),"",IF(OR(ISBLANK($Q23),$Q23="",$Q23=0),Paraméterek!$C$4,Paraméterek!$C$3)) -> yes | Q23: X | S23: 1992-07-03 | T23: =+IF(ISBLANK($C23),"",IF(IF(ISERROR(YEAR(TODAY())-YEAR(S23)),100,(YEAR(TODAY())-YEAR(S23)))<Competition!$D$26+1,Paraméterek!$C$3,Paraméterek!$C$4)) -> yes | Z23: =+IF(OR(D23=Paraméterek!$D$4,T23=Paraméterek!$C$3),Paraméterek!$C$3,Paraméterek!$C$4) -> yes | AB23: Dániel Hartmann | AC23: - | AD23: 22 | AI23: =IFERROR(IF(VLOOKUP($C23,Rankings!$C:$CD,MATCH("Helyezettek",Rankings!$C$1:$CD$1,0),0)="X","X",""),"") ->  | AJ23: =IFERROR(IF(VLOOKUP($C23,Rankings!$G:$CD,MATCH("Helyezettek",Rankings!$G$1:$CD$1,0),0)="X","X",""),"") ->  | AK23: =IFERROR(IF(VLOOKUP($C23,Rankings!$K:$CD,MATCH("Helyezettek",Rankings!$K$1:$CD$1,0),0)="X","X",""),"") ->  | AL23: =IFERROR(IF(VLOOKUP($C23,Team_results_accuracy!$E:$AN,MATCH("Helyezettek",Team_results_accuracy!$E$5:$AN$5,0),0)="X","X",""),"") -> X | AM23: =IFERROR(IF(VLOOKUP($C23,Rankings!$O:$CD,MATCH("Helyezettek",Rankings!$O$1:$CD$1,0),0)="X","X",""),"") ->  | AN23: =IFERROR(IF(VLOOKUP($C23,Rankings!$S:$CD,MATCH("Helyezettek",Rankings!$S$1:$CD$1,0),0)="X","X",""),"") ->  | AO23: =IFERROR(IF(VLOOKUP($C23,Rankings!$W:$CD,MATCH("Helyezettek",Rankings!$W$1:$CD$1,0),0)="X","X",""),"") ->  | AP23: =IFERROR(IF(VLOOKUP($C23,Team_results_triathlon!$E:$BL,MATCH("Helyezettek",Team_results_triathlon!$E$6:$BL$6,0),0)="X","X",""),"") -> X
B24: 13 | C24: Márkó Mihály | D24: M | E24: Felhőút SE | G24: X | K24: HUN | N24: Felhőút SE | P24: =+IF(OR(ISBLANK($C24),$C24=""),"",IF(OR(ISBLANK($Q24),$Q24="",$Q24=0),Paraméterek!$C$4,Paraméterek!$C$3)) -> yes | Q24: X | S24: 1977-07-16 | T24: =+IF(ISBLANK($C24),"",IF(IF(ISERROR(YEAR(TODAY())-YEAR(S24)),100,(YEAR(TODAY())-YEAR(S24)))<Competition!$D$26+1,Paraméterek!$C$3,Paraméterek!$C$4)) -> no | Z24: =+IF(OR(D24=Paraméterek!$D$4,T24=Paraméterek!$C$3),Paraméterek!$C$3,Paraméterek!$C$4) -> no | AB24: Márkó Mihály | AC24: - | AD24: 37 | AI24: =IFERROR(IF(VLOOKUP($C24,Rankings!$C:$CD,MATCH("Helyezettek",Rankings!$C$1:$CD$1,0),0)="X","X",""),"") ->  | AJ24: =IFERROR(IF(VLOOKUP($C24,Rankings!$G:$CD,MATCH("Helyezettek",Rankings!$G$1:$CD$1,0),0)="X","X",""),"") ->  | AK24: =IFERROR(IF(VLOOKUP($C24,Rankings!$K:$CD,MATCH("Helyezettek",Rankings!$K$1:$CD$1,0),0)="X","X",""),"") ->  | AL24: =IFERROR(IF(VLOOKUP($C24,Team_results_accuracy!$E:$AN,MATCH("Helyezettek",Team_results_accuracy!$E$5:$AN$5,0),0)="X","X",""),"") -> X | AM24: =IFERROR(IF(VLOOKUP($C24,Rankings!$O:$CD,MATCH("Helyezettek",Rankings!$O$1:$CD$1,0),0)="X","X",""),"") ->  | AN24: =IFERROR(IF(VLOOKUP($C24,Rankings!$S:$CD,MATCH("Helyezettek",Rankings!$S$1:$CD$1,0),0)="X","X",""),"") ->  | AO24: =IFERROR(IF(VLOOKUP($C24,Rankings!$W:$CD,MATCH("Helyezettek",Rankings!$W$1:$CD$1,0),0)="X","X",""),"") ->  | AP24: =IFERROR(IF(VLOOKUP($C24,Team_results_triathlon!$E:$BL,MATCH("Helyezettek",Team_results_triathlon!$E$6:$BL$6,0),0)="X","X",""),"") -> X
B25: 8 | C25: Amade Auner | D25: M | E25: BERKUT | G25: X | K25: HUN | N25: AunAir | P25: =+IF(OR(ISBLANK($C25),$C25=""),"",IF(OR(ISBLANK($Q25),$Q25="",$Q25=0),Paraméterek!$C$4,Paraméterek!$C$3)) -> yes | Q25: X | T25: =+IF(ISBLANK($C25),"",IF(IF(ISERROR(YEAR(TODAY())-YEAR(S25)),100,(YEAR(TODAY())-YEAR(S25)))<Competition!$D$26+1,Paraméterek!$C$3,Paraméterek!$C$4)) -> no | Z25: =+IF(OR(D25=Paraméterek!$D$4,T25=Paraméterek!$C$3),Paraméterek!$C$3,Paraméterek!$C$4) -> no | AB25: Amade Auner | AC25: - | AI25: =IFERROR(IF(VLOOKUP($C25,Rankings!$C:$CD,MATCH("Helyezettek",Rankings!$C$1:$CD$1,0),0)="X","X",""),"") ->  | AJ25: =IFERROR(IF(VLOOKUP($C25,Rankings!$G:$CD,MATCH("Helyezettek",Rankings!$G$1:$CD$1,0),0)="X","X",""),"") ->  | AK25: =IFERROR(IF(VLOOKUP($C25,Rankings!$K:$CD,MATCH("Helyezettek",Rankings!$K$1:$CD$1,0),0)="X","X",""),"") ->  | AL25: =IFERROR(IF(VLOOKUP($C25,Team_results_accuracy!$E:$AN,MATCH("Helyezettek",Team_results_accuracy!$E$5:$AN$5,0),0)="X","X",""),"") ->  | AM25: =IFERROR(IF(VLOOKUP($C25,Rankings!$O:$CD,MATCH("Helyezettek",Rankings!$O$1:$CD$1,0),0)="X","X",""),"") ->  | AN25: =IFERROR(IF(VLOOKUP($C25,Rankings!$S:$CD,MATCH("Helyezettek",Rankings!$S$1:$CD$1,0),0)="X","X",""),"") ->  | AO25: =IFERROR(IF(VLOOKUP($C25,Rankings!$W:$CD,MATCH("Helyezettek",Rankings!$W$1:$CD$1,0),0)="X","X",""),"") ->  | AP25: =IFERROR(IF(VLOOKUP($C25,Team_results_triathlon!$E:$BL,MATCH("Helyezettek",Team_results_triathlon!$E$6:$BL$6,0),0)="X","X",""),"") ->  | AQ25: X
B26: 23 | C26: Amade Auner tandem | D26: M | E26: tandem | H26: X | K26: HUN | N26: AunAir | P26: =+IF(OR(ISBLANK($C26),$C26=""),"",IF(OR(ISBLANK($Q26),$Q26="",$Q26=0),Paraméterek!$C$4,Paraméterek!$C$3)) -> yes | Q26: X | T26: =+IF(ISBLANK($C26),"",IF(IF(ISERROR(YEAR(TODAY())-YEAR(S26)),100,(YEAR(TODAY())-YEAR(S26)))<Competition!$D$26+1,Paraméterek!$C$3,Paraméterek!$C$4)) -> no | Z26: =+IF(OR(D26=Paraméterek!$D$4,T26=Paraméterek!$C$3),Paraméterek!$C$3,Paraméterek!$C$4) -> no | AB26: Amade Auner tandem | AC26: - | AI26: =IFERROR(IF(VLOOKUP($C26,Rankings!$C:$CD,MATCH("Helyezettek",Rankings!$C$1:$CD$1,0),0)="X","X",""),"") ->  | AJ26: =IFERROR(IF(VLOOKUP($C26,Rankings!$G:$CD,MATCH("Helyezettek",Rankings!$G$1:$CD$1,0),0)="X","X",""),"") ->  | AK26: =IFERROR(IF(VLOOKUP($C26,Rankings!$K:$CD,MATCH("Helyezettek",Rankings!$K$1:$CD$1,0),0)="X","X",""),"") -> X | AL26: =IFERROR(IF(VLOOKUP($C26,Team_results_accuracy!$E:$AN,MATCH("Helyezettek",Team_results_accuracy!$E$5:$AN$5,0),0)="X","X",""),"") -> X | AM26: =IFERROR(IF(VLOOKUP($C26,Rankings!$O:$CD,MATCH("Helyezettek",Rankings!$O$1:$CD$1,0),0)="X","X",""),"") ->  | AN26: =IFERROR(IF(VLOOKUP($C26,Rankings!$S:$CD,MATCH("Helyezettek",Rankings!$S$1:$CD$1,0),0)="X","X",""),"") ->  | AO26: =IFERROR(IF(VLOOKUP($C26,Rankings!$W:$CD,MATCH("Helyezettek",Rankings!$W$1:$CD$1,0),0)="X","X",""),"") -> X | AP26: =IFERROR(IF(VLOOKUP($C26,Team_results_triathlon!$E:$BL,MATCH("Helyezettek",Team_results_triathlon!$E$6:$BL$6,0),0)="X","X",""),"") -> X
B27: 14 | C27: Zoltán Körmöczi | D27: M | E27: Felhőút SE | G27: X | K27: HUN | N27: DELTA | P27: =+IF(OR(ISBLANK($C27),$C27=""),"",IF(OR(ISBLANK($Q27),$Q27="",$Q27=0),Paraméterek!$C$4,Paraméterek!$C$3)) -> no | T27: =+IF(ISBLANK($C27),"",IF(IF(ISERROR(YEAR(TODAY())-YEAR(S27)),100,(YEAR(TODAY())-YEAR(S27)))<Competition!$D$26+1,Paraméterek!$C$3,Paraméterek!$C$4)) -> no | Z27: =+IF(OR(D27=Paraméterek!$D$4,T27=Paraméterek!$C$3),Paraméterek!$C$3,Paraméterek!$C$4) -> no | AB27: Zoltán Körmöczi | AC27: - | AI27: =IFERROR(IF(VLOOKUP($C27,Rankings!$C:$CD,MATCH("Helyezettek",Rankings!$C$1:$CD$1,0),0)="X","X",""),"") ->  | AJ27: =IFERROR(IF(VLOOKUP($C27,Rankings!$G:$CD,MATCH("Helyezettek",Rankings!$G$1:$CD$1,0),0)="X","X",""),"") ->  | AK27: =IFERROR(IF(VLOOKUP($C27,Rankings!$K:$CD,MATCH("Helyezettek",Rankings!$K$1:$CD$1,0),0)="X","X",""),"") ->  | AL27: =IFERROR(IF(VLOOKUP($C27,Team_results_accuracy!$E:$AN,MATCH("Helyezettek",Team_results_accuracy!$E$5:$AN$5,0),0)="X","X",""),"") -> X | AM27: =IFERROR(IF(VLOOKUP($C27,Rankings!$O:$CD,MATCH("Helyezettek",Rankings!$O$1:$CD$1,0),0)="X","X",""),"") ->  | AN27: =IFERROR(IF(VLOOKUP($C27,Rankings!$S:$CD,MATCH("Helyezettek",Rankings!$S$1:$CD$1,0),0)="X","X",""),"") ->  | AO27: =IFERROR(IF(VLOOKUP($C27,Rankings!$W:$CD,MATCH("Helyezettek",Rankings!$W$1:$CD$1,0),0)="X","X",""),"") ->  | AP27: =IFERROR(IF(VLOOKUP($C27,Team_results_triathlon!$E:$BL,MATCH("Helyezettek",Team_results_triathlon!$E$6:$BL$6,0),0)="X","X",""),"") -> X
B28: 16 | C28: Róbert Exner | D28: M | E28: a Házisárkány | G28: X | I28: X | K28: HUN | N28: PISE | P28: =+IF(OR(ISBLANK($C28),$C28=""),"",IF(OR(ISBLANK($Q28),$Q28="",$Q28=0),Paraméterek!$C$4,Paraméterek!$C$3)) -> no | T28: =+IF(ISBLANK($C28),"",IF(IF(ISERROR(YEAR(TODAY())-YEAR(S28)),100,(YEAR(TODAY())-YEAR(S28)))<Competition!$D$26+1,Paraméterek!$C$3,Paraméterek!$C$4)) -> no | Z28: =+IF(OR(D28=Paraméterek!$D$4,T28=Paraméterek!$C$3),Paraméterek!$C$3,Paraméterek!$C$4) -> no | AB28: Róbert Exner | AC28: - | AI28: =IFERROR(IF(VLOOKUP($C28,Rankings!$C:$CD,MATCH("Helyezettek",Rankings!$C$1:$CD$1,0),0)="X","X",""),"") ->  | AJ28: =IFERROR(IF(VLOOKUP($C28,Rankings!$G:$CD,MATCH("Helyezettek",Rankings!$G$1:$CD$1,0),0)="X","X",""),"") ->  | AK28: =IFERROR(IF(VLOOKUP($C28,Rankings!$K:$CD,MATCH("Helyezettek",Rankings!$K$1:$CD$1,0),0)="X","X",""),"") ->  | AL28: =IFERROR(IF(VLOOKUP($C28,Team_results_accuracy!$E:$AN,MATCH("Helyezettek",Team_results_accuracy!$E$5:$AN$5,0),0)="X","X",""),"") ->  | AM28: =IFERROR(IF(VLOOKUP($C28,Rankings!$O:$CD,MATCH("Helyezettek",Rankings!$O$1:$CD$1,0),0)="X","X",""),"") ->  | AN28: =IFERROR(IF(VLOOKUP($C28,Rankings!$S:$CD,MATCH("Helyezettek",Rankings!$S$1:$CD$1,0),0)="X","X",""),"") ->  | AO28: =IFERROR(IF(VLOOKUP($C28,Rankings!$W:$CD,MATCH("Helyezettek",Rankings!$W$1:$CD$1,0),0)="X","X",""),"") ->  | AP28: =IFERROR(IF(VLOOKUP($C28,Team_results_triathlon!$E:$BL,MATCH("Helyezettek",Team_results_triathlon!$E$6:$BL$6,0),0)="X","X",""),"") ->  | AQ28: X
B29: 2 | C29: Goran Milojković | D29: M | E29: BERKUT | G29: X | K29: SRB | N29: BERKUT | P29: =+IF(OR(ISBLANK($C29),$C29=""),"",IF(OR(ISBLANK($Q29),$Q29="",$Q29=0),Paraméterek!$C$4,Paraméterek!$C$3)) -> no | T29: =+IF(ISBLANK($C29),"",IF(IF(ISERROR(YEAR(TODAY())-YEAR(S29)),100,(YEAR(TODAY())-YEAR(S29)))<Competition!$D$26+1,Paraméterek!$C$3,Paraméterek!$C$4)) -> no | Z29: =+IF(OR(D29=Paraméterek!$D$4,T29=Paraméterek!$C$3),Paraméterek!$C$3,Paraméterek!$C$4) -> no | AB29: Goran Milojković | AC29: - | AI29: =IFERROR(IF(VLOOKUP($C29,Rankings!$C:$CD,MATCH("Helyezettek",Rankings!$C$1:$CD$1,0),0)="X","X",""),"") ->  | AJ29: =IFERROR(IF(VLOOKUP($C29,Rankings!$G:$CD,MATCH("Helyezettek",Rankings!$G$1:$CD$1,0),0)="X","X",""),"") ->  | AK29: =IFERROR(IF(VLOOKUP($C29,Rankings!$K:$CD,MATCH("Helyezettek",Rankings!$K$1:$CD$1,0),0)="X","X",""),"") ->  | AL29: =IFERROR(IF(VLOOKUP($C29,Team_results_accuracy!$E:$AN,MATCH("Helyezettek",Team_results_accuracy!$E$5:$AN$5,0),0)="X","X",""),"") ->  | AM29: =IFERROR(IF(VLOOKUP($C29,Rankings!$O:$CD,MATCH("Helyezettek",Rankings!$O$1:$CD$1,0),0)="X","X",""),"") ->  | AN29: =IFERROR(IF(VLOOKUP($C29,Rankings!$S:$CD,MATCH("Helyezettek",Rankings!$S$1:$CD$1,0),0)="X","X",""),"") ->  | AO29: =IFERROR(IF(VLOOKUP($C29,Rankings!$W:$CD,MATCH("Helyezettek",Rankings!$W$1:$CD$1,0),0)="X","X",""),"") ->  | AP29: =IFERROR(IF(VLOOKUP($C29,Team_results_triathlon!$E:$BL,MATCH("Helyezettek",Team_results_triathlon!$E$6:$BL$6,0),0)="X","X",""),"") ->  | AQ29: X
B30: 6 | C30: Miljan Zeković | D30: M | E30: Ivan Sarić | G30: X | K30: SRB | N30: DELTA | P30: =+IF(OR(ISBLANK($C30),$C30=""),"",IF(OR(ISBLANK($Q30),$Q30="",$Q30=0),Paraméterek!$C$4,Paraméterek!$C$3)) -> no | T30: =+IF(ISBLANK($C30),"",IF(IF(ISERROR(YEAR(TODAY())-YEAR(S30)),100,(YEAR(TODAY())-YEAR(S30)))<Competition!$D$26+1,Paraméterek!$C$3,Paraméterek!$C$4)) -> no | Z30: =+IF(OR(D30=Paraméterek!$D$4,T30=Paraméterek!$C$3),Paraméterek!$C$3,Paraméterek!$C$4) -> no | AB30: Miljan Zeković | AC30: - | AI30: =IFERROR(IF(VLOOKUP($C30,Rankings!$C:$CD,MATCH("Helyezettek",Rankings!$C$1:$CD$1,0),0)="X","X",""),"") ->  | AJ30: =IFERROR(IF(VLOOKUP($C30,Rankings!$G:$CD,MATCH("Helyezettek",Rankings!$G$1:$CD$1,0),0)="X","X",""),"") ->  | AK30: =IFERROR(IF(VLOOKUP($C30,Rankings!$K:$CD,MATCH("Helyezettek",Rankings!$K$1:$CD$1,0),0)="X","X",""),"") ->  | AL30: =IFERROR(IF(VLOOKUP($C30,Team_results_accuracy!$E:$AN,MATCH("Helyezettek",Team_results_accuracy!$E$5:$AN$5,0),0)="X","X",""),"") ->  | AM30: =IFERROR(IF(VLOOKUP($C30,Rankings!$O:$CD,MATCH("Helyezettek",Rankings!$O$1:$CD$1,0),0)="X","X",""),"") ->  | AN30: =IFERROR(IF(VLOOKUP($C30,Rankings!$S:$CD,MATCH("Helyezettek",Rankings!$S$1:$CD$1,0),0)="X","X",""),"") ->  | AO30: =IFERROR(IF(VLOOKUP($C30,Rankings!$W:$CD,MATCH("Helyezettek",Rankings!$W$1:$CD$1,0),0)="X","X",""),"") ->  | AP30: =IFERROR(IF(VLOOKUP($C30,Team_results_triathlon!$E:$BL,MATCH("Helyezettek",Team_results_triathlon!$E$6:$BL$6,0),0)="X","X",""),"") ->  | AQ30: X
B31: 12 | C31: Zeljko Šarčević | D31: M | E31: Ivan Sarić | G31: X | K31: SRB | N31: DELTA | P31: =+IF(OR(ISBLANK($C31),$C31=""),"",IF(OR(ISBLANK($Q31),$Q31="",$Q31=0),Paraméterek!$C$4,Paraméterek!$C$3)) -> no | T31: =+IF(ISBLANK($C31),"",IF(IF(ISERROR(YEAR(TODAY())-YEAR(S31)),100,(YEAR(TODAY())-YEAR(S31)))<Competition!$D$26+1,Paraméterek!$C$3,Paraméterek!$C$4)) -> no | Z31: =+IF(OR(D31=Paraméterek!$D$4,T31=Paraméterek!$C$3),Paraméterek!$C$3,Paraméterek!$C$4) -> no | AB31: Zeljko Šarčević | AC31: - | AI31: =IFERROR(IF(VLOOKUP($C31,Rankings!$C:$CD,MATCH("Helyezettek",Rankings!$C$1:$CD$1,0),0)="X","X",""),"") ->  | AJ31: =IFERROR(IF(VLOOKUP($C31,Rankings!$G:$CD,MATCH("Helyezettek",Rankings!$G$1:$CD$1,0),0)="X","X",""),"") ->  | AK31: =IFERROR(IF(VLOOKUP($C31,Rankings!$K:$CD,MATCH("Helyezettek",Rankings!$K$1:$CD$1,0),0)="X","X",""),"") ->  | AL31: =IFERROR(IF(VLOOKUP($C31,Team_results_accuracy!$E:$AN,MATCH("Helyezettek",Team_results_accuracy!$E$5:$AN$5,0),0)="X","X",""),"") ->  | AM31: =IFERROR(IF(VLOOKUP($C31,Rankings!$O:$CD,MATCH("Helyezettek",Rankings!$O$1:$CD$1,0),0)="X","X",""),"") ->  | AN31: =IFERROR(IF(VLOOKUP($C31,Rankings!$S:$CD,MATCH("Helyezettek",Rankings!$S$1:$CD$1,0),0)="X","X",""),"") ->  | AO31: =IFERROR(IF(VLOOKUP($C31,Rankings!$W:$CD,MATCH("Helyezettek",Rankings!$W$1:$CD$1,0),0)="X","X",""),"") ->  | AP31: =IFERROR(IF(VLOOKUP($C31,Team_results_triathlon!$E:$BL,MATCH("Helyezettek",Team_results_triathlon!$E$6:$BL$6,0),0)="X","X",""),"") ->  | AQ31: X
B32: 24 | C32: Anna Pavlov | D32: F | E32: tandem | G32: X | K32: SRB | N32: DELTA | P32: =+IF(OR(ISBLANK($C32),$C32=""),"",IF(OR(ISBLANK($Q32),$Q32="",$Q32=0),Paraméterek!$C$4,Paraméterek!$C$3)) -> no | S32: 1995-08-24 | T32: =+IF(ISBLANK($C32),"",IF(IF(ISERROR(YEAR(TODAY())-YEAR(S32)),100,(YEAR(TODAY())-YEAR(S32)))<Competition!$D$26+1,Paraméterek!$C$3,Paraméterek!$C$4)) -> yes | Z32: =+IF(OR(D32=Paraméterek!$D$4,T32=Paraméterek!$C$3),Paraméterek!$C$3,Paraméterek!$C$4) -> yes | AB32: Anna Pavlov | AC32: - | AD32: 19 | AI32: =IFERROR(IF(VLOOKUP($C32,Rankings!$C:$CD,MATCH("Helyezettek",Rankings!$C$1:$CD$1,0),0)="X","X",""),"") ->  | AJ32: =IFERROR(IF(VLOOKUP($C32,Rankings!$G:$CD,MATCH("Helyezettek",Rankings!$G$1:$CD$1,0),0)="X","X",""),"") -> X | AK32: =IFERROR(IF(VLOOKUP($C32,Rankings!$K:$CD,MATCH("Helyezettek",Rankings!$K$1:$CD$1,0),0)="X","X",""),"") ->  | AL32: =IFERROR(IF(VLOOKUP($C32,Team_results_accuracy!$E:$AN,MATCH("Helyezettek",Team_results_accuracy!$E$5:$AN$5,0),0)="X","X",""),"") -> X | AM32: =IFERROR(IF(VLOOKUP($C32,Rankings!$O:$CD,MATCH("Helyezettek",Rankings!$O$1:$CD$1,0),0)="X","X",""),"") ->  | AN32: =IFERROR(IF(VLOOKUP($C32,Rankings!$S:$CD,MATCH("Helyezettek",Rankings!$S$1:$CD$1,0),0)="X","X",""),"") -> X | AO32: =IFERROR(IF(VLOOKUP($C32,Rankings!$W:$CD,MATCH("Helyezettek",Rankings!$W$1:$CD$1,0),0)="X","X",""),"") ->  | AP32: =IFERROR(IF(VLOOKUP($C32,Team_results_triathlon!$E:$BL,MATCH("Helyezettek",Team_results_triathlon!$E$6:$BL$6,0),0)="X","X",""),"") -> X
B33: 25 | P33: =+IF(OR(ISBLANK($C33),$C33=""),"",IF(OR(ISBLANK($Q33),$Q33="",$Q33=0),Paraméterek!$C$4,Paraméterek!$C$3)) ->  | T33: =+IF(ISBLANK($C33),"",IF(IF(ISERROR(YEAR(TODAY())-YEAR(S33)),100,(YEAR(TODAY())-YEAR(S33)))<Competition!$D$26+1,Paraméterek!$C$3,Paraméterek!$C$4)) ->  | Z33: =+IF(OR(D33=Paraméterek!$D$4,T33=Paraméterek!$C$3),Paraméterek!$C$3,Paraméterek!$C$4) -> no | AC33: - | AI33: =IFERROR(IF(VLOOKUP($C33,Rankings!$C:$CD,MATCH("Helyezettek",Rankings!$C$1:$CD$1,0),0)="X","X",""),"") ->  | AJ33: =IFERROR(IF(VLOOKUP($C33,Rankings!$G:$CD,MATCH("Helyezettek",Rankings!$G$1:$CD$1,0),0)="X","X",""),"") ->  | AK33: =IFERROR(IF(VLOOKUP($C33,Rankings!$K:$CD,MATCH("Helyezettek",Rankings!$K$1:$CD$1,0),0)="X","X",""),"") ->  | AL33: =IFERROR(IF(VLOOKUP($C33,Team_results_accuracy!$E:$AN,MATCH("Helyezettek",Team_results_accuracy!$E$5:$AN$5,0),0)="X","X",""),"") ->  | AM33: =IFERROR(IF(VLOOKUP($C33,Rankings!$O:$CD,MATCH("Helyezettek",Rankings!$O$1:$CD$1,0),0)="X","X",""),"") ->  | AN33: =IFERROR(IF(VLOOKUP($C33,Rankings!$S:$CD,MATCH("Helyezettek",Rankings!$S$1:$CD$1,0),0)="X","X",""),"") ->  | AO33: =IFERROR(IF(VLOOKUP($C33,Rankings!$W:$CD,MATCH("Helyezettek",Rankings!$W$1:$CD$1,0),0)="X","X",""),"") ->  | AP33: =IFERROR(IF(VLOOKUP($C33,Team_results_triathlon!$E:$BL,MATCH("Helyezettek",Team_results_triathlon!$E$6:$BL$6,0),0)="X","X",""),"") -> 
B34: 26 | P34: =+IF(OR(ISBLANK($C34),$C34=""),"",IF(OR(ISBLANK($Q34),$Q34="",$Q34=0),Paraméterek!$C$4,Paraméterek!$C$3)) ->  | T34: =+IF(ISBLANK($C34),"",IF(IF(ISERROR(YEAR(TODAY())-YEAR(S34)),100,(YEAR(TODAY())-YEAR(S34)))<Competition!$D$26+1,Paraméterek!$C$3,Paraméterek!$C$4)) ->  | Z34: =+IF(OR(D34=Paraméterek!$D$4,T34=Paraméterek!$C$3),Paraméterek!$C$3,Paraméterek!$C$4) -> no | AC34: - | AI34: =IFERROR(IF(VLOOKUP($C34,Rankings!$C:$CD,MATCH("Helyezettek",Rankings!$C$1:$CD$1,0),0)="X","X",""),"") ->  | AJ34: =IFERROR(IF(VLOOKUP($C34,Rankings!$G:$CD,MATCH("Helyezettek",Rankings!$G$1:$CD$1,0),0)="X","X",""),"") ->  | AK34: =IFERROR(IF(VLOOKUP($C34,Rankings!$K:$CD,MATCH("Helyezettek",Rankings!$K$1:$CD$1,0),0)="X","X",""),"") ->  | AL34: =IFERROR(IF(VLOOKUP($C34,Team_results_accuracy!$E:$AN,MATCH("Helyezettek",Team_results_accuracy!$E$5:$AN$5,0),0)="X","X",""),"") ->  | AM34: =IFERROR(IF(VLOOKUP($C34,Rankings!$O:$CD,MATCH("Helyezettek",Rankings!$O$1:$CD$1,0),0)="X","X",""),"") ->  | AN34: =IFERROR(IF(VLOOKUP($C34,Rankings!$S:$CD,MATCH("Helyezettek",Rankings!$S$1:$CD$1,0),0)="X","X",""),"") ->  | AO34: =IFERROR(IF(VLOOKUP($C34,Rankings!$W:$CD,MATCH("Helyezettek",Rankings!$W$1:$CD$1,0),0)="X","X",""),"") ->  | AP34: =IFERROR(IF(VLOOKUP($C34,Team_results_triathlon!$E:$BL,MATCH("Helyezettek",Team_results_triathlon!$E$6:$BL$6,0),0)="X","X",""),"") -> 
B35: 27 | P35: =+IF(OR(ISBLANK($C35),$C35=""),"",IF(OR(ISBLANK($Q35),$Q35="",$Q35=0),Paraméterek!$C$4,Paraméterek!$C$3)) ->  | T35: =+IF(ISBLANK($C35),"",IF(IF(ISERROR(YEAR(TODAY())-YEAR(S35)),100,(YEAR(TODAY())-YEAR(S35)))<Competition!$D$26+1,Paraméterek!$C$3,Paraméterek!$C$4)) ->  | Z35: =+IF(OR(D35=Paraméterek!$D$4,T35=Paraméterek!$C$3),Paraméterek!$C$3,Paraméterek!$C$4) -> no | AC35: - | AI35: =IFERROR(IF(VLOOKUP($C35,Rankings!$C:$CD,MATCH("Helyezettek",Rankings!$C$1:$CD$1,0),0)="X","X",""),"") ->  | AJ35: =IFERROR(IF(VLOOKUP($C35,Rankings!$G:$CD,MATCH("Helyezettek",Rankings!$G$1:$CD$1,0),0)="X","X",""),"") ->  | AK35: =IFERROR(IF(VLOOKUP($C35,Rankings!$K:$CD,MATCH("Helyezettek",Rankings!$K$1:$CD$1,0),0)="X","X",""),"") ->  | AL35: =IFERROR(IF(VLOOKUP($C35,Team_results_accuracy!$E:$AN,MATCH("Helyezettek",Team_results_accuracy!$E$5:$AN$5,0),0)="X","X",""),"") ->  | AM35: =IFERROR(IF(VLOOKUP($C35,Rankings!$O:$CD,MATCH("Helyezettek",Rankings!$O$1:$CD$1,0),0)="X","X",""),"") ->  | AN35: =IFERROR(IF(VLOOKUP($C35,Rankings!$S:$CD,MATCH("Helyezettek",Rankings!$S$1:$CD$1,0),0)="X","X",""),"") ->  | AO35: =IFERROR(IF(VLOOKUP($C35,Rankings!$W:$CD,MATCH("Helyezettek",Rankings!$W$1:$CD$1,0),0)="X","X",""),"") ->  | AP35: =IFERROR(IF(VLOOKUP($C35,Team_results_triathlon!$E:$BL,MATCH("Helyezettek",Team_results_triathlon!$E$6:$BL$6,0),0)="X","X",""),"") -> 
B36: 28 | P36: =+IF(OR(ISBLANK($C36),$C36=""),"",IF(OR(ISBLANK($Q36),$Q36="",$Q36=0),Paraméterek!$C$4,Paraméterek!$C$3)) ->  | T36: =+IF(ISBLANK($C36),"",IF(IF(ISERROR(YEAR(TODAY())-YEAR(S36)),100,(YEAR(TODAY())-YEAR(S36)))<Competition!$D$26+1,Paraméterek!$C$3,Paraméterek!$C$4)) ->  | Z36: =+IF(OR(D36=Paraméterek!$D$4,T36=Paraméterek!$C$3),Paraméterek!$C$3,Paraméterek!$C$4) -> no | AC36: - | AI36: =IFERROR(IF(VLOOKUP($C36,Rankings!$C:$CD,MATCH("Helyezettek",Rankings!$C$1:$CD$1,0),0)="X","X",""),"") ->  | AJ36: =IFERROR(IF(VLOOKUP($C36,Rankings!$G:$CD,MATCH("Helyezettek",Rankings!$G$1:$CD$1,0),0)="X","X",""),"") ->  | AK36: =IFERROR(IF(VLOOKUP($C36,Rankings!$K:$CD,MATCH("Helyezettek",Rankings!$K$1:$CD$1,0),0)="X","X",""),"") ->  | AL36: =IFERROR(IF(VLOOKUP($C36,Team_results_accuracy!$E:$AN,MATCH("Helyezettek",Team_results_accuracy!$E$5:$AN$5,0),0)="X","X",""),"") ->  | AM36: =IFERROR(IF(VLOOKUP($C36,Rankings!$O:$CD,MATCH("Helyezettek",Rankings!$O$1:$CD$1,0),0)="X","X",""),"") ->  | AN36: =IFERROR(IF(VLOOKUP($C36,Rankings!$S:$CD,MATCH("Helyezettek",Rankings!$S$1:$CD$1,0),0)="X","X",""),"") ->  | AO36: =IFERROR(IF(VLOOKUP($C36,Rankings!$W:$CD,MATCH("Helyezettek",Rankings!$W$1:$CD$1,0),0)="X","X",""),"") ->  | AP36: =IFERROR(IF(VLOOKUP($C36,Team_results_triathlon!$E:$BL,MATCH("Helyezettek",Team_results_triathlon!$E$6:$BL$6,0),0)="X","X",""),"") -> 
B37: 29 | P37: =+IF(OR(ISBLANK($C37),$C37=""),"",IF(OR(ISBLANK($Q37),$Q37="",$Q37=0),Paraméterek!$C$4,Paraméterek!$C$3)) ->  | T37: =+IF(ISBLANK($C37),"",IF(IF(ISERROR(YEAR(TODAY())-YEAR(S37)),100,(YEAR(TODAY())-YEAR(S37)))<Competition!$D$26+1,Paraméterek!$C$3,Paraméterek!$C$4)) ->  | Z37: =+IF(OR(D37=Paraméterek!$D$4,T37=Paraméterek!$C$3),Paraméterek!$C$3,Paraméterek!$C$4) -> no | AC37: - | AI37: =IFERROR(IF(VLOOKUP($C37,Rankings!$C:$CD,MATCH("Helyezettek",Rankings!$C$1:$CD$1,0),0)="X","X",""),"") ->  | AJ37: =IFERROR(IF(VLOOKUP($C37,Rankings!$G:$CD,MATCH("Helyezettek",Rankings!$G$1:$CD$1,0),0)="X","X",""),"") ->  | AK37: =IFERROR(IF(VLOOKUP($C37,Rankings!$K:$CD,MATCH("Helyezettek",Rankings!$K$1:$CD$1,0),0)="X","X",""),"") ->  | AL37: =IFERROR(IF(VLOOKUP($C37,Team_results_accuracy!$E:$AN,MATCH("Helyezettek",Team_results_accuracy!$E$5:$AN$5,0),0)="X","X",""),"") ->  | AM37: =IFERROR(IF(VLOOKUP($C37,Rankings!$O:$CD,MATCH("Helyezettek",Rankings!$O$1:$CD$1,0),0)="X","X",""),"") ->  | AN37: =IFERROR(IF(VLOOKUP($C37,Rankings!$S:$CD,MATCH("Helyezettek",Rankings!$S$1:$CD$1,0),0)="X","X",""),"") ->  | AO37: =IFERROR(IF(VLOOKUP($C37,Rankings!$W:$CD,MATCH("Helyezettek",Rankings!$W$1:$CD$1,0),0)="X","X",""),"") ->  | AP37: =IFERROR(IF(VLOOKUP($C37,Team_results_triathlon!$E:$BL,MATCH("Helyezettek",Team_results_triathlon!$E$6:$BL$6,0),0)="X","X",""),"") -> 
B38: 30 | P38: =+IF(OR(ISBLANK($C38),$C38=""),"",IF(OR(ISBLANK($Q38),$Q38="",$Q38=0),Paraméterek!$C$4,Paraméterek!$C$3)) ->  | T38: =+IF(ISBLANK($C38),"",IF(IF(ISERROR(YEAR(TODAY())-YEAR(S38)),100,(YEAR(TODAY())-YEAR(S38)))<Competition!$D$26+1,Paraméterek!$C$3,Paraméterek!$C$4)) ->  | Z38: =+IF(OR(D38=Paraméterek!$D$4,T38=Paraméterek!$C$3),Paraméterek!$C$3,Paraméterek!$C$4) -> no | AC38: - | AI38: =IFERROR(IF(VLOOKUP($C38,Rankings!$C:$CD,MATCH("Helyezettek",Rankings!$C$1:$CD$1,0),0)="X","X",""),"") ->  | AJ38: =IFERROR(IF(VLOOKUP($C38,Rankings!$G:$CD,MATCH("Helyezettek",Rankings!$G$1:$CD$1,0),0)="X","X",""),"") ->  | AK38: =IFERROR(IF(VLOOKUP($C38,Rankings!$K:$CD,MATCH("Helyezettek",Rankings!$K$1:$CD$1,0),0)="X","X",""),"") ->  | AL38: =IFERROR(IF(VLOOKUP($C38,Team_results_accuracy!$E:$AN,MATCH("Helyezettek",Team_results_accuracy!$E$5:$AN$5,0),0)="X","X",""),"") ->  | AM38: =IFERROR(IF(VLOOKUP($C38,Rankings!$O:$CD,MATCH("Helyezettek",Rankings!$O$1:$CD$1,0),0)="X","X",""),"") ->  | AN38: =IFERROR(IF(VLOOKUP($C38,Rankings!$S:$CD,MATCH("Helyezettek",Rankings!$S$1:$CD$1,0),0)="X","X",""),"") ->  | AO38: =IFERROR(IF(VLOOKUP($C38,Rankings!$W:$CD,MATCH("Helyezettek",Rankings!$W$1:$CD$1,0),0)="X","X",""),"") ->  | AP38: =IFERROR(IF(VLOOKUP($C38,Team_results_triathlon!$E:$BL,MATCH("Helyezettek",Team_results_triathlon!$E$6:$BL$6,0),0)="X","X",""),"") -> 
B39: 31 | P39: =+IF(OR(ISBLANK($C39),$C39=""),"",IF(OR(ISBLANK($Q39),$Q39="",$Q39=0),Paraméterek!$C$4,Paraméterek!$C$3)) ->  | T39: =+IF(ISBLANK($C39),"",IF(IF(ISERROR(YEAR(TODAY())-YEAR(S39)),100,(YEAR(TODAY())-YEAR(S39)))<Competition!$D$26+1,Paraméterek!$C$3,Paraméterek!$C$4)) ->  | Z39: =+IF(OR(D39=Paraméterek!$D$4,T39=Paraméterek!$C$3),Paraméterek!$C$3,Paraméterek!$C$4) -> no | AC39: - | AI39: =IFERROR(IF(VLOOKUP($C39,Rankings!$C:$CD,MATCH("Helyezettek",Rankings!$C$1:$CD$1,0),0)="X","X",""),"") ->  | AJ39: =IFERROR(IF(VLOOKUP($C39,Rankings!$G:$CD,MATCH("Helyezettek",Rankings!$G$1:$CD$1,0),0)="X","X",""),"") ->  | AK39: =IFERROR(IF(VLOOKUP($C39,Rankings!$K:$CD,MATCH("Helyezettek",Rankings!$K$1:$CD$1,0),0)="X","X",""),"") ->  | AL39: =IFERROR(IF(VLOOKUP($C39,Team_results_accuracy!$E:$AN,MATCH("Helyezettek",Team_results_accuracy!$E$5:$AN$5,0),0)="X","X",""),"") ->  | AM39: =IFERROR(IF(VLOOKUP($C39,Rankings!$O:$CD,MATCH("Helyezettek",Rankings!$O$1:$CD$1,0),0)="X","X",""),"") ->  | AN39: =IFERROR(IF(VLOOKUP($C39,Rankings!$S:$CD,MATCH("Helyezettek",Rankings!$S$1:$CD$1,0),0)="X","X",""),"") ->  | AO39: =IFERROR(IF(VLOOKUP($C39,Rankings!$W:$CD,MATCH("Helyezettek",Rankings!$W$1:$CD$1,0),0)="X","X",""),"") ->  | AP39: =IFERROR(IF(VLOOKUP($C39,Team_results_triathlon!$E:$BL,MATCH("Helyezettek",Team_results_triathlon!$E$6:$BL$6,0),0)="X","X",""),"") -> 
B40: 32 | P40: =+IF(OR(ISBLANK($C40),$C40=""),"",IF(OR(ISBLANK($Q40),$Q40="",$Q40=0),Paraméterek!$C$4,Paraméterek!$C$3)) ->  | T40: =+IF(ISBLANK($C40),"",IF(IF(ISERROR(YEAR(TODAY())-YEAR(S40)),100,(YEAR(TODAY())-YEAR(S40)))<Competition!$D$26+1,Paraméterek!$C$3,Paraméterek!$C$4)) ->  | Z40: =+IF(OR(D40=Paraméterek!$D$4,T40=Paraméterek!$C$3),Paraméterek!$C$3,Paraméterek!$C$4) -> no | AC40: - | AI40: =IFERROR(IF(VLOOKUP($C40,Rankings!$C:$CD,MATCH("Helyezettek",Rankings!$C$1:$CD$1,0),0)="X","X",""),"") ->  | AJ40: =IFERROR(IF(VLOOKUP($C40,Rankings!$G:$CD,MATCH("Helyezettek",Rankings!$G$1:$CD$1,0),0)="X","X",""),"") ->  | AK40: =IFERROR(IF(VLOOKUP($C40,Rankings!$K:$CD,MATCH("Helyezettek",Rankings!$K$1:$CD$1,0),0)="X","X",""),"") ->  | AL40: =IFERROR(IF(VLOOKUP($C40,Team_results_accuracy!$E:$AN,MATCH("Helyezettek",Team_results_accuracy!$E$5:$AN$5,0),0)="X","X",""),"") ->  | AM40: =IFERROR(IF(VLOOKUP($C40,Rankings!$O:$CD,MATCH("Helyezettek",Rankings!$O$1:$CD$1,0),0)="X","X",""),"") ->  | AN40: =IFERROR(IF(VLOOKUP($C40,Rankings!$S:$CD,MATCH("Helyezettek",Rankings!$S$1:$CD$1,0),0)="X","X",""),"") ->  | AO40: =IFERROR(IF(VLOOKUP($C40,Rankings!$W:$CD,MATCH("Helyezettek",Rankings!$W$1:$CD$1,0),0)="X","X",""),"") ->  | AP40: =IFERROR(IF(VLOOKUP($C40,Team_results_triathlon!$E:$BL,MATCH("Helyezettek",Team_results_triathlon!$E$6:$BL$6,0),0)="X","X",""),"") -> 
B41: 33 | P41: =+IF(OR(ISBLANK($C41),$C41=""),"",IF(OR(ISBLANK($Q41),$Q41="",$Q41=0),Paraméterek!$C$4,Paraméterek!$C$3)) ->  | T41: =+IF(ISBLANK($C41),"",IF(IF(ISERROR(YEAR(TODAY())-YEAR(S41)),100,(YEAR(TODAY())-YEAR(S41)))<Competition!$D$26+1,Paraméterek!$C$3,Paraméterek!$C$4)) ->  | Z41: =+IF(OR(D41=Paraméterek!$D$4,T41=Paraméterek!$C$3),Paraméterek!$C$3,Paraméterek!$C$4) -> no | AB41: =+IF(C41="","",C41) ->  | AC41: - | AI41: =IFERROR(IF(VLOOKUP($C41,Rankings!$C:$CD,MATCH("Helyezettek",Rankings!$C$1:$CD$1,0),0)="X","X",""),"") ->  | AJ41: =IFERROR(IF(VLOOKUP($C41,Rankings!$G:$CD,MATCH("Helyezettek",Rankings!$G$1:$CD$1,0),0)="X","X",""),"") ->  | AK41: =IFERROR(IF(VLOOKUP($C41,Rankings!$K:$CD,MATCH("Helyezettek",Rankings!$K$1:$CD$1,0),0)="X","X",""),"") ->  | AL41: =IFERROR(IF(VLOOKUP($C41,Team_results_accuracy!$E:$AN,MATCH("Helyezettek",Team_results_accuracy!$E$5:$AN$5,0),0)="X","X",""),"") ->  | AM41: =IFERROR(IF(VLOOKUP($C41,Rankings!$O:$CD,MATCH("Helyezettek",Rankings!$O$1:$CD$1,0),0)="X","X",""),"") ->  | AN41: =IFERROR(IF(VLOOKUP($C41,Rankings!$S:$CD,MATCH("Helyezettek",Rankings!$S$1:$CD$1,0),0)="X","X",""),"") ->  | AO41: =IFERROR(IF(VLOOKUP($C41,Rankings!$W:$CD,MATCH("Helyezettek",Rankings!$W$1:$CD$1,0),0)="X","X",""),"") ->  | AP41: =IFERROR(IF(VLOOKUP($C41,Team_results_triathlon!$E:$BL,MATCH("Helyezettek",Team_results_triathlon!$E$6:$BL$6,0),0)="X","X",""),"") -> 
B42: 34 | P42: =+IF(OR(ISBLANK($C42),$C42=""),"",IF(OR(ISBLANK($Q42),$Q42="",$Q42=0),Paraméterek!$C$4,Paraméterek!$C$3)) ->  | T42: =+IF(ISBLANK($C42),"",IF(IF(ISERROR(YEAR(TODAY())-YEAR(S42)),100,(YEAR(TODAY())-YEAR(S42)))<Competition!$D$26+1,Paraméterek!$C$3,Paraméterek!$C$4)) ->  | Z42: =+IF(OR(D42=Paraméterek!$D$4,T42=Paraméterek!$C$3),Paraméterek!$C$3,Paraméterek!$C$4) -> no | AC42: - | AI42: =IFERROR(IF(VLOOKUP($C42,Rankings!$C:$CD,MATCH("Helyezettek",Rankings!$C$1:$CD$1,0),0)="X","X",""),"") ->  | AJ42: =IFERROR(IF(VLOOKUP($C42,Rankings!$G:$CD,MATCH("Helyezettek",Rankings!$G$1:$CD$1,0),0)="X","X",""),"") ->  | AK42: =IFERROR(IF(VLOOKUP($C42,Rankings!$K:$CD,MATCH("Helyezettek",Rankings!$K$1:$CD$1,0),0)="X","X",""),"") ->  | AL42: =IFERROR(IF(VLOOKUP($C42,Team_results_accuracy!$E:$AN,MATCH("Helyezettek",Team_results_accuracy!$E$5:$AN$5,0),0)="X","X",""),"") ->  | AM42: =IFERROR(IF(VLOOKUP($C42,Rankings!$O:$CD,MATCH("Helyezettek",Rankings!$O$1:$CD$1,0),0)="X","X",""),"") ->  | AN42: =IFERROR(IF(VLOOKUP($C42,Rankings!$S:$CD,MATCH("Helyezettek",Rankings!$S$1:$CD$1,0),0)="X","X",""),"") ->  | AO42: =IFERROR(IF(VLOOKUP($C42,Rankings!$W:$CD,MATCH("Helyezettek",Rankings!$W$1:$CD$1,0),0)="X","X",""),"") ->  | AP42: =IFERROR(IF(VLOOKUP($C42,Team_results_triathlon!$E:$BL,MATCH("Helyezettek",Team_results_triathlon!$E$6:$BL$6,0),0)="X","X",""),"") -> 
B43: 35 | P43: =+IF(OR(ISBLANK($C43),$C43=""),"",IF(OR(ISBLANK($Q43),$Q43="",$Q43=0),Paraméterek!$C$4,Paraméterek!$C$3)) ->  | T43: =+IF(ISBLANK($C43),"",IF(IF(ISERROR(YEAR(TODAY())-YEAR(S43)),100,(YEAR(TODAY())-YEAR(S43)))<Competition!$D$26+1,Paraméterek!$C$3,Paraméterek!$C$4)) ->  | Z43: =+IF(OR(D43=Paraméterek!$D$4,T43=Paraméterek!$C$3),Paraméterek!$C$3,Paraméterek!$C$4) -> no | AC43: - | AI43: =IFERROR(IF(VLOOKUP($C43,Rankings!$C:$CD,MATCH("Helyezettek",Rankings!$C$1:$CD$1,0),0)="X","X",""),"") ->  | AJ43: =IFERROR(IF(VLOOKUP($C43,Rankings!$G:$CD,MATCH("Helyezettek",Rankings!$G$1:$CD$1,0),0)="X","X",""),"") ->  | AK43: =IFERROR(IF(VLOOKUP($C43,Rankings!$K:$CD,MATCH("Helyezettek",Rankings!$K$1:$CD$1,0),0)="X","X",""),"") ->  | AL43: =IFERROR(IF(VLOOKUP($C43,Team_results_accuracy!$E:$AN,MATCH("Helyezettek",Team_results_accuracy!$E$5:$AN$5,0),0)="X","X",""),"") ->  | AM43: =IFERROR(IF(VLOOKUP($C43,Rankings!$O:$CD,MATCH("Helyezettek",Rankings!$O$1:$CD$1,0),0)="X","X",""),"") ->  | AN43: =IFERROR(IF(VLOOKUP($C43,Rankings!$S:$CD,MATCH("Helyezettek",Rankings!$S$1:$CD$1,0),0)="X","X",""),"") ->  | AO43: =IFERROR(IF(VLOOKUP($C43,Rankings!$W:$CD,MATCH("Helyezettek",Rankings!$W$1:$CD$1,0),0)="X","X",""),"") ->  | AP43: =IFERROR(IF(VLOOKUP($C43,Team_results_triathlon!$E:$BL,MATCH("Helyezettek",Team_results_triathlon!$E$6:$BL$6,0),0)="X","X",""),"") -> 
B44: 36 | P44: =+IF(OR(ISBLANK($C44),$C44=""),"",IF(OR(ISBLANK($Q44),$Q44="",$Q44=0),Paraméterek!$C$4,Paraméterek!$C$3)) ->  | T44: =+IF(ISBLANK($C44),"",IF(IF(ISERROR(YEAR(TODAY())-YEAR(S44)),100,(YEAR(TODAY())-YEAR(S44)))<Competition!$D$26+1,Paraméterek!$C$3,Paraméterek!$C$4)) ->  | Z44: =+IF(OR(D44=Paraméterek!$D$4,T44=Paraméterek!$C$3),Paraméterek!$C$3,Paraméterek!$C$4) -> no | AC44: - | AI44: =IFERROR(IF(VLOOKUP($C44,Rankings!$C:$CD,MATCH("Helyezettek",Rankings!$C$1:$CD$1,0),0)="X","X",""),"") ->  | AJ44: =IFERROR(IF(VLOOKUP($C44,Rankings!$G:$CD,MATCH("Helyezettek",Rankings!$G$1:$CD$1,0),0)="X","X",""),"") ->  | AK44: =IFERROR(IF(VLOOKUP($C44,Rankings!$K:$CD,MATCH("Helyezettek",Rankings!$K$1:$CD$1,0),0)="X","X",""),"") ->  | AL44: =IFERROR(IF(VLOOKUP($C44,Team_results_accuracy!$E:$AN,MATCH("Helyezettek",Team_results_accuracy!$E$5:$AN$5,0),0)="X","X",""),"") ->  | AM44: =IFERROR(IF(VLOOKUP($C44,Rankings!$O:$CD,MATCH("Helyezettek",Rankings!$O$1:$CD$1,0),0)="X","X",""),"") ->  | AN44: =IFERROR(IF(VLOOKUP($C44,Rankings!$S:$CD,MATCH("Helyezettek",Rankings!$S$1:$CD$1,0),0)="X","X",""),"") ->  | AO44: =IFERROR(IF(VLOOKUP($C44,Rankings!$W:$CD,MATCH("Helyezettek",Rankings!$W$1:$CD$1,0),0)="X","X",""),"") ->  | AP44: =IFERROR(IF(VLOOKUP($C44,Team_results_triathlon!$E:$BL,MATCH("Helyezettek",Team_results_triathlon!$E$6:$BL$6,0),0)="X","X",""),"") -> 
B45: 37 | P45: =+IF(OR(ISBLANK($C45),$C45=""),"",IF(OR(ISBLANK($Q45),$Q45="",$Q45=0),Paraméterek!$C$4,Paraméterek!$C$3)) ->  | T45: =+IF(ISBLANK($C45),"",IF(IF(ISERROR(YEAR(TODAY())-YEAR(S45)),100,(YEAR(TODAY())-YEAR(S45)))<Competition!$D$26+1,Paraméterek!$C$3,Paraméterek!$C$4)) ->  | Z45: =+IF(OR(D45=Paraméterek!$D$4,T45=Paraméterek!$C$3),Paraméterek!$C$3,Paraméterek!$C$4) -> no | AC45: - | AI45: =IFERROR(IF(VLOOKUP($C45,Rankings!$C:$CD,MATCH("Helyezettek",Rankings!$C$1:$CD$1,0),0)="X","X",""),"") ->  | AJ45: =IFERROR(IF(VLOOKUP($C45,Rankings!$G:$CD,MATCH("Helyezettek",Rankings!$G$1:$CD$1,0),0)="X","X",""),"") ->  | AK45: =IFERROR(IF(VLOOKUP($C45,Rankings!$K:$CD,MATCH("Helyezettek",Rankings!$K$1:$CD$1,0),0)="X","X",""),"") ->  | AL45: =IFERROR(IF(VLOOKUP($C45,Team_results_accuracy!$E:$AN,MATCH("Helyezettek",Team_results_accuracy!$E$5:$AN$5,0),0)="X","X",""),"") ->  | AM45: =IFERROR(IF(VLOOKUP($C45,Rankings!$O:$CD,MATCH("Helyezettek",Rankings!$O$1:$CD$1,0),0)="X","X",""),"") ->  | AN45: =IFERROR(IF(VLOOKUP($C45,Rankings!$S:$CD,MATCH("Helyezettek",Rankings!$S$1:$CD$1,0),0)="X","X",""),"") ->  | AO45: =IFERROR(IF(VLOOKUP($C45,Rankings!$W:$CD,MATCH("Helyezettek",Rankings!$W$1:$CD$1,0),0)="X","X",""),"") ->  | AP45: =IFERROR(IF(VLOOKUP($C45,Team_results_triathlon!$E:$BL,MATCH("Helyezettek",Team_results_triathlon!$E$6:$BL$6,0),0)="X","X",""),"") -> 
B46: 38 | P46: =+IF(OR(ISBLANK($C46),$C46=""),"",IF(OR(ISBLANK($Q46),$Q46="",$Q46=0),Paraméterek!$C$4,Paraméterek!$C$3)) ->  | T46: =+IF(ISBLANK($C46),"",IF(IF(ISERROR(YEAR(TODAY())-YEAR(S46)),100,(YEAR(TODAY())-YEAR(S46)))<Competition!$D$26+1,Paraméterek!$C$3,Paraméterek!$C$4)) ->  | Z46: =+IF(OR(D46=Paraméterek!$D$4,T46=Paraméterek!$C$3),Paraméterek!$C$3,Paraméterek!$C$4) -> no | AC46: - | AI46: =IFERROR(IF(VLOOKUP($C46,Rankings!$C:$CD,MATCH("Helyezettek",Rankings!$C$1:$CD$1,0),0)="X","X",""),"") ->  | AJ46: =IFERROR(IF(VLOOKUP($C46,Rankings!$G:$CD,MATCH("Helyezettek",Rankings!$G$1:$CD$1,0),0)="X","X",""),"") ->  | AK46: =IFERROR(IF(VLOOKUP($C46,Rankings!$K:$CD,MATCH("Helyezettek",Rankings!$K$1:$CD$1,0),0)="X","X",""),"") ->  | AL46: =IFERROR(IF(VLOOKUP($C46,Team_results_accuracy!$E:$AN,MATCH("Helyezettek",Team_results_accuracy!$E$5:$AN$5,0),0)="X","X",""),"") ->  | AM46: =IFERROR(IF(VLOOKUP($C46,Rankings!$O:$CD,MATCH("Helyezettek",Rankings!$O$1:$CD$1,0),0)="X","X",""),"") ->  | AN46: =IFERROR(IF(VLOOKUP($C46,Rankings!$S:$CD,MATCH("Helyezettek",Rankings!$S$1:$CD$1,0),0)="X","X",""),"") ->  | AO46: =IFERROR(IF(VLOOKUP($C46,Rankings!$W:$CD,MATCH("Helyezettek",Rankings!$W$1:$CD$1,0),0)="X","X",""),"") ->  | AP46: =IFERROR(IF(VLOOKUP($C46,Team_results_triathlon!$E:$BL,MATCH("Helyezettek",Team_results_triathlon!$E$6:$BL$6,0),0)="X","X",""),"") -> 
B47: 39 | P47: =+IF(OR(ISBLANK($C47),$C47=""),"",IF(OR(ISBLANK($Q47),$Q47="",$Q47=0),Paraméterek!$C$4,Paraméterek!$C$3)) ->  | T47: =+IF(ISBLANK($C47),"",IF(IF(ISERROR(YEAR(TODAY())-YEAR(S47)),100,(YEAR(TODAY())-YEAR(S47)))<Competition!$D$26+1,Paraméterek!$C$3,Paraméterek!$C$4)) ->  | Z47: =+IF(OR(D47=Paraméterek!$D$4,T47=Paraméterek!$C$3),Paraméterek!$C$3,Paraméterek!$C$4) -> no | AC47: - | AI47: =IFERROR(IF(VLOOKUP($C47,Rankings!$C:$CD,MATCH("Helyezettek",Rankings!$C$1:$CD$1,0),0)="X","X",""),"") ->  | AJ47: =IFERROR(IF(VLOOKUP($C47,Rankings!$G:$CD,MATCH("Helyezettek",Rankings!$G$1:$CD$1,0),0)="X","X",""),"") ->  | AK47: =IFERROR(IF(VLOOKUP($C47,Rankings!$K:$CD,MATCH("Helyezettek",Rankings!$K$1:$CD$1,0),0)="X","X",""),"") ->  | AL47: =IFERROR(IF(VLOOKUP($C47,Team_results_accuracy!$E:$AN,MATCH("Helyezettek",Team_results_accuracy!$E$5:$AN$5,0),0)="X","X",""),"") ->  | AM47: =IFERROR(IF(VLOOKUP($C47,Rankings!$O:$CD,MATCH("Helyezettek",Rankings!$O$1:$CD$1,0),0)="X","X",""),"") ->  | AN47: =IFERROR(IF(VLOOKUP($C47,Rankings!$S:$CD,MATCH("Helyezettek",Rankings!$S$1:$CD$1,0),0)="X","X",""),"") ->  | AO47: =IFERROR(IF(VLOOKUP($C47,Rankings!$W:$CD,MATCH("Helyezettek",Rankings!$W$1:$CD$1,0),0)="X","X",""),"") ->  | AP47: =IFERROR(IF(VLOOKUP($C47,Team_results_triathlon!$E:$BL,MATCH("Helyezettek",Team_results_triathlon!$E$6:$BL$6,0),0)="X","X",""),"") -> 
B48: 40 | P48: =+IF(OR(ISBLANK($C48),$C48=""),"",IF(OR(ISBLANK($Q48),$Q48="",$Q48=0),Paraméterek!$C$4,Paraméterek!$C$3)) ->  | T48: =+IF(ISBLANK($C48),"",IF(IF(ISERROR(YEAR(TODAY())-YEAR(S48)),100,(YEAR(TODAY())-YEAR(S48)))<Competition!$D$26+1,Paraméterek!$C$3,Paraméterek!$C$4)) ->  | Z48: =+IF(OR(D48=Paraméterek!$D$4,T48=Paraméterek!$C$3),Paraméterek!$C$3,Paraméterek!$C$4) -> no | AC48: - | AI48: =IFERROR(IF(VLOOKUP($C48,Rankings!$C:$CD,MATCH("Helyezettek",Rankings!$C$1:$CD$1,0),0)="X","X",""),"") ->  | AJ48: =IFERROR(IF(VLOOKUP($C48,Rankings!$G:$CD,MATCH("Helyezettek",Rankings!$G$1:$CD$1,0),0)="X","X",""),"") ->  | AK48: =IFERROR(IF(VLOOKUP($C48,Rankings!$K:$CD,MATCH("Helyezettek",Rankings!$K$1:$CD$1,0),0)="X","X",""),"") ->  | AL48: =IFERROR(IF(VLOOKUP($C48,Team_results_accuracy!$E:$AN,MATCH("Helyezettek",Team_results_accuracy!$E$5:$AN$5,0),0)="X","X",""),"") ->  | AM48: =IFERROR(IF(VLOOKUP($C48,Rankings!$O:$CD,MATCH("Helyezettek",Rankings!$O$1:$CD$1,0),0)="X","X",""),"") ->  | AN48: =IFERROR(IF(VLOOKUP($C48,Rankings!$S:$CD,MATCH("Helyezettek",Rankings!$S$1:$CD$1,0),0)="X","X",""),"") ->  | AO48: =IFERROR(IF(VLOOKUP($C48,Rankings!$W:$CD,MATCH("Helyezettek",Rankings!$W$1:$CD$1,0),0)="X","X",""),"") ->  | AP48: =IFERROR(IF(VLOOKUP($C48,Team_results_triathlon!$E:$BL,MATCH("Helyezettek",Team_results_triathlon!$E$6:$BL$6,0),0)="X","X",""),"") -> 
B49: 41 | P49: =+IF(OR(ISBLANK($C49),$C49=""),"",IF(OR(ISBLANK($Q49),$Q49="",$Q49=0),Paraméterek!$C$4,Paraméterek!$C$3)) ->  | T49: =+IF(ISBLANK($C49),"",IF(IF(ISERROR(YEAR(TODAY())-YEAR(S49)),100,(YEAR(TODAY())-YEAR(S49)))<Competition!$D$26+1,Paraméterek!$C$3,Paraméterek!$C$4)) ->  | Z49: =+IF(OR(D49=Paraméterek!$D$4,T49=Paraméterek!$C$3),Paraméterek!$C$3,Paraméterek!$C$4) -> no | AC49: - | AI49: =IFERROR(IF(VLOOKUP($C49,Rankings!$C:$CD,MATCH("Helyezettek",Rankings!$C$1:$CD$1,0),0)="X","X",""),"") ->  | AJ49: =IFERROR(IF(VLOOKUP($C49,Rankings!$G:$CD,MATCH("Helyezettek",Rankings!$G$1:$CD$1,0),0)="X","X",""),"") ->  | AK49: =IFERROR(IF(VLOOKUP($C49,Rankings!$K:$CD,MATCH("Helyezettek",Rankings!$K$1:$CD$1,0),0)="X","X",""),"") ->  | AL49: =IFERROR(IF(VLOOKUP($C49,Team_results_accuracy!$E:$AN,MATCH("Helyezettek",Team_results_accuracy!$E$5:$AN$5,0),0)="X","X",""),"") ->  | AM49: =IFERROR(IF(VLOOKUP($C49,Rankings!$O:$CD,MATCH("Helyezettek",Rankings!$O$1:$CD$1,0),0)="X","X",""),"") ->  | AN49: =IFERROR(IF(VLOOKUP($C49,Rankings!$S:$CD,MATCH("Helyezettek",Rankings!$S$1:$CD$1,0),0)="X","X",""),"") ->  | AO49: =IFERROR(IF(VLOOKUP($C49,Rankings!$W:$CD,MATCH("Helyezettek",Rankings!$W$1:$CD$1,0),0)="X","X",""),"") ->  | AP49: =IFERROR(IF(VLOOKUP($C49,Team_results_triathlon!$E:$BL,MATCH("Helyezettek",Team_results_triathlon!$E$6:$BL$6,0),0)="X","X",""),"") -> 
B50: 42 | P50: =+IF(OR(ISBLANK($C50),$C50=""),"",IF(OR(ISBLANK($Q50),$Q50="",$Q50=0),Paraméterek!$C$4,Paraméterek!$C$3)) ->  | T50: =+IF(ISBLANK($C50),"",IF(IF(ISERROR(YEAR(TODAY())-YEAR(S50)),100,(YEAR(TODAY())-YEAR(S50)))<Competition!$D$26+1,Paraméterek!$C$3,Paraméterek!$C$4)) ->  | Z50: =+IF(OR(D50=Paraméterek!$D$4,T50=Paraméterek!$C$3),Paraméterek!$C$3,Paraméterek!$C$4) -> no | AC50: - | AI50: =IFERROR(IF(VLOOKUP($C50,Rankings!$C:$CD,MATCH("Helyezettek",Rankings!$C$1:$CD$1,0),0)="X","X",""),"") ->  | AJ50: =IFERROR(IF(VLOOKUP($C50,Rankings!$G:$CD,MATCH("Helyezettek",Rankings!$G$1:$CD$1,0),0)="X","X",""),"") ->  | AK50: =IFERROR(IF(VLOOKUP($C50,Rankings!$K:$CD,MATCH("Helyezettek",Rankings!$K$1:$CD$1,0),0)="X","X",""),"") ->  | AL50: =IFERROR(IF(VLOOKUP($C50,Team_results_accuracy!$E:$AN,MATCH("Helyezettek",Team_results_accuracy!$E$5:$AN$5,0),0)="X","X",""),"") ->  | AM50: =IFERROR(IF(VLOOKUP($C50,Rankings!$O:$CD,MATCH("Helyezettek",Rankings!$O$1:$CD$1,0),0)="X","X",""),"") ->  | AN50: =IFERROR(IF(VLOOKUP($C50,Rankings!$S:$CD,MATCH("Helyezettek",Rankings!$S$1:$CD$1,0),0)="X","X",""),"") ->  | AO50: =IFERROR(IF(VLOOKUP($C50,Rankings!$W:$CD,MATCH("Helyezettek",Rankings!$W$1:$CD$1,0),0)="X","X",""),"") ->  | AP50: =IFERROR(IF(VLOOKUP($C50,Team_results_triathlon!$E:$BL,MATCH("Helyezettek",Team_results_triathlon!$E$6:$BL$6,0),0)="X","X",""),"") -> 
B51: 43 | P51: =+IF(OR(ISBLANK($C51),$C51=""),"",IF(OR(ISBLANK($Q51),$Q51="",$Q51=0),Paraméterek!$C$4,Paraméterek!$C$3)) ->  | T51: =+IF(ISBLANK($C51),"",IF(IF(ISERROR(YEAR(TODAY())-YEAR(S51)),100,(YEAR(TODAY())-YEAR(S51)))<Competition!$D$26+1,Paraméterek!$C$3,Paraméterek!$C$4)) ->  | Z51: =+IF(OR(D51=Paraméterek!$D$4,T51=Paraméterek!$C$3),Paraméterek!$C$3,Paraméterek!$C$4) -> no | AC51: - | AI51: =IFERROR(IF(VLOOKUP($C51,Rankings!$C:$CD,MATCH("Helyezettek",Rankings!$C$1:$CD$1,0),0)="X","X",""),"") ->  | AJ51: =IFERROR(IF(VLOOKUP($C51,Rankings!$G:$CD,MATCH("Helyezettek",Rankings!$G$1:$CD$1,0),0)="X","X",""),"") ->  | AK51: =IFERROR(IF(VLOOKUP($C51,Rankings!$K:$CD,MATCH("Helyezettek",Rankings!$K$1:$CD$1,0),0)="X","X",""),"") ->  | AL51: =IFERROR(IF(VLOOKUP($C51,Team_results_accuracy!$E:$AN,MATCH("Helyezettek",Team_results_accuracy!$E$5:$AN$5,0),0)="X","X",""),"") ->  | AM51: =IFERROR(IF(VLOOKUP($C51,Rankings!$O:$CD,MATCH("Helyezettek",Rankings!$O$1:$CD$1,0),0)="X","X",""),"") ->  | AN51: =IFERROR(IF(VLOOKUP($C51,Rankings!$S:$CD,MATCH("Helyezettek",Rankings!$S$1:$CD$1,0),0)="X","X",""),"") ->  | AO51: =IFERROR(IF(VLOOKUP($C51,Rankings!$W:$CD,MATCH("Helyezettek",Rankings!$W$1:$CD$1,0),0)="X","X",""),"") ->  | AP51: =IFERROR(IF(VLOOKUP($C51,Team_results_triathlon!$E:$BL,MATCH("Helyezettek",Team_results_triathlon!$E$6:$BL$6,0),0)="X","X",""),"") -> 
B52: 44 | P52: =+IF(OR(ISBLANK($C52),$C52=""),"",IF(OR(ISBLANK($Q52),$Q52="",$Q52=0),Paraméterek!$C$4,Paraméterek!$C$3)) ->  | T52: =+IF(ISBLANK($C52),"",IF(IF(ISERROR(YEAR(TODAY())-YEAR(S52)),100,(YEAR(TODAY())-YEAR(S52)))<Competition!$D$26+1,Paraméterek!$C$3,Paraméterek!$C$4)) ->  | Z52: =+IF(OR(D52=Paraméterek!$D$4,T52=Paraméterek!$C$3),Paraméterek!$C$3,Paraméterek!$C$4) -> no | AC52: - | AI52: =IFERROR(IF(VLOOKUP($C52,Rankings!$C:$CD,MATCH("Helyezettek",Rankings!$C$1:$CD$1,0),0)="X","X",""),"") ->  | AJ52: =IFERROR(IF(VLOOKUP($C52,Rankings!$G:$CD,MATCH("Helyezettek",Rankings!$G$1:$CD$1,0),0)="X","X",""),"") ->  | AK52: =IFERROR(IF(VLOOKUP($C52,Rankings!$K:$CD,MATCH("Helyezettek",Rankings!$K$1:$CD$1,0),0)="X","X",""),"") ->  | AL52: =IFERROR(IF(VLOOKUP($C52,Team_results_accuracy!$E:$AN,MATCH("Helyezettek",Team_results_accuracy!$E$5:$AN$5,0),0)="X","X",""),"") ->  | AM52: =IFERROR(IF(VLOOKUP($C52,Rankings!$O:$CD,MATCH("Helyezettek",Rankings!$O$1:$CD$1,0),0)="X","X",""),"") ->  | AN52: =IFERROR(IF(VLOOKUP($C52,Rankings!$S:$CD,MATCH("Helyezettek",Rankings!$S$1:$CD$1,0),0)="X","X",""),"") ->  | AO52: =IFERROR(IF(VLOOKUP($C52,Rankings!$W:$CD,MATCH("Helyezettek",Rankings!$W$1:$CD$1,0),0)="X","X",""),"") ->  | AP52: =IFERROR(IF(VLOOKUP($C52,Team_results_triathlon!$E:$BL,MATCH("Helyezettek",Team_results_triathlon!$E$6:$BL$6,0),0)="X","X",""),"") -> 
B53: 45 | P53: =+IF(OR(ISBLANK($C53),$C53=""),"",IF(OR(ISBLANK($Q53),$Q53="",$Q53=0),Paraméterek!$C$4,Paraméterek!$C$3)) ->  | T53: =+IF(ISBLANK($C53),"",IF(IF(ISERROR(YEAR(TODAY())-YEAR(S53)),100,(YEAR(TODAY())-YEAR(S53)))<Competition!$D$26+1,Paraméterek!$C$3,Paraméterek!$C$4)) ->  | Z53: =+IF(OR(D53=Paraméterek!$D$4,T53=Paraméterek!$C$3),Paraméterek!$C$3,Paraméterek!$C$4) -> no | AC53: - | AI53: =IFERROR(IF(VLOOKUP($C53,Rankings!$C:$CD,MATCH("Helyezettek",Rankings!$C$1:$CD$1,0),0)="X","X",""),"") ->  | AJ53: =IFERROR(IF(VLOOKUP($C53,Rankings!$G:$CD,MATCH("Helyezettek",Rankings!$G$1:$CD$1,0),0)="X","X",""),"") ->  | AK53: =IFERROR(IF(VLOOKUP($C53,Rankings!$K:$CD,MATCH("Helyezettek",Rankings!$K$1:$CD$1,0),0)="X","X",""),"") ->  | AL53: =IFERROR(IF(VLOOKUP($C53,Team_results_accuracy!$E:$AN,MATCH("Helyezettek",Team_results_accuracy!$E$5:$AN$5,0),0)="X","X",""),"") ->  | AM53: =IFERROR(IF(VLOOKUP($C53,Rankings!$O:$CD,MATCH("Helyezettek",Rankings!$O$1:$CD$1,0),0)="X","X",""),"") ->  | AN53: =IFERROR(IF(VLOOKUP($C53,Rankings!$S:$CD,MATCH("Helyezettek",Rankings!$S$1:$CD$1,0),0)="X","X",""),"") ->  | AO53: =IFERROR(IF(VLOOKUP($C53,Rankings!$W:$CD,MATCH("Helyezettek",Rankings!$W$1:$CD$1,0),0)="X","X",""),"") ->  | AP53: =IFERROR(IF(VLOOKUP($C53,Team_results_triathlon!$E:$BL,MATCH("Helyezettek",Team_results_triathlon!$E$6:$BL$6,0),0)="X","X",""),"") -> 
B54: 46 | P54: =+IF(OR(ISBLANK($C54),$C54=""),"",IF(OR(ISBLANK($Q54),$Q54="",$Q54=0),Paraméterek!$C$4,Paraméterek!$C$3)) ->  | T54: =+IF(ISBLANK($C54),"",IF(IF(ISERROR(YEAR(TODAY())-YEAR(S54)),100,(YEAR(TODAY())-YEAR(S54)))<Competition!$D$26+1,Paraméterek!$C$3,Paraméterek!$C$4)) ->  | Z54: =+IF(OR(D54=Paraméterek!$D$4,T54=Paraméterek!$C$3),Paraméterek!$C$3,Paraméterek!$C$4) -> no | AC54: - | AI54: =IFERROR(IF(VLOOKUP($C54,Rankings!$C:$CD,MATCH("Helyezettek",Rankings!$C$1:$CD$1,0),0)="X","X",""),"") ->  | AJ54: =IFERROR(IF(VLOOKUP($C54,Rankings!$G:$CD,MATCH("Helyezettek",Rankings!$G$1:$CD$1,0),0)="X","X",""),"") ->  | AK54: =IFERROR(IF(VLOOKUP($C54,Rankings!$K:$CD,MATCH("Helyezettek",Rankings!$K$1:$CD$1,0),0)="X","X",""),"") ->  | AL54: =IFERROR(IF(VLOOKUP($C54,Team_results_accuracy!$E:$AN,MATCH("Helyezettek",Team_results_accuracy!$E$5:$AN$5,0),0)="X","X",""),"") ->  | AM54: =IFERROR(IF(VLOOKUP($C54,Rankings!$O:$CD,MATCH("Helyezettek",Rankings!$O$1:$CD$1,0),0)="X","X",""),"") ->  | AN54: =IFERROR(IF(VLOOKUP($C54,Rankings!$S:$CD,MATCH("Helyezettek",Rankings!$S$1:$CD$1,0),0)="X","X",""),"") ->  | AO54: =IFERROR(IF(VLOOKUP($C54,Rankings!$W:$CD,MATCH("Helyezettek",Rankings!$W$1:$CD$1,0),0)="X","X",""),"") ->  | AP54: =IFERROR(IF(VLOOKUP($C54,Team_results_triathlon!$E:$BL,MATCH("Helyezettek",Team_results_triathlon!$E$6:$BL$6,0),0)="X","X",""),"") -> 
B55: 47 | P55: =+IF(OR(ISBLANK($C55),$C55=""),"",IF(OR(ISBLANK($Q55),$Q55="",$Q55=0),Paraméterek!$C$4,Paraméterek!$C$3)) ->  | T55: =+IF(ISBLANK($C55),"",IF(IF(ISERROR(YEAR(TODAY())-YEAR(S55)),100,(YEAR(TODAY())-YEAR(S55)))<Competition!$D$26+1,Paraméterek!$C$3,Paraméterek!$C$4)) ->  | Z55: =+IF(OR(D55=Paraméterek!$D$4,T55=Paraméterek!$C$3),Paraméterek!$C$3,Paraméterek!$C$4) -> no | AC55: - | AI55: =IFERROR(IF(VLOOKUP($C55,Rankings!$C:$CD,MATCH("Helyezettek",Rankings!$C$1:$CD$1,0),0)="X","X",""),"") ->  | AJ55: =IFERROR(IF(VLOOKUP($C55,Rankings!$G:$CD,MATCH("Helyezettek",Rankings!$G$1:$CD$1,0),0)="X","X",""),"") ->  | AK55: =IFERROR(IF(VLOOKUP($C55,Rankings!$K:$CD,MATCH("Helyezettek",Rankings!$K$1:$CD$1,0),0)="X","X",""),"") ->  | AL55: =IFERROR(IF(VLOOKUP($C55,Team_results_accuracy!$E:$AN,MATCH("Helyezettek",Team_results_accuracy!$E$5:$AN$5,0),0)="X","X",""),"") ->  | AM55: =IFERROR(IF(VLOOKUP($C55,Rankings!$O:$CD,MATCH("Helyezettek",Rankings!$O$1:$CD$1,0),0)="X","X",""),"") ->  | AN55: =IFERROR(IF(VLOOKUP($C55,Rankings!$S:$CD,MATCH("Helyezettek",Rankings!$S$1:$CD$1,0),0)="X","X",""),"") ->  | AO55: =IFERROR(IF(VLOOKUP($C55,Rankings!$W:$CD,MATCH("Helyezettek",Rankings!$W$1:$CD$1,0),0)="X","X",""),"") ->  | AP55: =IFERROR(IF(VLOOKUP($C55,Team_results_triathlon!$E:$BL,MATCH("Helyezettek",Team_results_triathlon!$E$6:$BL$6,0),0)="X","X",""),"") -> 
B56: 48 | P56: =+IF(OR(ISBLANK($C56),$C56=""),"",IF(OR(ISBLANK($Q56),$Q56="",$Q56=0),Paraméterek!$C$4,Paraméterek!$C$3)) ->  | T56: =+IF(ISBLANK($C56),"",IF(IF(ISERROR(YEAR(TODAY())-YEAR(S56)),100,(YEAR(TODAY())-YEAR(S56)))<Competition!$D$26+1,Paraméterek!$C$3,Paraméterek!$C$4)) ->  | Z56: =+IF(OR(D56=Paraméterek!$D$4,T56=Paraméterek!$C$3),Paraméterek!$C$3,Paraméterek!$C$4) -> no | AC56: - | AI56: =IFERROR(IF(VLOOKUP($C56,Rankings!$C:$CD,MATCH("Helyezettek",Rankings!$C$1:$CD$1,0),0)="X","X",""),"") ->  | AJ56: =IFERROR(IF(VLOOKUP($C56,Rankings!$G:$CD,MATCH("Helyezettek",Rankings!$G$1:$CD$1,0),0)="X","X",""),"") ->  | AK56: =IFERROR(IF(VLOOKUP($C56,Rankings!$K:$CD,MATCH("Helyezettek",Rankings!$K$1:$CD$1,0),0)="X","X",""),"") ->  | AL56: =IFERROR(IF(VLOOKUP($C56,Team_results_accuracy!$E:$AN,MATCH("Helyezettek",Team_results_accuracy!$E$5:$AN$5,0),0)="X","X",""),"") ->  | AM56: =IFERROR(IF(VLOOKUP($C56,Rankings!$O:$CD,MATCH("Helyezettek",Rankings!$O$1:$CD$1,0),0)="X","X",""),"") ->  | AN56: =IFERROR(IF(VLOOKUP($C56,Rankings!$S:$CD,MATCH("Helyezettek",Rankings!$S$1:$CD$1,0),0)="X","X",""),"") ->  | AO56: =IFERROR(IF(VLOOKUP($C56,Rankings!$W:$CD,MATCH("Helyezettek",Rankings!$W$1:$CD$1,0),0)="X","X",""),"") ->  | AP56: =IFERROR(IF(VLOOKUP($C56,Team_results_triathlon!$E:$BL,MATCH("Helyezettek",Team_results_triathlon!$E$6:$BL$6,0),0)="X","X",""),"") -> 
B57: 49 | P57: =+IF(OR(ISBLANK($C57),$C57=""),"",IF(OR(ISBLANK($Q57),$Q57="",$Q57=0),Paraméterek!$C$4,Paraméterek!$C$3)) ->  | T57: =+IF(ISBLANK($C57),"",IF(IF(ISERROR(YEAR(TODAY())-YEAR(S57)),100,(YEAR(TODAY())-YEAR(S57)))<Competition!$D$26+1,Paraméterek!$C$3,Paraméterek!$C$4)) ->  | Z57: =+IF(OR(D57=Paraméterek!$D$4,T57=Paraméterek!$C$3),Paraméterek!$C$3,Paraméterek!$C$4) -> no | AC57: - | AI57: =IFERROR(IF(VLOOKUP($C57,Rankings!$C:$CD,MATCH("Helyezettek",Rankings!$C$1:$CD$1,0),0)="X","X",""),"") ->  | AJ57: =IFERROR(IF(VLOOKUP($C57,Rankings!$G:$CD,MATCH("Helyezettek",Rankings!$G$1:$CD$1,0),0)="X","X",""),"") ->  | AK57: =IFERROR(IF(VLOOKUP($C57,Rankings!$K:$CD,MATCH("Helyezettek",Rankings!$K$1:$CD$1,0),0)="X","X",""),"") ->  | AL57: =IFERROR(IF(VLOOKUP($C57,Team_results_accuracy!$E:$AN,MATCH("Helyezettek",Team_results_accuracy!$E$5:$AN$5,0),0)="X","X",""),"") ->  | AM57: =IFERROR(IF(VLOOKUP($C57,Rankings!$O:$CD,MATCH("Helyezettek",Rankings!$O$1:$CD$1,0),0)="X","X",""),"") ->  | AN57: =IFERROR(IF(VLOOKUP($C57,Rankings!$S:$CD,MATCH("Helyezettek",Rankings!$S$1:$CD$1,0),0)="X","X",""),"") ->  | AO57: =IFERROR(IF(VLOOKUP($C57,Rankings!$W:$CD,MATCH("Helyezettek",Rankings!$W$1:$CD$1,0),0)="X","X",""),"") ->  | AP57: =IFERROR(IF(VLOOKUP($C57,Team_results_triathlon!$E:$BL,MATCH("Helyezettek",Team_results_triathlon!$E$6:$BL$6,0),0)="X","X",""),"") -> 
B58: 50 | P58: =+IF(OR(ISBLANK($C58),$C58=""),"",IF(OR(ISBLANK($Q58),$Q58="",$Q58=0),Paraméterek!$C$4,Paraméterek!$C$3)) ->  | T58: =+IF(ISBLANK($C58),"",IF(IF(ISERROR(YEAR(TODAY())-YEAR(S58)),100,(YEAR(TODAY())-YEAR(S58)))<Competition!$D$26+1,Paraméterek!$C$3,Paraméterek!$C$4)) ->  | Z58: =+IF(OR(D58=Paraméterek!$D$4,T58=Paraméterek!$C$3),Paraméterek!$C$3,Paraméterek!$C$4) -> no | AC58: - | AI58: =IFERROR(IF(VLOOKUP($C58,Rankings!$C:$CD,MATCH("Helyezettek",Rankings!$C$1:$CD$1,0),0)="X","X",""),"") ->  | AJ58: =IFERROR(IF(VLOOKUP($C58,Rankings!$G:$CD,MATCH("Helyezettek",Rankings!$G$1:$CD$1,0),0)="X","X",""),"") ->  | AK58: =IFERROR(IF(VLOOKUP($C58,Rankings!$K:$CD,MATCH("Helyezettek",Rankings!$K$1:$CD$1,0),0)="X","X",""),"") ->  | AL58: =IFERROR(IF(VLOOKUP($C58,Team_results_accuracy!$E:$AN,MATCH("Helyezettek",Team_results_accuracy!$E$5:$AN$5,0),0)="X","X",""),"") ->  | AM58: =IFERROR(IF(VLOOKUP($C58,Rankings!$O:$CD,MATCH("Helyezettek",Rankings!$O$1:$CD$1,0),0)="X","X",""),"") ->  | AN58: =IFERROR(IF(VLOOKUP($C58,Rankings!$S:$CD,MATCH("Helyezettek",Rankings!$S$1:$CD$1,0),0)="X","X",""),"") ->  | AO58: =IFERROR(IF(VLOOKUP($C58,Rankings!$W:$CD,MATCH("Helyezettek",Rankings!$W$1:$CD$1,0),0)="X","X",""),"") ->  | AP58: =IFERROR(IF(VLOOKUP($C58,Team_results_triathlon!$E:$BL,MATCH("Helyezettek",Team_results_triathlon!$E$6:$BL$6,0),0)="X","X",""),"") -> 
B59: 51 | P59: =+IF(OR(ISBLANK($C59),$C59=""),"",IF(OR(ISBLANK($Q59),$Q59="",$Q59=0),Paraméterek!$C$4,Paraméterek!$C$3)) ->  | T59: =+IF(ISBLANK($C59),"",IF(IF(ISERROR(YEAR(TODAY())-YEAR(S59)),100,(YEAR(TODAY())-YEAR(S59)))<Competition!$D$26+1,Paraméterek!$C$3,Paraméterek!$C$4)) ->  | Z59: =+IF(OR(D59=Paraméterek!$D$4,T59=Paraméterek!$C$3),Paraméterek!$C$3,Paraméterek!$C$4) -> no | AC59: - | AI59: =IFERROR(IF(VLOOKUP($C59,Rankings!$C:$CD,MATCH("Helyezettek",Rankings!$C$1:$CD$1,0),0)="X","X",""),"") ->  | AJ59: =IFERROR(IF(VLOOKUP($C59,Rankings!$G:$CD,MATCH("Helyezettek",Rankings!$G$1:$CD$1,0),0)="X","X",""),"") ->  | AK59: =IFERROR(IF(VLOOKUP($C59,Rankings!$K:$CD,MATCH("Helyezettek",Rankings!$K$1:$CD$1,0),0)="X","X",""),"") ->  | AL59: =IFERROR(IF(VLOOKUP($C59,Team_results_accuracy!$E:$AN,MATCH("Helyezettek",Team_results_accuracy!$E$5:$AN$5,0),0)="X","X",""),"") ->  | AM59: =IFERROR(IF(VLOOKUP($C59,Rankings!$O:$CD,MATCH("Helyezettek",Rankings!$O$1:$CD$1,0),0)="X","X",""),"") ->  | AN59: =IFERROR(IF(VLOOKUP($C59,Rankings!$S:$CD,MATCH("Helyezettek",Rankings!$S$1:$CD$1,0),0)="X","X",""),"") ->  | AO59: =IFERROR(IF(VLOOKUP($C59,Rankings!$W:$CD,MATCH("Helyezettek",Rankings!$W$1:$CD$1,0),0)="X","X",""),"") ->  | AP59: =IFERROR(IF(VLOOKUP($C59,Team_results_triathlon!$E:$BL,MATCH("Helyezettek",Team_results_triathlon!$E$6:$BL$6,0),0)="X","X",""),"") -> 
B60: 52 | P60: =+IF(OR(ISBLANK($C60),$C60=""),"",IF(OR(ISBLANK($Q60),$Q60="",$Q60=0),Paraméterek!$C$4,Paraméterek!$C$3)) ->  | T60: =+IF(ISBLANK($C60),"",IF(IF(ISERROR(YEAR(TODAY())-YEAR(S60)),100,(YEAR(TODAY())-YEAR(S60)))<Competition!$D$26+1,Paraméterek!$C$3,Paraméterek!$C$4)) ->  | Z60: =+IF(OR(D60=Paraméterek!$D$4,T60=Paraméterek!$C$3),Paraméterek!$C$3,Paraméterek!$C$4) -> no | AC60: - | AI60: =IFERROR(IF(VLOOKUP($C60,Rankings!$C:$CD,MATCH("Helyezettek",Rankings!$C$1:$CD$1,0),0)="X","X",""),"") ->  | AJ60: =IFERROR(IF(VLOOKUP($C60,Rankings!$G:$CD,MATCH("Helyezettek",Rankings!$G$1:$CD$1,0),0)="X","X",""),"") ->  | AK60: =IFERROR(IF(VLOOKUP($C60,Rankings!$K:$CD,MATCH("Helyezettek",Rankings!$K$1:$CD$1,0),0)="X","X",""),"") ->  | AL60: =IFERROR(IF(VLOOKUP($C60,Team_results_accuracy!$E:$AN,MATCH("Helyezettek",Team_results_accuracy!$E$5:$AN$5,0),0)="X","X",""),"") ->  | AM60: =IFERROR(IF(VLOOKUP($C60,Rankings!$O:$CD,MATCH("Helyezettek",Rankings!$O$1:$CD$1,0),0)="X","X",""),"") ->  | AN60: =IFERROR(IF(VLOOKUP($C60,Rankings!$S:$CD,MATCH("Helyezettek",Rankings!$S$1:$CD$1,0),0)="X","X",""),"") ->  | AO60: =IFERROR(IF(VLOOKUP($C60,Rankings!$W:$CD,MATCH("Helyezettek",Rankings!$W$1:$CD$1,0),0)="X","X",""),"") ->  | AP60: =IFERROR(IF(VLOOKUP($C60,Team_results_triathlon!$E:$BL,MATCH("Helyezettek",Team_results_triathlon!$E$6:$BL$6,0),0)="X","X",""),"") -> 
B61: 53 | P61: =+IF(OR(ISBLANK($C61),$C61=""),"",IF(OR(ISBLANK($Q61),$Q61="",$Q61=0),Paraméterek!$C$4,Paraméterek!$C$3)) ->  | T61: =+IF(ISBLANK($C61),"",IF(IF(ISERROR(YEAR(TODAY())-YEAR(S61)),100,(YEAR(TODAY())-YEAR(S61)))<Competition!$D$26+1,Paraméterek!$C$3,Paraméterek!$C$4)) ->  | Z61: =+IF(OR(D61=Paraméterek!$D$4,T61=Paraméterek!$C$3),Paraméterek!$C$3,Paraméterek!$C$4) -> no | AC61: - | AI61: =IFERROR(IF(VLOOKUP($C61,Rankings!$C:$CD,MATCH("Helyezettek",Rankings!$C$1:$CD$1,0),0)="X","X",""),"") ->  | AJ61: =IFERROR(IF(VLOOKUP($C61,Rankings!$G:$CD,MATCH("Helyezettek",Rankings!$G$1:$CD$1,0),0)="X","X",""),"") ->  | AK61: =IFERROR(IF(VLOOKUP($C61,Rankings!$K:$CD,MATCH("Helyezettek",Rankings!$K$1:$CD$1,0),0)="X","X",""),"") ->  | AL61: =IFERROR(IF(VLOOKUP($C61,Team_results_accuracy!$E:$AN,MATCH("Helyezettek",Team_results_accuracy!$E$5:$AN$5,0),0)="X","X",""),"") ->  | AM61: =IFERROR(IF(VLOOKUP($C61,Rankings!$O:$CD,MATCH("Helyezettek",Rankings!$O$1:$CD$1,0),0)="X","X",""),"") ->  | AN61: =IFERROR(IF(VLOOKUP($C61,Rankings!$S:$CD,MATCH("Helyezettek",Rankings!$S$1:$CD$1,0),0)="X","X",""),"") ->  | AO61: =IFERROR(IF(VLOOKUP($C61,Rankings!$W:$CD,MATCH("Helyezettek",Rankings!$W$1:$CD$1,0),0)="X","X",""),"") ->  | AP61: =IFERROR(IF(VLOOKUP($C61,Team_results_triathlon!$E:$BL,MATCH("Helyezettek",Team_results_triathlon!$E$6:$BL$6,0),0)="X","X",""),"") -> 
B62: 54 | P62: =+IF(OR(ISBLANK($C62),$C62=""),"",IF(OR(ISBLANK($Q62),$Q62="",$Q62=0),Paraméterek!$C$4,Paraméterek!$C$3)) ->  | T62: =+IF(ISBLANK($C62),"",IF(IF(ISERROR(YEAR(TODAY())-YEAR(S62)),100,(YEAR(TODAY())-YEAR(S62)))<Competition!$D$26+1,Paraméterek!$C$3,Paraméterek!$C$4)) ->  | Z62: =+IF(OR(D62=Paraméterek!$D$4,T62=Paraméterek!$C$3),Paraméterek!$C$3,Paraméterek!$C$4) -> no | AC62: - | AI62: =IFERROR(IF(VLOOKUP($C62,Rankings!$C:$CD,MATCH("Helyezettek",Rankings!$C$1:$CD$1,0),0)="X","X",""),"") ->  | AJ62: =IFERROR(IF(VLOOKUP($C62,Rankings!$G:$CD,MATCH("Helyezettek",Rankings!$G$1:$CD$1,0),0)="X","X",""),"") ->  | AK62: =IFERROR(IF(VLOOKUP($C62,Rankings!$K:$CD,MATCH("Helyezettek",Rankings!$K$1:$CD$1,0),0)="X","X",""),"") ->  | AL62: =IFERROR(IF(VLOOKUP($C62,Team_results_accuracy!$E:$AN,MATCH("Helyezettek",Team_results_accuracy!$E$5:$AN$5,0),0)="X","X",""),"") ->  | AM62: =IFERROR(IF(VLOOKUP($C62,Rankings!$O:$CD,MATCH("Helyezettek",Rankings!$O$1:$CD$1,0),0)="X","X",""),"") ->  | AN62: =IFERROR(IF(VLOOKUP($C62,Rankings!$S:$CD,MATCH("Helyezettek",Rankings!$S$1:$CD$1,0),0)="X","X",""),"") ->  | AO62: =IFERROR(IF(VLOOKUP($C62,Rankings!$W:$CD,MATCH("Helyezettek",Rankings!$W$1:$CD$1,0),0)="X","X",""),"") ->  | AP62: =IFERROR(IF(VLOOKUP($C62,Team_results_triathlon!$E:$BL,MATCH("Helyezettek",Team_results_triathlon!$E$6:$BL$6,0),0)="X","X",""),"") -> 
B63: 55 | P63: =+IF(OR(ISBLANK($C63),$C63=""),"",IF(OR(ISBLANK($Q63),$Q63="",$Q63=0),Paraméterek!$C$4,Paraméterek!$C$3)) ->  | T63: =+IF(ISBLANK($C63),"",IF(IF(ISERROR(YEAR(TODAY())-YEAR(S63)),100,(YEAR(TODAY())-YEAR(S63)))<Competition!$D$26+1,Paraméterek!$C$3,Paraméterek!$C$4)) ->  | Z63: =+IF(OR(D63=Paraméterek!$D$4,T63=Paraméterek!$C$3),Paraméterek!$C$3,Paraméterek!$C$4) -> no | AC63: - | AI63: =IFERROR(IF(VLOOKUP($C63,Rankings!$C:$CD,MATCH("Helyezettek",Rankings!$C$1:$CD$1,0),0)="X","X",""),"") ->  | AJ63: =IFERROR(IF(VLOOKUP($C63,Rankings!$G:$CD,MATCH("Helyezettek",Rankings!$G$1:$CD$1,0),0)="X","X",""),"") ->  | AK63: =IFERROR(IF(VLOOKUP($C63,Rankings!$K:$CD,MATCH("Helyezettek",Rankings!$K$1:$CD$1,0),0)="X","X",""),"") ->  | AL63: =IFERROR(IF(VLOOKUP($C63,Team_results_accuracy!$E:$AN,MATCH("Helyezettek",Team_results_accuracy!$E$5:$AN$5,0),0)="X","X",""),"") ->  | AM63: =IFERROR(IF(VLOOKUP($C63,Rankings!$O:$CD,MATCH("Helyezettek",Rankings!$O$1:$CD$1,0),0)="X","X",""),"") ->  | AN63: =IFERROR(IF(VLOOKUP($C63,Rankings!$S:$CD,MATCH("Helyezettek",Rankings!$S$1:$CD$1,0),0)="X","X",""),"") ->  | AO63: =IFERROR(IF(VLOOKUP($C63,Rankings!$W:$CD,MATCH("Helyezettek",Rankings!$W$1:$CD$1,0),0)="X","X",""),"") ->  | AP63: =IFERROR(IF(VLOOKUP($C63,Team_results_triathlon!$E:$BL,MATCH("Helyezettek",Team_results_triathlon!$E$6:$BL$6,0),0)="X","X",""),"") -> 
B64: 56 | P64: =+IF(OR(ISBLANK($C64),$C64=""),"",IF(OR(ISBLANK($Q64),$Q64="",$Q64=0),Paraméterek!$C$4,Paraméterek!$C$3)) ->  | T64: =+IF(ISBLANK($C64),"",IF(IF(ISERROR(YEAR(TODAY())-YEAR(S64)),100,(YEAR(TODAY())-YEAR(S64)))<Competition!$D$26+1,Paraméterek!$C$3,Paraméterek!$C$4)) ->  | Z64: =+IF(OR(D64=Paraméterek!$D$4,T64=Paraméterek!$C$3),Paraméterek!$C$3,Paraméterek!$C$4) -> no | AC64: - | AI64: =IFERROR(IF(VLOOKUP($C64,Rankings!$C:$CD,MATCH("Helyezettek",Rankings!$C$1:$CD$1,0),0)="X","X",""),"") ->  | AJ64: =IFERROR(IF(VLOOKUP($C64,Rankings!$G:$CD,MATCH("Helyezettek",Rankings!$G$1:$CD$1,0),0)="X","X",""),"") ->  | AK64: =IFERROR(IF(VLOOKUP($C64,Rankings!$K:$CD,MATCH("Helyezettek",Rankings!$K$1:$CD$1,0),0)="X","X",""),"") ->  | AL64: =IFERROR(IF(VLOOKUP($C64,Team_results_accuracy!$E:$AN,MATCH("Helyezettek",Team_results_accuracy!$E$5:$AN$5,0),0)="X","X",""),"") ->  | AM64: =IFERROR(IF(VLOOKUP($C64,Rankings!$O:$CD,MATCH("Helyezettek",Rankings!$O$1:$CD$1,0),0)="X","X",""),"") ->  | AN64: =IFERROR(IF(VLOOKUP($C64,Rankings!$S:$CD,MATCH("Helyezettek",Rankings!$S$1:$CD$1,0),0)="X","X",""),"") ->  | AO64: =IFERROR(IF(VLOOKUP($C64,Rankings!$W:$CD,MATCH("Helyezettek",Rankings!$W$1:$CD$1,0),0)="X","X",""),"") ->  | AP64: =IFERROR(IF(VLOOKUP($C64,Team_results_triathlon!$E:$BL,MATCH("Helyezettek",Team_results_triathlon!$E$6:$BL$6,0),0)="X","X",""),"") -> 
B65: 57 | P65: =+IF(OR(ISBLANK($C65),$C65=""),"",IF(OR(ISBLANK($Q65),$Q65="",$Q65=0),Paraméterek!$C$4,Paraméterek!$C$3)) ->  | T65: =+IF(ISBLANK($C65),"",IF(IF(ISERROR(YEAR(TODAY())-YEAR(S65)),100,(YEAR(TODAY())-YEAR(S65)))<Competition!$D$26+1,Paraméterek!$C$3,Paraméterek!$C$4)) ->  | AC65: - | AI65: =IFERROR(IF(VLOOKUP($C65,Rankings!$C:$CD,MATCH("Helyezettek",Rankings!$C$1:$CD$1,0),0)="X","X",""),"") ->  | AJ65: =IFERROR(IF(VLOOKUP($C65,Rankings!$G:$CD,MATCH("Helyezettek",Rankings!$G$1:$CD$1,0),0)="X","X",""),"") ->  | AK65: =IFERROR(IF(VLOOKUP($C65,Rankings!$K:$CD,MATCH("Helyezettek",Rankings!$K$1:$CD$1,0),0)="X","X",""),"") ->  | AL65: =IFERROR(IF(VLOOKUP($C65,Team_results_accuracy!$E:$AN,MATCH("Helyezettek",Team_results_accuracy!$E$5:$AN$5,0),0)="X","X",""),"") ->  | AM65: =IFERROR(IF(VLOOKUP($C65,Rankings!$O:$CD,MATCH("Helyezettek",Rankings!$O$1:$CD$1,0),0)="X","X",""),"") ->  | AN65: =IFERROR(IF(VLOOKUP($C65,Rankings!$S:$CD,MATCH("Helyezettek",Rankings!$S$1:$CD$1,0),0)="X","X",""),"") ->  | AO65: =IFERROR(IF(VLOOKUP($C65,Rankings!$W:$CD,MATCH("Helyezettek",Rankings!$W$1:$CD$1,0),0)="X","X",""),"") ->  | AP65: =IFERROR(IF(VLOOKUP($C65,Team_results_triathlon!$E:$BL,MATCH("Helyezettek",Team_results_triathlon!$E$6:$BL$6,0),0)="X","X",""),"") -> 
B66: 58 | P66: =+IF(OR(ISBLANK($C66),$C66=""),"",IF(OR(ISBLANK($Q66),$Q66="",$Q66=0),Paraméterek!$C$4,Paraméterek!$C$3)) ->  | T66: =+IF(ISBLANK($C66),"",IF(IF(ISERROR(YEAR(TODAY())-YEAR(S66)),100,(YEAR(TODAY())-YEAR(S66)))<Competition!$D$26+1,Paraméterek!$C$3,Paraméterek!$C$4)) ->  | AC66: - | AI66: =IFERROR(IF(VLOOKUP($C66,Rankings!$C:$CD,MATCH("Helyezettek",Rankings!$C$1:$CD$1,0),0)="X","X",""),"") ->  | AJ66: =IFERROR(IF(VLOOKUP($C66,Rankings!$G:$CD,MATCH("Helyezettek",Rankings!$G$1:$CD$1,0),0)="X","X",""),"") ->  | AK66: =IFERROR(IF(VLOOKUP($C66,Rankings!$K:$CD,MATCH("Helyezettek",Rankings!$K$1:$CD$1,0),0)="X","X",""),"") ->  | AL66: =IFERROR(IF(VLOOKUP($C66,Team_results_accuracy!$E:$AN,MATCH("Helyezettek",Team_results_accuracy!$E$5:$AN$5,0),0)="X","X",""),"") ->  | AM66: =IFERROR(IF(VLOOKUP($C66,Rankings!$O:$CD,MATCH("Helyezettek",Rankings!$O$1:$CD$1,0),0)="X","X",""),"") ->  | AN66: =IFERROR(IF(VLOOKUP($C66,Rankings!$S:$CD,MATCH("Helyezettek",Rankings!$S$1:$CD$1,0),0)="X","X",""),"") ->  | AO66: =IFERROR(IF(VLOOKUP($C66,Rankings!$W:$CD,MATCH("Helyezettek",Rankings!$W$1:$CD$1,0),0)="X","X",""),"") ->  | AP66: =IFERROR(IF(VLOOKUP($C66,Team_results_triathlon!$E:$BL,MATCH("Helyezettek",Team_results_triathlon!$E$6:$BL$6,0),0)="X","X",""),"") -> 
B67: 59 | P67: =+IF(OR(ISBLANK($C67),$C67=""),"",IF(OR(ISBLANK($Q67),$Q67="",$Q67=0),Paraméterek!$C$4,Paraméterek!$C$3)) ->  | T67: =+IF(ISBLANK($C67),"",IF(IF(ISERROR(YEAR(TODAY())-YEAR(S67)),100,(YEAR(TODAY())-YEAR(S67)))<Competition!$D$26+1,Paraméterek!$C$3,Paraméterek!$C$4)) ->  | AC67: - | AI67: =IFERROR(IF(VLOOKUP($C67,Rankings!$C:$CD,MATCH("Helyezettek",Rankings!$C$1:$CD$1,0),0)="X","X",""),"") ->  | AJ67: =IFERROR(IF(VLOOKUP($C67,Rankings!$G:$CD,MATCH("Helyezettek",Rankings!$G$1:$CD$1,0),0)="X","X",""),"") ->  | AK67: =IFERROR(IF(VLOOKUP($C67,Rankings!$K:$CD,MATCH("Helyezettek",Rankings!$K$1:$CD$1,0),0)="X","X",""),"") ->  | AL67: =IFERROR(IF(VLOOKUP($C67,Team_results_accuracy!$E:$AN,MATCH("Helyezettek",Team_results_accuracy!$E$5:$AN$5,0),0)="X","X",""),"") ->  | AM67: =IFERROR(IF(VLOOKUP($C67,Rankings!$O:$CD,MATCH("Helyezettek",Rankings!$O$1:$CD$1,0),0)="X","X",""),"") ->  | AN67: =IFERROR(IF(VLOOKUP($C67,Rankings!$S:$CD,MATCH("Helyezettek",Rankings!$S$1:$CD$1,0),0)="X","X",""),"") ->  | AO67: =IFERROR(IF(VLOOKUP($C67,Rankings!$W:$CD,MATCH("Helyezettek",Rankings!$W$1:$CD$1,0),0)="X","X",""),"") ->  | AP67: =IFERROR(IF(VLOOKUP($C67,Team_results_triathlon!$E:$BL,MATCH("Helyezettek",Team_results_triathlon!$E$6:$BL$6,0),0)="X","X",""),"") -> 
B68: 60 | P68: =+IF(OR(ISBLANK($C68),$C68=""),"",IF(OR(ISBLANK($Q68),$Q68="",$Q68=0),Paraméterek!$C$4,Paraméterek!$C$3)) ->  | T68: =+IF(ISBLANK($C68),"",IF(IF(ISERROR(YEAR(TODAY())-YEAR(S68)),100,(YEAR(TODAY())-YEAR(S68)))<Competition!$D$26+1,Paraméterek!$C$3,Paraméterek!$C$4)) ->  | AC68: - | AI68: =IFERROR(IF(VLOOKUP($C68,Rankings!$C:$CD,MATCH("Helyezettek",Rankings!$C$1:$CD$1,0),0)="X","X",""),"") ->  | AJ68: =IFERROR(IF(VLOOKUP($C68,Rankings!$G:$CD,MATCH("Helyezettek",Rankings!$G$1:$CD$1,0),0)="X","X",""),"") ->  | AK68: =IFERROR(IF(VLOOKUP($C68,Rankings!$K:$CD,MATCH("Helyezettek",Rankings!$K$1:$CD$1,0),0)="X","X",""),"") ->  | AL68: =IFERROR(IF(VLOOKUP($C68,Team_results_accuracy!$E:$AN,MATCH("Helyezettek",Team_results_accuracy!$E$5:$AN$5,0),0)="X","X",""),"") ->  | AM68: =IFERROR(IF(VLOOKUP($C68,Rankings!$O:$CD,MATCH("Helyezettek",Rankings!$O$1:$CD$1,0),0)="X","X",""),"") ->  | AN68: =IFERROR(IF(VLOOKUP($C68,Rankings!$S:$CD,MATCH("Helyezettek",Rankings!$S$1:$CD$1,0),0)="X","X",""),"") ->  | AO68: =IFERROR(IF(VLOOKUP($C68,Rankings!$W:$CD,MATCH("Helyezettek",Rankings!$W$1:$CD$1,0),0)="X","X",""),"") ->  | AP68: =IFERROR(IF(VLOOKUP($C68,Team_results_triathlon!$E:$BL,MATCH("Helyezettek",Team_results_triathlon!$E$6:$BL$6,0),0)="X","X",""),"") -> 
B69: 61 | P69: =+IF(OR(ISBLANK($C69),$C69=""),"",IF(OR(ISBLANK($Q69),$Q69="",$Q69=0),Paraméterek!$C$4,Paraméterek!$C$3)) ->  | T69: =+IF(ISBLANK($C69),"",IF(IF(ISERROR(YEAR(TODAY())-YEAR(S69)),100,(YEAR(TODAY())-YEAR(S69)))<Competition!$D$26+1,Paraméterek!$C$3,Paraméterek!$C$4)) ->  | AC69: - | AI69: =IFERROR(IF(VLOOKUP($C69,Rankings!$C:$CD,MATCH("Helyezettek",Rankings!$C$1:$CD$1,0),0)="X","X",""),"") ->  | AJ69: =IFERROR(IF(VLOOKUP($C69,Rankings!$G:$CD,MATCH("Helyezettek",Rankings!$G$1:$CD$1,0),0)="X","X",""),"") ->  | AK69: =IFERROR(IF(VLOOKUP($C69,Rankings!$K:$CD,MATCH("Helyezettek",Rankings!$K$1:$CD$1,0),0)="X","X",""),"") ->  | AL69: =IFERROR(IF(VLOOKUP($C69,Team_results_accuracy!$E:$AN,MATCH("Helyezettek",Team_results_accuracy!$E$5:$AN$5,0),0)="X","X",""),"") ->  | AM69: =IFERROR(IF(VLOOKUP($C69,Rankings!$O:$CD,MATCH("Helyezettek",Rankings!$O$1:$CD$1,0),0)="X","X",""),"") ->  | AN69: =IFERROR(IF(VLOOKUP($C69,Rankings!$S:$CD,MATCH("Helyezettek",Rankings!$S$1:$CD$1,0),0)="X","X",""),"") ->  | AO69: =IFERROR(IF(VLOOKUP($C69,Rankings!$W:$CD,MATCH("Helyezettek",Rankings!$W$1:$CD$1,0),0)="X","X",""),"") ->  | AP69: =IFERROR(IF(VLOOKUP($C69,Team_results_triathlon!$E:$BL,MATCH("Helyezettek",Team_results_triathlon!$E$6:$BL$6,0),0)="X","X",""),"") -> 
B70: 62 | P70: =+IF(OR(ISBLANK($C70),$C70=""),"",IF(OR(ISBLANK($Q70),$Q70="",$Q70=0),Paraméterek!$C$4,Paraméterek!$C$3)) ->  | T70: =+IF(ISBLANK($C70),"",IF(IF(ISERROR(YEAR(TODAY())-YEAR(S70)),100,(YEAR(TODAY())-YEAR(S70)))<Competition!$D$26+1,Paraméterek!$C$3,Paraméterek!$C$4)) ->  | AC70: - | AI70: =IFERROR(IF(VLOOKUP($C70,Rankings!$C:$CD,MATCH("Helyezettek",Rankings!$C$1:$CD$1,0),0)="X","X",""),"") ->  | AJ70: =IFERROR(IF(VLOOKUP($C70,Rankings!$G:$CD,MATCH("Helyezettek",Rankings!$G$1:$CD$1,0),0)="X","X",""),"") ->  | AK70: =IFERROR(IF(VLOOKUP($C70,Rankings!$K:$CD,MATCH("Helyezettek",Rankings!$K$1:$CD$1,0),0)="X","X",""),"") ->  | AL70: =IFERROR(IF(VLOOKUP($C70,Team_results_accuracy!$E:$AN,MATCH("Helyezettek",Team_results_accuracy!$E$5:$AN$5,0),0)="X","X",""),"") ->  | AM70: =IFERROR(IF(VLOOKUP($C70,Rankings!$O:$CD,MATCH("Helyezettek",Rankings!$O$1:$CD$1,0),0)="X","X",""),"") ->  | AN70: =IFERROR(IF(VLOOKUP($C70,Rankings!$S:$CD,MATCH("Helyezettek",Rankings!$S$1:$CD$1,0),0)="X","X",""),"") ->  | AO70: =IFERROR(IF(VLOOKUP($C70,Rankings!$W:$CD,MATCH("Helyezettek",Rankings!$W$1:$CD$1,0),0)="X","X",""),"") ->  | AP70: =IFERROR(IF(VLOOKUP($C70,Team_results_triathlon!$E:$BL,MATCH("Helyezettek",Team_results_triathlon!$E$6:$BL$6,0),0)="X","X",""),"") -> 
B71: 63 | P71: =+IF(OR(ISBLANK($C71),$C71=""),"",IF(OR(ISBLANK($Q71),$Q71="",$Q71=0),Paraméterek!$C$4,Paraméterek!$C$3)) ->  | T71: =+IF(ISBLANK($C71),"",IF(IF(ISERROR(YEAR(TODAY())-YEAR(S71)),100,(YEAR(TODAY())-YEAR(S71)))<Competition!$D$26+1,Paraméterek!$C$3,Paraméterek!$C$4)) ->  | AC71: - | AI71: =IFERROR(IF(VLOOKUP($C71,Rankings!$C:$CD,MATCH("Helyezettek",Rankings!$C$1:$CD$1,0),0)="X","X",""),"") ->  | AJ71: =IFERROR(IF(VLOOKUP($C71,Rankings!$G:$CD,MATCH("Helyezettek",Rankings!$G$1:$CD$1,0),0)="X","X",""),"") ->  | AK71: =IFERROR(IF(VLOOKUP($C71,Rankings!$K:$CD,MATCH("Helyezettek",Rankings!$K$1:$CD$1,0),0)="X","X",""),"") ->  | AL71: =IFERROR(IF(VLOOKUP($C71,Team_results_accuracy!$E:$AN,MATCH("Helyezettek",Team_results_accuracy!$E$5:$AN$5,0),0)="X","X",""),"") ->  | AM71: =IFERROR(IF(VLOOKUP($C71,Rankings!$O:$CD,MATCH("Helyezettek",Rankings!$O$1:$CD$1,0),0)="X","X",""),"") ->  | AN71: =IFERROR(IF(VLOOKUP($C71,Rankings!$S:$CD,MATCH("Helyezettek",Rankings!$S$1:$CD$1,0),0)="X","X",""),"") ->  | AO71: =IFERROR(IF(VLOOKUP($C71,Rankings!$W:$CD,MATCH("Helyezettek",Rankings!$W$1:$CD$1,0),0)="X","X",""),"") ->  | AP71: =IFERROR(IF(VLOOKUP($C71,Team_results_triathlon!$E:$BL,MATCH("Helyezettek",Team_results_triathlon!$E$6:$BL$6,0),0)="X","X",""),"") -> 
B72: 64 | P72: =+IF(OR(ISBLANK($C72),$C72=""),"",IF(OR(ISBLANK($Q72),$Q72="",$Q72=0),Paraméterek!$C$4,Paraméterek!$C$3)) ->  | T72: =+IF(ISBLANK($C72),"",IF(IF(ISERROR(YEAR(TODAY())-YEAR(S72)),100,(YEAR(TODAY())-YEAR(S72)))<Competition!$D$26+1,Paraméterek!$C$3,Paraméterek!$C$4)) ->  | AC72: - | AI72: =IFERROR(IF(VLOOKUP($C72,Rankings!$C:$CD,MATCH("Helyezettek",Rankings!$C$1:$CD$1,0),0)="X","X",""),"") ->  | AJ72: =IFERROR(IF(VLOOKUP($C72,Rankings!$G:$CD,MATCH("Helyezettek",Rankings!$G$1:$CD$1,0),0)="X","X",""),"") ->  | AK72: =IFERROR(IF(VLOOKUP($C72,Rankings!$K:$CD,MATCH("Helyezettek",Rankings!$K$1:$CD$1,0),0)="X","X",""),"") ->  | AL72: =IFERROR(IF(VLOOKUP($C72,Team_results_accuracy!$E:$AN,MATCH("Helyezettek",Team_results_accuracy!$E$5:$AN$5,0),0)="X","X",""),"") ->  | AM72: =IFERROR(IF(VLOOKUP($C72,Rankings!$O:$CD,MATCH("Helyezettek",Rankings!$O$1:$CD$1,0),0)="X","X",""),"") ->  | AN72: =IFERROR(IF(VLOOKUP($C72,Rankings!$S:$CD,MATCH("Helyezettek",Rankings!$S$1:$CD$1,0),0)="X","X",""),"") ->  | AO72: =IFERROR(IF(VLOOKUP($C72,Rankings!$W:$CD,MATCH("Helyezettek",Rankings!$W$1:$CD$1,0),0)="X","X",""),"") ->  | AP72: =IFERROR(IF(VLOOKUP($C72,Team_results_triathlon!$E:$BL,MATCH("Helyezettek",Team_results_triathlon!$E$6:$BL$6,0),0)="X","X",""),"") -> 
B73: 65 | P73: =+IF(OR(ISBLANK($C73),$C73=""),"",IF(OR(ISBLANK($Q73),$Q73="",$Q73=0),Paraméterek!$C$4,Paraméterek!$C$3)) ->  | T73: =+IF(ISBLANK($C73),"",IF(IF(ISERROR(YEAR(TODAY())-YEAR(S73)),100,(YEAR(TODAY())-YEAR(S73)))<Competition!$D$26+1,Paraméterek!$C$3,Paraméterek!$C$4)) ->  | AB73: =+IF(C73="","",C73) ->  | AC73: - | AI73: =IFERROR(IF(VLOOKUP($C73,Rankings!$C:$CD,MATCH("Helyezettek",Rankings!$C$1:$CD$1,0),0)="X","X",""),"") ->  | AJ73: =IFERROR(IF(VLOOKUP($C73,Rankings!$G:$CD,MATCH("Helyezettek",Rankings!$G$1:$CD$1,0),0)="X","X",""),"") ->  | AK73: =IFERROR(IF(VLOOKUP($C73,Rankings!$K:$CD,MATCH("Helyezettek",Rankings!$K$1:$CD$1,0),0)="X","X",""),"") ->  | AL73: =IFERROR(IF(VLOOKUP($C73,Team_results_accuracy!$E:$AN,MATCH("Helyezettek",Team_results_accuracy!$E$5:$AN$5,0),0)="X","X",""),"") ->  | AM73: =IFERROR(IF(VLOOKUP($C73,Rankings!$O:$CD,MATCH("Helyezettek",Rankings!$O$1:$CD$1,0),0)="X","X",""),"") ->  | AN73: =IFERROR(IF(VLOOKUP($C73,Rankings!$S:$CD,MATCH("Helyezettek",Rankings!$S$1:$CD$1,0),0)="X","X",""),"") ->  | AO73: =IFERROR(IF(VLOOKUP($C73,Rankings!$W:$CD,MATCH("Helyezettek",Rankings!$W$1:$CD$1,0),0)="X","X",""),"") ->  | AP73: =IFERROR(IF(VLOOKUP($C73,Team_results_triathlon!$E:$BL,MATCH("Helyezettek",Team_results_triathlon!$E$6:$BL$6,0),0)="X","X",""),"") -> 
B74: 66 | P74: =+IF(OR(ISBLANK($C74),$C74=""),"",IF(OR(ISBLANK($Q74),$Q74="",$Q74=0),Paraméterek!$C$4,Paraméterek!$C$3)) ->  | T74: =+IF(ISBLANK($C74),"",IF(IF(ISERROR(YEAR(TODAY())-YEAR(S74)),100,(YEAR(TODAY())-YEAR(S74)))<Competition!$D$26+1,Paraméterek!$C$3,Paraméterek!$C$4)) ->  | AC74: =+IF(ISERROR(MONTH($S74)),"",IF(MONTH($S74)=MONTH(TODAY()),IF(DAY($S74)=DAY(TODAY()),"szülinapos!",IF(DAY($S74)-DAY(TODAY())=1,"holnap lesz",IF(DAY($S74)-DAY(TODAY())=-1,"tegnap volt","-"))),"-")) -> - | AD74: =IF(OR(ISERROR(YEAR($S74)),$S74=""),"",ROUNDDOWN((TODAY()-$S74)/365,0)) ->  | AI74: =IFERROR(IF(VLOOKUP($C74,Rankings!$C:$CD,MATCH("Helyezettek",Rankings!$C$1:$CD$1,0),0)="X","X",""),"") ->  | AJ74: =IFERROR(IF(VLOOKUP($C74,Rankings!$G:$CD,MATCH("Helyezettek",Rankings!$G$1:$CD$1,0),0)="X","X",""),"") ->  | AK74: =IFERROR(IF(VLOOKUP($C74,Rankings!$K:$CD,MATCH("Helyezettek",Rankings!$K$1:$CD$1,0),0)="X","X",""),"") ->  | AL74: =IFERROR(IF(VLOOKUP($C74,Team_results_accuracy!$E:$AN,MATCH("Helyezettek",Team_results_accuracy!$E$5:$AN$5,0),0)="X","X",""),"") ->  | AM74: =IFERROR(IF(VLOOKUP($C74,Rankings!$O:$CD,MATCH("Helyezettek",Rankings!$O$1:$CD$1,0),0)="X","X",""),"") ->  | AN74: =IFERROR(IF(VLOOKUP($C74,Rankings!$S:$CD,MATCH("Helyezettek",Rankings!$S$1:$CD$1,0),0)="X","X",""),"") ->  | AO74: =IFERROR(IF(VLOOKUP($C74,Rankings!$W:$CD,MATCH("Helyezettek",Rankings!$W$1:$CD$1,0),0)="X","X",""),"") ->  | AP74: =IFERROR(IF(VLOOKUP($C74,Team_results_triathlon!$E:$BL,MATCH("Helyezettek",Team_results_triathlon!$E$6:$BL$6,0),0)="X","X",""),"") ->  | AQ74: =+IF(C74="","",IF(COUNTIF(AI74:AP74,"X")>0,"","X")) -> 
B75: 67 | P75: =+IF(OR(ISBLANK($C75),$C75=""),"",IF(OR(ISBLANK($Q75),$Q75="",$Q75=0),Paraméterek!$C$4,Paraméterek!$C$3)) ->  | T75: =+IF(ISBLANK($C75),"",IF(IF(ISERROR(YEAR(TODAY())-YEAR(S75)),100,(YEAR(TODAY())-YEAR(S75)))<Competition!$D$26+1,Paraméterek!$C$3,Paraméterek!$C$4)) ->  | AC75: - | AI75: =IFERROR(IF(VLOOKUP($C75,Rankings!$C:$CD,MATCH("Helyezettek",Rankings!$C$1:$CD$1,0),0)="X","X",""),"") ->  | AJ75: =IFERROR(IF(VLOOKUP($C75,Rankings!$G:$CD,MATCH("Helyezettek",Rankings!$G$1:$CD$1,0),0)="X","X",""),"") ->  | AK75: =IFERROR(IF(VLOOKUP($C75,Rankings!$K:$CD,MATCH("Helyezettek",Rankings!$K$1:$CD$1,0),0)="X","X",""),"") ->  | AL75: =IFERROR(IF(VLOOKUP($C75,Team_results_accuracy!$E:$AN,MATCH("Helyezettek",Team_results_accuracy!$E$5:$AN$5,0),0)="X","X",""),"") ->  | AM75: =IFERROR(IF(VLOOKUP($C75,Rankings!$O:$CD,MATCH("Helyezettek",Rankings!$O$1:$CD$1,0),0)="X","X",""),"") ->  | AN75: =IFERROR(IF(VLOOKUP($C75,Rankings!$S:$CD,MATCH("Helyezettek",Rankings!$S$1:$CD$1,0),0)="X","X",""),"") ->  | AO75: =IFERROR(IF(VLOOKUP($C75,Rankings!$W:$CD,MATCH("Helyezettek",Rankings!$W$1:$CD$1,0),0)="X","X",""),"") ->  | AP75: =IFERROR(IF(VLOOKUP($C75,Team_results_triathlon!$E:$BL,MATCH("Helyezettek",Team_results_triathlon!$E$6:$BL$6,0),0)="X","X",""),"") -> 
B76: 68 | P76: =+IF(OR(ISBLANK($C76),$C76=""),"",IF(OR(ISBLANK($Q76),$Q76="",$Q76=0),Paraméterek!$C$4,Paraméterek!$C$3)) ->  | T76: =+IF(ISBLANK($C76),"",IF(IF(ISERROR(YEAR(TODAY())-YEAR(S76)),100,(YEAR(TODAY())-YEAR(S76)))<Competition!$D$26+1,Paraméterek!$C$3,Paraméterek!$C$4)) ->  | AC76: - | AI76: =IFERROR(IF(VLOOKUP($C76,Rankings!$C:$CD,MATCH("Helyezettek",Rankings!$C$1:$CD$1,0),0)="X","X",""),"") ->  | AJ76: =IFERROR(IF(VLOOKUP($C76,Rankings!$G:$CD,MATCH("Helyezettek",Rankings!$G$1:$CD$1,0),0)="X","X",""),"") ->  | AK76: =IFERROR(IF(VLOOKUP($C76,Rankings!$K:$CD,MATCH("Helyezettek",Rankings!$K$1:$CD$1,0),0)="X","X",""),"") ->  | AL76: =IFERROR(IF(VLOOKUP($C76,Team_results_accuracy!$E:$AN,MATCH("Helyezettek",Team_results_accuracy!$E$5:$AN$5,0),0)="X","X",""),"") ->  | AM76: =IFERROR(IF(VLOOKUP($C76,Rankings!$O:$CD,MATCH("Helyezettek",Rankings!$O$1:$CD$1,0),0)="X","X",""),"") ->  | AN76: =IFERROR(IF(VLOOKUP($C76,Rankings!$S:$CD,MATCH("Helyezettek",Rankings!$S$1:$CD$1,0),0)="X","X",""),"") ->  | AO76: =IFERROR(IF(VLOOKUP($C76,Rankings!$W:$CD,MATCH("Helyezettek",Rankings!$W$1:$CD$1,0),0)="X","X",""),"") ->  | AP76: =IFERROR(IF(VLOOKUP($C76,Team_results_triathlon!$E:$BL,MATCH("Helyezettek",Team_results_triathlon!$E$6:$BL$6,0),0)="X","X",""),"") -> 
B77: 69 | P77: =+IF(OR(ISBLANK($C77),$C77=""),"",IF(OR(ISBLANK($Q77),$Q77="",$Q77=0),Paraméterek!$C$4,Paraméterek!$C$3)) ->  | T77: =+IF(ISBLANK($C77),"",IF(IF(ISERROR(YEAR(TODAY())-YEAR(S77)),100,(YEAR(TODAY())-YEAR(S77)))<Competition!$D$26+1,Paraméterek!$C$3,Paraméterek!$C$4)) ->  | AC77: - | AI77: =IFERROR(IF(VLOOKUP($C77,Rankings!$C:$CD,MATCH("Helyezettek",Rankings!$C$1:$CD$1,0),0)="X","X",""),"") ->  | AJ77: =IFERROR(IF(VLOOKUP($C77,Rankings!$G:$CD,MATCH("Helyezettek",Rankings!$G$1:$CD$1,0),0)="X","X",""),"") ->  | AK77: =IFERROR(IF(VLOOKUP($C77,Rankings!$K:$CD,MATCH("Helyezettek",Rankings!$K$1:$CD$1,0),0)="X","X",""),"") ->  | AL77: =IFERROR(IF(VLOOKUP($C77,Team_results_accuracy!$E:$AN,MATCH("Helyezettek",Team_results_accuracy!$E$5:$AN$5,0),0)="X","X",""),"") ->  | AM77: =IFERROR(IF(VLOOKUP($C77,Rankings!$O:$CD,MATCH("Helyezettek",Rankings!$O$1:$CD$1,0),0)="X","X",""),"") ->  | AN77: =IFERROR(IF(VLOOKUP($C77,Rankings!$S:$CD,MATCH("Helyezettek",Rankings!$S$1:$CD$1,0),0)="X","X",""),"") ->  | AO77: =IFERROR(IF(VLOOKUP($C77,Rankings!$W:$CD,MATCH("Helyezettek",Rankings!$W$1:$CD$1,0),0)="X","X",""),"") ->  | AP77: =IFERROR(IF(VLOOKUP($C77,Team_results_triathlon!$E:$BL,MATCH("Helyezettek",Team_results_triathlon!$E$6:$BL$6,0),0)="X","X",""),"") -> 
B78: 70 | P78: =+IF(OR(ISBLANK($C78),$C78=""),"",IF(OR(ISBLANK($Q78),$Q78="",$Q78=0),Paraméterek!$C$4,Paraméterek!$C$3)) ->  | T78: =+IF(ISBLANK($C78),"",IF(IF(ISERROR(YEAR(TODAY())-YEAR(S78)),100,(YEAR(TODAY())-YEAR(S78)))<Competition!$D$26+1,Paraméterek!$C$3,Paraméterek!$C$4)) ->  | AC78: - | AI78: =IFERROR(IF(VLOOKUP($C78,Rankings!$C:$CD,MATCH("Helyezettek",Rankings!$C$1:$CD$1,0),0)="X","X",""),"") ->  | AJ78: =IFERROR(IF(VLOOKUP($C78,Rankings!$G:$CD,MATCH("Helyezettek",Rankings!$G$1:$CD$1,0),0)="X","X",""),"") ->  | AK78: =IFERROR(IF(VLOOKUP($C78,Rankings!$K:$CD,MATCH("Helyezettek",Rankings!$K$1:$CD$1,0),0)="X","X",""),"") ->  | AL78: =IFERROR(IF(VLOOKUP($C78,Team_results_accuracy!$E:$AN,MATCH("Helyezettek",Team_results_accuracy!$E$5:$AN$5,0),0)="X","X",""),"") ->  | AM78: =IFERROR(IF(VLOOKUP($C78,Rankings!$O:$CD,MATCH("Helyezettek",Rankings!$O$1:$CD$1,0),0)="X","X",""),"") ->  | AN78: =IFERROR(IF(VLOOKUP($C78,Rankings!$S:$CD,MATCH("Helyezettek",Rankings!$S$1:$CD$1,0),0)="X","X",""),"") ->  | AO78: =IFERROR(IF(VLOOKUP($C78,Rankings!$W:$CD,MATCH("Helyezettek",Rankings!$W$1:$CD$1,0),0)="X","X",""),"") ->  | AP78: =IFERROR(IF(VLOOKUP($C78,Team_results_triathlon!$E:$BL,MATCH("Helyezettek",Team_results_triathlon!$E$6:$BL$6,0),0)="X","X",""),"") -> 
B79: 71 | P79: =+IF(OR(ISBLANK($C79),$C79=""),"",IF(OR(ISBLANK($Q79),$Q79="",$Q79=0),Paraméterek!$C$4,Paraméterek!$C$3)) ->  | T79: =+IF(ISBLANK($C79),"",IF(IF(ISERROR(YEAR(TODAY())-YEAR(S79)),100,(YEAR(TODAY())-YEAR(S79)))<Competition!$D$26+1,Paraméterek!$C$3,Paraméterek!$C$4)) ->  | AC79: - | AI79: =IFERROR(IF(VLOOKUP($C79,Rankings!$C:$CD,MATCH("Helyezettek",Rankings!$C$1:$CD$1,0),0)="X","X",""),"") ->  | AJ79: =IFERROR(IF(VLOOKUP($C79,Rankings!$G:$CD,MATCH("Helyezettek",Rankings!$G$1:$CD$1,0),0)="X","X",""),"") ->  | AK79: =IFERROR(IF(VLOOKUP($C79,Rankings!$K:$CD,MATCH("Helyezettek",Rankings!$K$1:$CD$1,0),0)="X","X",""),"") ->  | AL79: =IFERROR(IF(VLOOKUP($C79,Team_results_accuracy!$E:$AN,MATCH("Helyezettek",Team_results_accuracy!$E$5:$AN$5,0),0)="X","X",""),"") ->  | AM79: =IFERROR(IF(VLOOKUP($C79,Rankings!$O:$CD,MATCH("Helyezettek",Rankings!$O$1:$CD$1,0),0)="X","X",""),"") ->  | AN79: =IFERROR(IF(VLOOKUP($C79,Rankings!$S:$CD,MATCH("Helyezettek",Rankings!$S$1:$CD$1,0),0)="X","X",""),"") ->  | AO79: =IFERROR(IF(VLOOKUP($C79,Rankings!$W:$CD,MATCH("Helyezettek",Rankings!$W$1:$CD$1,0),0)="X","X",""),"") ->  | AP79: =IFERROR(IF(VLOOKUP($C79,Team_results_triathlon!$E:$BL,MATCH("Helyezettek",Team_results_triathlon!$E$6:$BL$6,0),0)="X","X",""),"") -> 
B80: 72 | P80: =+IF(OR(ISBLANK($C80),$C80=""),"",IF(OR(ISBLANK($Q80),$Q80="",$Q80=0),Paraméterek!$C$4,Paraméterek!$C$3)) ->  | T80: =+IF(ISBLANK($C80),"",IF(IF(ISERROR(YEAR(TODAY())-YEAR(S80)),100,(YEAR(TODAY())-YEAR(S80)))<Competition!$D$26+1,Paraméterek!$C$3,Paraméterek!$C$4)) ->  | AC80: - | AI80: =IFERROR(IF(VLOOKUP($C80,Rankings!$C:$CD,MATCH("Helyezettek",Rankings!$C$1:$CD$1,0),0)="X","X",""),"") ->  | AJ80: =IFERROR(IF(VLOOKUP($C80,Rankings!$G:$CD,MATCH("Helyezettek",Rankings!$G$1:$CD$1,0),0)="X","X",""),"") ->  | AK80: =IFERROR(IF(VLOOKUP($C80,Rankings!$K:$CD,MATCH("Helyezettek",Rankings!$K$1:$CD$1,0),0)="X","X",""),"") ->  | AL80: =IFERROR(IF(VLOOKUP($C80,Team_results_accuracy!$E:$AN,MATCH("Helyezettek",Team_results_accuracy!$E$5:$AN$5,0),0)="X","X",""),"") ->  | AM80: =IFERROR(IF(VLOOKUP($C80,Rankings!$O:$CD,MATCH("Helyezettek",Rankings!$O$1:$CD$1,0),0)="X","X",""),"") ->  | AN80: =IFERROR(IF(VLOOKUP($C80,Rankings!$S:$CD,MATCH("Helyezettek",Rankings!$S$1:$CD$1,0),0)="X","X",""),"") ->  | AO80: =IFERROR(IF(VLOOKUP($C80,Rankings!$W:$CD,MATCH("Helyezettek",Rankings!$W$1:$CD$1,0),0)="X","X",""),"") ->  | AP80: =IFERROR(IF(VLOOKUP($C80,Team_results_triathlon!$E:$BL,MATCH("Helyezettek",Team_results_triathlon!$E$6:$BL$6,0),0)="X","X",""),"") -> 
B81: 73 | P81: =+IF(OR(ISBLANK($C81),$C81=""),"",IF(OR(ISBLANK($Q81),$Q81="",$Q81=0),Paraméterek!$C$4,Paraméterek!$C$3)) ->  | T81: =+IF(ISBLANK($C81),"",IF(IF(ISERROR(YEAR(TODAY())-YEAR(S81)),100,(YEAR(TODAY())-YEAR(S81)))<Competition!$D$26+1,Paraméterek!$C$3,Paraméterek!$C$4)) ->  | AC81: - | AI81: =IFERROR(IF(VLOOKUP($C81,Rankings!$C:$CD,MATCH("Helyezettek",Rankings!$C$1:$CD$1,0),0)="X","X",""),"") ->  | AJ81: =IFERROR(IF(VLOOKUP($C81,Rankings!$G:$CD,MATCH("Helyezettek",Rankings!$G$1:$CD$1,0),0)="X","X",""),"") ->  | AK81: =IFERROR(IF(VLOOKUP($C81,Rankings!$K:$CD,MATCH("Helyezettek",Rankings!$K$1:$CD$1,0),0)="X","X",""),"") ->  | AL81: =IFERROR(IF(VLOOKUP($C81,Team_results_accuracy!$E:$AN,MATCH("Helyezettek",Team_results_accuracy!$E$5:$AN$5,0),0)="X","X",""),"") ->  | AM81: =IFERROR(IF(VLOOKUP($C81,Rankings!$O:$CD,MATCH("Helyezettek",Rankings!$O$1:$CD$1,0),0)="X","X",""),"") ->  | AN81: =IFERROR(IF(VLOOKUP($C81,Rankings!$S:$CD,MATCH("Helyezettek",Rankings!$S$1:$CD$1,0),0)="X","X",""),"") ->  | AO81: =IFERROR(IF(VLOOKUP($C81,Rankings!$W:$CD,MATCH("Helyezettek",Rankings!$W$1:$CD$1,0),0)="X","X",""),"") ->  | AP81: =IFERROR(IF(VLOOKUP($C81,Team_results_triathlon!$E:$BL,MATCH("Helyezettek",Team_results_triathlon!$E$6:$BL$6,0),0)="X","X",""),"") -> 
B82: 74 | P82: =+IF(OR(ISBLANK($C82),$C82=""),"",IF(OR(ISBLANK($Q82),$Q82="",$Q82=0),Paraméterek!$C$4,Paraméterek!$C$3)) ->  | T82: =+IF(ISBLANK($C82),"",IF(IF(ISERROR(YEAR(TODAY())-YEAR(S82)),100,(YEAR(TODAY())-YEAR(S82)))<Competition!$D$26+1,Paraméterek!$C$3,Paraméterek!$C$4)) ->  | AC82: - | AI82: =IFERROR(IF(VLOOKUP($C82,Rankings!$C:$CD,MATCH("Helyezettek",Rankings!$C$1:$CD$1,0),0)="X","X",""),"") ->  | AJ82: =IFERROR(IF(VLOOKUP($C82,Rankings!$G:$CD,MATCH("Helyezettek",Rankings!$G$1:$CD$1,0),0)="X","X",""),"") ->  | AK82: =IFERROR(IF(VLOOKUP($C82,Rankings!$K:$CD,MATCH("Helyezettek",Rankings!$K$1:$CD$1,0),0)="X","X",""),"") ->  | AL82: =IFERROR(IF(VLOOKUP($C82,Team_results_accuracy!$E:$AN,MATCH("Helyezettek",Team_results_accuracy!$E$5:$AN$5,0),0)="X","X",""),"") ->  | AM82: =IFERROR(IF(VLOOKUP($C82,Rankings!$O:$CD,MATCH("Helyezettek",Rankings!$O$1:$CD$1,0),0)="X","X",""),"") ->  | AN82: =IFERROR(IF(VLOOKUP($C82,Rankings!$S:$CD,MATCH("Helyezettek",Rankings!$S$1:$CD$1,0),0)="X","X",""),"") ->  | AO82: =IFERROR(IF(VLOOKUP($C82,Rankings!$W:$CD,MATCH("Helyezettek",Rankings!$W$1:$CD$1,0),0)="X","X",""),"") ->  | AP82: =IFERROR(IF(VLOOKUP($C82,Team_results_triathlon!$E:$BL,MATCH("Helyezettek",Team_results_triathlon!$E$6:$BL$6,0),0)="X","X",""),"") -> 
B83: 75 | P83: =+IF(OR(ISBLANK($C83),$C83=""),"",IF(OR(ISBLANK($Q83),$Q83="",$Q83=0),Paraméterek!$C$4,Paraméterek!$C$3)) ->  | T83: =+IF(ISBLANK($C83),"",IF(IF(ISERROR(YEAR(TODAY())-YEAR(S83)),100,(YEAR(TODAY())-YEAR(S83)))<Competition!$D$26+1,Paraméterek!$C$3,Paraméterek!$C$4)) ->  | AC83: - | AI83: =IFERROR(IF(VLOOKUP($C83,Rankings!$C:$CD,MATCH("Helyezettek",Rankings!$C$1:$CD$1,0),0)="X","X",""),"") ->  | AJ83: =IFERROR(IF(VLOOKUP($C83,Rankings!$G:$CD,MATCH("Helyezettek",Rankings!$G$1:$CD$1,0),0)="X","X",""),"") ->  | AK83: =IFERROR(IF(VLOOKUP($C83,Rankings!$K:$CD,MATCH("Helyezettek",Rankings!$K$1:$CD$1,0),0)="X","X",""),"") ->  | AL83: =IFERROR(IF(VLOOKUP($C83,Team_results_accuracy!$E:$AN,MATCH("Helyezettek",Team_results_accuracy!$E$5:$AN$5,0),0)="X","X",""),"") ->  | AM83: =IFERROR(IF(VLOOKUP($C83,Rankings!$O:$CD,MATCH("Helyezettek",Rankings!$O$1:$CD$1,0),0)="X","X",""),"") ->  | AN83: =IFERROR(IF(VLOOKUP($C83,Rankings!$S:$CD,MATCH("Helyezettek",Rankings!$S$1:$CD$1,0),0)="X","X",""),"") ->  | AO83: =IFERROR(IF(VLOOKUP($C83,Rankings!$W:$CD,MATCH("Helyezettek",Rankings!$W$1:$CD$1,0),0)="X","X",""),"") ->  | AP83: =IFERROR(IF(VLOOKUP($C83,Team_results_triathlon!$E:$BL,MATCH("Helyezettek",Team_results_triathlon!$E$6:$BL$6,0),0)="X","X",""),"") -> 
B84: 76 | P84: =+IF(OR(ISBLANK($C84),$C84=""),"",IF(OR(ISBLANK($Q84),$Q84="",$Q84=0),Paraméterek!$C$4,Paraméterek!$C$3)) ->  | T84: =+IF(ISBLANK($C84),"",IF(IF(ISERROR(YEAR(TODAY())-YEAR(S84)),100,(YEAR(TODAY())-YEAR(S84)))<Competition!$D$26+1,Paraméterek!$C$3,Paraméterek!$C$4)) ->  | AC84: - | AI84: =IFERROR(IF(VLOOKUP($C84,Rankings!$C:$CD,MATCH("Helyezettek",Rankings!$C$1:$CD$1,0),0)="X","X",""),"") ->  | AJ84: =IFERROR(IF(VLOOKUP($C84,Rankings!$G:$CD,MATCH("Helyezettek",Rankings!$G$1:$CD$1,0),0)="X","X",""),"") ->  | AK84: =IFERROR(IF(VLOOKUP($C84,Rankings!$K:$CD,MATCH("Helyezettek",Rankings!$K$1:$CD$1,0),0)="X","X",""),"") ->  | AL84: =IFERROR(IF(VLOOKUP($C84,Team_results_accuracy!$E:$AN,MATCH("Helyezettek",Team_results_accuracy!$E$5:$AN$5,0),0)="X","X",""),"") ->  | AM84: =IFERROR(IF(VLOOKUP($C84,Rankings!$O:$CD,MATCH("Helyezettek",Rankings!$O$1:$CD$1,0),0)="X","X",""),"") ->  | AN84: =IFERROR(IF(VLOOKUP($C84,Rankings!$S:$CD,MATCH("Helyezettek",Rankings!$S$1:$CD$1,0),0)="X","X",""),"") ->  | AO84: =IFERROR(IF(VLOOKUP($C84,Rankings!$W:$CD,MATCH("Helyezettek",Rankings!$W$1:$CD$1,0),0)="X","X",""),"") ->  | AP84: =IFERROR(IF(VLOOKUP($C84,Team_results_triathlon!$E:$BL,MATCH("Helyezettek",Team_results_triathlon!$E$6:$BL$6,0),0)="X","X",""),"") -> 
B85: 77 | P85: =+IF(OR(ISBLANK($C85),$C85=""),"",IF(OR(ISBLANK($Q85),$Q85="",$Q85=0),Paraméterek!$C$4,Paraméterek!$C$3)) ->  | T85: =+IF(ISBLANK($C85),"",IF(IF(ISERROR(YEAR(TODAY())-YEAR(S85)),100,(YEAR(TODAY())-YEAR(S85)))<Competition!$D$26+1,Paraméterek!$C$3,Paraméterek!$C$4)) ->  | AC85: - | AI85: =IFERROR(IF(VLOOKUP($C85,Rankings!$C:$CD,MATCH("Helyezettek",Rankings!$C$1:$CD$1,0),0)="X","X",""),"") ->  | AJ85: =IFERROR(IF(VLOOKUP($C85,Rankings!$G:$CD,MATCH("Helyezettek",Rankings!$G$1:$CD$1,0),0)="X","X",""),"") ->  | AK85: =IFERROR(IF(VLOOKUP($C85,Rankings!$K:$CD,MATCH("Helyezettek",Rankings!$K$1:$CD$1,0),0)="X","X",""),"") ->  | AL85: =IFERROR(IF(VLOOKUP($C85,Team_results_accuracy!$E:$AN,MATCH("Helyezettek",Team_results_accuracy!$E$5:$AN$5,0),0)="X","X",""),"") ->  | AM85: =IFERROR(IF(VLOOKUP($C85,Rankings!$O:$CD,MATCH("Helyezettek",Rankings!$O$1:$CD$1,0),0)="X","X",""),"") ->  | AN85: =IFERROR(IF(VLOOKUP($C85,Rankings!$S:$CD,MATCH("Helyezettek",Rankings!$S$1:$CD$1,0),0)="X","X",""),"") ->  | AO85: =IFERROR(IF(VLOOKUP($C85,Rankings!$W:$CD,MATCH("Helyezettek",Rankings!$W$1:$CD$1,0),0)="X","X",""),"") ->  | AP85: =IFERROR(IF(VLOOKUP($C85,Team_results_triathlon!$E:$BL,MATCH("Helyezettek",Team_results_triathlon!$E$6:$BL$6,0),0)="X","X",""),"") -> 
B86: 78 | P86: =+IF(OR(ISBLANK($C86),$C86=""),"",IF(OR(ISBLANK($Q86),$Q86="",$Q86=0),Paraméterek!$C$4,Paraméterek!$C$3)) ->  | T86: =+IF(ISBLANK($C86),"",IF(IF(ISERROR(YEAR(TODAY())-YEAR(S86)),100,(YEAR(TODAY())-YEAR(S86)))<Competition!$D$26+1,Paraméterek!$C$3,Paraméterek!$C$4)) ->  | AC86: - | AI86: =IFERROR(IF(VLOOKUP($C86,Rankings!$C:$CD,MATCH("Helyezettek",Rankings!$C$1:$CD$1,0),0)="X","X",""),"") ->  | AJ86: =IFERROR(IF(VLOOKUP($C86,Rankings!$G:$CD,MATCH("Helyezettek",Rankings!$G$1:$CD$1,0),0)="X","X",""),"") ->  | AK86: =IFERROR(IF(VLOOKUP($C86,Rankings!$K:$CD,MATCH("Helyezettek",Rankings!$K$1:$CD$1,0),0)="X","X",""),"") ->  | AL86: =IFERROR(IF(VLOOKUP($C86,Team_results_accuracy!$E:$AN,MATCH("Helyezettek",Team_results_accuracy!$E$5:$AN$5,0),0)="X","X",""),"") ->  | AM86: =IFERROR(IF(VLOOKUP($C86,Rankings!$O:$CD,MATCH("Helyezettek",Rankings!$O$1:$CD$1,0),0)="X","X",""),"") ->  | AN86: =IFERROR(IF(VLOOKUP($C86,Rankings!$S:$CD,MATCH("Helyezettek",Rankings!$S$1:$CD$1,0),0)="X","X",""),"") ->  | AO86: =IFERROR(IF(VLOOKUP($C86,Rankings!$W:$CD,MATCH("Helyezettek",Rankings!$W$1:$CD$1,0),0)="X","X",""),"") ->  | AP86: =IFERROR(IF(VLOOKUP($C86,Team_results_triathlon!$E:$BL,MATCH("Helyezettek",Team_results_triathlon!$E$6:$BL$6,0),0)="X","X",""),"") -> 
B87: 79 | P87: =+IF(OR(ISBLANK($C87),$C87=""),"",IF(OR(ISBLANK($Q87),$Q87="",$Q87=0),Paraméterek!$C$4,Paraméterek!$C$3)) ->  | T87: =+IF(ISBLANK($C87),"",IF(IF(ISERROR(YEAR(TODAY())-YEAR(S87)),100,(YEAR(TODAY())-YEAR(S87)))<Competition!$D$26+1,Paraméterek!$C$3,Paraméterek!$C$4)) ->  | AC87: - | AI87: =IFERROR(IF(VLOOKUP($C87,Rankings!$C:$CD,MATCH("Helyezettek",Rankings!$C$1:$CD$1,0),0)="X","X",""),"") ->  | AJ87: =IFERROR(IF(VLOOKUP($C87,Rankings!$G:$CD,MATCH("Helyezettek",Rankings!$G$1:$CD$1,0),0)="X","X",""),"") ->  | AK87: =IFERROR(IF(VLOOKUP($C87,Rankings!$K:$CD,MATCH("Helyezettek",Rankings!$K$1:$CD$1,0),0)="X","X",""),"") ->  | AL87: =IFERROR(IF(VLOOKUP($C87,Team_results_accuracy!$E:$AN,MATCH("Helyezettek",Team_results_accuracy!$E$5:$AN$5,0),0)="X","X",""),"") ->  | AM87: =IFERROR(IF(VLOOKUP($C87,Rankings!$O:$CD,MATCH("Helyezettek",Rankings!$O$1:$CD$1,0),0)="X","X",""),"") ->  | AN87: =IFERROR(IF(VLOOKUP($C87,Rankings!$S:$CD,MATCH("Helyezettek",Rankings!$S$1:$CD$1,0),0)="X","X",""),"") ->  | AO87: =IFERROR(IF(VLOOKUP($C87,Rankings!$W:$CD,MATCH("Helyezettek",Rankings!$W$1:$CD$1,0),0)="X","X",""),"") ->  | AP87: =IFERROR(IF(VLOOKUP($C87,Team_results_triathlon!$E:$BL,MATCH("Helyezettek",Team_results_triathlon!$E$6:$BL$6,0),0)="X","X",""),"") -> 
B88: 80 | P88: =+IF(OR(ISBLANK($C88),$C88=""),"",IF(OR(ISBLANK($Q88),$Q88="",$Q88=0),Paraméterek!$C$4,Paraméterek!$C$3)) ->  | T88: =+IF(ISBLANK($C88),"",IF(IF(ISERROR(YEAR(TODAY())-YEAR(S88)),100,(YEAR(TODAY())-YEAR(S88)))<Competition!$D$26+1,Paraméterek!$C$3,Paraméterek!$C$4)) ->  | AC88: - | AI88: =IFERROR(IF(VLOOKUP($C88,Rankings!$C:$CD,MATCH("Helyezettek",Rankings!$C$1:$CD$1,0),0)="X","X",""),"") ->  | AJ88: =IFERROR(IF(VLOOKUP($C88,Rankings!$G:$CD,MATCH("Helyezettek",Rankings!$G$1:$CD$1,0),0)="X","X",""),"") ->  | AK88: =IFERROR(IF(VLOOKUP($C88,Rankings!$K:$CD,MATCH("Helyezettek",Rankings!$K$1:$CD$1,0),0)="X","X",""),"") ->  | AL88: =IFERROR(IF(VLOOKUP($C88,Team_results_accuracy!$E:$AN,MATCH("Helyezettek",Team_results_accuracy!$E$5:$AN$5,0),0)="X","X",""),"") ->  | AM88: =IFERROR(IF(VLOOKUP($C88,Rankings!$O:$CD,MATCH("Helyezettek",Rankings!$O$1:$CD$1,0),0)="X","X",""),"") ->  | AN88: =IFERROR(IF(VLOOKUP($C88,Rankings!$S:$CD,MATCH("Helyezettek",Rankings!$S$1:$CD$1,0),0)="X","X",""),"") ->  | AO88: =IFERROR(IF(VLOOKUP($C88,Rankings!$W:$CD,MATCH("Helyezettek",Rankings!$W$1:$CD$1,0),0)="X","X",""),"") ->  | AP88: =IFERROR(IF(VLOOKUP($C88,Team_results_triathlon!$E:$BL,MATCH("Helyezettek",Team_results_triathlon!$E$6:$BL$6,0),0)="X","X",""),"") -> 
B89: 81 | P89: =+IF(OR(ISBLANK($C89),$C89=""),"",IF(OR(ISBLANK($Q89),$Q89="",$Q89=0),Paraméterek!$C$4,Paraméterek!$C$3)) ->  | T89: =+IF(ISBLANK($C89),"",IF(IF(ISERROR(YEAR(TODAY())-YEAR(S89)),100,(YEAR(TODAY())-YEAR(S89)))<Competition!$D$26+1,Paraméterek!$C$3,Paraméterek!$C$4)) ->  | AC89: - | AI89: =IFERROR(IF(VLOOKUP($C89,Rankings!$C:$CD,MATCH("Helyezettek",Rankings!$C$1:$CD$1,0),0)="X","X",""),"") ->  | AJ89: =IFERROR(IF(VLOOKUP($C89,Rankings!$G:$CD,MATCH("Helyezettek",Rankings!$G$1:$CD$1,0),0)="X","X",""),"") ->  | AK89: =IFERROR(IF(VLOOKUP($C89,Rankings!$K:$CD,MATCH("Helyezettek",Rankings!$K$1:$CD$1,0),0)="X","X",""),"") ->  | AL89: =IFERROR(IF(VLOOKUP($C89,Team_results_accuracy!$E:$AN,MATCH("Helyezettek",Team_results_accuracy!$E$5:$AN$5,0),0)="X","X",""),"") ->  | AM89: =IFERROR(IF(VLOOKUP($C89,Rankings!$O:$CD,MATCH("Helyezettek",Rankings!$O$1:$CD$1,0),0)="X","X",""),"") ->  | AN89: =IFERROR(IF(VLOOKUP($C89,Rankings!$S:$CD,MATCH("Helyezettek",Rankings!$S$1:$CD$1,0),0)="X","X",""),"") ->  | AO89: =IFERROR(IF(VLOOKUP($C89,Rankings!$W:$CD,MATCH("Helyezettek",Rankings!$W$1:$CD$1,0),0)="X","X",""),"") ->  | AP89: =IFERROR(IF(VLOOKUP($C89,Team_results_triathlon!$E:$BL,MATCH("Helyezettek",Team_results_triathlon!$E$6:$BL$6,0),0)="X","X",""),"") -> 
B90: 82 | P90: =+IF(OR(ISBLANK($C90),$C90=""),"",IF(OR(ISBLANK($Q90),$Q90="",$Q90=0),Paraméterek!$C$4,Paraméterek!$C$3)) ->  | T90: =+IF(ISBLANK($C90),"",IF(IF(ISERROR(YEAR(TODAY())-YEAR(S90)),100,(YEAR(TODAY())-YEAR(S90)))<Competition!$D$26+1,Paraméterek!$C$3,Paraméterek!$C$4)) ->  | AC90: - | AI90: =IFERROR(IF(VLOOKUP($C90,Rankings!$C:$CD,MATCH("Helyezettek",Rankings!$C$1:$CD$1,0),0)="X","X",""),"") ->  | AJ90: =IFERROR(IF(VLOOKUP($C90,Rankings!$G:$CD,MATCH("Helyezettek",Rankings!$G$1:$CD$1,0),0)="X","X",""),"") ->  | AK90: =IFERROR(IF(VLOOKUP($C90,Rankings!$K:$CD,MATCH("Helyezettek",Rankings!$K$1:$CD$1,0),0)="X","X",""),"") ->  | AL90: =IFERROR(IF(VLOOKUP($C90,Team_results_accuracy!$E:$AN,MATCH("Helyezettek",Team_results_accuracy!$E$5:$AN$5,0),0)="X","X",""),"") ->  | AM90: =IFERROR(IF(VLOOKUP($C90,Rankings!$O:$CD,MATCH("Helyezettek",Rankings!$O$1:$CD$1,0),0)="X","X",""),"") ->  | AN90: =IFERROR(IF(VLOOKUP($C90,Rankings!$S:$CD,MATCH("Helyezettek",Rankings!$S$1:$CD$1,0),0)="X","X",""),"") ->  | AO90: =IFERROR(IF(VLOOKUP($C90,Rankings!$W:$CD,MATCH("Helyezettek",Rankings!$W$1:$CD$1,0),0)="X","X",""),"") ->  | AP90: =IFERROR(IF(VLOOKUP($C90,Team_results_triathlon!$E:$BL,MATCH("Helyezettek",Team_results_triathlon!$E$6:$BL$6,0),0)="X","X",""),"") -> 
B91: 83 | P91: =+IF(OR(ISBLANK($C91),$C91=""),"",IF(OR(ISBLANK($Q91),$Q91="",$Q91=0),Paraméterek!$C$4,Paraméterek!$C$3)) ->  | T91: =+IF(ISBLANK($C91),"",IF(IF(ISERROR(YEAR(TODAY())-YEAR(S91)),100,(YEAR(TODAY())-YEAR(S91)))<Competition!$D$26+1,Paraméterek!$C$3,Paraméterek!$C$4)) ->  | AC91: - | AI91: =IFERROR(IF(VLOOKUP($C91,Rankings!$C:$CD,MATCH("Helyezettek",Rankings!$C$1:$CD$1,0),0)="X","X",""),"") ->  | AJ91: =IFERROR(IF(VLOOKUP($C91,Rankings!$G:$CD,MATCH("Helyezettek",Rankings!$G$1:$CD$1,0),0)="X","X",""),"") ->  | AK91: =IFERROR(IF(VLOOKUP($C91,Rankings!$K:$CD,MATCH("Helyezettek",Rankings!$K$1:$CD$1,0),0)="X","X",""),"") ->  | AL91: =IFERROR(IF(VLOOKUP($C91,Team_results_accuracy!$E:$AN,MATCH("Helyezettek",Team_results_accuracy!$E$5:$AN$5,0),0)="X","X",""),"") ->  | AM91: =IFERROR(IF(VLOOKUP($C91,Rankings!$O:$CD,MATCH("Helyezettek",Rankings!$O$1:$CD$1,0),0)="X","X",""),"") ->  | AN91: =IFERROR(IF(VLOOKUP($C91,Rankings!$S:$CD,MATCH("Helyezettek",Rankings!$S$1:$CD$1,0),0)="X","X",""),"") ->  | AO91: =IFERROR(IF(VLOOKUP($C91,Rankings!$W:$CD,MATCH("Helyezettek",Rankings!$W$1:$CD$1,0),0)="X","X",""),"") ->  | AP91: =IFERROR(IF(VLOOKUP($C91,Team_results_triathlon!$E:$BL,MATCH("Helyezettek",Team_results_triathlon!$E$6:$BL$6,0),0)="X","X",""),"") -> 
B92: 84 | P92: =+IF(OR(ISBLANK($C92),$C92=""),"",IF(OR(ISBLANK($Q92),$Q92="",$Q92=0),Paraméterek!$C$4,Paraméterek!$C$3)) ->  | T92: =+IF(ISBLANK($C92),"",IF(IF(ISERROR(YEAR(TODAY())-YEAR(S92)),100,(YEAR(TODAY())-YEAR(S92)))<Competition!$D$26+1,Paraméterek!$C$3,Paraméterek!$C$4)) ->  | AC92: - | AI92: =IFERROR(IF(VLOOKUP($C92,Rankings!$C:$CD,MATCH("Helyezettek",Rankings!$C$1:$CD$1,0),0)="X","X",""),"") ->  | AJ92: =IFERROR(IF(VLOOKUP($C92,Rankings!$G:$CD,MATCH("Helyezettek",Rankings!$G$1:$CD$1,0),0)="X","X",""),"") ->  | AK92: =IFERROR(IF(VLOOKUP($C92,Rankings!$K:$CD,MATCH("Helyezettek",Rankings!$K$1:$CD$1,0),0)="X","X",""),"") ->  | AL92: =IFERROR(IF(VLOOKUP($C92,Team_results_accuracy!$E:$AN,MATCH("Helyezettek",Team_results_accuracy!$E$5:$AN$5,0),0)="X","X",""),"") ->  | AM92: =IFERROR(IF(VLOOKUP($C92,Rankings!$O:$CD,MATCH("Helyezettek",Rankings!$O$1:$CD$1,0),0)="X","X",""),"") ->  | AN92: =IFERROR(IF(VLOOKUP($C92,Rankings!$S:$CD,MATCH("Helyezettek",Rankings!$S$1:$CD$1,0),0)="X","X",""),"") ->  | AO92: =IFERROR(IF(VLOOKUP($C92,Rankings!$W:$CD,MATCH("Helyezettek",Rankings!$W$1:$CD$1,0),0)="X","X",""),"") ->  | AP92: =IFERROR(IF(VLOOKUP($C92,Team_results_triathlon!$E:$BL,MATCH("Helyezettek",Team_results_triathlon!$E$6:$BL$6,0),0)="X","X",""),"") -> 
B93: 85 | P93: =+IF(OR(ISBLANK($C93),$C93=""),"",IF(OR(ISBLANK($Q93),$Q93="",$Q93=0),Paraméterek!$C$4,Paraméterek!$C$3)) ->  | T93: =+IF(ISBLANK($C93),"",IF(IF(ISERROR(YEAR(TODAY())-YEAR(S93)),100,(YEAR(TODAY())-YEAR(S93)))<Competition!$D$26+1,Paraméterek!$C$3,Paraméterek!$C$4)) ->  | AC93: - | AI93: =IFERROR(IF(VLOOKUP($C93,Rankings!$C:$CD,MATCH("Helyezettek",Rankings!$C$1:$CD$1,0),0)="X","X",""),"") ->  | AJ93: =IFERROR(IF(VLOOKUP($C93,Rankings!$G:$CD,MATCH("Helyezettek",Rankings!$G$1:$CD$1,0),0)="X","X",""),"") ->  | AK93: =IFERROR(IF(VLOOKUP($C93,Rankings!$K:$CD,MATCH("Helyezettek",Rankings!$K$1:$CD$1,0),0)="X","X",""),"") ->  | AL93: =IFERROR(IF(VLOOKUP($C93,Team_results_accuracy!$E:$AN,MATCH("Helyezettek",Team_results_accuracy!$E$5:$AN$5,0),0)="X","X",""),"") ->  | AM93: =IFERROR(IF(VLOOKUP($C93,Rankings!$O:$CD,MATCH("Helyezettek",Rankings!$O$1:$CD$1,0),0)="X","X",""),"") ->  | AN93: =IFERROR(IF(VLOOKUP($C93,Rankings!$S:$CD,MATCH("Helyezettek",Rankings!$S$1:$CD$1,0),0)="X","X",""),"") ->  | AO93: =IFERROR(IF(VLOOKUP($C93,Rankings!$W:$CD,MATCH("Helyezettek",Rankings!$W$1:$CD$1,0),0)="X","X",""),"") ->  | AP93: =IFERROR(IF(VLOOKUP($C93,Team_results_triathlon!$E:$BL,MATCH("Helyezettek",Team_results_triathlon!$E$6:$BL$6,0),0)="X","X",""),"") -> 
B94: 86 | P94: =+IF(OR(ISBLANK($C94),$C94=""),"",IF(OR(ISBLANK($Q94),$Q94="",$Q94=0),Paraméterek!$C$4,Paraméterek!$C$3)) ->  | T94: =+IF(ISBLANK($C94),"",IF(IF(ISERROR(YEAR(TODAY())-YEAR(S94)),100,(YEAR(TODAY())-YEAR(S94)))<Competition!$D$26+1,Paraméterek!$C$3,Paraméterek!$C$4)) ->  | AC94: - | AI94: =IFERROR(IF(VLOOKUP($C94,Rankings!$C:$CD,MATCH("Helyezettek",Rankings!$C$1:$CD$1,0),0)="X","X",""),"") ->  | AJ94: =IFERROR(IF(VLOOKUP($C94,Rankings!$G:$CD,MATCH("Helyezettek",Rankings!$G$1:$CD$1,0),0)="X","X",""),"") ->  | AK94: =IFERROR(IF(VLOOKUP($C94,Rankings!$K:$CD,MATCH("Helyezettek",Rankings!$K$1:$CD$1,0),0)="X","X",""),"") ->  | AL94: =IFERROR(IF(VLOOKUP($C94,Team_results_accuracy!$E:$AN,MATCH("Helyezettek",Team_results_accuracy!$E$5:$AN$5,0),0)="X","X",""),"") ->  | AM94: =IFERROR(IF(VLOOKUP($C94,Rankings!$O:$CD,MATCH("Helyezettek",Rankings!$O$1:$CD$1,0),0)="X","X",""),"") ->  | AN94: =IFERROR(IF(VLOOKUP($C94,Rankings!$S:$CD,MATCH("Helyezettek",Rankings!$S$1:$CD$1,0),0)="X","X",""),"") ->  | AO94: =IFERROR(IF(VLOOKUP($C94,Rankings!$W:$CD,MATCH("Helyezettek",Rankings!$W$1:$CD$1,0),0)="X","X",""),"") ->  | AP94: =IFERROR(IF(VLOOKUP($C94,Team_results_triathlon!$E:$BL,MATCH("Helyezettek",Team_results_triathlon!$E$6:$BL$6,0),0)="X","X",""),"") -> 
B95: 87 | P95: =+IF(OR(ISBLANK($C95),$C95=""),"",IF(OR(ISBLANK($Q95),$Q95="",$Q95=0),Paraméterek!$C$4,Paraméterek!$C$3)) ->  | T95: =+IF(ISBLANK($C95),"",IF(IF(ISERROR(YEAR(TODAY())-YEAR(S95)),100,(YEAR(TODAY())-YEAR(S95)))<Competition!$D$26+1,Paraméterek!$C$3,Paraméterek!$C$4)) ->  | AC95: - | AI95: =IFERROR(IF(VLOOKUP($C95,Rankings!$C:$CD,MATCH("Helyezettek",Rankings!$C$1:$CD$1,0),0)="X","X",""),"") ->  | AJ95: =IFERROR(IF(VLOOKUP($C95,Rankings!$G:$CD,MATCH("Helyezettek",Rankings!$G$1:$CD$1,0),0)="X","X",""),"") ->  | AK95: =IFERROR(IF(VLOOKUP($C95,Rankings!$K:$CD,MATCH("Helyezettek",Rankings!$K$1:$CD$1,0),0)="X","X",""),"") ->  | AL95: =IFERROR(IF(VLOOKUP($C95,Team_results_accuracy!$E:$AN,MATCH("Helyezettek",Team_results_accuracy!$E$5:$AN$5,0),0)="X","X",""),"") ->  | AM95: =IFERROR(IF(VLOOKUP($C95,Rankings!$O:$CD,MATCH("Helyezettek",Rankings!$O$1:$CD$1,0),0)="X","X",""),"") ->  | AN95: =IFERROR(IF(VLOOKUP($C95,Rankings!$S:$CD,MATCH("Helyezettek",Rankings!$S$1:$CD$1,0),0)="X","X",""),"") ->  | AO95: =IFERROR(IF(VLOOKUP($C95,Rankings!$W:$CD,MATCH("Helyezettek",Rankings!$W$1:$CD$1,0),0)="X","X",""),"") ->  | AP95: =IFERROR(IF(VLOOKUP($C95,Team_results_triathlon!$E:$BL,MATCH("Helyezettek",Team_results_triathlon!$E$6:$BL$6,0),0)="X","X",""),"") -> 
B96: 88 | P96: =+IF(OR(ISBLANK($C96),$C96=""),"",IF(OR(ISBLANK($Q96),$Q96="",$Q96=0),Paraméterek!$C$4,Paraméterek!$C$3)) ->  | T96: =+IF(ISBLANK($C96),"",IF(IF(ISERROR(YEAR(TODAY())-YEAR(S96)),100,(YEAR(TODAY())-YEAR(S96)))<Competition!$D$26+1,Paraméterek!$C$3,Paraméterek!$C$4)) ->  | AC96: - | AI96: =IFERROR(IF(VLOOKUP($C96,Rankings!$C:$CD,MATCH("Helyezettek",Rankings!$C$1:$CD$1,0),0)="X","X",""),"") ->  | AJ96: =IFERROR(IF(VLOOKUP($C96,Rankings!$G:$CD,MATCH("Helyezettek",Rankings!$G$1:$CD$1,0),0)="X","X",""),"") ->  | AK96: =IFERROR(IF(VLOOKUP($C96,Rankings!$K:$CD,MATCH("Helyezettek",Rankings!$K$1:$CD$1,0),0)="X","X",""),"") ->  | AL96: =IFERROR(IF(VLOOKUP($C96,Team_results_accuracy!$E:$AN,MATCH("Helyezettek",Team_results_accuracy!$E$5:$AN$5,0),0)="X","X",""),"") ->  | AM96: =IFERROR(IF(VLOOKUP($C96,Rankings!$O:$CD,MATCH("Helyezettek",Rankings!$O$1:$CD$1,0),0)="X","X",""),"") ->  | AN96: =IFERROR(IF(VLOOKUP($C96,Rankings!$S:$CD,MATCH("Helyezettek",Rankings!$S$1:$CD$1,0),0)="X","X",""),"") ->  | AO96: =IFERROR(IF(VLOOKUP($C96,Rankings!$W:$CD,MATCH("Helyezettek",Rankings!$W$1:$CD$1,0),0)="X","X",""),"") ->  | AP96: =IFERROR(IF(VLOOKUP($C96,Team_results_triathlon!$E:$BL,MATCH("Helyezettek",Team_results_triathlon!$E$6:$BL$6,0),0)="X","X",""),"") -> 
B97: 89 | P97: =+IF(OR(ISBLANK($C97),$C97=""),"",IF(OR(ISBLANK($Q97),$Q97="",$Q97=0),Paraméterek!$C$4,Paraméterek!$C$3)) ->  | T97: =+IF(ISBLANK($C97),"",IF(IF(ISERROR(YEAR(TODAY())-YEAR(S97)),100,(YEAR(TODAY())-YEAR(S97)))<Competition!$D$26+1,Paraméterek!$C$3,Paraméterek!$C$4)) ->  | AC97: - | AI97: =IFERROR(IF(VLOOKUP($C97,Rankings!$C:$CD,MATCH("Helyezettek",Rankings!$C$1:$CD$1,0),0)="X","X",""),"") ->  | AJ97: =IFERROR(IF(VLOOKUP($C97,Rankings!$G:$CD,MATCH("Helyezettek",Rankings!$G$1:$CD$1,0),0)="X","X",""),"") ->  | AK97: =IFERROR(IF(VLOOKUP($C97,Rankings!$K:$CD,MATCH("Helyezettek",Rankings!$K$1:$CD$1,0),0)="X","X",""),"") ->  | AL97: =IFERROR(IF(VLOOKUP($C97,Team_results_accuracy!$E:$AN,MATCH("Helyezettek",Team_results_accuracy!$E$5:$AN$5,0),0)="X","X",""),"") ->  | AM97: =IFERROR(IF(VLOOKUP($C97,Rankings!$O:$CD,MATCH("Helyezettek",Rankings!$O$1:$CD$1,0),0)="X","X",""),"") ->  | AN97: =IFERROR(IF(VLOOKUP($C97,Rankings!$S:$CD,MATCH("Helyezettek",Rankings!$S$1:$CD$1,0),0)="X","X",""),"") ->  | AO97: =IFERROR(IF(VLOOKUP($C97,Rankings!$W:$CD,MATCH("Helyezettek",Rankings!$W$1:$CD$1,0),0)="X","X",""),"") ->  | AP97: =IFERROR(IF(VLOOKUP($C97,Team_results_triathlon!$E:$BL,MATCH("Helyezettek",Team_results_triathlon!$E$6:$BL$6,0),0)="X","X",""),"") -> 
B98: 90 | P98: =+IF(OR(ISBLANK($C98),$C98=""),"",IF(OR(ISBLANK($Q98),$Q98="",$Q98=0),Paraméterek!$C$4,Paraméterek!$C$3)) ->  | T98: =+IF(ISBLANK($C98),"",IF(IF(ISERROR(YEAR(TODAY())-YEAR(S98)),100,(YEAR(TODAY())-YEAR(S98)))<Competition!$D$26+1,Paraméterek!$C$3,Paraméterek!$C$4)) ->  | AC98: - | AI98: =IFERROR(IF(VLOOKUP($C98,Rankings!$C:$CD,MATCH("Helyezettek",Rankings!$C$1:$CD$1,0),0)="X","X",""),"") ->  | AJ98: =IFERROR(IF(VLOOKUP($C98,Rankings!$G:$CD,MATCH("Helyezettek",Rankings!$G$1:$CD$1,0),0)="X","X",""),"") ->  | AK98: =IFERROR(IF(VLOOKUP($C98,Rankings!$K:$CD,MATCH("Helyezettek",Rankings!$K$1:$CD$1,0),0)="X","X",""),"") ->  | AL98: =IFERROR(IF(VLOOKUP($C98,Team_results_accuracy!$E:$AN,MATCH("Helyezettek",Team_results_accuracy!$E$5:$AN$5,0),0)="X","X",""),"") ->  | AM98: =IFERROR(IF(VLOOKUP($C98,Rankings!$O:$CD,MATCH("Helyezettek",Rankings!$O$1:$CD$1,0),0)="X","X",""),"") ->  | AN98: =IFERROR(IF(VLOOKUP($C98,Rankings!$S:$CD,MATCH("Helyezettek",Rankings!$S$1:$CD$1,0),0)="X","X",""),"") ->  | AO98: =IFERROR(IF(VLOOKUP($C98,Rankings!$W:$CD,MATCH("Helyezettek",Rankings!$W$1:$CD$1,0),0)="X","X",""),"") ->  | AP98: =IFERROR(IF(VLOOKUP($C98,Team_results_triathlon!$E:$BL,MATCH("Helyezettek",Team_results_triathlon!$E$6:$BL$6,0),0)="X","X",""),"") -> 
B99: 91 | P99: =+IF(OR(ISBLANK($C99),$C99=""),"",IF(OR(ISBLANK($Q99),$Q99="",$Q99=0),Paraméterek!$C$4,Paraméterek!$C$3)) ->  | T99: =+IF(ISBLANK($C99),"",IF(IF(ISERROR(YEAR(TODAY())-YEAR(S99)),100,(YEAR(TODAY())-YEAR(S99)))<Competition!$D$26+1,Paraméterek!$C$3,Paraméterek!$C$4)) ->  | AC99: - | AI99: =IFERROR(IF(VLOOKUP($C99,Rankings!$C:$CD,MATCH("Helyezettek",Rankings!$C$1:$CD$1,0),0)="X","X",""),"") ->  | AJ99: =IFERROR(IF(VLOOKUP($C99,Rankings!$G:$CD,MATCH("Helyezettek",Rankings!$G$1:$CD$1,0),0)="X","X",""),"") ->  | AK99: =IFERROR(IF(VLOOKUP($C99,Rankings!$K:$CD,MATCH("Helyezettek",Rankings!$K$1:$CD$1,0),0)="X","X",""),"") ->  | AL99: =IFERROR(IF(VLOOKUP($C99,Team_results_accuracy!$E:$AN,MATCH("Helyezettek",Team_results_accuracy!$E$5:$AN$5,0),0)="X","X",""),"") ->  | AM99: =IFERROR(IF(VLOOKUP($C99,Rankings!$O:$CD,MATCH("Helyezettek",Rankings!$O$1:$CD$1,0),0)="X","X",""),"") ->  | AN99: =IFERROR(IF(VLOOKUP($C99,Rankings!$S:$CD,MATCH("Helyezettek",Rankings!$S$1:$CD$1,0),0)="X","X",""),"") ->  | AO99: =IFERROR(IF(VLOOKUP($C99,Rankings!$W:$CD,MATCH("Helyezettek",Rankings!$W$1:$CD$1,0),0)="X","X",""),"") ->  | AP99: =IFERROR(IF(VLOOKUP($C99,Team_results_triathlon!$E:$BL,MATCH("Helyezettek",Team_results_triathlon!$E$6:$BL$6,0),0)="X","X",""),"") -> 
B100: 92 | P100: =+IF(OR(ISBLANK($C100),$C100=""),"",IF(OR(ISBLANK($Q100),$Q100="",$Q100=0),Paraméterek!$C$4,Paraméterek!$C$3)) ->  | T100: =+IF(ISBLANK($C100),"",IF(IF(ISERROR(YEAR(TODAY())-YEAR(S100)),100,(YEAR(TODAY())-YEAR(S100)))<Competition!$D$26+1,Paraméterek!$C$3,Paraméterek!$C$4)) ->  | AC100: - | AI100: =IFERROR(IF(VLOOKUP($C100,Rankings!$C:$CD,MATCH("Helyezettek",Rankings!$C$1:$CD$1,0),0)="X","X",""),"") ->  | AJ100: =IFERROR(IF(VLOOKUP($C100,Rankings!$G:$CD,MATCH("Helyezettek",Rankings!$G$1:$CD$1,0),0)="X","X",""),"") ->  | AK100: =IFERROR(IF(VLOOKUP($C100,Rankings!$K:$CD,MATCH("Helyezettek",Rankings!$K$1:$CD$1,0),0)="X","X",""),"") ->  | AL100: =IFERROR(IF(VLOOKUP($C100,Team_results_accuracy!$E:$AN,MATCH("Helyezettek",Team_results_accuracy!$E$5:$AN$5,0),0)="X","X",""),"") ->  | AM100: =IFERROR(IF(VLOOKUP($C100,Rankings!$O:$CD,MATCH("Helyezettek",Rankings!$O$1:$CD$1,0),0)="X","X",""),"") ->  | AN100: =IFERROR(IF(VLOOKUP($C100,Rankings!$S:$CD,MATCH("Helyezettek",Rankings!$S$1:$CD$1,0),0)="X","X",""),"") ->  | AO100: =IFERROR(IF(VLOOKUP($C100,Rankings!$W:$CD,MATCH("Helyezettek",Rankings!$W$1:$CD$1,0),0)="X","X",""),"") ->  | AP100: =IFERROR(IF(VLOOKUP($C100,Team_results_triathlon!$E:$BL,MATCH("Helyezettek",Team_results_triathlon!$E$6:$BL$6,0),0)="X","X",""),"") -> 
B101: 93 | P101: =+IF(OR(ISBLANK($C101),$C101=""),"",IF(OR(ISBLANK($Q101),$Q101="",$Q101=0),Paraméterek!$C$4,Paraméterek!$C$3)) ->  | T101: =+IF(ISBLANK($C101),"",IF(IF(ISERROR(YEAR(TODAY())-YEAR(S101)),100,(YEAR(TODAY())-YEAR(S101)))<Competition!$D$26+1,Paraméterek!$C$3,Paraméterek!$C$4)) ->  | AC101: - | AI101: =IFERROR(IF(VLOOKUP($C101,Rankings!$C:$CD,MATCH("Helyezettek",Rankings!$C$1:$CD$1,0),0)="X","X",""),"") ->  | AJ101: =IFERROR(IF(VLOOKUP($C101,Rankings!$G:$CD,MATCH("Helyezettek",Rankings!$G$1:$CD$1,0),0)="X","X",""),"") ->  | AK101: =IFERROR(IF(VLOOKUP($C101,Rankings!$K:$CD,MATCH("Helyezettek",Rankings!$K$1:$CD$1,0),0)="X","X",""),"") ->  | AL101: =IFERROR(IF(VLOOKUP($C101,Team_results_accuracy!$E:$AN,MATCH("Helyezettek",Team_results_accuracy!$E$5:$AN$5,0),0)="X","X",""),"") ->  | AM101: =IFERROR(IF(VLOOKUP($C101,Rankings!$O:$CD,MATCH("Helyezettek",Rankings!$O$1:$CD$1,0),0)="X","X",""),"") ->  | AN101: =IFERROR(IF(VLOOKUP($C101,Rankings!$S:$CD,MATCH("Helyezettek",Rankings!$S$1:$CD$1,0),0)="X","X",""),"") ->  | AO101: =IFERROR(IF(VLOOKUP($C101,Rankings!$W:$CD,MATCH("Helyezettek",Rankings!$W$1:$CD$1,0),0)="X","X",""),"") ->  | AP101: =IFERROR(IF(VLOOKUP($C101,Team_results_triathlon!$E:$BL,MATCH("Helyezettek",Team_results_triathlon!$E$6:$BL$6,0),0)="X","X",""),"") -> 
B102: 94 | P102: =+IF(OR(ISBLANK($C102),$C102=""),"",IF(OR(ISBLANK($Q102),$Q102="",$Q102=0),Paraméterek!$C$4,Paraméterek!$C$3)) ->  | T102: =+IF(ISBLANK($C102),"",IF(IF(ISERROR(YEAR(TODAY())-YEAR(S102)),100,(YEAR(TODAY())-YEAR(S102)))<Competition!$D$26+1,Paraméterek!$C$3,Paraméterek!$C$4)) ->  | AC102: - | AI102: =IFERROR(IF(VLOOKUP($C102,Rankings!$C:$CD,MATCH("Helyezettek",Rankings!$C$1:$CD$1,0),0)="X","X",""),"") ->  | AJ102: =IFERROR(IF(VLOOKUP($C102,Rankings!$G:$CD,MATCH("Helyezettek",Rankings!$G$1:$CD$1,0),0)="X","X",""),"") ->  | AK102: =IFERROR(IF(VLOOKUP($C102,Rankings!$K:$CD,MATCH("Helyezettek",Rankings!$K$1:$CD$1,0),0)="X","X",""),"") ->  | AL102: =IFERROR(IF(VLOOKUP($C102,Team_results_accuracy!$E:$AN,MATCH("Helyezettek",Team_results_accuracy!$E$5:$AN$5,0),0)="X","X",""),"") ->  | AM102: =IFERROR(IF(VLOOKUP($C102,Rankings!$O:$CD,MATCH("Helyezettek",Rankings!$O$1:$CD$1,0),0)="X","X",""),"") ->  | AN102: =IFERROR(IF(VLOOKUP($C102,Rankings!$S:$CD,MATCH("Helyezettek",Rankings!$S$1:$CD$1,0),0)="X","X",""),"") ->  | AO102: =IFERROR(IF(VLOOKUP($C102,Rankings!$W:$CD,MATCH("Helyezettek",Rankings!$W$1:$CD$1,0),0)="X","X",""),"") ->  | AP102: =IFERROR(IF(VLOOKUP($C102,Team_results_triathlon!$E:$BL,MATCH("Helyezettek",Team_results_triathlon!$E$6:$BL$6,0),0)="X","X",""),"") -> 
B103: 95 | P103: =+IF(OR(ISBLANK($C103),$C103=""),"",IF(OR(ISBLANK($Q103),$Q103="",$Q103=0),Paraméterek!$C$4,Paraméterek!$C$3)) ->  | T103: =+IF(ISBLANK($C103),"",IF(IF(ISERROR(YEAR(TODAY())-YEAR(S103)),100,(YEAR(TODAY())-YEAR(S103)))<Competition!$D$26+1,Paraméterek!$C$3,Paraméterek!$C$4)) ->  | AC103: - | AI103: =IFERROR(IF(VLOOKUP($C103,Rankings!$C:$CD,MATCH("Helyezettek",Rankings!$C$1:$CD$1,0),0)="X","X",""),"") ->  | AJ103: =IFERROR(IF(VLOOKUP($C103,Rankings!$G:$CD,MATCH("Helyezettek",Rankings!$G$1:$CD$1,0),0)="X","X",""),"") ->  | AK103: =IFERROR(IF(VLOOKUP($C103,Rankings!$K:$CD,MATCH("Helyezettek",Rankings!$K$1:$CD$1,0),0)="X","X",""),"") ->  | AL103: =IFERROR(IF(VLOOKUP($C103,Team_results_accuracy!$E:$AN,MATCH("Helyezettek",Team_results_accuracy!$E$5:$AN$5,0),0)="X","X",""),"") ->  | AM103: =IFERROR(IF(VLOOKUP($C103,Rankings!$O:$CD,MATCH("Helyezettek",Rankings!$O$1:$CD$1,0),0)="X","X",""),"") ->  | AN103: =IFERROR(IF(VLOOKUP($C103,Rankings!$S:$CD,MATCH("Helyezettek",Rankings!$S$1:$CD$1,0),0)="X","X",""),"") ->  | AO103: =IFERROR(IF(VLOOKUP($C103,Rankings!$W:$CD,MATCH("Helyezettek",Rankings!$W$1:$CD$1,0),0)="X","X",""),"") ->  | AP103: =IFERROR(IF(VLOOKUP($C103,Team_results_triathlon!$E:$BL,MATCH("Helyezettek",Team_results_triathlon!$E$6:$BL$6,0),0)="X","X",""),"") -> 
B104: 96 | P104: =+IF(OR(ISBLANK($C104),$C104=""),"",IF(OR(ISBLANK($Q104),$Q104="",$Q104=0),Paraméterek!$C$4,Paraméterek!$C$3)) ->  | T104: =+IF(ISBLANK($C104),"",IF(IF(ISERROR(YEAR(TODAY())-YEAR(S104)),100,(YEAR(TODAY())-YEAR(S104)))<Competition!$D$26+1,Paraméterek!$C$3,Paraméterek!$C$4)) ->  | AC104: - | AI104: =IFERROR(IF(VLOOKUP($C104,Rankings!$C:$CD,MATCH("Helyezettek",Rankings!$C$1:$CD$1,0),0)="X","X",""),"") ->  | AJ104: =IFERROR(IF(VLOOKUP($C104,Rankings!$G:$CD,MATCH("Helyezettek",Rankings!$G$1:$CD$1,0),0)="X","X",""),"") ->  | AK104: =IFERROR(IF(VLOOKUP($C104,Rankings!$K:$CD,MATCH("Helyezettek",Rankings!$K$1:$CD$1,0),0)="X","X",""),"") ->  | AL104: =IFERROR(IF(VLOOKUP($C104,Team_results_accuracy!$E:$AN,MATCH("Helyezettek",Team_results_accuracy!$E$5:$AN$5,0),0)="X","X",""),"") ->  | AM104: =IFERROR(IF(VLOOKUP($C104,Rankings!$O:$CD,MATCH("Helyezettek",Rankings!$O$1:$CD$1,0),0)="X","X",""),"") ->  | AN104: =IFERROR(IF(VLOOKUP($C104,Rankings!$S:$CD,MATCH("Helyezettek",Rankings!$S$1:$CD$1,0),0)="X","X",""),"") ->  | AO104: =IFERROR(IF(VLOOKUP($C104,Rankings!$W:$CD,MATCH("Helyezettek",Rankings!$W$1:$CD$1,0),0)="X","X",""),"") ->  | AP104: =IFERROR(IF(VLOOKUP($C104,Team_results_triathlon!$E:$BL,MATCH("Helyezettek",Team_results_triathlon!$E$6:$BL$6,0),0)="X","X",""),"") -> 
B105: 97 | P105: =+IF(OR(ISBLANK($C105),$C105=""),"",IF(OR(ISBLANK($Q105),$Q105="",$Q105=0),Paraméterek!$C$4,Paraméterek!$C$3)) ->  | T105: =+IF(ISBLANK($C105),"",IF(IF(ISERROR(YEAR(TODAY())-YEAR(S105)),100,(YEAR(TODAY())-YEAR(S105)))<Competition!$D$26+1,Paraméterek!$C$3,Paraméterek!$C$4)) ->  | AC105: - | AI105: =IFERROR(IF(VLOOKUP($C105,Rankings!$C:$CD,MATCH("Helyezettek",Rankings!$C$1:$CD$1,0),0)="X","X",""),"") ->  | AJ105: =IFERROR(IF(VLOOKUP($C105,Rankings!$G:$CD,MATCH("Helyezettek",Rankings!$G$1:$CD$1,0),0)="X","X",""),"") ->  | AK105: =IFERROR(IF(VLOOKUP($C105,Rankings!$K:$CD,MATCH("Helyezettek",Rankings!$K$1:$CD$1,0),0)="X","X",""),"") ->  | AL105: =IFERROR(IF(VLOOKUP($C105,Team_results_accuracy!$E:$AN,MATCH("Helyezettek",Team_results_accuracy!$E$5:$AN$5,0),0)="X","X",""),"") ->  | AM105: =IFERROR(IF(VLOOKUP($C105,Rankings!$O:$CD,MATCH("Helyezettek",Rankings!$O$1:$CD$1,0),0)="X","X",""),"") ->  | AN105: =IFERROR(IF(VLOOKUP($C105,Rankings!$S:$CD,MATCH("Helyezettek",Rankings!$S$1:$CD$1,0),0)="X","X",""),"") ->  | AO105: =IFERROR(IF(VLOOKUP($C105,Rankings!$W:$CD,MATCH("Helyezettek",Rankings!$W$1:$CD$1,0),0)="X","X",""),"") ->  | AP105: =IFERROR(IF(VLOOKUP($C105,Team_results_triathlon!$E:$BL,MATCH("Helyezettek",Team_results_triathlon!$E$6:$BL$6,0),0)="X","X",""),"") -> 
B106: 98 | P106: =+IF(OR(ISBLANK($C106),$C106=""),"",IF(OR(ISBLANK($Q106),$Q106="",$Q106=0),Paraméterek!$C$4,Paraméterek!$C$3)) ->  | T106: =+IF(ISBLANK($C106),"",IF(IF(ISERROR(YEAR(TODAY())-YEAR(S106)),100,(YEAR(TODAY())-YEAR(S106)))<Competition!$D$26+1,Paraméterek!$C$3,Paraméterek!$C$4)) ->  | AC106: - | AI106: =IFERROR(IF(VLOOKUP($C106,Rankings!$C:$CD,MATCH("Helyezettek",Rankings!$C$1:$CD$1,0),0)="X","X",""),"") ->  | AJ106: =IFERROR(IF(VLOOKUP($C106,Rankings!$G:$CD,MATCH("Helyezettek",Rankings!$G$1:$CD$1,0),0)="X","X",""),"") ->  | AK106: =IFERROR(IF(VLOOKUP($C106,Rankings!$K:$CD,MATCH("Helyezettek",Rankings!$K$1:$CD$1,0),0)="X","X",""),"") ->  | AL106: =IFERROR(IF(VLOOKUP($C106,Team_results_accuracy!$E:$AN,MATCH("Helyezettek",Team_results_accuracy!$E$5:$AN$5,0),0)="X","X",""),"") ->  | AM106: =IFERROR(IF(VLOOKUP($C106,Rankings!$O:$CD,MATCH("Helyezettek",Rankings!$O$1:$CD$1,0),0)="X","X",""),"") ->  | AN106: =IFERROR(IF(VLOOKUP($C106,Rankings!$S:$CD,MATCH("Helyezettek",Rankings!$S$1:$CD$1,0),0)="X","X",""),"") ->  | AO106: =IFERROR(IF(VLOOKUP($C106,Rankings!$W:$CD,MATCH("Helyezettek",Rankings!$W$1:$CD$1,0),0)="X","X",""),"") ->  | AP106: =IFERROR(IF(VLOOKUP($C106,Team_results_triathlon!$E:$BL,MATCH("Helyezettek",Team_results_triathlon!$E$6:$BL$6,0),0)="X","X",""),"") -> 
B107: 99 | P107: =+IF(OR(ISBLANK($C107),$C107=""),"",IF(OR(ISBLANK($Q107),$Q107="",$Q107=0),Paraméterek!$C$4,Paraméterek!$C$3)) ->  | T107: =+IF(ISBLANK($C107),"",IF(IF(ISERROR(YEAR(TODAY())-YEAR(S107)),100,(YEAR(TODAY())-YEAR(S107)))<Competition!$D$26+1,Paraméterek!$C$3,Paraméterek!$C$4)) ->  | AC107: - | AI107: =IFERROR(IF(VLOOKUP($C107,Rankings!$C:$CD,MATCH("Helyezettek",Rankings!$C$1:$CD$1,0),0)="X","X",""),"") ->  | AJ107: =IFERROR(IF(VLOOKUP($C107,Rankings!$G:$CD,MATCH("Helyezettek",Rankings!$G$1:$CD$1,0),0)="X","X",""),"") ->  | AK107: =IFERROR(IF(VLOOKUP($C107,Rankings!$K:$CD,MATCH("Helyezettek",Rankings!$K$1:$CD$1,0),0)="X","X",""),"") ->  | AL107: =IFERROR(IF(VLOOKUP($C107,Team_results_accuracy!$E:$AN,MATCH("Helyezettek",Team_results_accuracy!$E$5:$AN$5,0),0)="X","X",""),"") ->  | AM107: =IFERROR(IF(VLOOKUP($C107,Rankings!$O:$CD,MATCH("Helyezettek",Rankings!$O$1:$CD$1,0),0)="X","X",""),"") ->  | AN107: =IFERROR(IF(VLOOKUP($C107,Rankings!$S:$CD,MATCH("Helyezettek",Rankings!$S$1:$CD$1,0),0)="X","X",""),"") ->  | AO107: =IFERROR(IF(VLOOKUP($C107,Rankings!$W:$CD,MATCH("Helyezettek",Rankings!$W$1:$CD$1,0),0)="X","X",""),"") ->  | AP107: =IFERROR(IF(VLOOKUP($C107,Team_results_triathlon!$E:$BL,MATCH("Helyezettek",Team_results_triathlon!$E$6:$BL$6,0),0)="X","X",""),"") -> 
B108: 100 | D108: F | G108: X | H108: X | I108: X | P108: =+IF(OR(ISBLANK($C108),$C108=""),"",IF(OR(ISBLANK($Q108),$Q108="",$Q108=0),Paraméterek!$C$4,Paraméterek!$C$3)) ->  | T108: =+IF(ISBLANK($C108),"",IF(IF(ISERROR(YEAR(TODAY())-YEAR(S108)),100,(YEAR(TODAY())-YEAR(S108)))<Competition!$D$26+1,Paraméterek!$C$3,Paraméterek!$C$4)) ->  | AC108: - | AI108: =IFERROR(IF(VLOOKUP($C108,Rankings!$C:$CD,MATCH("Helyezettek",Rankings!$C$1:$CD$1,0),0)="X","X",""),"") ->  | AJ108: =IFERROR(IF(VLOOKUP($C108,Rankings!$G:$CD,MATCH("Helyezettek",Rankings!$G$1:$CD$1,0),0)="X","X",""),"") ->  | AK108: =IFERROR(IF(VLOOKUP($C108,Rankings!$K:$CD,MATCH("Helyezettek",Rankings!$K$1:$CD$1,0),0)="X","X",""),"") ->  | AL108: =IFERROR(IF(VLOOKUP($C108,Team_results_accuracy!$E:$AN,MATCH("Helyezettek",Team_results_accuracy!$E$5:$AN$5,0),0)="X","X",""),"") ->  | AM108: =IFERROR(IF(VLOOKUP($C108,Rankings!$O:$CD,MATCH("Helyezettek",Rankings!$O$1:$CD$1,0),0)="X","X",""),"") ->  | AN108: =IFERROR(IF(VLOOKUP($C108,Rankings!$S:$CD,MATCH("Helyezettek",Rankings!$S$1:$CD$1,0),0)="X","X",""),"") ->  | AO108: =IFERROR(IF(VLOOKUP($C108,Rankings!$W:$CD,MATCH("Helyezettek",Rankings!$W$1:$CD$1,0),0)="X","X",""),"") ->  | AP108: =IFERROR(IF(VLOOKUP($C108,Team_results_triathlon!$E:$BL,MATCH("Helyezettek",Team_results_triathlon!$E$6:$BL$6,0),0)="X","X",""),"") -> 
AI109: =IFERROR(IF(VLOOKUP($C109,Rankings!$C:$CD,MATCH("Helyezettek",Rankings!$C$1:$CD$1,0),0)="X","X",""),"") ->  | AJ109: =IFERROR(IF(VLOOKUP($C109,Rankings!$G:$CD,MATCH("Helyezettek",Rankings!$G$1:$CD$1,0),0)="X","X",""),"") ->  | AK109: =IFERROR(IF(VLOOKUP($C109,Rankings!$K:$CD,MATCH("Helyezettek",Rankings!$K$1:$CD$1,0),0)="X","X",""),"") ->  | AL109: =IFERROR(IF(VLOOKUP($C109,Team_results_accuracy!$E:$AN,MATCH("Helyezettek",Team_results_accuracy!$E$5:$AN$5,0),0)="X","X",""),"") ->  | AM109: =IFERROR(IF(VLOOKUP($C109,Rankings!$O:$CD,MATCH("Helyezettek",Rankings!$O$1:$CD$1,0),0)="X","X",""),"") ->  | AN109: =IFERROR(IF(VLOOKUP($C109,Rankings!$S:$CD,MATCH("Helyezettek",Rankings!$S$1:$CD$1,0),0)="X","X",""),"") ->  | AO109: =IFERROR(IF(VLOOKUP($C109,Rankings!$W:$CD,MATCH("Helyezettek",Rankings!$W$1:$CD$1,0),0)="X","X",""),"") ->  | AP109: =IFERROR(IF(VLOOKUP($C109,Team_results_triathlon!$E:$BL,MATCH("Helyezettek",Team_results_triathlon!$E$6:$BL$6,0),0)="X","X",""),"") -> 

Sheet Rounds
A1: No. | B1: Name | H1: 1. round XC | I1: 1. round Marker | J1: 1. round Accuracy | P1: 2. round XC | Q1: 2. round Marker | R1: 2. round Accuracy | X1: 3. round XC | Y1: 3. round Marker | Z1: 3. round Accuracy | AF1: 4. round XC | AG1: 4. round Marker | AH1: 4. round Accuracy | AN1: 5. round XC | AO1: 5. round Marker | AP1: 5. round Accuracy | AV1: 6. round XC | AW1: 6. round Marker | AX1: 6. round Accuracy | BD1: 7. round XC | BE1: 7. round Marker | BF1: 7. round Accuracy | BL1: 8. round XC | BM1: 8. round Marker | BN1: 8. round Accuracy | BT1: 9. round XC | BU1: 9. round Marker | BV1: 9. round Accuracy | CB1: 10. round XC | CC1: 10. round Marker | CD1: 10. round Accuracy | CJ1: 11. round XC | CK1: 11. round Marker | CL1: 11. round Accuracy | CR1: 12. round XC | CS1: 12. round Marker | CT1: 12. round Accuracy
D2: 1 | E2: 1 | F2: 1 | G2: 1 | H2: 1 | I2: 1 | J2: 1 | L2: 2 | M2: 2 | N2: 2 | O2: 2 | P2: 2 | Q2: 2 | R2: 2 | T2: 3 | U2: 3 | V2: 3 | W2: 3 | X2: 3 | Y2: 3 | Z2: 3 | AB2: 4 | AC2: 4 | AD2: 4 | AE2: 4 | AF2: 4 | AG2: 4 | AH2: 4 | AJ2: 5 | AK2: 5 | AL2: 5 | AM2: 5 | AN2: 5 | AO2: 5 | AP2: 5 | AR2: 6 | AS2: 6 | AT2: 6 | AU2: 6 | AV2: 6 | AW2: 6 | AX2: 6 | AZ2: 7 | BA2: 7 | BB2: 7 | BC2: 7 | BD2: 7 | BE2: 7 | BF2: 7 | BH2: 8 | BI2: 8 | BJ2: 8 | BK2: 8 | BL2: 8 | BM2: 8 | BN2: 8 | BP2: 9 | BQ2: 9 | BR2: 9 | BS2: 9 | BT2: 9 | BU2: 9 | BV2: 9 | BX2: 10 | BY2: 10 | BZ2: 10 | CA2: 10 | CB2: 10 | CC2: 10 | CD2: 10 | CF2: 11 | CG2: 11 | CH2: 11 | CI2: 11 | CJ2: 11 | CK2: 11 | CL2: 11 | CN2: 12 | CO2: 12 | CP2: 12 | CQ2: 12 | CR2: 12 | CS2: 12 | CT2: 12
D3: 1 | E3: 1 | F3: 1 | G3: 1 | H3: 1 | I3: 1 | J3: 1 | K3: =+R3 -> 1 | L3: =+IF(L2>MAX(Competition!$D$9,$C$5),0,1) -> 1 | M3: =+IF(M2>MAX(Competition!$D$9,$C$5),0,1) -> 1 | N3: 1 | O3: =+IF(O2>MAX(Competition!$D$9,$C$5),0,1) -> 1 | P3: =+IF(P2>MAX(Competition!$D$9,$C$5),0,1) -> 1 | Q3: =+IF(Q2>MAX(Competition!$D$9,$C$5),0,1) -> 1 | R3: =+IF(R2>MAX(Competition!$D$9,$C$5),0,1) -> 1 | S3: =+Z3 -> 1 | T3: =+IF(T2>MAX(Competition!$D$9,$C$5),0,1) -> 1 | U3: =+IF(U2>MAX(Competition!$D$9,$C$5),0,1) -> 1 | V3: =+IF(V2>MAX(Competition!$D$9,$C$5),0,1) -> 1 | W3: =+IF(W2>MAX(Competition!$D$9,$C$5),0,1) -> 1 | X3: =+IF(X2>MAX(Competition!$D$9,$C$5),0,1) -> 1 | Y3: =+IF(Y2>MAX(Competition!$D$9,$C$5),0,1) -> 1 | Z3: =+IF(Z2>MAX(Competition!$D$9,$C$5),0,1) -> 1 | AA3: =+AH3 -> 1 | AB3: =+IF(AB2>MAX(Competition!$D$9,$C$5),0,1) -> 1 | AC3: =+IF(AC2>MAX(Competition!$D$9,$C$5),0,1) -> 1 | AD3: =+IF(AD2>MAX(Competition!$D$9,$C$5),0,1) -> 1 | AE3: =+IF(AE2>MAX(Competition!$D$9,$C$5),0,1) -> 1 | AF3: =+IF(AF2>MAX(Competition!$D$9,$C$5),0,1) -> 1 | AG3: =+IF(AG2>MAX(Competition!$D$9,$C$5),0,1) -> 1 | AH3: =+IF(AH2>MAX(Competition!$D$9,$C$5),0,1) -> 1 | AI3: =+AP3 -> 1 | AJ3: =+IF(AJ2>MAX(Competition!$D$9,$C$5),0,1) -> 1 | AK3: =+IF(AK2>MAX(Competition!$D$9,$C$5),0,1) -> 1 | AL3: =+IF(AL2>MAX(Competition!$D$9,$C$5),0,1) -> 1 | AM3: =+IF(AM2>MAX(Competition!$D$9,$C$5),0,1) -> 1 | AN3: =+IF(AN2>MAX(Competition!$D$9,$C$5),0,1) -> 1 | AO3: =+IF(AO2>MAX(Competition!$D$9,$C$5),0,1) -> 1 | AP3: =+IF(AP2>MAX(Competition!$D$9,$C$5),0,1) -> 1 | AQ3: =+AX3 -> 1 | AR3: =+IF(AR2>MAX(Competition!$D$9,$C$5),0,1) -> 1 | AS3: =+IF(AS2>MAX(Competition!$D$9,$C$5),0,1) -> 1 | AT3: =+IF(AT2>MAX(Competition!$D$9,$C$5),0,1) -> 1 | AU3: =+IF(AU2>MAX(Competition!$D$9,$C$5),0,1) -> 1 | AV3: =+IF(AV2>MAX(Competition!$D$9,$C$5),0,1) -> 1 | AW3: =+IF(AW2>MAX(Competition!$D$9,$C$5),0,1) -> 1 | AX3: =+IF(AX2>MAX(Competition!$D$9,$C$5),0,1) -> 1 | AY3: =+BF3 -> 0 | AZ3: =+IF(AZ2>MAX(Competition!$D$9,$C$5),0,1) -> 0 | BA3: =+IF(BA2>MAX(Competition!$D$9,$C$5),0,1) -> 0 | BB3: =+IF(BB2>MAX(Competition!$D$9,$C$5),0,1) -> 0 | BC3: =+IF(BC2>MAX(Competition!$D$9,$C$5),0,1) -> 0 | BD3: =+IF(BD2>MAX(Competition!$D$9,$C$5),0,1) -> 0 | BE3: =+IF(BE2>MAX(Competition!$D$9,$C$5),0,1) -> 0 | BF3: =+IF(BF2>MAX(Competition!$D$9,$C$5),0,1) -> 0 | BG3: =+BN3 -> 0 | BH3: =+IF(BH2>MAX(Competition!$D$9,$C$5),0,1) -> 0 | BI3: =+IF(BI2>MAX(Competition!$D$9,$C$5),0,1) -> 0 | BJ3: =+IF(BJ2>MAX(Competition!$D$9,$C$5),0,1) -> 0 | BK3: =+IF(BK2>MAX(Competition!$D$9,$C$5),0,1) -> 0 | BL3: =+IF(BL2>MAX(Competition!$D$9,$C$5),0,1) -> 0 | BM3: =+IF(BM2>MAX(Competition!$D$9,$C$5),0,1) -> 0 | BN3: =+IF(BN2>MAX(Competition!$D$9,$C$5),0,1) -> 0 | BO3: =+BV3 -> 0 | BP3: =+IF(BP2>MAX(Competition!$D$9,$C$5),0,1) -> 0 | BQ3: =+IF(BQ2>MAX(Competition!$D$9,$C$5),0,1) -> 0 | BR3: =+IF(BR2>MAX(Competition!$D$9,$C$5),0,1) -> 0 | BS3: =+IF(BS2>MAX(Competition!$D$9,$C$5),0,1) -> 0 | BT3: =+IF(BT2>MAX(Competition!$D$9,$C$5),0,1) -> 0 | BU3: =+IF(BU2>MAX(Competition!$D$9,$C$5),0,1) -> 0 | BV3: =+IF(BV2>MAX(Competition!$D$9,$C$5),0,1) -> 0 | BW3: =+CD3 -> 0 | BX3: =+IF(BX2>MAX(Competition!$D$9,$C$5),0,1) -> 0 | BY3: =+IF(BY2>MAX(Competition!$D$9,$C$5),0,1) -> 0 | BZ3: =+IF(BZ2>MAX(Competition!$D$9,$C$5),0,1) -> 0 | CA3: =+IF(CA2>MAX(Competition!$D$9,$C$5),0,1) -> 0 | CB3: =+IF(CB2>MAX(Competition!$D$9,$C$5),0,1) -> 0 | CC3: =+IF(CC2>MAX(Competition!$D$9,$C$5),0,1) -> 0 | CD3: =+IF(CD2>MAX(Competition!$D$9,$C$5),0,1) -> 0 | CE3: =+CL3 -> 0 | CF3: =+IF(CF2>MAX(Competition!$D$9,$C$5),0,1) -> 0 | CG3: =+IF(CG2>MAX(Competition!$D$9,$C$5),0,1) -> 0 | CH3: =+IF(CH2>MAX(Competition!$D$9,$C$5),0,1) -> 0 | CI3: =+IF(CI2>MAX(Competition!$D$9,$C$5),0,1) -> 0 | CJ3: =+IF(CJ2>MAX(Competition!$D$9,$C$5),0,1) -> 0 | CK3: =+IF(CK2>MAX(Competition!$D$9,$C$5),0,1) -> 0 | CL3: =+IF(CL2>MAX(Competition!$D$9,$C$5),0,1) -> 0 | CM3: =+CT3 -> 0 | CN3: =+IF(CN2>MAX(Competition!$D$9,$C$5),0,1) -> 0 | CO3: =+IF(CO2>MAX(Competition!$D$9,$C$5),0,1) -> 0 | CP3: =+IF(CP2>MAX(Competition!$D$9,$C$5),0,1) -> 0 | CQ3: =+IF(CQ2>MAX(Competition!$D$9,$C$5),0,1) -> 0 | CR3: =+IF(CR2>MAX(Competition!$D$9,$C$5),0,1) -> 0 | CS3: =+IF(CS2>MAX(Competition!$D$9,$C$5),0,1) -> 0 | CT3: =+IF(CT2>MAX(Competition!$D$9,$C$5),0,1) -> 0
A4: =+Competition!$C$4 -> PG-HG Triathlon
A5: Befejezett körök / Completed rounds: | C5: 5 | F5: KALKULÁLT | G5: MANUÁLIS | N5: KALKULÁLT | O5: MANUÁLIS | V5: KALKULÁLT | W5: MANUÁLIS | AD5: KALKULÁLT | AE5: MANUÁLIS | AL5: KALKULÁLT | AM5: MANUÁLIS | AT5: KALKULÁLT | AU5: MANUÁLIS | BB5: KALKULÁLT | BC5: MANUÁLIS | BJ5: KALKULÁLT | BK5: MANUÁLIS | BR5: KALKULÁLT | BS5: MANUÁLIS | BZ5: KALKULÁLT | CA5: MANUÁLIS | CH5: KALKULÁLT | CI5: MANUÁLIS | CP5: KALKULÁLT | CQ5: MANUÁLIS | CZ5: ÉRTÉKELÉS
CZ6: XC
D7: START | E7: CÉL | F7: perc | G7: perc | H7: XC | I7: Marker | J7: Accuracy | L7: START | M7: CÉL | N7: perc | O7: perc | P7: XC | Q7: Marker | R7: Accuracy | T7: START | U7: CÉL | V7: perc | W7: perc | X7: XC | Y7: Marker | Z7: Accuracy | AB7: START | AC7: CÉL | AD7: perc | AE7: perc | AF7: XC | AG7: Marker | AH7: Accuracy | AJ7: START | AK7: CÉL | AL7: perc | AM7: perc | AN7: XC | AO7: Marker | AP7: Accuracy | AR7: START | AS7: CÉL | AT7: perc | AU7: perc | AV7: XC | AW7: Marker | AX7: Accuracy | AZ7: START | BA7: CÉL | BB7: perc | BC7: perc | BD7: XC | BE7: Marker | BF7: Accuracy | BH7: START | BI7: CÉL | BJ7: perc | BK7: perc | BL7: XC | BM7: Marker | BN7: Accuracy | BP7: START | BQ7: CÉL | BR7: perc | BS7: perc | BT7: XC | BU7: Marker | BV7: Accuracy | BX7: START | BY7: CÉL | BZ7: perc | CA7: perc | CB7: XC | CC7: Marker | CD7: Accuracy | CF7: START | CG7: CÉL | CH7: perc | CI7: perc | CJ7: XC | CK7: Marker | CL7: Accuracy | CN7: START | CO7: CÉL | CP7: perc | CQ7: perc | CR7: XC | CS7: Marker | CT7: Accuracy | CZ7: min | DB7: Hibapont
A8: Eredmények / Results | D8: START | E8: END | F8: minute | G8: minute | H8: pont | I8: pont | J8: pont | L8: START | M8: END | N8: minute | O8: minute | P8: pont | Q8: pont | R8: pont | T8: START | U8: END | V8: minute | W8: minute | X8: pont | Y8: pont | Z8: pont | AB8: START | AC8: END | AD8: minute | AE8: minute | AF8: pont | AG8: pont | AH8: pont | AJ8: START | AK8: END | AL8: minute | AM8: minute | AN8: pont | AO8: pont | AP8: pont | AR8: START | AS8: END | AT8: minute | AU8: minute | AV8: pont | AW8: pont | AX8: pont | AZ8: START | BA8: END | BB8: minute | BC8: minute | BD8: pont | BE8: pont | BF8: pont | BH8: START | BI8: END | BJ8: minute | BK8: minute | BL8: pont | BM8: pont | BN8: pont | BP8: START | BQ8: END | BR8: minute | BS8: minute | BT8: pont | BU8: pont | BV8: pont | BX8: START | BY8: END | BZ8: minute | CA8: minute | CB8: pont | CC8: pont | CD8: pont | CF8: START | CG8: END | CH8: minute | CI8: minute | CJ8: pont | CK8: pont | CL8: pont | CN8: START | CO8: END | CP8: minute | CQ8: minute | CR8: pont | CS8: pont | CT8: pont | CZ8: perc | DB8: 500
A9: Ssz | B9: Keresztnév, Családnév | D9: 1. kör | E9: 1. kör | F9: 1. kör | G9: 1. kör | H9: 1. kör | I9: 1. kör | J9: 1. kör | L9: 2. kör | M9: 2. kör | N9: 2. kör | O9: 2. kör | P9: 2. kör | Q9: 2. kör | R9: 2. kör | T9: 3. kör | U9: 3. kör | V9: 3. kör | W9: 3. kör | X9: 3. kör | Y9: 3. kör | Z9: 3. kör | AB9: 4. kör | AC9: 4. kör | AD9: 4. kör | AE9: 4. kör | AF9: 4. kör | AG9: 4. kör | AH9: 4. kör | AJ9: 5. kör | AK9: 5. kör | AL9: 5. kör | AM9: 5. kör | AN9: 5. kör | AO9: 5. kör | AP9: 5. kör | AR9: 6. kör | AS9: 6. kör | AT9: 6. kör | AU9: 6. kör | AV9: 6. kör | AW9: 6. kör | AX9: 6. kör | AZ9: 7. kör | BA9: 7. kör | BB9: 7. kör | BC9: 7. kör | BD9: 7. kör | BE9: 7. kör | BF9: 7. kör | BH9: 8. kör | BI9: 8. kör | BJ9: 8. kör | BK9: 8. kör | BL9: 8. kör | BM9: 8. kör | BN9: 8. kör | BP9: 9. kör | BQ9: 9. kör | BR9: 9. kör | BS9: 9. kör | BT9: 9. kör | BU9: 9. kör | BV9: 9. kör | BX9: 10. kör | BY9: 10. kör | BZ9: 10. kör | CA9: 10. kör | CB9: 10. kör | CC9: 10. kör | CD9: 10. kör | CF9: 11. kör | CG9: 11. kör | CH9: 11. kör | CI9: 11. kör | CJ9: 11. kör | CK9: 11. kör | CL9: 11. kör | CN9: 12. kör | CO9: 12. kör | CP9: 12. kör | CQ9: 12. kör | CR9: 12. kör | CS9: 12. kör | CT9: 12. kör | CZ9: 0 | DB9: 500
A10: No. | B10: Name, Family Name | D10: 1. round | E10: 1. round | F10: 1. round | G10: 1. round | H10: 1. round | I10: 1. round | J10: 1. round | L10: 2. round | M10: 2. round | N10: 2. round | O10: 2. round | P10: 2. round | Q10: 2. round | R10: 2. round | T10: 3. round | U10: 3. round | V10: 3. round | W10: 3. round | X10: 3. round | Y10: 3. round | Z10: 3. round | AB10: 4. round | AC10: 4. round | AD10: 4. round | AE10: 4. round | AF10: 4. round | AG10: 4. round | AH10: 4. round | AJ10: 5. round | AK10: 5. round | AL10: 5. round | AM10: 5. round | AN10: 5. round | AO10: 5. round | AP10: 5. round | AR10: 6. round | AS10: 6. round | AT10: 6. round | AU10: 6. round | AV10: 6. round | AW10: 6. round | AX10: 6. round | AZ10: 7. round | BA10: 7. round | BB10: 7. round | BC10: 7. round | BD10: 7. round | BE10: 7. round | BF10: 7. round | BH10: 8. round | BI10: 8. round | BJ10: 8. round | BK10: 8. round | BL10: 8. round | BM10: 8. round | BN10: 8. round | BP10: 9. round | BQ10: 9. round | BR10: 9. round | BS10: 9. round | BT10: 9. round | BU10: 9. round | BV10: 9. round | BX10: 10. round | BY10: 10. round | BZ10: 10. round | CA10: 10. round | CB10: 10. round | CC10: 10. round | CD10: 10. round | CF10: 11. round | CG10: 11. round | CH10: 11. round | CI10: 11. round | CJ10: 11. round | CK10: 11. round | CL10: 11. round | CN10: 12. round | CO10: 12. round | CP10: 12. round | CQ10: 12. round | CR10: 12. round | CS10: 12. round | CT10: 12. round | CZ10: 1 | DA10: 10 | DB10: 490 | DR10: 1 | DS10: 2 | DT10: 3 | DU10: 4 | DV10: 5 | DW10: 6 | DX10: 7 | DY10: 8 | DZ10: 9 | EA10: 10 | EB10: 11 | EC10: 12 | EE10: 1 | EF10: 2 | EG10: 3 | EH10: 4 | EI10: 5 | EJ10: 6 | EK10: 7 | EL10: 8 | EM10: 9 | EN10: 10 | EO10: 11 | EP10: 12 | ER10: 1 | ES10: 2 | ET10: 3 | EU10: 4 | EV10: 5 | EW10: 6 | EX10: 7 | EY10: 8 | EZ10: 9 | FA10: 10 | FB10: 11 | FC10: 12 | FE10: 1 | FF10: 2 | FG10: 3 | FH10: 4 | FI10: 5 | FJ10: 6 | FK10: 7 | FL10: 8 | FM10: 9 | FN10: 10 | FO10: 11 | FP10: 12 | FR10: 1 | FS10: 1 | FT10: =+FR10+1 -> 2 | FU10: =+FS10+1 -> 2 | FV10: =+FT10+1 -> 3 | FW10: 3 | FX10: 4 | FY10: 4 | FZ10: 5 | GA10: 5 | GB10: 6 | GC10: 6 | GD10: 7 | GE10: 7 | GF10: 8 | GG10: 8 | GH10: 9 | GI10: 9 | GJ10: 10 | GK10: 10 | GL10: 11 | GM10: 11 | GN10: 12 | GO10: 12
A11: 1 | B11: =+IF(OR(ISERROR(VLOOKUP($A11,Pilots!$B:$U,MATCH(B$1,Pilots!$B$1:$U$1,0),0)),VLOOKUP($A11,Pilots!$B:$U,MATCH(B$1,Pilots!$B$1:$U$1,0),0)=0),"",VLOOKUP($A11,Pilots!$B:$U,MATCH(B$1,Pilots!$B$1:$U$1,0),0)) -> Ivan Pavlov | D11: 13:49:00 | E11: 13:55:00 | F11: =+IF(OR(D11="",E11=""),"",ROUND((E11-D11)*24*60,0)) -> 6 | H11: =+IF(H$2>$C$5,"",IFERROR(VLOOKUP(IF(G11="",F11,G11),$CZ:$DB,3,0),"")) -> 440 | I11: 500 | J11: 41 | L11: 15:32:00 | M11: 15:37:00 | N11: =+IF(OR(L11="",M11=""),"",ROUND((M11-L11)*24*60,0)) -> 5 | P11: =+IF(P$2>$C$5,"",IFERROR(VLOOKUP(IF(O11="",N11,O11),$CZ:$DB,3,0),"")) -> 450 | Q11: 500 | R11: 500 | T11: 18:07:00 | U11: 18:11:00 | V11: =+IF(OR(T11="",U11=""),"",ROUND((U11-T11)*24*60,0)) -> 4 | X11: =+IF(X$2>$C$5,"",IFERROR(VLOOKUP(IF(W11="",V11,W11),$CZ:$DB,3,0),"")) -> 460 | Y11: 500 | Z11: 1 | AB11: 19:44:00 | AC11: 19:47:00 | AD11: =+IF(OR(AB11="",AC11=""),"",ROUND((AC11-AB11)*24*60,0)) -> 3 | AE11: 3 | AF11: =+IF(AF$2>$C$5,"",IFERROR(VLOOKUP(IF(AE11="",AD11,AE11),$CZ:$DB,3,0),"")) -> 470 | AG11: 500 | AH11: 21 | AL11: =+IF(OR(AJ11="",AK11=""),"",ROUND((AK11-AJ11)*24*60,0)) ->  | AM11: 3 | AN11: =+IF(AN$2>$C$5,"",IFERROR(VLOOKUP(IF(AM11="",AL11,AM11),$CZ:$DB,3,0),"")) -> 470 | AO11: 500 | AP11: 6 | AT11: =+IF(OR(AR11="",AS11=""),"",ROUND((AS11-AR11)*24*60,0)) ->  | AV11: =+IF(AV$2>$C$5,"",IFERROR(VLOOKUP(IF(AU11="",AT11,AU11),$CZ:$DB,3,0),"")) ->  | BB11: =+IF(OR(AZ11="",BA11=""),"",ROUND((BA11-AZ11)*24*60,0)) ->  | BD11: =+IF(BD$2>$C$5,"",IFERROR(VLOOKUP(IF(BC11="",BB11,BC11),$CZ:$DB,3,0),"")) ->  | BJ11: =+IF(OR(BH11="",BI11=""),"",ROUND((BI11-BH11)*24*60,0)) ->  | BL11: =+IF(BL$2>$C$5,"",IFERROR(VLOOKUP(IF(BK11="",BJ11,BK11),$CZ:$DB,3,0),"")) ->  | BR11: =+IF(OR(BP11="",BQ11=""),"",ROUND((BQ11-BP11)*24*60,0)) ->  | BT11: =+IF(BT$2>$C$5,"",IFERROR(VLOOKUP(IF(BS11="",BR11,BS11),$CZ:$DB,3,0),"")) ->  | BZ11: =+IF(OR(BX11="",BY11=""),"",ROUND((BY11-BX11)*24*60,0)) ->  | CB11: =+IF(CB$2>$C$5,"",IFERROR(VLOOKUP(IF(CA11="",BZ11,CA11),$CZ:$DB,3,0),"")) ->  | CH11: =+IF(OR(CF11="",CG11=""),"",ROUND((CG11-CF11)*24*60,0)) ->  | CJ11: =+IF(CJ$2>$C$5,"",IFERROR(VLOOKUP(IF(CI11="",CH11,CI11),$CZ:$DB,3,0),"")) ->  | CP11: =+IF(OR(CN11="",CO11=""),"",ROUND((CO11-CN11)*24*60,0)) ->  | CR11: =+IF(CR$2>$C$5,"",IFERROR(VLOOKUP(IF(CQ11="",CP11,CQ11),$CZ:$DB,3,0),"")) ->  | CZ11: 2 | DA11: 20 | DB11: 480 | DR11: =IF($B11="","",IF(AND(DR$10<(Rounds!$C$5+1),OR(J11="",ISBLANK(J11))),"X","")) ->  | DS11: =IF($B11="","",IF(AND(DS$10<(Rounds!$C$5+1),OR(R11="",ISBLANK(R11))),"X","")) ->  | DT11: =IF($B11="","",IF(AND(DT$10<(Rounds!$C$5+1),OR(Z11="",ISBLANK(Z11))),"X","")) ->  | DU11: =IF($B11="","",IF(AND(DU$10<(Rounds!$C$5+1),OR(AH11="",ISBLANK(AH11))),"X","")) ->  | DV11: =IF($B11="","",IF(AND(DV$10<(Rounds!$C$5+1),OR(AP11="",ISBLANK(AP11))),"X","")) ->  | DW11: =IF($B11="","",IF(AND(DW$10<(Rounds!$C$5+1),OR(AX11="",ISBLANK(AX11))),"X","")) ->  | DX11: =IF($B11="","",IF(AND(DX$10<(Rounds!$C$5+1),OR(BF11="",ISBLANK(BF11))),"X","")) ->  | DY11: =IF($B11="","",IF(AND(DY$10<(Rounds!$C$5+1),OR(BN11="",ISBLANK(BN11))),"X","")) ->  | DZ11: =IF($B11="","",IF(AND(DZ$10<(Rounds!$C$5+1),OR(BV11="",ISBLANK(BV11))),"X","")) ->  | EA11: =IF($B11="","",IF(AND(EA$10<(Rounds!$C$5+1),OR(CD11="",ISBLANK(CD11))),"X","")) ->  | EB11: =IF($B11="","",IF(AND(EB$10<(Rounds!$C$5+1),OR(CL11="",ISBLANK(CL11))),"X","")) ->  | EC11: =IF($B11="","",IF(AND(EC$10<(Rounds!$C$5+1),OR(CT11="",ISBLANK(CT11))),"X","")) ->  | EE11: =IF($B11="","",IF(AND(EE$10<(Rounds!$C$5+1),OR(I11="",ISBLANK(I11))),"X","")) ->  | EF11: =IF($B11="","",IF(AND(EF$10<(Rounds!$C$5+1),OR(Q11="",ISBLANK(Q11))),"X","")) ->  | EG11: =IF($B11="","",IF(AND(EG$10<(Rounds!$C$5+1),OR(Y11="",ISBLANK(Y11))),"X","")) ->  | EH11: =IF($B11="","",IF(AND(EH$10<(Rounds!$C$5+1),OR(AG11="",ISBLANK(AG11))),"X","")) ->  | EI11: =IF($B11="","",IF(AND(EI$10<(Rounds!$C$5+1),OR(AO11="",ISBLANK(AO11))),"X","")) ->  | EJ11: =IF($B11="","",IF(AND(EJ$10<(Rounds!$C$5+1),OR(AW11="",ISBLANK(AW11))),"X","")) ->  | EK11: =IF($B11="","",IF(AND(EK$10<(Rounds!$C$5+1),OR(BE11="",ISBLANK(BE11))),"X","")) ->  | EL11: =IF($B11="","",IF(AND(EL$10<(Rounds!$C$5+1),OR(BM11="",ISBLANK(BM11))),"X","")) ->  | EM11: =IF($B11="","",IF(AND(EM$10<(Rounds!$C$5+1),OR(BU11="",ISBLANK(BU11))),"X","")) ->  | EN11: =IF($B11="","",IF(AND(EN$10<(Rounds!$C$5+1),OR(CC11="",ISBLANK(CC11))),"X","")) ->  | EO11: =IF($B11="","",IF(AND(EO$10<(Rounds!$C$5+1),OR(CK11="",ISBLANK(CK11))),"X","")) ->  | EP11: =IF($B11="","",IF(AND(EP$10<(Rounds!$C$5+1),OR(CS11="",ISBLANK(CS11))),"X","")) ->  | ER11: =IF($B11="","",IF(AND(ER$10<(Rounds!$C$5+1),OR(H11="",ISBLANK(H11))),"X","")) ->  | ES11: =IF($B11="","",IF(AND(ES$10<(Rounds!$C$5+1),OR(P11="",ISBLANK(P11))),"X","")) ->  | ET11: =IF($B11="","",IF(AND(ET$10<(Rounds!$C$5+1),OR(X11="",ISBLANK(X11))),"X","")) ->  | EU11: =IF($B11="","",IF(AND(EU$10<(Rounds!$C$5+1),OR(AF11="",ISBLANK(AF11))),"X","")) ->  | EV11: =IF($B11="","",IF(AND(EV$10<(Rounds!$C$5+1),OR(AN11="",ISBLANK(AN11))),"X","")) ->  | EW11: =IF($B11="","",IF(AND(EW$10<(Rounds!$C$5+1),OR(AV11="",ISBLANK(AV11))),"X","")) ->  | EX11: =IF($B11="","",IF(AND(EX$10<(Rounds!$C$5+1),OR(BD11="",ISBLANK(BD11))),"X","")) ->  | EY11: =IF($B11="","",IF(AND(EY$10<(Rounds!$C$5+1),OR(BL11="",ISBLANK(BL11))),"X","")) ->  | EZ11: =IF($B11="","",IF(AND(EZ$10<(Rounds!$C$5+1),OR(BT11="",ISBLANK(BT11))),"X","")) ->  | FA11: =IF($B11="","",IF(AND(FA$10<(Rounds!$C$5+1),OR(CB11="",ISBLANK(CB11))),"X","")) ->  | FB11: =IF($B11="","",IF(AND(FB$10<(Rounds!$C$5+1),OR(CJ11="",ISBLANK(CJ11))),"X","")) ->  | FC11: =IF($B11="","",IF(AND(FC$10<(Rounds!$C$5+1),OR(CR11="",ISBLANK(CR11))),"X","")) ->  | FE11: =IF($B11="","",IF(AND(FE$10<(Rounds!$C$5+1),OR(G11="",ISBLANK(G11))),"X","")) -> X | FF11: =IF($B11="","",IF(AND(FF$10<(Rounds!$C$5+1),OR(O11="",ISBLANK(O11))),"X","")) -> X | FG11: =IF($B11="","",IF(AND(FG$10<(Rounds!$C$5+1),OR(W11="",ISBLANK(W11))),"X","")) -> X | FH11: =IF($B11="","",IF(AND(FH$10<(Rounds!$C$5+1),OR(AE11="",ISBLANK(AE11))),"X","")) ->  | FI11: =IF($B11="","",IF(AND(FI$10<(Rounds!$C$5+1),OR(AM11="",ISBLANK(AM11))),"X","")) ->  | FJ11: =IF($B11="","",IF(AND(FJ$10<(Rounds!$C$5+1),OR(AU11="",ISBLANK(AU11))),"X","")) ->  | FK11: =IF($B11="","",IF(AND(FK$10<(Rounds!$C$5+1),OR(BC11="",ISBLANK(BC11))),"X","")) ->  | FL11: =IF($B11="","",IF(AND(FL$10<(Rounds!$C$5+1),OR(BK11="",ISBLANK(BK11))),"X","")) ->  | FM11: =IF($B11="","",IF(AND(FM$10<(Rounds!$C$5+1),OR(BS11="",ISBLANK(BS11))),"X","")) ->  | FN11: =IF($B11="","",IF(AND(FN$10<(Rounds!$C$5+1),OR(CA11="",ISBLANK(CA11))),"X","")) ->  | FO11: =IF($B11="","",IF(AND(FO$10<(Rounds!$C$5+1),OR(CI11="",ISBLANK(CI11))),"X","")) ->  | FP11: =IF($B11="","",IF(AND(FP$10<(Rounds!$C$5+1),OR(CQ11="",ISBLANK(CQ11))),"X","")) ->  | FR11: =IF($B11="","",IF(AND(FR$10<(Rounds!$C$5+1),OR(D11="",ISBLANK(F11))),"X","")) ->  | FS11: =IF($B11="","",IF(AND(FS$10<(Rounds!$C$5+1),OR(E11="",ISBLANK(N11))),"X","")) ->  | FT11: =IF($B11="","",IF(AND(FT$10<(Rounds!$C$5+1),OR(L11="",ISBLANK(V11))),"X","")) ->  | FU11: =IF($B11="","",IF(AND(FU$10<(Rounds!$C$5+1),OR(M11="",ISBLANK(AD11))),"X","")) ->  | FV11: =IF($B11="","",IF(AND(FV$10<(Rounds!$C$5+1),OR(T11="",ISBLANK(AL11))),"X","")) ->  | FW11: =IF($B11="","",IF(AND(FW$10<(Rounds!$C$5+1),OR(U11="",ISBLANK(AT11))),"X","")) ->  | FX11: =IF($B11="","",IF(AND(FX$10<(Rounds!$C$5+1),OR(AB11="",ISBLANK(BB11))),"X","")) ->  | FY11: =IF($B11="","",IF(AND(FY$10<(Rounds!$C$5+1),OR(AC11="",ISBLANK(BJ11))),"X","")) ->  | FZ11: =IF($B11="","",IF(AND(FZ$10<(Rounds!$C$5+1),OR(AJ11="",ISBLANK(BR11))),"X","")) -> X | GA11: =IF($B11="","",IF(AND(GA$10<(Rounds!$C$5+1),OR(AK11="",ISBLANK(BZ11))),"X","")) -> X | GB11: =IF($B11="","",IF(AND(GB$10<(Rounds!$C$5+1),OR(AR11="",ISBLANK(CH11))),"X","")) ->  | GC11: =IF($B11="","",IF(AND(GC$10<(Rounds!$C$5+1),OR(AS11="",ISBLANK(CP11))),"X","")) ->  | GD11: =IF($B11="","",IF(AND(GD$10<(Rounds!$C$5+1),OR(AZ11="",ISBLANK(#REF!))),"X","")) ->  | GE11: =IF($B11="","",IF(AND(GE$10<(Rounds!$C$5+1),OR(BA11="",ISBLANK(D11))),"X","")) ->  | GF11: =IF($B11="","",IF(AND(GF$10<(Rounds!$C$5+1),OR(BH11="",ISBLANK(E11))),"X","")) ->  | GG11: =IF($B11="","",IF(AND(GG$10<(Rounds!$C$5+1),OR(BI11="",ISBLANK(L11))),"X","")) ->  | GH11: =IF($B11="","",IF(AND(GH$10<(Rounds!$C$5+1),OR(BP11="",ISBLANK(M11))),"X","")) ->  | GI11: =IF($B11="","",IF(AND(GI$10<(Rounds!$C$5+1),OR(BQ11="",ISBLANK(T11))),"X","")) ->  | GJ11: =IF($B11="","",IF(AND(GJ$10<(Rounds!$C$5+1),OR(BX11="",ISBLANK(U11))),"X","")) ->  | GK11: =IF($B11="","",IF(AND(GK$10<(Rounds!$C$5+1),OR(BY11="",ISBLANK(AB11))),"X","")) ->  | GL11: =IF($B11="","",IF(AND(GL$10<(Rounds!$C$5+1),OR(CF11="",ISBLANK(AC11))),"X","")) ->  | GM11: =IF($B11="","",IF(AND(GM$10<(Rounds!$C$5+1),OR(CG11="",ISBLANK(AJ11))),"X","")) ->  | GN11: =IF($B11="","",IF(AND(GN$10<(Rounds!$C$5+1),OR(CN11="",ISBLANK(AK11))),"X","")) ->  | GO11: =IF($B11="","",IF(AND(GO$10<(Rounds!$C$5+1),OR(CO11="",ISBLANK(AR11))),"X","")) -> 
A12: 2 | B12: =+IF(OR(ISERROR(VLOOKUP($A12,Pilots!$B:$U,MATCH(B$1,Pilots!$B$1:$U$1,0),0)),VLOOKUP($A12,Pilots!$B:$U,MATCH(B$1,Pilots!$B$1:$U$1,0),0)=0),"",VLOOKUP($A12,Pilots!$B:$U,MATCH(B$1,Pilots!$B$1:$U$1,0),0)) -> Goran Milojković | D12: 13:55:00 | E12: 14:00:00 | F12: =+IF(OR(D12="",E12=""),"",ROUND((E12-D12)*24*60,0)) -> 5 | H12: =+IF(H$2>$C$5,"",IFERROR(VLOOKUP(IF(G12="",F12,G12),$CZ:$DB,3,0),"")) -> 450 | I12: 500 | J12: 333 | L12: 15:23:00 | M12: 15:27:00 | N12: =+IF(OR(L12="",M12=""),"",ROUND((M12-L12)*24*60,0)) -> 4 | P12: =+IF(P$2>$C$5,"",IFERROR(VLOOKUP(IF(O12="",N12,O12),$CZ:$DB,3,0),"")) -> 460 | Q12: 500 | R12: 338 | T12: 16:35:00 | U12: 16:40:00 | V12: =+IF(OR(T12="",U12=""),"",ROUND((U12-T12)*24*60,0)) -> 5 | X12: =+IF(X$2>$C$5,"",IFERROR(VLOOKUP(IF(W12="",V12,W12),$CZ:$DB,3,0),"")) -> 450 | Y12: 500 | Z12: 500 | AD12: =+IF(OR(AB12="",AC12=""),"",ROUND((AC12-AB12)*24*60,0)) ->  | AE12: 4 | AF12: =+IF(AF$2>$C$5,"",IFERROR(VLOOKUP(IF(AE12="",AD12,AE12),$CZ:$DB,3,0),"")) -> 460 | AG12: 500 | AH12: 16 | AL12: =+IF(OR(AJ12="",AK12=""),"",ROUND((AK12-AJ12)*24*60,0)) ->  | AM12: 4 | AN12: =+IF(AN$2>$C$5,"",IFERROR(VLOOKUP(IF(AM12="",AL12,AM12),$CZ:$DB,3,0),"")) -> 460 | AO12: 500 | AP12: 13 | AT12: =+IF(OR(AR12="",AS12=""),"",ROUND((AS12-AR12)*24*60,0)) ->  | AV12: =+IF(AV$2>$C$5,"",IFERROR(VLOOKUP(IF(AU12="",AT12,AU12),$CZ:$DB,3,0),"")) ->  | BB12: =+IF(OR(AZ12="",BA12=""),"",ROUND((BA12-AZ12)*24*60,0)) ->  | BD12: =+IF(BD$2>$C$5,"",IFERROR(VLOOKUP(IF(BC12="",BB12,BC12),$CZ:$DB,3,0),"")) ->  | BJ12: =+IF(OR(BH12="",BI12=""),"",ROUND((BI12-BH12)*24*60,0)) ->  | BL12: =+IF(BL$2>$C$5,"",IFERROR(VLOOKUP(IF(BK12="",BJ12,BK12),$CZ:$DB,3,0),"")) ->  | BR12: =+IF(OR(BP12="",BQ12=""),"",ROUND((BQ12-BP12)*24*60,0)) ->  | BT12: =+IF(BT$2>$C$5,"",IFERROR(VLOOKUP(IF(BS12="",BR12,BS12),$CZ:$DB,3,0),"")) ->  | BZ12: =+IF(OR(BX12="",BY12=""),"",ROUND((BY12-BX12)*24*60,0)) ->  | CB12: =+IF(CB$2>$C$5,"",IFERROR(VLOOKUP(IF(CA12="",BZ12,CA12),$CZ:$DB,3,0),"")) ->  | CH12: =+IF(OR(CF12="",CG12=""),"",ROUND((CG12-CF12)*24*60,0)) ->  | CJ12: =+IF(CJ$2>$C$5,"",IFERROR(VLOOKUP(IF(CI12="",CH12,CI12),$CZ:$DB,3,0),"")) ->  | CP12: =+IF(OR(CN12="",CO12=""),"",ROUND((CO12-CN12)*24*60,0)) ->  | CR12: =+IF(CR$2>$C$5,"",IFERROR(VLOOKUP(IF(CQ12="",CP12,CQ12),$CZ:$DB,3,0),"")) ->  | CZ12: 3 | DA12: 30 | DB12: 470 | DR12: =IF($B12="","",IF(AND(DR$10<(Rounds!$C$5+1),OR(J12="",ISBLANK(J12))),"X","")) ->  | DS12: =IF($B12="","",IF(AND(DS$10<(Rounds!$C$5+1),OR(R12="",ISBLANK(R12))),"X","")) ->  | DT12: =IF($B12="","",IF(AND(DT$10<(Rounds!$C$5+1),OR(Z12="",ISBLANK(Z12))),"X","")) ->  | DU12: =IF($B12="","",IF(AND(DU$10<(Rounds!$C$5+1),OR(AH12="",ISBLANK(AH12))),"X","")) ->  | DV12: =IF($B12="","",IF(AND(DV$10<(Rounds!$C$5+1),OR(AP12="",ISBLANK(AP12))),"X","")) ->  | DW12: =IF($B12="","",IF(AND(DW$10<(Rounds!$C$5+1),OR(AX12="",ISBLANK(AX12))),"X","")) ->  | DX12: =IF($B12="","",IF(AND(DX$10<(Rounds!$C$5+1),OR(BF12="",ISBLANK(BF12))),"X","")) ->  | DY12: =IF($B12="","",IF(AND(DY$10<(Rounds!$C$5+1),OR(BN12="",ISBLANK(BN12))),"X","")) ->  | DZ12: =IF($B12="","",IF(AND(DZ$10<(Rounds!$C$5+1),OR(BV12="",ISBLANK(BV12))),"X","")) ->  | EA12: =IF($B12="","",IF(AND(EA$10<(Rounds!$C$5+1),OR(CD12="",ISBLANK(CD12))),"X","")) ->  | EB12: =IF($B12="","",IF(AND(EB$10<(Rounds!$C$5+1),OR(CL12="",ISBLANK(CL12))),"X","")) ->  | EC12: =IF($B12="","",IF(AND(EC$10<(Rounds!$C$5+1),OR(CT12="",ISBLANK(CT12))),"X","")) ->  | EE12: =IF($B12="","",IF(AND(EE$10<(Rounds!$C$5+1),OR(I12="",ISBLANK(I12))),"X","")) ->  | EF12: =IF($B12="","",IF(AND(EF$10<(Rounds!$C$5+1),OR(Q12="",ISBLANK(Q12))),"X","")) ->  | EG12: =IF($B12="","",IF(AND(EG$10<(Rounds!$C$5+1),OR(Y12="",ISBLANK(Y12))),"X","")) ->  | EH12: =IF($B12="","",IF(AND(EH$10<(Rounds!$C$5+1),OR(AG12="",ISBLANK(AG12))),"X","")) ->  | EI12: =IF($B12="","",IF(AND(EI$10<(Rounds!$C$5+1),OR(AO12="",ISBLANK(AO12))),"X","")) ->  | EJ12: =IF($B12="","",IF(AND(EJ$10<(Rounds!$C$5+1),OR(AW12="",ISBLANK(AW12))),"X","")) ->  | EK12: =IF($B12="","",IF(AND(EK$10<(Rounds!$C$5+1),OR(BE12="",ISBLANK(BE12))),"X","")) ->  | EL12: =IF($B12="","",IF(AND(EL$10<(Rounds!$C$5+1),OR(BM12="",ISBLANK(BM12))),"X","")) ->  | EM12: =IF($B12="","",IF(AND(EM$10<(Rounds!$C$5+1),OR(BU12="",ISBLANK(BU12))),"X","")) ->  | EN12: =IF($B12="","",IF(AND(EN$10<(Rounds!$C$5+1),OR(CC12="",ISBLANK(CC12))),"X","")) ->  | EO12: =IF($B12="","",IF(AND(EO$10<(Rounds!$C$5+1),OR(CK12="",ISBLANK(CK12))),"X","")) ->  | EP12: =IF($B12="","",IF(AND(EP$10<(Rounds!$C$5+1),OR(CS12="",ISBLANK(CS12))),"X","")) ->  | ER12: =IF($B12="","",IF(AND(ER$10<(Rounds!$C$5+1),OR(H12="",ISBLANK(H12))),"X","")) ->  | ES12: =IF($B12="","",IF(AND(ES$10<(Rounds!$C$5+1),OR(P12="",ISBLANK(P12))),"X","")) ->  | ET12: =IF($B12="","",IF(AND(ET$10<(Rounds!$C$5+1),OR(X12="",ISBLANK(X12))),"X","")) ->  | EU12: =IF($B12="","",IF(AND(EU$10<(Rounds!$C$5+1),OR(AF12="",ISBLANK(AF12))),"X","")) ->  | EV12: =IF($B12="","",IF(AND(EV$10<(Rounds!$C$5+1),OR(AN12="",ISBLANK(AN12))),"X","")) ->  | EW12: =IF($B12="","",IF(AND(EW$10<(Rounds!$C$5+1),OR(AV12="",ISBLANK(AV12))),"X","")) ->  | EX12: =IF($B12="","",IF(AND(EX$10<(Rounds!$C$5+1),OR(BD12="",ISBLANK(BD12))),"X","")) ->  | EY12: =IF($B12="","",IF(AND(EY$10<(Rounds!$C$5+1),OR(BL12="",ISBLANK(BL12))),"X","")) ->  | EZ12: =IF($B12="","",IF(AND(EZ$10<(Rounds!$C$5+1),OR(BT12="",ISBLANK(BT12))),"X","")) ->  | FA12: =IF($B12="","",IF(AND(FA$10<(Rounds!$C$5+1),OR(CB12="",ISBLANK(CB12))),"X","")) ->  | FB12: =IF($B12="","",IF(AND(FB$10<(Rounds!$C$5+1),OR(CJ12="",ISBLANK(CJ12))),"X","")) ->  | FC12: =IF($B12="","",IF(AND(FC$10<(Rounds!$C$5+1),OR(CR12="",ISBLANK(CR12))),"X","")) ->  | FE12: =IF($B12="","",IF(AND(FE$10<(Rounds!$C$5+1),OR(G12="",ISBLANK(G12))),"X","")) -> X | FF12: =IF($B12="","",IF(AND(FF$10<(Rounds!$C$5+1),OR(O12="",ISBLANK(O12))),"X","")) -> X | FG12: =IF($B12="","",IF(AND(FG$10<(Rounds!$C$5+1),OR(W12="",ISBLANK(W12))),"X","")) -> X | FH12: =IF($B12="","",IF(AND(FH$10<(Rounds!$C$5+1),OR(AE12="",ISBLANK(AE12))),"X","")) ->  | FI12: =IF($B12="","",IF(AND(FI$10<(Rounds!$C$5+1),OR(AM12="",ISBLANK(AM12))),"X","")) ->  | FJ12: =IF($B12="","",IF(AND(FJ$10<(Rounds!$C$5+1),OR(AU12="",ISBLANK(AU12))),"X","")) ->  | FK12: =IF($B12="","",IF(AND(FK$10<(Rounds!$C$5+1),OR(BC12="",ISBLANK(BC12))),"X","")) ->  | FL12: =IF($B12="","",IF(AND(FL$10<(Rounds!$C$5+1),OR(BK12="",ISBLANK(BK12))),"X","")) ->  | FM12: =IF($B12="","",IF(AND(FM$10<(Rounds!$C$5+1),OR(BS12="",ISBLANK(BS12))),"X","")) ->  | FN12: =IF($B12="","",IF(AND(FN$10<(Rounds!$C$5+1),OR(CA12="",ISBLANK(CA12))),"X","")) ->  | FO12: =IF($B12="","",IF(AND(FO$10<(Rounds!$C$5+1),OR(CI12="",ISBLANK(CI12))),"X","")) ->  | FP12: =IF($B12="","",IF(AND(FP$10<(Rounds!$C$5+1),OR(CQ12="",ISBLANK(CQ12))),"X","")) ->  | FR12: =IF($B12="","",IF(AND(FR$10<(Rounds!$C$5+1),OR(D12="",ISBLANK(F12))),"X","")) ->  | FS12: =IF($B12="","",IF(AND(FS$10<(Rounds!$C$5+1),OR(E12="",ISBLANK(N12))),"X","")) ->  | FT12: =IF($B12="","",IF(AND(FT$10<(Rounds!$C$5+1),OR(L12="",ISBLANK(V12))),"X","")) ->  | FU12: =IF($B12="","",IF(AND(FU$10<(Rounds!$C$5+1),OR(M12="",ISBLANK(AD12))),"X","")) ->  | FV12: =IF($B12="","",IF(AND(FV$10<(Rounds!$C$5+1),OR(T12="",ISBLANK(AL12))),"X","")) ->  | FW12: =IF($B12="","",IF(AND(FW$10<(Rounds!$C$5+1),OR(U12="",ISBLANK(AT12))),"X","")) ->  | FX12: =IF($B12="","",IF(AND(FX$10<(Rounds!$C$5+1),OR(AB12="",ISBLANK(BB12))),"X","")) -> X | FY12: =IF($B12="","",IF(AND(FY$10<(Rounds!$C$5+1),OR(AC12="",ISBLANK(BJ12))),"X","")) -> X | FZ12: =IF($B12="","",IF(AND(FZ$10<(Rounds!$C$5+1),OR(AJ12="",ISBLANK(BR12))),"X","")) -> X | GA12: =IF($B12="","",IF(AND(GA$10<(Rounds!$C$5+1),OR(AK12="",ISBLANK(BZ12))),"X","")) -> X | GB12: =IF($B12="","",IF(AND(GB$10<(Rounds!$C$5+1),OR(AR12="",ISBLANK(CH12))),"X","")) ->  | GC12: =IF($B12="","",IF(AND(GC$10<(Rounds!$C$5+1),OR(AS12="",ISBLANK(CP12))),"X","")) ->  | GD12: =IF($B12="","",IF(AND(GD$10<(Rounds!$C$5+1),OR(AZ12="",ISBLANK(#REF!))),"X","")) ->  | GE12: =IF($B12="","",IF(AND(GE$10<(Rounds!$C$5+1),OR(BA12="",ISBLANK(D12))),"X","")) ->  | GF12: =IF($B12="","",IF(AND(GF$10<(Rounds!$C$5+1),OR(BH12="",ISBLANK(E12))),"X","")) ->  | GG12: =IF($B12="","",IF(AND(GG$10<(Rounds!$C$5+1),OR(BI12="",ISBLANK(L12))),"X","")) ->  | GH12: =IF($B12="","",IF(AND(GH$10<(Rounds!$C$5+1),OR(BP12="",ISBLANK(M12))),"X","")) ->  | GI12: =IF($B12="","",IF(AND(GI$10<(Rounds!$C$5+1),OR(BQ12="",ISBLANK(T12))),"X","")) ->  | GJ12: =IF($B12="","",IF(AND(GJ$10<(Rounds!$C$5+1),OR(BX12="",ISBLANK(U12))),"X","")) ->  | GK12: =IF($B12="","",IF(AND(GK$10<(Rounds!$C$5+1),OR(BY12="",ISBLANK(AB12))),"X","")) ->  | GL12: =IF($B12="","",IF(AND(GL$10<(Rounds!$C$5+1),OR(CF12="",ISBLANK(AC12))),"X","")) ->  | GM12: =IF($B12="","",IF(AND(GM$10<(Rounds!$C$5+1),OR(CG12="",ISBLANK(AJ12))),"X","")) ->  | GN12: =IF($B12="","",IF(AND(GN$10<(Rounds!$C$5+1),OR(CN12="",ISBLANK(AK12))),"X","")) ->  | GO12: =IF($B12="","",IF(AND(GO$10<(Rounds!$C$5+1),OR(CO12="",ISBLANK(AR12))),"X","")) -> 
A13: 3 | B13: =+IF(OR(ISERROR(VLOOKUP($A13,Pilots!$B:$U,MATCH(B$1,Pilots!$B$1:$U$1,0),0)),VLOOKUP($A13,Pilots!$B:$U,MATCH(B$1,Pilots!$B$1:$U$1,0),0)=0),"",VLOOKUP($A13,Pilots!$B:$U,MATCH(B$1,Pilots!$B$1:$U$1,0),0)) -> Jurica Katalinić | D13: 14:12:00 | E13: 14:16:00 | F13: =+IF(OR(D13="",E13=""),"",ROUND((E13-D13)*24*60,0)) -> 4 | H13: =+IF(H$2>$C$5,"",IFERROR(VLOOKUP(IF(G13="",F13,G13),$CZ:$DB,3,0),"")) -> 460 | I13: 500 | J13: 500 | L13: 15:18:00 | M13: 15:23:00 | N13: =+IF(OR(L13="",M13=""),"",ROUND((M13-L13)*24*60,0)) -> 5 | P13: =+IF(P$2>$C$5,"",IFERROR(VLOOKUP(IF(O13="",N13,O13),$CZ:$DB,3,0),"")) -> 450 | Q13: 500 | R13: 150 | T13: 16:30:00 | U13: 16:35:00 | V13: =+IF(OR(T13="",U13=""),"",ROUND((U13-T13)*24*60,0)) -> 5 | X13: =+IF(X$2>$C$5,"",IFERROR(VLOOKUP(IF(W13="",V13,W13),$CZ:$DB,3,0),"")) -> 450 | Y13: 500 | Z13: 500 | AD13: =+IF(OR(AB13="",AC13=""),"",ROUND((AC13-AB13)*24*60,0)) ->  | AE13: 11 | AF13: =+IF(AF$2>$C$5,"",IFERROR(VLOOKUP(IF(AE13="",AD13,AE13),$CZ:$DB,3,0),"")) -> 390 | AG13: 500 | AH13: 123 | AL13: =+IF(OR(AJ13="",AK13=""),"",ROUND((AK13-AJ13)*24*60,0)) ->  | AM13: 3 | AN13: =+IF(AN$2>$C$5,"",IFERROR(VLOOKUP(IF(AM13="",AL13,AM13),$CZ:$DB,3,0),"")) -> 470 | AO13: 500 | AP13: 500 | AT13: =+IF(OR(AR13="",AS13=""),"",ROUND((AS13-AR13)*24*60,0)) ->  | AV13: =+IF(AV$2>$C$5,"",IFERROR(VLOOKUP(IF(AU13="",AT13,AU13),$CZ:$DB,3,0),"")) ->  | BB13: =+IF(OR(AZ13="",BA13=""),"",ROUND((BA13-AZ13)*24*60,0)) ->  | BD13: =+IF(BD$2>$C$5,"",IFERROR(VLOOKUP(IF(BC13="",BB13,BC13),$CZ:$DB,3,0),"")) ->  | BJ13: =+IF(OR(BH13="",BI13=""),"",ROUND((BI13-BH13)*24*60,0)) ->  | BL13: =+IF(BL$2>$C$5,"",IFERROR(VLOOKUP(IF(BK13="",BJ13,BK13),$CZ:$DB,3,0),"")) ->  | BR13: =+IF(OR(BP13="",BQ13=""),"",ROUND((BQ13-BP13)*24*60,0)) ->  | BT13: =+IF(BT$2>$C$5,"",IFERROR(VLOOKUP(IF(BS13="",BR13,BS13),$CZ:$DB,3,0),"")) ->  | BZ13: =+IF(OR(BX13="",BY13=""),"",ROUND((BY13-BX13)*24*60,0)) ->  | CB13: =+IF(CB$2>$C$5,"",IFERROR(VLOOKUP(IF(CA13="",BZ13,CA13),$CZ:$DB,3,0),"")) ->  | CH13: =+IF(OR(CF13="",CG13=""),"",ROUND((CG13-CF13)*24*60,0)) ->  | CJ13: =+IF(CJ$2>$C$5,"",IFERROR(VLOOKUP(IF(CI13="",CH13,CI13),$CZ:$DB,3,0),"")) ->  | CP13: =+IF(OR(CN13="",CO13=""),"",ROUND((CO13-CN13)*24*60,0)) ->  | CR13: =+IF(CR$2>$C$5,"",IFERROR(VLOOKUP(IF(CQ13="",CP13,CQ13),$CZ:$DB,3,0),"")) ->  | CZ13: 4 | DA13: 40 | DB13: 460 | DR13: =IF($B13="","",IF(AND(DR$10<(Rounds!$C$5+1),OR(J13="",ISBLANK(J13))),"X","")) ->  | DS13: =IF($B13="","",IF(AND(DS$10<(Rounds!$C$5+1),OR(R13="",ISBLANK(R13))),"X","")) ->  | DT13: =IF($B13="","",IF(AND(DT$10<(Rounds!$C$5+1),OR(Z13="",ISBLANK(Z13))),"X","")) ->  | DU13: =IF($B13="","",IF(AND(DU$10<(Rounds!$C$5+1),OR(AH13="",ISBLANK(AH13))),"X","")) ->  | DV13: =IF($B13="","",IF(AND(DV$10<(Rounds!$C$5+1),OR(AP13="",ISBLANK(AP13))),"X","")) ->  | DW13: =IF($B13="","",IF(AND(DW$10<(Rounds!$C$5+1),OR(AX13="",ISBLANK(AX13))),"X","")) ->  | DX13: =IF($B13="","",IF(AND(DX$10<(Rounds!$C$5+1),OR(BF13="",ISBLANK(BF13))),"X","")) ->  | DY13: =IF($B13="","",IF(AND(DY$10<(Rounds!$C$5+1),OR(BN13="",ISBLANK(BN13))),"X","")) ->  | DZ13: =IF($B13="","",IF(AND(DZ$10<(Rounds!$C$5+1),OR(BV13="",ISBLANK(BV13))),"X","")) ->  | EA13: =IF($B13="","",IF(AND(EA$10<(Rounds!$C$5+1),OR(CD13="",ISBLANK(CD13))),"X","")) ->  | EB13: =IF($B13="","",IF(AND(EB$10<(Rounds!$C$5+1),OR(CL13="",ISBLANK(CL13))),"X","")) ->  | EC13: =IF($B13="","",IF(AND(EC$10<(Rounds!$C$5+1),OR(CT13="",ISBLANK(CT13))),"X","")) ->  | EE13: =IF($B13="","",IF(AND(EE$10<(Rounds!$C$5+1),OR(I13="",ISBLANK(I13))),"X","")) ->  | EF13: =IF($B13="","",IF(AND(EF$10<(Rounds!$C$5+1),OR(Q13="",ISBLANK(Q13))),"X","")) ->  | EG13: =IF($B13="","",IF(AND(EG$10<(Rounds!$C$5+1),OR(Y13="",ISBLANK(Y13))),"X","")) ->  | EH13: =IF($B13="","",IF(AND(EH$10<(Rounds!$C$5+1),OR(AG13="",ISBLANK(AG13))),"X","")) ->  | EI13: =IF($B13="","",IF(AND(EI$10<(Rounds!$C$5+1),OR(AO13="",ISBLANK(AO13))),"X","")) ->  | EJ13: =IF($B13="","",IF(AND(EJ$10<(Rounds!$C$5+1),OR(AW13="",ISBLANK(AW13))),"X","")) ->  | EK13: =IF($B13="","",IF(AND(EK$10<(Rounds!$C$5+1),OR(BE13="",ISBLANK(BE13))),"X","")) ->  | EL13: =IF($B13="","",IF(AND(EL$10<(Rounds!$C$5+1),OR(BM13="",ISBLANK(BM13))),"X","")) ->  | EM13: =IF($B13="","",IF(AND(EM$10<(Rounds!$C$5+1),OR(BU13="",ISBLANK(BU13))),"X","")) ->  | EN13: =IF($B13="","",IF(AND(EN$10<(Rounds!$C$5+1),OR(CC13="",ISBLANK(CC13))),"X","")) ->  | EO13: =IF($B13="","",IF(AND(EO$10<(Rounds!$C$5+1),OR(CK13="",ISBLANK(CK13))),"X","")) ->  | EP13: =IF($B13="","",IF(AND(EP$10<(Rounds!$C$5+1),OR(CS13="",ISBLANK(CS13))),"X","")) ->  | ER13: =IF($B13="","",IF(AND(ER$10<(Rounds!$C$5+1),OR(H13="",ISBLANK(H13))),"X","")) ->  | ES13: =IF($B13="","",IF(AND(ES$10<(Rounds!$C$5+1),OR(P13="",ISBLANK(P13))),"X","")) ->  | ET13: =IF($B13="","",IF(AND(ET$10<(Rounds!$C$5+1),OR(X13="",ISBLANK(X13))),"X","")) ->  | EU13: =IF($B13="","",IF(AND(EU$10<(Rounds!$C$5+1),OR(AF13="",ISBLANK(AF13))),"X","")) ->  | EV13: =IF($B13="","",IF(AND(EV$10<(Rounds!$C$5+1),OR(AN13="",ISBLANK(AN13))),"X","")) ->  | EW13: =IF($B13="","",IF(AND(EW$10<(Rounds!$C$5+1),OR(AV13="",ISBLANK(AV13))),"X","")) ->  | EX13: =IF($B13="","",IF(AND(EX$10<(Rounds!$C$5+1),OR(BD13="",ISBLANK(BD13))),"X","")) ->  | EY13: =IF($B13="","",IF(AND(EY$10<(Rounds!$C$5+1),OR(BL13="",ISBLANK(BL13))),"X","")) ->  | EZ13: =IF($B13="","",IF(AND(EZ$10<(Rounds!$C$5+1),OR(BT13="",ISBLANK(BT13))),"X","")) ->  | FA13: =IF($B13="","",IF(AND(FA$10<(Rounds!$C$5+1),OR(CB13="",ISBLANK(CB13))),"X","")) ->  | FB13: =IF($B13="","",IF(AND(FB$10<(Rounds!$C$5+1),OR(CJ13="",ISBLANK(CJ13))),"X","")) ->  | FC13: =IF($B13="","",IF(AND(FC$10<(Rounds!$C$5+1),OR(CR13="",ISBLANK(CR13))),"X","")) ->  | FE13: =IF($B13="","",IF(AND(FE$10<(Rounds!$C$5+1),OR(G13="",ISBLANK(G13))),"X","")) -> X | FF13: =IF($B13="","",IF(AND(FF$10<(Rounds!$C$5+1),OR(O13="",ISBLANK(O13))),"X","")) -> X | FG13: =IF($B13="","",IF(AND(FG$10<(Rounds!$C$5+1),OR(W13="",ISBLANK(W13))),"X","")) -> X | FH13: =IF($B13="","",IF(AND(FH$10<(Rounds!$C$5+1),OR(AE13="",ISBLANK(AE13))),"X","")) ->  | FI13: =IF($B13="","",IF(AND(FI$10<(Rounds!$C$5+1),OR(AM13="",ISBLANK(AM13))),"X","")) ->  | FJ13: =IF($B13="","",IF(AND(FJ$10<(Rounds!$C$5+1),OR(AU13="",ISBLANK(AU13))),"X","")) ->  | FK13: =IF($B13="","",IF(AND(FK$10<(Rounds!$C$5+1),OR(BC13="",ISBLANK(BC13))),"X","")) ->  | FL13: =IF($B13="","",IF(AND(FL$10<(Rounds!$C$5+1),OR(BK13="",ISBLANK(BK13))),"X","")) ->  | FM13: =IF($B13="","",IF(AND(FM$10<(Rounds!$C$5+1),OR(BS13="",ISBLANK(BS13))),"X","")) ->  | FN13: =IF($B13="","",IF(AND(FN$10<(Rounds!$C$5+1),OR(CA13="",ISBLANK(CA13))),"X","")) ->  | FO13: =IF($B13="","",IF(AND(FO$10<(Rounds!$C$5+1),OR(CI13="",ISBLANK(CI13))),"X","")) ->  | FP13: =IF($B13="","",IF(AND(FP$10<(Rounds!$C$5+1),OR(CQ13="",ISBLANK(CQ13))),"X","")) ->  | FR13: =IF($B13="","",IF(AND(FR$10<(Rounds!$C$5+1),OR(D13="",ISBLANK(F13))),"X","")) ->  | FS13: =IF($B13="","",IF(AND(FS$10<(Rounds!$C$5+1),OR(E13="",ISBLANK(N13))),"X","")) ->  | FT13: =IF($B13="","",IF(AND(FT$10<(Rounds!$C$5+1),OR(L13="",ISBLANK(V13))),"X","")) ->  | FU13: =IF($B13="","",IF(AND(FU$10<(Rounds!$C$5+1),OR(M13="",ISBLANK(AD13))),"X","")) ->  | FV13: =IF($B13="","",IF(AND(FV$10<(Rounds!$C$5+1),OR(T13="",ISBLANK(AL13))),"X","")) ->  | FW13: =IF($B13="","",IF(AND(FW$10<(Rounds!$C$5+1),OR(U13="",ISBLANK(AT13))),"X","")) ->  | FX13: =IF($B13="","",IF(AND(FX$10<(Rounds!$C$5+1),OR(AB13="",ISBLANK(BB13))),"X","")) -> X | FY13: =IF($B13="","",IF(AND(FY$10<(Rounds!$C$5+1),OR(AC13="",ISBLANK(BJ13))),"X","")) -> X | FZ13: =IF($B13="","",IF(AND(FZ$10<(Rounds!$C$5+1),OR(AJ13="",ISBLANK(BR13))),"X","")) -> X | GA13: =IF($B13="","",IF(AND(GA$10<(Rounds!$C$5+1),OR(AK13="",ISBLANK(BZ13))),"X","")) -> X | GB13: =IF($B13="","",IF(AND(GB$10<(Rounds!$C$5+1),OR(AR13="",ISBLANK(CH13))),"X","")) ->  | GC13: =IF($B13="","",IF(AND(GC$10<(Rounds!$C$5+1),OR(AS13="",ISBLANK(CP13))),"X","")) ->  | GD13: =IF($B13="","",IF(AND(GD$10<(Rounds!$C$5+1),OR(AZ13="",ISBLANK(#REF!))),"X","")) ->  | GE13: =IF($B13="","",IF(AND(GE$10<(Rounds!$C$5+1),OR(BA13="",ISBLANK(D13))),"X","")) ->  | GF13: =IF($B13="","",IF(AND(GF$10<(Rounds!$C$5+1),OR(BH13="",ISBLANK(E13))),"X","")) ->  | GG13: =IF($B13="","",IF(AND(GG$10<(Rounds!$C$5+1),OR(BI13="",ISBLANK(L13))),"X","")) ->  | GH13: =IF($B13="","",IF(AND(GH$10<(Rounds!$C$5+1),OR(BP13="",ISBLANK(M13))),"X","")) ->  | GI13: =IF($B13="","",IF(AND(GI$10<(Rounds!$C$5+1),OR(BQ13="",ISBLANK(T13))),"X","")) ->  | GJ13: =IF($B13="","",IF(AND(GJ$10<(Rounds!$C$5+1),OR(BX13="",ISBLANK(U13))),"X","")) ->  | GK13: =IF($B13="","",IF(AND(GK$10<(Rounds!$C$5+1),OR(BY13="",ISBLANK(AB13))),"X","")) ->  | GL13: =IF($B13="","",IF(AND(GL$10<(Rounds!$C$5+1),OR(CF13="",ISBLANK(AC13))),"X","")) ->  | GM13: =IF($B13="","",IF(AND(GM$10<(Rounds!$C$5+1),OR(CG13="",ISBLANK(AJ13))),"X","")) ->  | GN13: =IF($B13="","",IF(AND(GN$10<(Rounds!$C$5+1),OR(CN13="",ISBLANK(AK13))),"X","")) ->  | GO13: =IF($B13="","",IF(AND(GO$10<(Rounds!$C$5+1),OR(CO13="",ISBLANK(AR13))),"X","")) -> 
A14: 4 | B14: =+IF(OR(ISERROR(VLOOKUP($A14,Pilots!$B:$U,MATCH(B$1,Pilots!$B$1:$U$1,0),0)),VLOOKUP($A14,Pilots!$B:$U,MATCH(B$1,Pilots!$B$1:$U$1,0),0)=0),"",VLOOKUP($A14,Pilots!$B:$U,MATCH(B$1,Pilots!$B$1:$U$1,0),0)) -> István Gyarmati-Szabó | D14: 14:08:00 | E14: 14:13:00 | F14: =+IF(OR(D14="",E14=""),"",ROUND((E14-D14)*24*60,0)) -> 5 | H14: =+IF(H$2>$C$5,"",IFERROR(VLOOKUP(IF(G14="",F14,G14),$CZ:$DB,3,0),"")) -> 450 | I14: 500 | J14: 385 | L14: 15:43:00 | M14: 15:46:00 | N14: =+IF(OR(L14="",M14=""),"",ROUND((M14-L14)*24*60,0)) -> 3 | P14: =+IF(P$2>$C$5,"",IFERROR(VLOOKUP(IF(O14="",N14,O14),$CZ:$DB,3,0),"")) -> 470 | Q14: 500 | R14: 500 | T14: 16:56:00 | U14: 17:13:00 | V14: =+IF(OR(T14="",U14=""),"",ROUND((U14-T14)*24*60,0)) -> 17 | X14: =+IF(X$2>$C$5,"",IFERROR(VLOOKUP(IF(W14="",V14,W14),$CZ:$DB,3,0),"")) -> 330 | Y14: 500 | Z14: 236 | AD14: =+IF(OR(AB14="",AC14=""),"",ROUND((AC14-AB14)*24*60,0)) ->  | AE14: 4 | AF14: =+IF(AF$2>$C$5,"",IFERROR(VLOOKUP(IF(AE14="",AD14,AE14),$CZ:$DB,3,0),"")) -> 460 | AG14: 500 | AH14: 500 | AL14: =+IF(OR(AJ14="",AK14=""),"",ROUND((AK14-AJ14)*24*60,0)) ->  | AM14: 3 | AN14: =+IF(AN$2>$C$5,"",IFERROR(VLOOKUP(IF(AM14="",AL14,AM14),$CZ:$DB,3,0),"")) -> 470 | AO14: 500 | AP14: 500 | AT14: =+IF(OR(AR14="",AS14=""),"",ROUND((AS14-AR14)*24*60,0)) ->  | AV14: =+IF(AV$2>$C$5,"",IFERROR(VLOOKUP(IF(AU14="",AT14,AU14),$CZ:$DB,3,0),"")) ->  | BB14: =+IF(OR(AZ14="",BA14=""),"",ROUND((BA14-AZ14)*24*60,0)) ->  | BD14: =+IF(BD$2>$C$5,"",IFERROR(VLOOKUP(IF(BC14="",BB14,BC14),$CZ:$DB,3,0),"")) ->  | BJ14: =+IF(OR(BH14="",BI14=""),"",ROUND((BI14-BH14)*24*60,0)) ->  | BL14: =+IF(BL$2>$C$5,"",IFERROR(VLOOKUP(IF(BK14="",BJ14,BK14),$CZ:$DB,3,0),"")) ->  | BR14: =+IF(OR(BP14="",BQ14=""),"",ROUND((BQ14-BP14)*24*60,0)) ->  | BT14: =+IF(BT$2>$C$5,"",IFERROR(VLOOKUP(IF(BS14="",BR14,BS14),$CZ:$DB,3,0),"")) ->  | BZ14: =+IF(OR(BX14="",BY14=""),"",ROUND((BY14-BX14)*24*60,0)) ->  | CB14: =+IF(CB$2>$C$5,"",IFERROR(VLOOKUP(IF(CA14="",BZ14,CA14),$CZ:$DB,3,0),"")) ->  | CH14: =+IF(OR(CF14="",CG14=""),"",ROUND((CG14-CF14)*24*60,0)) ->  | CJ14: =+IF(CJ$2>$C$5,"",IFERROR(VLOOKUP(IF(CI14="",CH14,CI14),$CZ:$DB,3,0),"")) ->  | CP14: =+IF(OR(CN14="",CO14=""),"",ROUND((CO14-CN14)*24*60,0)) ->  | CR14: =+IF(CR$2>$C$5,"",IFERROR(VLOOKUP(IF(CQ14="",CP14,CQ14),$CZ:$DB,3,0),"")) ->  | CZ14: 5 | DA14: 50 | DB14: 450 | DR14: =IF($B14="","",IF(AND(DR$10<(Rounds!$C$5+1),OR(J14="",ISBLANK(J14))),"X","")) ->  | DS14: =IF($B14="","",IF(AND(DS$10<(Rounds!$C$5+1),OR(R14="",ISBLANK(R14))),"X","")) ->  | DT14: =IF($B14="","",IF(AND(DT$10<(Rounds!$C$5+1),OR(Z14="",ISBLANK(Z14))),"X","")) ->  | DU14: =IF($B14="","",IF(AND(DU$10<(Rounds!$C$5+1),OR(AH14="",ISBLANK(AH14))),"X","")) ->  | DV14: =IF($B14="","",IF(AND(DV$10<(Rounds!$C$5+1),OR(AP14="",ISBLANK(AP14))),"X","")) ->  | DW14: =IF($B14="","",IF(AND(DW$10<(Rounds!$C$5+1),OR(AX14="",ISBLANK(AX14))),"X","")) ->  | DX14: =IF($B14="","",IF(AND(DX$10<(Rounds!$C$5+1),OR(BF14="",ISBLANK(BF14))),"X","")) ->  | DY14: =IF($B14="","",IF(AND(DY$10<(Rounds!$C$5+1),OR(BN14="",ISBLANK(BN14))),"X","")) ->  | DZ14: =IF($B14="","",IF(AND(DZ$10<(Rounds!$C$5+1),OR(BV14="",ISBLANK(BV14))),"X","")) ->  | EA14: =IF($B14="","",IF(AND(EA$10<(Rounds!$C$5+1),OR(CD14="",ISBLANK(CD14))),"X","")) ->  | EB14: =IF($B14="","",IF(AND(EB$10<(Rounds!$C$5+1),OR(CL14="",ISBLANK(CL14))),"X","")) ->  | EC14: =IF($B14="","",IF(AND(EC$10<(Rounds!$C$5+1),OR(CT14="",ISBLANK(CT14))),"X","")) ->  | EE14: =IF($B14="","",IF(AND(EE$10<(Rounds!$C$5+1),OR(I14="",ISBLANK(I14))),"X","")) ->  | EF14: =IF($B14="","",IF(AND(EF$10<(Rounds!$C$5+1),OR(Q14="",ISBLANK(Q14))),"X","")) ->  | EG14: =IF($B14="","",IF(AND(EG$10<(Rounds!$C$5+1),OR(Y14="",ISBLANK(Y14))),"X","")) ->  | EH14: =IF($B14="","",IF(AND(EH$10<(Rounds!$C$5+1),OR(AG14="",ISBLANK(AG14))),"X","")) ->  | EI14: =IF($B14="","",IF(AND(EI$10<(Rounds!$C$5+1),OR(AO14="",ISBLANK(AO14))),"X","")) ->  | EJ14: =IF($B14="","",IF(AND(EJ$10<(Rounds!$C$5+1),OR(AW14="",ISBLANK(AW14))),"X","")) ->  | EK14: =IF($B14="","",IF(AND(EK$10<(Rounds!$C$5+1),OR(BE14="",ISBLANK(BE14))),"X","")) ->  | EL14: =IF($B14="","",IF(AND(EL$10<(Rounds!$C$5+1),OR(BM14="",ISBLANK(BM14))),"X","")) ->  | EM14: =IF($B14="","",IF(AND(EM$10<(Rounds!$C$5+1),OR(BU14="",ISBLANK(BU14))),"X","")) ->  | EN14: =IF($B14="","",IF(AND(EN$10<(Rounds!$C$5+1),OR(CC14="",ISBLANK(CC14))),"X","")) ->  | EO14: =IF($B14="","",IF(AND(EO$10<(Rounds!$C$5+1),OR(CK14="",ISBLANK(CK14))),"X","")) ->  | EP14: =IF($B14="","",IF(AND(EP$10<(Rounds!$C$5+1),OR(CS14="",ISBLANK(CS14))),"X","")) ->  | ER14: =IF($B14="","",IF(AND(ER$10<(Rounds!$C$5+1),OR(H14="",ISBLANK(H14))),"X","")) ->  | ES14: =IF($B14="","",IF(AND(ES$10<(Rounds!$C$5+1),OR(P14="",ISBLANK(P14))),"X","")) ->  | ET14: =IF($B14="","",IF(AND(ET$10<(Rounds!$C$5+1),OR(X14="",ISBLANK(X14))),"X","")) ->  | EU14: =IF($B14="","",IF(AND(EU$10<(Rounds!$C$5+1),OR(AF14="",ISBLANK(AF14))),"X","")) ->  | EV14: =IF($B14="","",IF(AND(EV$10<(Rounds!$C$5+1),OR(AN14="",ISBLANK(AN14))),"X","")) ->  | EW14: =IF($B14="","",IF(AND(EW$10<(Rounds!$C$5+1),OR(AV14="",ISBLANK(AV14))),"X","")) ->  | EX14: =IF($B14="","",IF(AND(EX$10<(Rounds!$C$5+1),OR(BD14="",ISBLANK(BD14))),"X","")) ->  | EY14: =IF($B14="","",IF(AND(EY$10<(Rounds!$C$5+1),OR(BL14="",ISBLANK(BL14))),"X","")) ->  | EZ14: =IF($B14="","",IF(AND(EZ$10<(Rounds!$C$5+1),OR(BT14="",ISBLANK(BT14))),"X","")) ->  | FA14: =IF($B14="","",IF(AND(FA$10<(Rounds!$C$5+1),OR(CB14="",ISBLANK(CB14))),"X","")) ->  | FB14: =IF($B14="","",IF(AND(FB$10<(Rounds!$C$5+1),OR(CJ14="",ISBLANK(CJ14))),"X","")) ->  | FC14: =IF($B14="","",IF(AND(FC$10<(Rounds!$C$5+1),OR(CR14="",ISBLANK(CR14))),"X","")) ->  | FE14: =IF($B14="","",IF(AND(FE$10<(Rounds!$C$5+1),OR(G14="",ISBLANK(G14))),"X","")) -> X | FF14: =IF($B14="","",IF(AND(FF$10<(Rounds!$C$5+1),OR(O14="",ISBLANK(O14))),"X","")) -> X | FG14: =IF($B14="","",IF(AND(FG$10<(Rounds!$C$5+1),OR(W14="",ISBLANK(W14))),"X","")) -> X | FH14: =IF($B14="","",IF(AND(FH$10<(Rounds!$C$5+1),OR(AE14="",ISBLANK(AE14))),"X","")) ->  | FI14: =IF($B14="","",IF(AND(FI$10<(Rounds!$C$5+1),OR(AM14="",ISBLANK(AM14))),"X","")) ->  | FJ14: =IF($B14="","",IF(AND(FJ$10<(Rounds!$C$5+1),OR(AU14="",ISBLANK(AU14))),"X","")) ->  | FK14: =IF($B14="","",IF(AND(FK$10<(Rounds!$C$5+1),OR(BC14="",ISBLANK(BC14))),"X","")) ->  | FL14: =IF($B14="","",IF(AND(FL$10<(Rounds!$C$5+1),OR(BK14="",ISBLANK(BK14))),"X","")) ->  | FM14: =IF($B14="","",IF(AND(FM$10<(Rounds!$C$5+1),OR(BS14="",ISBLANK(BS14))),"X","")) ->  | FN14: =IF($B14="","",IF(AND(FN$10<(Rounds!$C$5+1),OR(CA14="",ISBLANK(CA14))),"X","")) ->  | FO14: =IF($B14="","",IF(AND(FO$10<(Rounds!$C$5+1),OR(CI14="",ISBLANK(CI14))),"X","")) ->  | FP14: =IF($B14="","",IF(AND(FP$10<(Rounds!$C$5+1),OR(CQ14="",ISBLANK(CQ14))),"X","")) ->  | FR14: =IF($B14="","",IF(AND(FR$10<(Rounds!$C$5+1),OR(D14="",ISBLANK(F14))),"X","")) ->  | FS14: =IF($B14="","",IF(AND(FS$10<(Rounds!$C$5+1),OR(E14="",ISBLANK(N14))),"X","")) ->  | FT14: =IF($B14="","",IF(AND(FT$10<(Rounds!$C$5+1),OR(L14="",ISBLANK(V14))),"X","")) ->  | FU14: =IF($B14="","",IF(AND(FU$10<(Rounds!$C$5+1),OR(M14="",ISBLANK(AD14))),"X","")) ->  | FV14: =IF($B14="","",IF(AND(FV$10<(Rounds!$C$5+1),OR(T14="",ISBLANK(AL14))),"X","")) ->  | FW14: =IF($B14="","",IF(AND(FW$10<(Rounds!$C$5+1),OR(U14="",ISBLANK(AT14))),"X","")) ->  | FX14: =IF($B14="","",IF(AND(FX$10<(Rounds!$C$5+1),OR(AB14="",ISBLANK(BB14))),"X","")) -> X | FY14: =IF($B14="","",IF(AND(FY$10<(Rounds!$C$5+1),OR(AC14="",ISBLANK(BJ14))),"X","")) -> X | FZ14: =IF($B14="","",IF(AND(FZ$10<(Rounds!$C$5+1),OR(AJ14="",ISBLANK(BR14))),"X","")) -> X | GA14: =IF($B14="","",IF(AND(GA$10<(Rounds!$C$5+1),OR(AK14="",ISBLANK(BZ14))),"X","")) -> X | GB14: =IF($B14="","",IF(AND(GB$10<(Rounds!$C$5+1),OR(AR14="",ISBLANK(CH14))),"X","")) ->  | GC14: =IF($B14="","",IF(AND(GC$10<(Rounds!$C$5+1),OR(AS14="",ISBLANK(CP14))),"X","")) ->  | GD14: =IF($B14="","",IF(AND(GD$10<(Rounds!$C$5+1),OR(AZ14="",ISBLANK(#REF!))),"X","")) ->  | GE14: =IF($B14="","",IF(AND(GE$10<(Rounds!$C$5+1),OR(BA14="",ISBLANK(D14))),"X","")) ->  | GF14: =IF($B14="","",IF(AND(GF$10<(Rounds!$C$5+1),OR(BH14="",ISBLANK(E14))),"X","")) ->  | GG14: =IF($B14="","",IF(AND(GG$10<(Rounds!$C$5+1),OR(BI14="",ISBLANK(L14))),"X","")) ->  | GH14: =IF($B14="","",IF(AND(GH$10<(Rounds!$C$5+1),OR(BP14="",ISBLANK(M14))),"X","")) ->  | GI14: =IF($B14="","",IF(AND(GI$10<(Rounds!$C$5+1),OR(BQ14="",ISBLANK(T14))),"X","")) ->  | GJ14: =IF($B14="","",IF(AND(GJ$10<(Rounds!$C$5+1),OR(BX14="",ISBLANK(U14))),"X","")) ->  | GK14: =IF($B14="","",IF(AND(GK$10<(Rounds!$C$5+1),OR(BY14="",ISBLANK(AB14))),"X","")) ->  | GL14: =IF($B14="","",IF(AND(GL$10<(Rounds!$C$5+1),OR(CF14="",ISBLANK(AC14))),"X","")) ->  | GM14: =IF($B14="","",IF(AND(GM$10<(Rounds!$C$5+1),OR(CG14="",ISBLANK(AJ14))),"X","")) ->  | GN14: =IF($B14="","",IF(AND(GN$10<(Rounds!$C$5+1),OR(CN14="",ISBLANK(AK14))),"X","")) ->  | GO14: =IF($B14="","",IF(AND(GO$10<(Rounds!$C$5+1),OR(CO14="",ISBLANK(AR14))),"X","")) -> 
A15: 5 | B15: =+IF(OR(ISERROR(VLOOKUP($A15,Pilots!$B:$U,MATCH(B$1,Pilots!$B$1:$U$1,0),0)),VLOOKUP($A15,Pilots!$B:$U,MATCH(B$1,Pilots!$B$1:$U$1,0),0)=0),"",VLOOKUP($A15,Pilots!$B:$U,MATCH(B$1,Pilots!$B$1:$U$1,0),0)) -> Dániel Hartmann | D15: 13:59:00 | E15: 14:05:00 | F15: =+IF(OR(D15="",E15=""),"",ROUND((E15-D15)*24*60,0)) -> 6 | H15: =+IF(H$2>$C$5,"",IFERROR(VLOOKUP(IF(G15="",F15,G15),$CZ:$DB,3,0),"")) -> 440 | I15: 311 | J15: 500 | L15: 15:27:00 | M15: 15:35:00 | N15: =+IF(OR(L15="",M15=""),"",ROUND((M15-L15)*24*60,0)) -> 8 | P15: =+IF(P$2>$C$5,"",IFERROR(VLOOKUP(IF(O15="",N15,O15),$CZ:$DB,3,0),"")) -> 420 | Q15: 500 | R15: 31 | T15: 16:44:00 | U15: 17:02:00 | V15: =+IF(OR(T15="",U15=""),"",ROUND((U15-T15)*24*60,0)) -> 18 | X15: =+IF(X$2>$C$5,"",IFERROR(VLOOKUP(IF(W15="",V15,W15),$CZ:$DB,3,0),"")) -> 320 | Y15: 500 | Z15: 500 | AD15: =+IF(OR(AB15="",AC15=""),"",ROUND((AC15-AB15)*24*60,0)) ->  | AE15: 4 | AF15: =+IF(AF$2>$C$5,"",IFERROR(VLOOKUP(IF(AE15="",AD15,AE15),$CZ:$DB,3,0),"")) -> 460 | AG15: 500 | AH15: 500 | AL15: =+IF(OR(AJ15="",AK15=""),"",ROUND((AK15-AJ15)*24*60,0)) ->  | AM15: 3 | AN15: =+IF(AN$2>$C$5,"",IFERROR(VLOOKUP(IF(AM15="",AL15,AM15),$CZ:$DB,3,0),"")) -> 470 | AO15: 500 | AP15: 137 | AT15: =+IF(OR(AR15="",AS15=""),"",ROUND((AS15-AR15)*24*60,0)) ->  | AV15: =+IF(AV$2>$C$5,"",IFERROR(VLOOKUP(IF(AU15="",AT15,AU15),$CZ:$DB,3,0),"")) ->  | BB15: =+IF(OR(AZ15="",BA15=""),"",ROUND((BA15-AZ15)*24*60,0)) ->  | BD15: =+IF(BD$2>$C$5,"",IFERROR(VLOOKUP(IF(BC15="",BB15,BC15),$CZ:$DB,3,0),"")) ->  | BJ15: =+IF(OR(BH15="",BI15=""),"",ROUND((BI15-BH15)*24*60,0)) ->  | BL15: =+IF(BL$2>$C$5,"",IFERROR(VLOOKUP(IF(BK15="",BJ15,BK15),$CZ:$DB,3,0),"")) ->  | BR15: =+IF(OR(BP15="",BQ15=""),"",ROUND((BQ15-BP15)*24*60,0)) ->  | BT15: =+IF(BT$2>$C$5,"",IFERROR(VLOOKUP(IF(BS15="",BR15,BS15),$CZ:$DB,3,0),"")) ->  | BZ15: =+IF(OR(BX15="",BY15=""),"",ROUND((BY15-BX15)*24*60,0)) ->  | CB15: =+IF(CB$2>$C$5,"",IFERROR(VLOOKUP(IF(CA15="",BZ15,CA15),$CZ:$DB,3,0),"")) ->  | CH15: =+IF(OR(CF15="",CG15=""),"",ROUND((CG15-CF15)*24*60,0)) ->  | CJ15: =+IF(CJ$2>$C$5,"",IFERROR(VLOOKUP(IF(CI15="",CH15,CI15),$CZ:$DB,3,0),"")) ->  | CP15: =+IF(OR(CN15="",CO15=""),"",ROUND((CO15-CN15)*24*60,0)) ->  | CR15: =+IF(CR$2>$C$5,"",IFERROR(VLOOKUP(IF(CQ15="",CP15,CQ15),$CZ:$DB,3,0),"")) ->  | CZ15: 6 | DA15: 60 | DB15: 440 | DR15: =IF($B15="","",IF(AND(DR$10<(Rounds!$C$5+1),OR(J15="",ISBLANK(J15))),"X","")) ->  | DS15: =IF($B15="","",IF(AND(DS$10<(Rounds!$C$5+1),OR(R15="",ISBLANK(R15))),"X","")) ->  | DT15: =IF($B15="","",IF(AND(DT$10<(Rounds!$C$5+1),OR(Z15="",ISBLANK(Z15))),"X","")) ->  | DU15: =IF($B15="","",IF(AND(DU$10<(Rounds!$C$5+1),OR(AH15="",ISBLANK(AH15))),"X","")) ->  | DV15: =IF($B15="","",IF(AND(DV$10<(Rounds!$C$5+1),OR(AP15="",ISBLANK(AP15))),"X","")) ->  | DW15: =IF($B15="","",IF(AND(DW$10<(Rounds!$C$5+1),OR(AX15="",ISBLANK(AX15))),"X","")) ->  | DX15: =IF($B15="","",IF(AND(DX$10<(Rounds!$C$5+1),OR(BF15="",ISBLANK(BF15))),"X","")) ->  | DY15: =IF($B15="","",IF(AND(DY$10<(Rounds!$C$5+1),OR(BN15="",ISBLANK(BN15))),"X","")) ->  | DZ15: =IF($B15="","",IF(AND(DZ$10<(Rounds!$C$5+1),OR(BV15="",ISBLANK(BV15))),"X","")) ->  | EA15: =IF($B15="","",IF(AND(EA$10<(Rounds!$C$5+1),OR(CD15="",ISBLANK(CD15))),"X","")) ->  | EB15: =IF($B15="","",IF(AND(EB$10<(Rounds!$C$5+1),OR(CL15="",ISBLANK(CL15))),"X","")) ->  | EC15: =IF($B15="","",IF(AND(EC$10<(Rounds!$C$5+1),OR(CT15="",ISBLANK(CT15))),"X","")) ->  | EE15: =IF($B15="","",IF(AND(EE$10<(Rounds!$C$5+1),OR(I15="",ISBLANK(I15))),"X","")) ->  | EF15: =IF($B15="","",IF(AND(EF$10<(Rounds!$C$5+1),OR(Q15="",ISBLANK(Q15))),"X","")) ->  | EG15: =IF($B15="","",IF(AND(EG$10<(Rounds!$C$5+1),OR(Y15="",ISBLANK(Y15))),"X","")) ->  | EH15: =IF($B15="","",IF(AND(EH$10<(Rounds!$C$5+1),OR(AG15="",ISBLANK(AG15))),"X","")) ->  | EI15: =IF($B15="","",IF(AND(EI$10<(Rounds!$C$5+1),OR(AO15="",ISBLANK(AO15))),"X","")) ->  | EJ15: =IF($B15="","",IF(AND(EJ$10<(Rounds!$C$5+1),OR(AW15="",ISBLANK(AW15))),"X","")) ->  | EK15: =IF($B15="","",IF(AND(EK$10<(Rounds!$C$5+1),OR(BE15="",ISBLANK(BE15))),"X","")) ->  | EL15: =IF($B15="","",IF(AND(EL$10<(Rounds!$C$5+1),OR(BM15="",ISBLANK(BM15))),"X","")) ->  | EM15: =IF($B15="","",IF(AND(EM$10<(Rounds!$C$5+1),OR(BU15="",ISBLANK(BU15))),"X","")) ->  | EN15: =IF($B15="","",IF(AND(EN$10<(Rounds!$C$5+1),OR(CC15="",ISBLANK(CC15))),"X","")) ->  | EO15: =IF($B15="","",IF(AND(EO$10<(Rounds!$C$5+1),OR(CK15="",ISBLANK(CK15))),"X","")) ->  | EP15: =IF($B15="","",IF(AND(EP$10<(Rounds!$C$5+1),OR(CS15="",ISBLANK(CS15))),"X","")) ->  | ER15: =IF($B15="","",IF(AND(ER$10<(Rounds!$C$5+1),OR(H15="",ISBLANK(H15))),"X","")) ->  | ES15: =IF($B15="","",IF(AND(ES$10<(Rounds!$C$5+1),OR(P15="",ISBLANK(P15))),"X","")) ->  | ET15: =IF($B15="","",IF(AND(ET$10<(Rounds!$C$5+1),OR(X15="",ISBLANK(X15))),"X","")) ->  | EU15: =IF($B15="","",IF(AND(EU$10<(Rounds!$C$5+1),OR(AF15="",ISBLANK(AF15))),"X","")) ->  | EV15: =IF($B15="","",IF(AND(EV$10<(Rounds!$C$5+1),OR(AN15="",ISBLANK(AN15))),"X","")) ->  | EW15: =IF($B15="","",IF(AND(EW$10<(Rounds!$C$5+1),OR(AV15="",ISBLANK(AV15))),"X","")) ->  | EX15: =IF($B15="","",IF(AND(EX$10<(Rounds!$C$5+1),OR(BD15="",ISBLANK(BD15))),"X","")) ->  | EY15: =IF($B15="","",IF(AND(EY$10<(Rounds!$C$5+1),OR(BL15="",ISBLANK(BL15))),"X","")) ->  | EZ15: =IF($B15="","",IF(AND(EZ$10<(Rounds!$C$5+1),OR(BT15="",ISBLANK(BT15))),"X","")) ->  | FA15: =IF($B15="","",IF(AND(FA$10<(Rounds!$C$5+1),OR(CB15="",ISBLANK(CB15))),"X","")) ->  | FB15: =IF($B15="","",IF(AND(FB$10<(Rounds!$C$5+1),OR(CJ15="",ISBLANK(CJ15))),"X","")) ->  | FC15: =IF($B15="","",IF(AND(FC$10<(Rounds!$C$5+1),OR(CR15="",ISBLANK(CR15))),"X","")) ->  | FE15: =IF($B15="","",IF(AND(FE$10<(Rounds!$C$5+1),OR(G15="",ISBLANK(G15))),"X","")) -> X | FF15: =IF($B15="","",IF(AND(FF$10<(Rounds!$C$5+1),OR(O15="",ISBLANK(O15))),"X","")) -> X | FG15: =IF($B15="","",IF(AND(FG$10<(Rounds!$C$5+1),OR(W15="",ISBLANK(W15))),"X","")) -> X | FH15: =IF($B15="","",IF(AND(FH$10<(Rounds!$C$5+1),OR(AE15="",ISBLANK(AE15))),"X","")) ->  | FI15: =IF($B15="","",IF(AND(FI$10<(Rounds!$C$5+1),OR(AM15="",ISBLANK(AM15))),"X","")) ->  | FJ15: =IF($B15="","",IF(AND(FJ$10<(Rounds!$C$5+1),OR(AU15="",ISBLANK(AU15))),"X","")) ->  | FK15: =IF($B15="","",IF(AND(FK$10<(Rounds!$C$5+1),OR(BC15="",ISBLANK(BC15))),"X","")) ->  | FL15: =IF($B15="","",IF(AND(FL$10<(Rounds!$C$5+1),OR(BK15="",ISBLANK(BK15))),"X","")) ->  | FM15: =IF($B15="","",IF(AND(FM$10<(Rounds!$C$5+1),OR(BS15="",ISBLANK(BS15))),"X","")) ->  | FN15: =IF($B15="","",IF(AND(FN$10<(Rounds!$C$5+1),OR(CA15="",ISBLANK(CA15))),"X","")) ->  | FO15: =IF($B15="","",IF(AND(FO$10<(Rounds!$C$5+1),OR(CI15="",ISBLANK(CI15))),"X","")) ->  | FP15: =IF($B15="","",IF(AND(FP$10<(Rounds!$C$5+1),OR(CQ15="",ISBLANK(CQ15))),"X","")) ->  | FR15: =IF($B15="","",IF(AND(FR$10<(Rounds!$C$5+1),OR(D15="",ISBLANK(F15))),"X","")) ->  | FS15: =IF($B15="","",IF(AND(FS$10<(Rounds!$C$5+1),OR(E15="",ISBLANK(N15))),"X","")) ->  | FT15: =IF($B15="","",IF(AND(FT$10<(Rounds!$C$5+1),OR(L15="",ISBLANK(V15))),"X","")) ->  | FU15: =IF($B15="","",IF(AND(FU$10<(Rounds!$C$5+1),OR(M15="",ISBLANK(AD15))),"X","")) ->  | FV15: =IF($B15="","",IF(AND(FV$10<(Rounds!$C$5+1),OR(T15="",ISBLANK(AL15))),"X","")) ->  | FW15: =IF($B15="","",IF(AND(FW$10<(Rounds!$C$5+1),OR(U15="",ISBLANK(AT15))),"X","")) ->  | FX15: =IF($B15="","",IF(AND(FX$10<(Rounds!$C$5+1),OR(AB15="",ISBLANK(BB15))),"X","")) -> X | FY15: =IF($B15="","",IF(AND(FY$10<(Rounds!$C$5+1),OR(AC15="",ISBLANK(BJ15))),"X","")) -> X | FZ15: =IF($B15="","",IF(AND(FZ$10<(Rounds!$C$5+1),OR(AJ15="",ISBLANK(BR15))),"X","")) -> X | GA15: =IF($B15="","",IF(AND(GA$10<(Rounds!$C$5+1),OR(AK15="",ISBLANK(BZ15))),"X","")) -> X | GB15: =IF($B15="","",IF(AND(GB$10<(Rounds!$C$5+1),OR(AR15="",ISBLANK(CH15))),"X","")) ->  | GC15: =IF($B15="","",IF(AND(GC$10<(Rounds!$C$5+1),OR(AS15="",ISBLANK(CP15))),"X","")) ->  | GD15: =IF($B15="","",IF(AND(GD$10<(Rounds!$C$5+1),OR(AZ15="",ISBLANK(#REF!))),"X","")) ->  | GE15: =IF($B15="","",IF(AND(GE$10<(Rounds!$C$5+1),OR(BA15="",ISBLANK(D15))),"X","")) ->  | GF15: =IF($B15="","",IF(AND(GF$10<(Rounds!$C$5+1),OR(BH15="",ISBLANK(E15))),"X","")) ->  | GG15: =IF($B15="","",IF(AND(GG$10<(Rounds!$C$5+1),OR(BI15="",ISBLANK(L15))),"X","")) ->  | GH15: =IF($B15="","",IF(AND(GH$10<(Rounds!$C$5+1),OR(BP15="",ISBLANK(M15))),"X","")) ->  | GI15: =IF($B15="","",IF(AND(GI$10<(Rounds!$C$5+1),OR(BQ15="",ISBLANK(T15))),"X","")) ->  | GJ15: =IF($B15="","",IF(AND(GJ$10<(Rounds!$C$5+1),OR(BX15="",ISBLANK(U15))),"X","")) ->  | GK15: =IF($B15="","",IF(AND(GK$10<(Rounds!$C$5+1),OR(BY15="",ISBLANK(AB15))),"X","")) ->  | GL15: =IF($B15="","",IF(AND(GL$10<(Rounds!$C$5+1),OR(CF15="",ISBLANK(AC15))),"X","")) ->  | GM15: =IF($B15="","",IF(AND(GM$10<(Rounds!$C$5+1),OR(CG15="",ISBLANK(AJ15))),"X","")) ->  | GN15: =IF($B15="","",IF(AND(GN$10<(Rounds!$C$5+1),OR(CN15="",ISBLANK(AK15))),"X","")) ->  | GO15: =IF($B15="","",IF(AND(GO$10<(Rounds!$C$5+1),OR(CO15="",ISBLANK(AR15))),"X","")) -> 
A16: 6 | B16: =+IF(OR(ISERROR(VLOOKUP($A16,Pilots!$B:$U,MATCH(B$1,Pilots!$B$1:$U$1,0),0)),VLOOKUP($A16,Pilots!$B:$U,MATCH(B$1,Pilots!$B$1:$U$1,0),0)=0),"",VLOOKUP($A16,Pilots!$B:$U,MATCH(B$1,Pilots!$B$1:$U$1,0),0)) -> Miljan Zeković | D16: 14:04:00 | E16: 14:06:00 | F16: =+IF(OR(D16="",E16=""),"",ROUND((E16-D16)*24*60,0)) -> 2 | H16: =+IF(H$2>$C$5,"",IFERROR(VLOOKUP(IF(G16="",F16,G16),$CZ:$DB,3,0),"")) -> 480 | I16: 500 | J16: 500 | L16: 15:37:00 | M16: 15:40:00 | N16: =+IF(OR(L16="",M16=""),"",ROUND((M16-L16)*24*60,0)) -> 3 | P16: =+IF(P$2>$C$5,"",IFERROR(VLOOKUP(IF(O16="",N16,O16),$CZ:$DB,3,0),"")) -> 470 | Q16: 500 | R16: 500 | T16: 16:58:00 | U16: 17:03:00 | V16: =+IF(OR(T16="",U16=""),"",ROUND((U16-T16)*24*60,0)) -> 5 | X16: =+IF(X$2>$C$5,"",IFERROR(VLOOKUP(IF(W16="",V16,W16),$CZ:$DB,3,0),"")) -> 450 | Y16: 397 | Z16: 500 | AD16: =+IF(OR(AB16="",AC16=""),"",ROUND((AC16-AB16)*24*60,0)) ->  | AE16: 2 | AF16: =+IF(AF$2>$C$5,"",IFERROR(VLOOKUP(IF(AE16="",AD16,AE16),$CZ:$DB,3,0),"")) -> 480 | AG16: 500 | AH16: 500 | AL16: =+IF(OR(AJ16="",AK16=""),"",ROUND((AK16-AJ16)*24*60,0)) ->  | AM16: 3 | AN16: =+IF(AN$2>$C$5,"",IFERROR(VLOOKUP(IF(AM16="",AL16,AM16),$CZ:$DB,3,0),"")) -> 470 | AO16: 500 | AP16: 46 | AT16: =+IF(OR(AR16="",AS16=""),"",ROUND((AS16-AR16)*24*60,0)) ->  | AV16: =+IF(AV$2>$C$5,"",IFERROR(VLOOKUP(IF(AU16="",AT16,AU16),$CZ:$DB,3,0),"")) ->  | BB16: =+IF(OR(AZ16="",BA16=""),"",ROUND((BA16-AZ16)*24*60,0)) ->  | BD16: =+IF(BD$2>$C$5,"",IFERROR(VLOOKUP(IF(BC16="",BB16,BC16),$CZ:$DB,3,0),"")) ->  | BJ16: =+IF(OR(BH16="",BI16=""),"",ROUND((BI16-BH16)*24*60,0)) ->  | BL16: =+IF(BL$2>$C$5,"",IFERROR(VLOOKUP(IF(BK16="",BJ16,BK16),$CZ:$DB,3,0),"")) ->  | BR16: =+IF(OR(BP16="",BQ16=""),"",ROUND((BQ16-BP16)*24*60,0)) ->  | BT16: =+IF(BT$2>$C$5,"",IFERROR(VLOOKUP(IF(BS16="",BR16,BS16),$CZ:$DB,3,0),"")) ->  | BZ16: =+IF(OR(BX16="",BY16=""),"",ROUND((BY16-BX16)*24*60,0)) ->  | CB16: =+IF(CB$2>$C$5,"",IFERROR(VLOOKUP(IF(CA16="",BZ16,CA16),$CZ:$DB,3,0),"")) ->  | CH16: =+IF(OR(CF16="",CG16=""),"",ROUND((CG16-CF16)*24*60,0)) ->  | CJ16: =+IF(CJ$2>$C$5,"",IFERROR(VLOOKUP(IF(CI16="",CH16,CI16),$CZ:$DB,3,0),"")) ->  | CP16: =+IF(OR(CN16="",CO16=""),"",ROUND((CO16-CN16)*24*60,0)) ->  | CR16: =+IF(CR$2>$C$5,"",IFERROR(VLOOKUP(IF(CQ16="",CP16,CQ16),$CZ:$DB,3,0),"")) ->  | CZ16: 7 | DA16: 70 | DB16: 430 | DR16: =IF($B16="","",IF(AND(DR$10<(Rounds!$C$5+1),OR(J16="",ISBLANK(J16))),"X","")) ->  | DS16: =IF($B16="","",IF(AND(DS$10<(Rounds!$C$5+1),OR(R16="",ISBLANK(R16))),"X","")) ->  | DT16: =IF($B16="","",IF(AND(DT$10<(Rounds!$C$5+1),OR(Z16="",ISBLANK(Z16))),"X","")) ->  | DU16: =IF($B16="","",IF(AND(DU$10<(Rounds!$C$5+1),OR(AH16="",ISBLANK(AH16))),"X","")) ->  | DV16: =IF($B16="","",IF(AND(DV$10<(Rounds!$C$5+1),OR(AP16="",ISBLANK(AP16))),"X","")) ->  | DW16: =IF($B16="","",IF(AND(DW$10<(Rounds!$C$5+1),OR(AX16="",ISBLANK(AX16))),"X","")) ->  | DX16: =IF($B16="","",IF(AND(DX$10<(Rounds!$C$5+1),OR(BF16="",ISBLANK(BF16))),"X","")) ->  | DY16: =IF($B16="","",IF(AND(DY$10<(Rounds!$C$5+1),OR(BN16="",ISBLANK(BN16))),"X","")) ->  | DZ16: =IF($B16="","",IF(AND(DZ$10<(Rounds!$C$5+1),OR(BV16="",ISBLANK(BV16))),"X","")) ->  | EA16: =IF($B16="","",IF(AND(EA$10<(Rounds!$C$5+1),OR(CD16="",ISBLANK(CD16))),"X","")) ->  | EB16: =IF($B16="","",IF(AND(EB$10<(Rounds!$C$5+1),OR(CL16="",ISBLANK(CL16))),"X","")) ->  | EC16: =IF($B16="","",IF(AND(EC$10<(Rounds!$C$5+1),OR(CT16="",ISBLANK(CT16))),"X","")) ->  | EE16: =IF($B16="","",IF(AND(EE$10<(Rounds!$C$5+1),OR(I16="",ISBLANK(I16))),"X","")) ->  | EF16: =IF($B16="","",IF(AND(EF$10<(Rounds!$C$5+1),OR(Q16="",ISBLANK(Q16))),"X","")) ->  | EG16: =IF($B16="","",IF(AND(EG$10<(Rounds!$C$5+1),OR(Y16="",ISBLANK(Y16))),"X","")) ->  | EH16: =IF($B16="","",IF(AND(EH$10<(Rounds!$C$5+1),OR(AG16="",ISBLANK(AG16))),"X","")) ->  | EI16: =IF($B16="","",IF(AND(EI$10<(Rounds!$C$5+1),OR(AO16="",ISBLANK(AO16))),"X","")) ->  | EJ16: =IF($B16="","",IF(AND(EJ$10<(Rounds!$C$5+1),OR(AW16="",ISBLANK(AW16))),"X","")) ->  | EK16: =IF($B16="","",IF(AND(EK$10<(Rounds!$C$5+1),OR(BE16="",ISBLANK(BE16))),"X","")) ->  | EL16: =IF($B16="","",IF(AND(EL$10<(Rounds!$C$5+1),OR(BM16="",ISBLANK(BM16))),"X","")) ->  | EM16: =IF($B16="","",IF(AND(EM$10<(Rounds!$C$5+1),OR(BU16="",ISBLANK(BU16))),"X","")) ->  | EN16: =IF($B16="","",IF(AND(EN$10<(Rounds!$C$5+1),OR(CC16="",ISBLANK(CC16))),"X","")) ->  | EO16: =IF($B16="","",IF(AND(EO$10<(Rounds!$C$5+1),OR(CK16="",ISBLANK(CK16))),"X","")) ->  | EP16: =IF($B16="","",IF(AND(EP$10<(Rounds!$C$5+1),OR(CS16="",ISBLANK(CS16))),"X","")) ->  | ER16: =IF($B16="","",IF(AND(ER$10<(Rounds!$C$5+1),OR(H16="",ISBLANK(H16))),"X","")) ->  | ES16: =IF($B16="","",IF(AND(ES$10<(Rounds!$C$5+1),OR(P16="",ISBLANK(P16))),"X","")) ->  | ET16: =IF($B16="","",IF(AND(ET$10<(Rounds!$C$5+1),OR(X16="",ISBLANK(X16))),"X","")) ->  | EU16: =IF($B16="","",IF(AND(EU$10<(Rounds!$C$5+1),OR(AF16="",ISBLANK(AF16))),"X","")) ->  | EV16: =IF($B16="","",IF(AND(EV$10<(Rounds!$C$5+1),OR(AN16="",ISBLANK(AN16))),"X","")) ->  | EW16: =IF($B16="","",IF(AND(EW$10<(Rounds!$C$5+1),OR(AV16="",ISBLANK(AV16))),"X","")) ->  | EX16: =IF($B16="","",IF(AND(EX$10<(Rounds!$C$5+1),OR(BD16="",ISBLANK(BD16))),"X","")) ->  | EY16: =IF($B16="","",IF(AND(EY$10<(Rounds!$C$5+1),OR(BL16="",ISBLANK(BL16))),"X","")) ->  | EZ16: =IF($B16="","",IF(AND(EZ$10<(Rounds!$C$5+1),OR(BT16="",ISBLANK(BT16))),"X","")) ->  | FA16: =IF($B16="","",IF(AND(FA$10<(Rounds!$C$5+1),OR(CB16="",ISBLANK(CB16))),"X","")) ->  | FB16: =IF($B16="","",IF(AND(FB$10<(Rounds!$C$5+1),OR(CJ16="",ISBLANK(CJ16))),"X","")) ->  | FC16: =IF($B16="","",IF(AND(FC$10<(Rounds!$C$5+1),OR(CR16="",ISBLANK(CR16))),"X","")) ->  | FE16: =IF($B16="","",IF(AND(FE$10<(Rounds!$C$5+1),OR(G16="",ISBLANK(G16))),"X","")) -> X | FF16: =IF($B16="","",IF(AND(FF$10<(Rounds!$C$5+1),OR(O16="",ISBLANK(O16))),"X","")) -> X | FG16: =IF($B16="","",IF(AND(FG$10<(Rounds!$C$5+1),OR(W16="",ISBLANK(W16))),"X","")) -> X | FH16: =IF($B16="","",IF(AND(FH$10<(Rounds!$C$5+1),OR(AE16="",ISBLANK(AE16))),"X","")) ->  | FI16: =IF($B16="","",IF(AND(FI$10<(Rounds!$C$5+1),OR(AM16="",ISBLANK(AM16))),"X","")) ->  | FJ16: =IF($B16="","",IF(AND(FJ$10<(Rounds!$C$5+1),OR(AU16="",ISBLANK(AU16))),"X","")) ->  | FK16: =IF($B16="","",IF(AND(FK$10<(Rounds!$C$5+1),OR(BC16="",ISBLANK(BC16))),"X","")) ->  | FL16: =IF($B16="","",IF(AND(FL$10<(Rounds!$C$5+1),OR(BK16="",ISBLANK(BK16))),"X","")) ->  | FM16: =IF($B16="","",IF(AND(FM$10<(Rounds!$C$5+1),OR(BS16="",ISBLANK(BS16))),"X","")) ->  | FN16: =IF($B16="","",IF(AND(FN$10<(Rounds!$C$5+1),OR(CA16="",ISBLANK(CA16))),"X","")) ->  | FO16: =IF($B16="","",IF(AND(FO$10<(Rounds!$C$5+1),OR(CI16="",ISBLANK(CI16))),"X","")) ->  | FP16: =IF($B16="","",IF(AND(FP$10<(Rounds!$C$5+1),OR(CQ16="",ISBLANK(CQ16))),"X","")) ->  | FR16: =IF($B16="","",IF(AND(FR$10<(Rounds!$C$5+1),OR(D16="",ISBLANK(F16))),"X","")) ->  | FS16: =IF($B16="","",IF(AND(FS$10<(Rounds!$C$5+1),OR(E16="",ISBLANK(N16))),"X","")) ->  | FT16: =IF($B16="","",IF(AND(FT$10<(Rounds!$C$5+1),OR(L16="",ISBLANK(V16))),"X","")) ->  | FU16: =IF($B16="","",IF(AND(FU$10<(Rounds!$C$5+1),OR(M16="",ISBLANK(AD16))),"X","")) ->  | FV16: =IF($B16="","",IF(AND(FV$10<(Rounds!$C$5+1),OR(T16="",ISBLANK(AL16))),"X","")) ->  | FW16: =IF($B16="","",IF(AND(FW$10<(Rounds!$C$5+1),OR(U16="",ISBLANK(AT16))),"X","")) ->  | FX16: =IF($B16="","",IF(AND(FX$10<(Rounds!$C$5+1),OR(AB16="",ISBLANK(BB16))),"X","")) -> X | FY16: =IF($B16="","",IF(AND(FY$10<(Rounds!$C$5+1),OR(AC16="",ISBLANK(BJ16))),"X","")) -> X | FZ16: =IF($B16="","",IF(AND(FZ$10<(Rounds!$C$5+1),OR(AJ16="",ISBLANK(BR16))),"X","")) -> X | GA16: =IF($B16="","",IF(AND(GA$10<(Rounds!$C$5+1),OR(AK16="",ISBLANK(BZ16))),"X","")) -> X | GB16: =IF($B16="","",IF(AND(GB$10<(Rounds!$C$5+1),OR(AR16="",ISBLANK(CH16))),"X","")) ->  | GC16: =IF($B16="","",IF(AND(GC$10<(Rounds!$C$5+1),OR(AS16="",ISBLANK(CP16))),"X","")) ->  | GD16: =IF($B16="","",IF(AND(GD$10<(Rounds!$C$5+1),OR(AZ16="",ISBLANK(#REF!))),"X","")) ->  | GE16: =IF($B16="","",IF(AND(GE$10<(Rounds!$C$5+1),OR(BA16="",ISBLANK(D16))),"X","")) ->  | GF16: =IF($B16="","",IF(AND(GF$10<(Rounds!$C$5+1),OR(BH16="",ISBLANK(E16))),"X","")) ->  | GG16: =IF($B16="","",IF(AND(GG$10<(Rounds!$C$5+1),OR(BI16="",ISBLANK(L16))),"X","")) ->  | GH16: =IF($B16="","",IF(AND(GH$10<(Rounds!$C$5+1),OR(BP16="",ISBLANK(M16))),"X","")) ->  | GI16: =IF($B16="","",IF(AND(GI$10<(Rounds!$C$5+1),OR(BQ16="",ISBLANK(T16))),"X","")) ->  | GJ16: =IF($B16="","",IF(AND(GJ$10<(Rounds!$C$5+1),OR(BX16="",ISBLANK(U16))),"X","")) ->  | GK16: =IF($B16="","",IF(AND(GK$10<(Rounds!$C$5+1),OR(BY16="",ISBLANK(AB16))),"X","")) ->  | GL16: =IF($B16="","",IF(AND(GL$10<(Rounds!$C$5+1),OR(CF16="",ISBLANK(AC16))),"X","")) ->  | GM16: =IF($B16="","",IF(AND(GM$10<(Rounds!$C$5+1),OR(CG16="",ISBLANK(AJ16))),"X","")) ->  | GN16: =IF($B16="","",IF(AND(GN$10<(Rounds!$C$5+1),OR(CN16="",ISBLANK(AK16))),"X","")) ->  | GO16: =IF($B16="","",IF(AND(GO$10<(Rounds!$C$5+1),OR(CO16="",ISBLANK(AR16))),"X","")) -> 
A17: 7 | B17: =+IF(OR(ISERROR(VLOOKUP($A17,Pilots!$B:$U,MATCH(B$1,Pilots!$B$1:$U$1,0),0)),VLOOKUP($A17,Pilots!$B:$U,MATCH(B$1,Pilots!$B$1:$U$1,0),0)=0),"",VLOOKUP($A17,Pilots!$B:$U,MATCH(B$1,Pilots!$B$1:$U$1,0),0)) -> Dejan Valek | D17: 14:15:00 | E17: 14:19:00 | F17: =+IF(OR(D17="",E17=""),"",ROUND((E17-D17)*24*60,0)) -> 4 | H17: =+IF(H$2>$C$5,"",IFERROR(VLOOKUP(IF(G17="",F17,G17),$CZ:$DB,3,0),"")) -> 460 | I17: 500 | J17: 65 | L17: 15:48:00 | M17: 15:51:00 | N17: =+IF(OR(L17="",M17=""),"",ROUND((M17-L17)*24*60,0)) -> 3 | P17: =+IF(P$2>$C$5,"",IFERROR(VLOOKUP(IF(O17="",N17,O17),$CZ:$DB,3,0),"")) -> 470 | Q17: 500 | R17: 3 | T17: 17:02:00 | U17: 17:12:00 | V17: =+IF(OR(T17="",U17=""),"",ROUND((U17-T17)*24*60,0)) -> 10 | X17: =+IF(X$2>$C$5,"",IFERROR(VLOOKUP(IF(W17="",V17,W17),$CZ:$DB,3,0),"")) -> 400 | Y17: 500 | Z17: 1 | AD17: =+IF(OR(AB17="",AC17=""),"",ROUND((AC17-AB17)*24*60,0)) ->  | AE17: 4 | AF17: =+IF(AF$2>$C$5,"",IFERROR(VLOOKUP(IF(AE17="",AD17,AE17),$CZ:$DB,3,0),"")) -> 460 | AG17: 500 | AH17: 95 | AL17: =+IF(OR(AJ17="",AK17=""),"",ROUND((AK17-AJ17)*24*60,0)) ->  | AM17: 2 | AN17: =+IF(AN$2>$C$5,"",IFERROR(VLOOKUP(IF(AM17="",AL17,AM17),$CZ:$DB,3,0),"")) -> 480 | AO17: 500 | AP17: 4 | AT17: =+IF(OR(AR17="",AS17=""),"",ROUND((AS17-AR17)*24*60,0)) ->  | AV17: =+IF(AV$2>$C$5,"",IFERROR(VLOOKUP(IF(AU17="",AT17,AU17),$CZ:$DB,3,0),"")) ->  | BB17: =+IF(OR(AZ17="",BA17=""),"",ROUND((BA17-AZ17)*24*60,0)) ->  | BD17: =+IF(BD$2>$C$5,"",IFERROR(VLOOKUP(IF(BC17="",BB17,BC17),$CZ:$DB,3,0),"")) ->  | BJ17: =+IF(OR(BH17="",BI17=""),"",ROUND((BI17-BH17)*24*60,0)) ->  | BL17: =+IF(BL$2>$C$5,"",IFERROR(VLOOKUP(IF(BK17="",BJ17,BK17),$CZ:$DB,3,0),"")) ->  | BR17: =+IF(OR(BP17="",BQ17=""),"",ROUND((BQ17-BP17)*24*60,0)) ->  | BT17: =+IF(BT$2>$C$5,"",IFERROR(VLOOKUP(IF(BS17="",BR17,BS17),$CZ:$DB,3,0),"")) ->  | BZ17: =+IF(OR(BX17="",BY17=""),"",ROUND((BY17-BX17)*24*60,0)) ->  | CB17: =+IF(CB$2>$C$5,"",IFERROR(VLOOKUP(IF(CA17="",BZ17,CA17),$CZ:$DB,3,0),"")) ->  | CH17: =+IF(OR(CF17="",CG17=""),"",ROUND((CG17-CF17)*24*60,0)) ->  | CJ17: =+IF(CJ$2>$C$5,"",IFERROR(VLOOKUP(IF(CI17="",CH17,CI17),$CZ:$DB,3,0),"")) ->  | CP17: =+IF(OR(CN17="",CO17=""),"",ROUND((CO17-CN17)*24*60,0)) ->  | CR17: =+IF(CR$2>$C$5,"",IFERROR(VLOOKUP(IF(CQ17="",CP17,CQ17),$CZ:$DB,3,0),"")) ->  | CZ17: 8 | DA17: 80 | DB17: 420 | DR17: =IF($B17="","",IF(AND(DR$10<(Rounds!$C$5+1),OR(J17="",ISBLANK(J17))),"X","")) ->  | DS17: =IF($B17="","",IF(AND(DS$10<(Rounds!$C$5+1),OR(R17="",ISBLANK(R17))),"X","")) ->  | DT17: =IF($B17="","",IF(AND(DT$10<(Rounds!$C$5+1),OR(Z17="",ISBLANK(Z17))),"X","")) ->  | DU17: =IF($B17="","",IF(AND(DU$10<(Rounds!$C$5+1),OR(AH17="",ISBLANK(AH17))),"X","")) ->  | DV17: =IF($B17="","",IF(AND(DV$10<(Rounds!$C$5+1),OR(AP17="",ISBLANK(AP17))),"X","")) ->  | DW17: =IF($B17="","",IF(AND(DW$10<(Rounds!$C$5+1),OR(AX17="",ISBLANK(AX17))),"X","")) ->  | DX17: =IF($B17="","",IF(AND(DX$10<(Rounds!$C$5+1),OR(BF17="",ISBLANK(BF17))),"X","")) ->  | DY17: =IF($B17="","",IF(AND(DY$10<(Rounds!$C$5+1),OR(BN17="",ISBLANK(BN17))),"X","")) ->  | DZ17: =IF($B17="","",IF(AND(DZ$10<(Rounds!$C$5+1),OR(BV17="",ISBLANK(BV17))),"X","")) ->  | EA17: =IF($B17="","",IF(AND(EA$10<(Rounds!$C$5+1),OR(CD17="",ISBLANK(CD17))),"X","")) ->  | EB17: =IF($B17="","",IF(AND(EB$10<(Rounds!$C$5+1),OR(CL17="",ISBLANK(CL17))),"X","")) ->  | EC17: =IF($B17="","",IF(AND(EC$10<(Rounds!$C$5+1),OR(CT17="",ISBLANK(CT17))),"X","")) ->  | EE17: =IF($B17="","",IF(AND(EE$10<(Rounds!$C$5+1),OR(I17="",ISBLANK(I17))),"X","")) ->  | EF17: =IF($B17="","",IF(AND(EF$10<(Rounds!$C$5+1),OR(Q17="",ISBLANK(Q17))),"X","")) ->  | EG17: =IF($B17="","",IF(AND(EG$10<(Rounds!$C$5+1),OR(Y17="",ISBLANK(Y17))),"X","")) ->  | EH17: =IF($B17="","",IF(AND(EH$10<(Rounds!$C$5+1),OR(AG17="",ISBLANK(AG17))),"X","")) ->  | EI17: =IF($B17="","",IF(AND(EI$10<(Rounds!$C$5+1),OR(AO17="",ISBLANK(AO17))),"X","")) ->  | EJ17: =IF($B17="","",IF(AND(EJ$10<(Rounds!$C$5+1),OR(AW17="",ISBLANK(AW17))),"X","")) ->  | EK17: =IF($B17="","",IF(AND(EK$10<(Rounds!$C$5+1),OR(BE17="",ISBLANK(BE17))),"X","")) ->  | EL17: =IF($B17="","",IF(AND(EL$10<(Rounds!$C$5+1),OR(BM17="",ISBLANK(BM17))),"X","")) ->  | EM17: =IF($B17="","",IF(AND(EM$10<(Rounds!$C$5+1),OR(BU17="",ISBLANK(BU17))),"X","")) ->  | EN17: =IF($B17="","",IF(AND(EN$10<(Rounds!$C$5+1),OR(CC17="",ISBLANK(CC17))),"X","")) ->  | EO17: =IF($B17="","",IF(AND(EO$10<(Rounds!$C$5+1),OR(CK17="",ISBLANK(CK17))),"X","")) ->  | EP17: =IF($B17="","",IF(AND(EP$10<(Rounds!$C$5+1),OR(CS17="",ISBLANK(CS17))),"X","")) ->  | ER17: =IF($B17="","",IF(AND(ER$10<(Rounds!$C$5+1),OR(H17="",ISBLANK(H17))),"X","")) ->  | ES17: =IF($B17="","",IF(AND(ES$10<(Rounds!$C$5+1),OR(P17="",ISBLANK(P17))),"X","")) ->  | ET17: =IF($B17="","",IF(AND(ET$10<(Rounds!$C$5+1),OR(X17="",ISBLANK(X17))),"X","")) ->  | EU17: =IF($B17="","",IF(AND(EU$10<(Rounds!$C$5+1),OR(AF17="",ISBLANK(AF17))),"X","")) ->  | EV17: =IF($B17="","",IF(AND(EV$10<(Rounds!$C$5+1),OR(AN17="",ISBLANK(AN17))),"X","")) ->  | EW17: =IF($B17="","",IF(AND(EW$10<(Rounds!$C$5+1),OR(AV17="",ISBLANK(AV17))),"X","")) ->  | EX17: =IF($B17="","",IF(AND(EX$10<(Rounds!$C$5+1),OR(BD17="",ISBLANK(BD17))),"X","")) ->  | EY17: =IF($B17="","",IF(AND(EY$10<(Rounds!$C$5+1),OR(BL17="",ISBLANK(BL17))),"X","")) ->  | EZ17: =IF($B17="","",IF(AND(EZ$10<(Rounds!$C$5+1),OR(BT17="",ISBLANK(BT17))),"X","")) ->  | FA17: =IF($B17="","",IF(AND(FA$10<(Rounds!$C$5+1),OR(CB17="",ISBLANK(CB17))),"X","")) ->  | FB17: =IF($B17="","",IF(AND(FB$10<(Rounds!$C$5+1),OR(CJ17="",ISBLANK(CJ17))),"X","")) ->  | FC17: =IF($B17="","",IF(AND(FC$10<(Rounds!$C$5+1),OR(CR17="",ISBLANK(CR17))),"X","")) ->  | FE17: =IF($B17="","",IF(AND(FE$10<(Rounds!$C$5+1),OR(G17="",ISBLANK(G17))),"X","")) -> X | FF17: =IF($B17="","",IF(AND(FF$10<(Rounds!$C$5+1),OR(O17="",ISBLANK(O17))),"X","")) -> X | FG17: =IF($B17="","",IF(AND(FG$10<(Rounds!$C$5+1),OR(W17="",ISBLANK(W17))),"X","")) -> X | FH17: =IF($B17="","",IF(AND(FH$10<(Rounds!$C$5+1),OR(AE17="",ISBLANK(AE17))),"X","")) ->  | FI17: =IF($B17="","",IF(AND(FI$10<(Rounds!$C$5+1),OR(AM17="",ISBLANK(AM17))),"X","")) ->  | FJ17: =IF($B17="","",IF(AND(FJ$10<(Rounds!$C$5+1),OR(AU17="",ISBLANK(AU17))),"X","")) ->  | FK17: =IF($B17="","",IF(AND(FK$10<(Rounds!$C$5+1),OR(BC17="",ISBLANK(BC17))),"X","")) ->  | FL17: =IF($B17="","",IF(AND(FL$10<(Rounds!$C$5+1),OR(BK17="",ISBLANK(BK17))),"X","")) ->  | FM17: =IF($B17="","",IF(AND(FM$10<(Rounds!$C$5+1),OR(BS17="",ISBLANK(BS17))),"X","")) ->  | FN17: =IF($B17="","",IF(AND(FN$10<(Rounds!$C$5+1),OR(CA17="",ISBLANK(CA17))),"X","")) ->  | FO17: =IF($B17="","",IF(AND(FO$10<(Rounds!$C$5+1),OR(CI17="",ISBLANK(CI17))),"X","")) ->  | FP17: =IF($B17="","",IF(AND(FP$10<(Rounds!$C$5+1),OR(CQ17="",ISBLANK(CQ17))),"X","")) ->  | FR17: =IF($B17="","",IF(AND(FR$10<(Rounds!$C$5+1),OR(D17="",ISBLANK(F17))),"X","")) ->  | FS17: =IF($B17="","",IF(AND(FS$10<(Rounds!$C$5+1),OR(E17="",ISBLANK(N17))),"X","")) ->  | FT17: =IF($B17="","",IF(AND(FT$10<(Rounds!$C$5+1),OR(L17="",ISBLANK(V17))),"X","")) ->  | FU17: =IF($B17="","",IF(AND(FU$10<(Rounds!$C$5+1),OR(M17="",ISBLANK(AD17))),"X","")) ->  | FV17: =IF($B17="","",IF(AND(FV$10<(Rounds!$C$5+1),OR(T17="",ISBLANK(AL17))),"X","")) ->  | FW17: =IF($B17="","",IF(AND(FW$10<(Rounds!$C$5+1),OR(U17="",ISBLANK(AT17))),"X","")) ->  | FX17: =IF($B17="","",IF(AND(FX$10<(Rounds!$C$5+1),OR(AB17="",ISBLANK(BB17))),"X","")) -> X | FY17: =IF($B17="","",IF(AND(FY$10<(Rounds!$C$5+1),OR(AC17="",ISBLANK(BJ17))),"X","")) -> X | FZ17: =IF($B17="","",IF(AND(FZ$10<(Rounds!$C$5+1),OR(AJ17="",ISBLANK(BR17))),"X","")) -> X | GA17: =IF($B17="","",IF(AND(GA$10<(Rounds!$C$5+1),OR(AK17="",ISBLANK(BZ17))),"X","")) -> X | GB17: =IF($B17="","",IF(AND(GB$10<(Rounds!$C$5+1),OR(AR17="",ISBLANK(CH17))),"X","")) ->  | GC17: =IF($B17="","",IF(AND(GC$10<(Rounds!$C$5+1),OR(AS17="",ISBLANK(CP17))),"X","")) ->  | GD17: =IF($B17="","",IF(AND(GD$10<(Rounds!$C$5+1),OR(AZ17="",ISBLANK(#REF!))),"X","")) ->  | GE17: =IF($B17="","",IF(AND(GE$10<(Rounds!$C$5+1),OR(BA17="",ISBLANK(D17))),"X","")) ->  | GF17: =IF($B17="","",IF(AND(GF$10<(Rounds!$C$5+1),OR(BH17="",ISBLANK(E17))),"X","")) ->  | GG17: =IF($B17="","",IF(AND(GG$10<(Rounds!$C$5+1),OR(BI17="",ISBLANK(L17))),"X","")) ->  | GH17: =IF($B17="","",IF(AND(GH$10<(Rounds!$C$5+1),OR(BP17="",ISBLANK(M17))),"X","")) ->  | GI17: =IF($B17="","",IF(AND(GI$10<(Rounds!$C$5+1),OR(BQ17="",ISBLANK(T17))),"X","")) ->  | GJ17: =IF($B17="","",IF(AND(GJ$10<(Rounds!$C$5+1),OR(BX17="",ISBLANK(U17))),"X","")) ->  | GK17: =IF($B17="","",IF(AND(GK$10<(Rounds!$C$5+1),OR(BY17="",ISBLANK(AB17))),"X","")) ->  | GL17: =IF($B17="","",IF(AND(GL$10<(Rounds!$C$5+1),OR(CF17="",ISBLANK(AC17))),"X","")) ->  | GM17: =IF($B17="","",IF(AND(GM$10<(Rounds!$C$5+1),OR(CG17="",ISBLANK(AJ17))),"X","")) ->  | GN17: =IF($B17="","",IF(AND(GN$10<(Rounds!$C$5+1),OR(CN17="",ISBLANK(AK17))),"X","")) ->  | GO17: =IF($B17="","",IF(AND(GO$10<(Rounds!$C$5+1),OR(CO17="",ISBLANK(AR17))),"X","")) -> 
A18: 8 | B18: =+IF(OR(ISERROR(VLOOKUP($A18,Pilots!$B:$U,MATCH(B$1,Pilots!$B$1:$U$1,0),0)),VLOOKUP($A18,Pilots!$B:$U,MATCH(B$1,Pilots!$B$1:$U$1,0),0)=0),"",VLOOKUP($A18,Pilots!$B:$U,MATCH(B$1,Pilots!$B$1:$U$1,0),0)) -> Amade Auner | D18: 14:17:00 | E18: 14:20:00 | F18: =+IF(OR(D18="",E18=""),"",ROUND((E18-D18)*24*60,0)) -> 3 | H18: =+IF(H$2>$C$5,"",IFERROR(VLOOKUP(IF(G18="",F18,G18),$CZ:$DB,3,0),"")) -> 470 | I18: 490 | J18: 500 | L18: 15:52:00 | M18: 15:58:00 | N18: =+IF(OR(L18="",M18=""),"",ROUND((M18-L18)*24*60,0)) -> 6 | P18: =+IF(P$2>$C$5,"",IFERROR(VLOOKUP(IF(O18="",N18,O18),$CZ:$DB,3,0),"")) -> 440 | Q18: 500 | R18: 500 | T18: 17:44:00 | U18: 17:48:00 | V18: =+IF(OR(T18="",U18=""),"",ROUND((U18-T18)*24*60,0)) -> 4 | X18: =+IF(X$2>$C$5,"",IFERROR(VLOOKUP(IF(W18="",V18,W18),$CZ:$DB,3,0),"")) -> 460 | Y18: 488 | Z18: 500 | AD18: =+IF(OR(AB18="",AC18=""),"",ROUND((AC18-AB18)*24*60,0)) ->  | AE18: 5 | AF18: =+IF(AF$2>$C$5,"",IFERROR(VLOOKUP(IF(AE18="",AD18,AE18),$CZ:$DB,3,0),"")) -> 450 | AG18: 500 | AH18: 296 | AL18: =+IF(OR(AJ18="",AK18=""),"",ROUND((AK18-AJ18)*24*60,0)) ->  | AN18: =+IF(AN$2>$C$5,"",IFERROR(VLOOKUP(IF(AM18="",AL18,AM18),$CZ:$DB,3,0),"")) ->  | AP18: DNF | AT18: =+IF(OR(AR18="",AS18=""),"",ROUND((AS18-AR18)*24*60,0)) ->  | AV18: =+IF(AV$2>$C$5,"",IFERROR(VLOOKUP(IF(AU18="",AT18,AU18),$CZ:$DB,3,0),"")) ->  | BB18: =+IF(OR(AZ18="",BA18=""),"",ROUND((BA18-AZ18)*24*60,0)) ->  | BD18: =+IF(BD$2>$C$5,"",IFERROR(VLOOKUP(IF(BC18="",BB18,BC18),$CZ:$DB,3,0),"")) ->  | BJ18: =+IF(OR(BH18="",BI18=""),"",ROUND((BI18-BH18)*24*60,0)) ->  | BL18: =+IF(BL$2>$C$5,"",IFERROR(VLOOKUP(IF(BK18="",BJ18,BK18),$CZ:$DB,3,0),"")) ->  | BR18: =+IF(OR(BP18="",BQ18=""),"",ROUND((BQ18-BP18)*24*60,0)) ->  | BT18: =+IF(BT$2>$C$5,"",IFERROR(VLOOKUP(IF(BS18="",BR18,BS18),$CZ:$DB,3,0),"")) ->  | BZ18: =+IF(OR(BX18="",BY18=""),"",ROUND((BY18-BX18)*24*60,0)) ->  | CB18: =+IF(CB$2>$C$5,"",IFERROR(VLOOKUP(IF(CA18="",BZ18,CA18),$CZ:$DB,3,0),"")) ->  | CH18: =+IF(OR(CF18="",CG18=""),"",ROUND((CG18-CF18)*24*60,0)) ->  | CJ18: =+IF(CJ$2>$C$5,"",IFERROR(VLOOKUP(IF(CI18="",CH18,CI18),$CZ:$DB,3,0),"")) ->  | CP18: =+IF(OR(CN18="",CO18=""),"",ROUND((CO18-CN18)*24*60,0)) ->  | CR18: =+IF(CR$2>$C$5,"",IFERROR(VLOOKUP(IF(CQ18="",CP18,CQ18),$CZ:$DB,3,0),"")) ->  | CZ18: 9 | DA18: 90 | DB18: 410 | DR18: =IF($B18="","",IF(AND(DR$10<(Rounds!$C$5+1),OR(J18="",ISBLANK(J18))),"X","")) ->  | DS18: =IF($B18="","",IF(AND(DS$10<(Rounds!$C$5+1),OR(R18="",ISBLANK(R18))),"X","")) ->  | DT18: =IF($B18="","",IF(AND(DT$10<(Rounds!$C$5+1),OR(Z18="",ISBLANK(Z18))),"X","")) ->  | DU18: =IF($B18="","",IF(AND(DU$10<(Rounds!$C$5+1),OR(AH18="",ISBLANK(AH18))),"X","")) ->  | DV18: =IF($B18="","",IF(AND(DV$10<(Rounds!$C$5+1),OR(AP18="",ISBLANK(AP18))),"X","")) ->  | DW18: =IF($B18="","",IF(AND(DW$10<(Rounds!$C$5+1),OR(AX18="",ISBLANK(AX18))),"X","")) ->  | DX18: =IF($B18="","",IF(AND(DX$10<(Rounds!$C$5+1),OR(BF18="",ISBLANK(BF18))),"X","")) ->  | DY18: =IF($B18="","",IF(AND(DY$10<(Rounds!$C$5+1),OR(BN18="",ISBLANK(BN18))),"X","")) ->  | DZ18: =IF($B18="","",IF(AND(DZ$10<(Rounds!$C$5+1),OR(BV18="",ISBLANK(BV18))),"X","")) ->  | EA18: =IF($B18="","",IF(AND(EA$10<(Rounds!$C$5+1),OR(CD18="",ISBLANK(CD18))),"X","")) ->  | EB18: =IF($B18="","",IF(AND(EB$10<(Rounds!$C$5+1),OR(CL18="",ISBLANK(CL18))),"X","")) ->  | EC18: =IF($B18="","",IF(AND(EC$10<(Rounds!$C$5+1),OR(CT18="",ISBLANK(CT18))),"X","")) ->  | EE18: =IF($B18="","",IF(AND(EE$10<(Rounds!$C$5+1),OR(I18="",ISBLANK(I18))),"X","")) ->  | EF18: =IF($B18="","",IF(AND(EF$10<(Rounds!$C$5+1),OR(Q18="",ISBLANK(Q18))),"X","")) ->  | EG18: =IF($B18="","",IF(AND(EG$10<(Rounds!$C$5+1),OR(Y18="",ISBLANK(Y18))),"X","")) ->  | EH18: =IF($B18="","",IF(AND(EH$10<(Rounds!$C$5+1),OR(AG18="",ISBLANK(AG18))),"X","")) ->  | EI18: =IF($B18="","",IF(AND(EI$10<(Rounds!$C$5+1),OR(AO18="",ISBLANK(AO18))),"X","")) -> X | EJ18: =IF($B18="","",IF(AND(EJ$10<(Rounds!$C$5+1),OR(AW18="",ISBLANK(AW18))),"X","")) ->  | EK18: =IF($B18="","",IF(AND(EK$10<(Rounds!$C$5+1),OR(BE18="",ISBLANK(BE18))),"X","")) ->  | EL18: =IF($B18="","",IF(AND(EL$10<(Rounds!$C$5+1),OR(BM18="",ISBLANK(BM18))),"X","")) ->  | EM18: =IF($B18="","",IF(AND(EM$10<(Rounds!$C$5+1),OR(BU18="",ISBLANK(BU18))),"X","")) ->  | EN18: =IF($B18="","",IF(AND(EN$10<(Rounds!$C$5+1),OR(CC18="",ISBLANK(CC18))),"X","")) ->  | EO18: =IF($B18="","",IF(AND(EO$10<(Rounds!$C$5+1),OR(CK18="",ISBLANK(CK18))),"X","")) ->  | EP18: =IF($B18="","",IF(AND(EP$10<(Rounds!$C$5+1),OR(CS18="",ISBLANK(CS18))),"X","")) ->  | ER18: =IF($B18="","",IF(AND(ER$10<(Rounds!$C$5+1),OR(H18="",ISBLANK(H18))),"X","")) ->  | ES18: =IF($B18="","",IF(AND(ES$10<(Rounds!$C$5+1),OR(P18="",ISBLANK(P18))),"X","")) ->  | ET18: =IF($B18="","",IF(AND(ET$10<(Rounds!$C$5+1),OR(X18="",ISBLANK(X18))),"X","")) ->  | EU18: =IF($B18="","",IF(AND(EU$10<(Rounds!$C$5+1),OR(AF18="",ISBLANK(AF18))),"X","")) ->  | EV18: =IF($B18="","",IF(AND(EV$10<(Rounds!$C$5+1),OR(AN18="",ISBLANK(AN18))),"X","")) -> X | EW18: =IF($B18="","",IF(AND(EW$10<(Rounds!$C$5+1),OR(AV18="",ISBLANK(AV18))),"X","")) ->  | EX18: =IF($B18="","",IF(AND(EX$10<(Rounds!$C$5+1),OR(BD18="",ISBLANK(BD18))),"X","")) ->  | EY18: =IF($B18="","",IF(AND(EY$10<(Rounds!$C$5+1),OR(BL18="",ISBLANK(BL18))),"X","")) ->  | EZ18: =IF($B18="","",IF(AND(EZ$10<(Rounds!$C$5+1),OR(BT18="",ISBLANK(BT18))),"X","")) ->  | FA18: =IF($B18="","",IF(AND(FA$10<(Rounds!$C$5+1),OR(CB18="",ISBLANK(CB18))),"X","")) ->  | FB18: =IF($B18="","",IF(AND(FB$10<(Rounds!$C$5+1),OR(CJ18="",ISBLANK(CJ18))),"X","")) ->  | FC18: =IF($B18="","",IF(AND(FC$10<(Rounds!$C$5+1),OR(CR18="",ISBLANK(CR18))),"X","")) ->  | FE18: =IF($B18="","",IF(AND(FE$10<(Rounds!$C$5+1),OR(G18="",ISBLANK(G18))),"X","")) -> X | FF18: =IF($B18="","",IF(AND(FF$10<(Rounds!$C$5+1),OR(O18="",ISBLANK(O18))),"X","")) -> X | FG18: =IF($B18="","",IF(AND(FG$10<(Rounds!$C$5+1),OR(W18="",ISBLANK(W18))),"X","")) -> X | FH18: =IF($B18="","",IF(AND(FH$10<(Rounds!$C$5+1),OR(AE18="",ISBLANK(AE18))),"X","")) ->  | FI18: =IF($B18="","",IF(AND(FI$10<(Rounds!$C$5+1),OR(AM18="",ISBLANK(AM18))),"X","")) -> X | FJ18: =IF($B18="","",IF(AND(FJ$10<(Rounds!$C$5+1),OR(AU18="",ISBLANK(AU18))),"X","")) ->  | FK18: =IF($B18="","",IF(AND(FK$10<(Rounds!$C$5+1),OR(BC18="",ISBLANK(BC18))),"X","")) ->  | FL18: =IF($B18="","",IF(AND(FL$10<(Rounds!$C$5+1),OR(BK18="",ISBLANK(BK18))),"X","")) ->  | FM18: =IF($B18="","",IF(AND(FM$10<(Rounds!$C$5+1),OR(BS18="",ISBLANK(BS18))),"X","")) ->  | FN18: =IF($B18="","",IF(AND(FN$10<(Rounds!$C$5+1),OR(CA18="",ISBLANK(CA18))),"X","")) ->  | FO18: =IF($B18="","",IF(AND(FO$10<(Rounds!$C$5+1),OR(CI18="",ISBLANK(CI18))),"X","")) ->  | FP18: =IF($B18="","",IF(AND(FP$10<(Rounds!$C$5+1),OR(CQ18="",ISBLANK(CQ18))),"X","")) ->  | FR18: =IF($B18="","",IF(AND(FR$10<(Rounds!$C$5+1),OR(D18="",ISBLANK(F18))),"X","")) ->  | FS18: =IF($B18="","",IF(AND(FS$10<(Rounds!$C$5+1),OR(E18="",ISBLANK(N18))),"X","")) ->  | FT18: =IF($B18="","",IF(AND(FT$10<(Rounds!$C$5+1),OR(L18="",ISBLANK(V18))),"X","")) ->  | FU18: =IF($B18="","",IF(AND(FU$10<(Rounds!$C$5+1),OR(M18="",ISBLANK(AD18))),"X","")) ->  | FV18: =IF($B18="","",IF(AND(FV$10<(Rounds!$C$5+1),OR(T18="",ISBLANK(AL18))),"X","")) ->  | FW18: =IF($B18="","",IF(AND(FW$10<(Rounds!$C$5+1),OR(U18="",ISBLANK(AT18))),"X","")) ->  | FX18: =IF($B18="","",IF(AND(FX$10<(Rounds!$C$5+1),OR(AB18="",ISBLANK(BB18))),"X","")) -> X | FY18: =IF($B18="","",IF(AND(FY$10<(Rounds!$C$5+1),OR(AC18="",ISBLANK(BJ18))),"X","")) -> X | FZ18: =IF($B18="","",IF(AND(FZ$10<(Rounds!$C$5+1),OR(AJ18="",ISBLANK(BR18))),"X","")) -> X | GA18: =IF($B18="","",IF(AND(GA$10<(Rounds!$C$5+1),OR(AK18="",ISBLANK(BZ18))),"X","")) -> X | GB18: =IF($B18="","",IF(AND(GB$10<(Rounds!$C$5+1),OR(AR18="",ISBLANK(CH18))),"X","")) ->  | GC18: =IF($B18="","",IF(AND(GC$10<(Rounds!$C$5+1),OR(AS18="",ISBLANK(CP18))),"X","")) ->  | GD18: =IF($B18="","",IF(AND(GD$10<(Rounds!$C$5+1),OR(AZ18="",ISBLANK(#REF!))),"X","")) ->  | GE18: =IF($B18="","",IF(AND(GE$10<(Rounds!$C$5+1),OR(BA18="",ISBLANK(D18))),"X","")) ->  | GF18: =IF($B18="","",IF(AND(GF$10<(Rounds!$C$5+1),OR(BH18="",ISBLANK(E18))),"X","")) ->  | GG18: =IF($B18="","",IF(AND(GG$10<(Rounds!$C$5+1),OR(BI18="",ISBLANK(L18))),"X","")) ->  | GH18: =IF($B18="","",IF(AND(GH$10<(Rounds!$C$5+1),OR(BP18="",ISBLANK(M18))),"X","")) ->  | GI18: =IF($B18="","",IF(AND(GI$10<(Rounds!$C$5+1),OR(BQ18="",ISBLANK(T18))),"X","")) ->  | GJ18: =IF($B18="","",IF(AND(GJ$10<(Rounds!$C$5+1),OR(BX18="",ISBLANK(U18))),"X","")) ->  | GK18: =IF($B18="","",IF(AND(GK$10<(Rounds!$C$5+1),OR(BY18="",ISBLANK(AB18))),"X","")) ->  | GL18: =IF($B18="","",IF(AND(GL$10<(Rounds!$C$5+1),OR(CF18="",ISBLANK(AC18))),"X","")) ->  | GM18: =IF($B18="","",IF(AND(GM$10<(Rounds!$C$5+1),OR(CG18="",ISBLANK(AJ18))),"X","")) ->  | GN18: =IF($B18="","",IF(AND(GN$10<(Rounds!$C$5+1),OR(CN18="",ISBLANK(AK18))),"X","")) ->  | GO18: =IF($B18="","",IF(AND(GO$10<(Rounds!$C$5+1),OR(CO18="",ISBLANK(AR18))),"X","")) -> 
A19: 9 | B19: =+IF(OR(ISERROR(VLOOKUP($A19,Pilots!$B:$U,MATCH(B$1,Pilots!$B$1:$U$1,0),0)),VLOOKUP($A19,Pilots!$B:$U,MATCH(B$1,Pilots!$B$1:$U$1,0),0)=0),"",VLOOKUP($A19,Pilots!$B:$U,MATCH(B$1,Pilots!$B$1:$U$1,0),0)) -> Sándor Kaszás | D19: 14:21:00 | E19: 14:25:00 | F19: =+IF(OR(D19="",E19=""),"",ROUND((E19-D19)*24*60,0)) -> 4 | H19: =+IF(H$2>$C$5,"",IFERROR(VLOOKUP(IF(G19="",F19,G19),$CZ:$DB,3,0),"")) -> 460 | I19: 500 | J19: 1 | L19: 15:59:00 | M19: 16:04:00 | N19: =+IF(OR(L19="",M19=""),"",ROUND((M19-L19)*24*60,0)) -> 5 | P19: =+IF(P$2>$C$5,"",IFERROR(VLOOKUP(IF(O19="",N19,O19),$CZ:$DB,3,0),"")) -> 450 | Q19: 500 | R19: 1 | T19: 17:07:00 | U19: 17:11:00 | V19: =+IF(OR(T19="",U19=""),"",ROUND((U19-T19)*24*60,0)) -> 4 | X19: =+IF(X$2>$C$5,"",IFERROR(VLOOKUP(IF(W19="",V19,W19),$CZ:$DB,3,0),"")) -> 460 | Y19: 500 | Z19: 2 | AD19: =+IF(OR(AB19="",AC19=""),"",ROUND((AC19-AB19)*24*60,0)) ->  | AE19: 3 | AF19: =+IF(AF$2>$C$5,"",IFERROR(VLOOKUP(IF(AE19="",AD19,AE19),$CZ:$DB,3,0),"")) -> 470 | AG19: 500 | AH19: 12 | AL19: =+IF(OR(AJ19="",AK19=""),"",ROUND((AK19-AJ19)*24*60,0)) ->  | AM19: 3 | AN19: =+IF(AN$2>$C$5,"",IFERROR(VLOOKUP(IF(AM19="",AL19,AM19),$CZ:$DB,3,0),"")) -> 470 | AO19: 500 | AP19: 3 | AT19: =+IF(OR(AR19="",AS19=""),"",ROUND((AS19-AR19)*24*60,0)) ->  | AV19: =+IF(AV$2>$C$5,"",IFERROR(VLOOKUP(IF(AU19="",AT19,AU19),$CZ:$DB,3,0),"")) ->  | BB19: =+IF(OR(AZ19="",BA19=""),"",ROUND((BA19-AZ19)*24*60,0)) ->  | BD19: =+IF(BD$2>$C$5,"",IFERROR(VLOOKUP(IF(BC19="",BB19,BC19),$CZ:$DB,3,0),"")) ->  | BJ19: =+IF(OR(BH19="",BI19=""),"",ROUND((BI19-BH19)*24*60,0)) ->  | BL19: =+IF(BL$2>$C$5,"",IFERROR(VLOOKUP(IF(BK19="",BJ19,BK19),$CZ:$DB,3,0),"")) ->  | BR19: =+IF(OR(BP19="",BQ19=""),"",ROUND((BQ19-BP19)*24*60,0)) ->  | BT19: =+IF(BT$2>$C$5,"",IFERROR(VLOOKUP(IF(BS19="",BR19,BS19),$CZ:$DB,3,0),"")) ->  | BZ19: =+IF(OR(BX19="",BY19=""),"",ROUND((BY19-BX19)*24*60,0)) ->  | CB19: =+IF(CB$2>$C$5,"",IFERROR(VLOOKUP(IF(CA19="",BZ19,CA19),$CZ:$DB,3,0),"")) ->  | CH19: =+IF(OR(CF19="",CG19=""),"",ROUND((CG19-CF19)*24*60,0)) ->  | CJ19: =+IF(CJ$2>$C$5,"",IFERROR(VLOOKUP(IF(CI19="",CH19,CI19),$CZ:$DB,3,0),"")) ->  | CP19: =+IF(OR(CN19="",CO19=""),"",ROUND((CO19-CN19)*24*60,0)) ->  | CR19: =+IF(CR$2>$C$5,"",IFERROR(VLOOKUP(IF(CQ19="",CP19,CQ19),$CZ:$DB,3,0),"")) ->  | CZ19: 10 | DA19: 100 | DB19: 400 | DR19: =IF($B19="","",IF(AND(DR$10<(Rounds!$C$5+1),OR(J19="",ISBLANK(J19))),"X","")) ->  | DS19: =IF($B19="","",IF(AND(DS$10<(Rounds!$C$5+1),OR(R19="",ISBLANK(R19))),"X","")) ->  | DT19: =IF($B19="","",IF(AND(DT$10<(Rounds!$C$5+1),OR(Z19="",ISBLANK(Z19))),"X","")) ->  | DU19: =IF($B19="","",IF(AND(DU$10<(Rounds!$C$5+1),OR(AH19="",ISBLANK(AH19))),"X","")) ->  | DV19: =IF($B19="","",IF(AND(DV$10<(Rounds!$C$5+1),OR(AP19="",ISBLANK(AP19))),"X","")) ->  | DW19: =IF($B19="","",IF(AND(DW$10<(Rounds!$C$5+1),OR(AX19="",ISBLANK(AX19))),"X","")) ->  | DX19: =IF($B19="","",IF(AND(DX$10<(Rounds!$C$5+1),OR(BF19="",ISBLANK(BF19))),"X","")) ->  | DY19: =IF($B19="","",IF(AND(DY$10<(Rounds!$C$5+1),OR(BN19="",ISBLANK(BN19))),"X","")) ->  | DZ19: =IF($B19="","",IF(AND(DZ$10<(Rounds!$C$5+1),OR(BV19="",ISBLANK(BV19))),"X","")) ->  | EA19: =IF($B19="","",IF(AND(EA$10<(Rounds!$C$5+1),OR(CD19="",ISBLANK(CD19))),"X","")) ->  | EB19: =IF($B19="","",IF(AND(EB$10<(Rounds!$C$5+1),OR(CL19="",ISBLANK(CL19))),"X","")) ->  | EC19: =IF($B19="","",IF(AND(EC$10<(Rounds!$C$5+1),OR(CT19="",ISBLANK(CT19))),"X","")) ->  | EE19: =IF($B19="","",IF(AND(EE$10<(Rounds!$C$5+1),OR(I19="",ISBLANK(I19))),"X","")) ->  | EF19: =IF($B19="","",IF(AND(EF$10<(Rounds!$C$5+1),OR(Q19="",ISBLANK(Q19))),"X","")) ->  | EG19: =IF($B19="","",IF(AND(EG$10<(Rounds!$C$5+1),OR(Y19="",ISBLANK(Y19))),"X","")) ->  | EH19: =IF($B19="","",IF(AND(EH$10<(Rounds!$C$5+1),OR(AG19="",ISBLANK(AG19))),"X","")) ->  | EI19: =IF($B19="","",IF(AND(EI$10<(Rounds!$C$5+1),OR(AO19="",ISBLANK(AO19))),"X","")) ->  | EJ19: =IF($B19="","",IF(AND(EJ$10<(Rounds!$C$5+1),OR(AW19="",ISBLANK(AW19))),"X","")) ->  | EK19: =IF($B19="","",IF(AND(EK$10<(Rounds!$C$5+1),OR(BE19="",ISBLANK(BE19))),"X","")) ->  | EL19: =IF($B19="","",IF(AND(EL$10<(Rounds!$C$5+1),OR(BM19="",ISBLANK(BM19))),"X","")) ->  | EM19: =IF($B19="","",IF(AND(EM$10<(Rounds!$C$5+1),OR(BU19="",ISBLANK(BU19))),"X","")) ->  | EN19: =IF($B19="","",IF(AND(EN$10<(Rounds!$C$5+1),OR(CC19="",ISBLANK(CC19))),"X","")) ->  | EO19: =IF($B19="","",IF(AND(EO$10<(Rounds!$C$5+1),OR(CK19="",ISBLANK(CK19))),"X","")) ->  | EP19: =IF($B19="","",IF(AND(EP$10<(Rounds!$C$5+1),OR(CS19="",ISBLANK(CS19))),"X","")) ->  | ER19: =IF($B19="","",IF(AND(ER$10<(Rounds!$C$5+1),OR(H19="",ISBLANK(H19))),"X","")) ->  | ES19: =IF($B19="","",IF(AND(ES$10<(Rounds!$C$5+1),OR(P19="",ISBLANK(P19))),"X","")) ->  | ET19: =IF($B19="","",IF(AND(ET$10<(Rounds!$C$5+1),OR(X19="",ISBLANK(X19))),"X","")) ->  | EU19: =IF($B19="","",IF(AND(EU$10<(Rounds!$C$5+1),OR(AF19="",ISBLANK(AF19))),"X","")) ->  | EV19: =IF($B19="","",IF(AND(EV$10<(Rounds!$C$5+1),OR(AN19="",ISBLANK(AN19))),"X","")) ->  | EW19: =IF($B19="","",IF(AND(EW$10<(Rounds!$C$5+1),OR(AV19="",ISBLANK(AV19))),"X","")) ->  | EX19: =IF($B19="","",IF(AND(EX$10<(Rounds!$C$5+1),OR(BD19="",ISBLANK(BD19))),"X","")) ->  | EY19: =IF($B19="","",IF(AND(EY$10<(Rounds!$C$5+1),OR(BL19="",ISBLANK(BL19))),"X","")) ->  | EZ19: =IF($B19="","",IF(AND(EZ$10<(Rounds!$C$5+1),OR(BT19="",ISBLANK(BT19))),"X","")) ->  | FA19: =IF($B19="","",IF(AND(FA$10<(Rounds!$C$5+1),OR(CB19="",ISBLANK(CB19))),"X","")) ->  | FB19: =IF($B19="","",IF(AND(FB$10<(Rounds!$C$5+1),OR(CJ19="",ISBLANK(CJ19))),"X","")) ->  | FC19: =IF($B19="","",IF(AND(FC$10<(Rounds!$C$5+1),OR(CR19="",ISBLANK(CR19))),"X","")) ->  | FE19: =IF($B19="","",IF(AND(FE$10<(Rounds!$C$5+1),OR(G19="",ISBLANK(G19))),"X","")) -> X | FF19: =IF($B19="","",IF(AND(FF$10<(Rounds!$C$5+1),OR(O19="",ISBLANK(O19))),"X","")) -> X | FG19: =IF($B19="","",IF(AND(FG$10<(Rounds!$C$5+1),OR(W19="",ISBLANK(W19))),"X","")) -> X | FH19: =IF($B19="","",IF(AND(FH$10<(Rounds!$C$5+1),OR(AE19="",ISBLANK(AE19))),"X","")) ->  | FI19: =IF($B19="","",IF(AND(FI$10<(Rounds!$C$5+1),OR(AM19="",ISBLANK(AM19))),"X","")) ->  | FJ19: =IF($B19="","",IF(AND(FJ$10<(Rounds!$C$5+1),OR(AU19="",ISBLANK(AU19))),"X","")) ->  | FK19: =IF($B19="","",IF(AND(FK$10<(Rounds!$C$5+1),OR(BC19="",ISBLANK(BC19))),"X","")) ->  | FL19: =IF($B19="","",IF(AND(FL$10<(Rounds!$C$5+1),OR(BK19="",ISBLANK(BK19))),"X","")) ->  | FM19: =IF($B19="","",IF(AND(FM$10<(Rounds!$C$5+1),OR(BS19="",ISBLANK(BS19))),"X","")) ->  | FN19: =IF($B19="","",IF(AND(FN$10<(Rounds!$C$5+1),OR(CA19="",ISBLANK(CA19))),"X","")) ->  | FO19: =IF($B19="","",IF(AND(FO$10<(Rounds!$C$5+1),OR(CI19="",ISBLANK(CI19))),"X","")) ->  | FP19: =IF($B19="","",IF(AND(FP$10<(Rounds!$C$5+1),OR(CQ19="",ISBLANK(CQ19))),"X","")) ->  | FR19: =IF($B19="","",IF(AND(FR$10<(Rounds!$C$5+1),OR(D19="",ISBLANK(F19))),"X","")) ->  | FS19: =IF($B19="","",IF(AND(FS$10<(Rounds!$C$5+1),OR(E19="",ISBLANK(N19))),"X","")) ->  | FT19: =IF($B19="","",IF(AND(FT$10<(Rounds!$C$5+1),OR(L19="",ISBLANK(V19))),"X","")) ->  | FU19: =IF($B19="","",IF(AND(FU$10<(Rounds!$C$5+1),OR(M19="",ISBLANK(AD19))),"X","")) ->  | FV19: =IF($B19="","",IF(AND(FV$10<(Rounds!$C$5+1),OR(T19="",ISBLANK(AL19))),"X","")) ->  | FW19: =IF($B19="","",IF(AND(FW$10<(Rounds!$C$5+1),OR(U19="",ISBLANK(AT19))),"X","")) ->  | FX19: =IF($B19="","",IF(AND(FX$10<(Rounds!$C$5+1),OR(AB19="",ISBLANK(BB19))),"X","")) -> X | FY19: =IF($B19="","",IF(AND(FY$10<(Rounds!$C$5+1),OR(AC19="",ISBLANK(BJ19))),"X","")) -> X | FZ19: =IF($B19="","",IF(AND(FZ$10<(Rounds!$C$5+1),OR(AJ19="",ISBLANK(BR19))),"X","")) -> X | GA19: =IF($B19="","",IF(AND(GA$10<(Rounds!$C$5+1),OR(AK19="",ISBLANK(BZ19))),"X","")) -> X | GB19: =IF($B19="","",IF(AND(GB$10<(Rounds!$C$5+1),OR(AR19="",ISBLANK(CH19))),"X","")) ->  | GC19: =IF($B19="","",IF(AND(GC$10<(Rounds!$C$5+1),OR(AS19="",ISBLANK(CP19))),"X","")) ->  | GD19: =IF($B19="","",IF(AND(GD$10<(Rounds!$C$5+1),OR(AZ19="",ISBLANK(#REF!))),"X","")) ->  | GE19: =IF($B19="","",IF(AND(GE$10<(Rounds!$C$5+1),OR(BA19="",ISBLANK(D19))),"X","")) ->  | GF19: =IF($B19="","",IF(AND(GF$10<(Rounds!$C$5+1),OR(BH19="",ISBLANK(E19))),"X","")) ->  | GG19: =IF($B19="","",IF(AND(GG$10<(Rounds!$C$5+1),OR(BI19="",ISBLANK(L19))),"X","")) ->  | GH19: =IF($B19="","",IF(AND(GH$10<(Rounds!$C$5+1),OR(BP19="",ISBLANK(M19))),"X","")) ->  | GI19: =IF($B19="","",IF(AND(GI$10<(Rounds!$C$5+1),OR(BQ19="",ISBLANK(T19))),"X","")) ->  | GJ19: =IF($B19="","",IF(AND(GJ$10<(Rounds!$C$5+1),OR(BX19="",ISBLANK(U19))),"X","")) ->  | GK19: =IF($B19="","",IF(AND(GK$10<(Rounds!$C$5+1),OR(BY19="",ISBLANK(AB19))),"X","")) ->  | GL19: =IF($B19="","",IF(AND(GL$10<(Rounds!$C$5+1),OR(CF19="",ISBLANK(AC19))),"X","")) ->  | GM19: =IF($B19="","",IF(AND(GM$10<(Rounds!$C$5+1),OR(CG19="",ISBLANK(AJ19))),"X","")) ->  | GN19: =IF($B19="","",IF(AND(GN$10<(Rounds!$C$5+1),OR(CN19="",ISBLANK(AK19))),"X","")) ->  | GO19: =IF($B19="","",IF(AND(GO$10<(Rounds!$C$5+1),OR(CO19="",ISBLANK(AR19))),"X","")) -> 
A20: 10 | B20: =+IF(OR(ISERROR(VLOOKUP($A20,Pilots!$B:$U,MATCH(B$1,Pilots!$B$1:$U$1,0),0)),VLOOKUP($A20,Pilots!$B:$U,MATCH(B$1,Pilots!$B$1:$U$1,0),0)=0),"",VLOOKUP($A20,Pilots!$B:$U,MATCH(B$1,Pilots!$B$1:$U$1,0),0)) -> Edina Szabóné Koleszár | D20: 14:22:00 | E20: 14:27:00 | F20: =+IF(OR(D20="",E20=""),"",ROUND((E20-D20)*24*60,0)) -> 5 | H20: =+IF(H$2>$C$5,"",IFERROR(VLOOKUP(IF(G20="",F20,G20),$CZ:$DB,3,0),"")) -> 450 | I20: 500 | J20: 129 | L20: 15:51:00 | M20: 15:55:00 | N20: =+IF(OR(L20="",M20=""),"",ROUND((M20-L20)*24*60,0)) -> 4 | P20: =+IF(P$2>$C$5,"",IFERROR(VLOOKUP(IF(O20="",N20,O20),$CZ:$DB,3,0),"")) -> 460 | Q20: 500 | R20: 287 | T20: 17:22:00 | U20: 17:26:00 | V20: =+IF(OR(T20="",U20=""),"",ROUND((U20-T20)*24*60,0)) -> 4 | X20: =+IF(X$2>$C$5,"",IFERROR(VLOOKUP(IF(W20="",V20,W20),$CZ:$DB,3,0),"")) -> 460 | Y20: 500 | Z20: 414 | AD20: =+IF(OR(AB20="",AC20=""),"",ROUND((AC20-AB20)*24*60,0)) ->  | AE20: 3 | AF20: =+IF(AF$2>$C$5,"",IFERROR(VLOOKUP(IF(AE20="",AD20,AE20),$CZ:$DB,3,0),"")) -> 470 | AG20: 500 | AH20: 500 | AL20: =+IF(OR(AJ20="",AK20=""),"",ROUND((AK20-AJ20)*24*60,0)) ->  | AM20: 4 | AN20: =+IF(AN$2>$C$5,"",IFERROR(VLOOKUP(IF(AM20="",AL20,AM20),$CZ:$DB,3,0),"")) -> 460 | AO20: 500 | AP20: 339 | AT20: =+IF(OR(AR20="",AS20=""),"",ROUND((AS20-AR20)*24*60,0)) ->  | AV20: =+IF(AV$2>$C$5,"",IFERROR(VLOOKUP(IF(AU20="",AT20,AU20),$CZ:$DB,3,0),"")) ->  | BB20: =+IF(OR(AZ20="",BA20=""),"",ROUND((BA20-AZ20)*24*60,0)) ->  | BD20: =+IF(BD$2>$C$5,"",IFERROR(VLOOKUP(IF(BC20="",BB20,BC20),$CZ:$DB,3,0),"")) ->  | BJ20: =+IF(OR(BH20="",BI20=""),"",ROUND((BI20-BH20)*24*60,0)) ->  | BL20: =+IF(BL$2>$C$5,"",IFERROR(VLOOKUP(IF(BK20="",BJ20,BK20),$CZ:$DB,3,0),"")) ->  | BR20: =+IF(OR(BP20="",BQ20=""),"",ROUND((BQ20-BP20)*24*60,0)) ->  | BT20: =+IF(BT$2>$C$5,"",IFERROR(VLOOKUP(IF(BS20="",BR20,BS20),$CZ:$DB,3,0),"")) ->  | BZ20: =+IF(OR(BX20="",BY20=""),"",ROUND((BY20-BX20)*24*60,0)) ->  | CB20: =+IF(CB$2>$C$5,"",IFERROR(VLOOKUP(IF(CA20="",BZ20,CA20),$CZ:$DB,3,0),"")) ->  | CH20: =+IF(OR(CF20="",CG20=""),"",ROUND((CG20-CF20)*24*60,0)) ->  | CJ20: =+IF(CJ$2>$C$5,"",IFERROR(VLOOKUP(IF(CI20="",CH20,CI20),$CZ:$DB,3,0),"")) ->  | CP20: =+IF(OR(CN20="",CO20=""),"",ROUND((CO20-CN20)*24*60,0)) ->  | CR20: =+IF(CR$2>$C$5,"",IFERROR(VLOOKUP(IF(CQ20="",CP20,CQ20),$CZ:$DB,3,0),"")) ->  | CZ20: 11 | DA20: 110 | DB20: 390 | DR20: =IF($B20="","",IF(AND(DR$10<(Rounds!$C$5+1),OR(J20="",ISBLANK(J20))),"X","")) ->  | DS20: =IF($B20="","",IF(AND(DS$10<(Rounds!$C$5+1),OR(R20="",ISBLANK(R20))),"X","")) ->  | DT20: =IF($B20="","",IF(AND(DT$10<(Rounds!$C$5+1),OR(Z20="",ISBLANK(Z20))),"X","")) ->  | DU20: =IF($B20="","",IF(AND(DU$10<(Rounds!$C$5+1),OR(AH20="",ISBLANK(AH20))),"X","")) ->  | DV20: =IF($B20="","",IF(AND(DV$10<(Rounds!$C$5+1),OR(AP20="",ISBLANK(AP20))),"X","")) ->  | DW20: =IF($B20="","",IF(AND(DW$10<(Rounds!$C$5+1),OR(AX20="",ISBLANK(AX20))),"X","")) ->  | DX20: =IF($B20="","",IF(AND(DX$10<(Rounds!$C$5+1),OR(BF20="",ISBLANK(BF20))),"X","")) ->  | DY20: =IF($B20="","",IF(AND(DY$10<(Rounds!$C$5+1),OR(BN20="",ISBLANK(BN20))),"X","")) ->  | DZ20: =IF($B20="","",IF(AND(DZ$10<(Rounds!$C$5+1),OR(BV20="",ISBLANK(BV20))),"X","")) ->  | EA20: =IF($B20="","",IF(AND(EA$10<(Rounds!$C$5+1),OR(CD20="",ISBLANK(CD20))),"X","")) ->  | EB20: =IF($B20="","",IF(AND(EB$10<(Rounds!$C$5+1),OR(CL20="",ISBLANK(CL20))),"X","")) ->  | EC20: =IF($B20="","",IF(AND(EC$10<(Rounds!$C$5+1),OR(CT20="",ISBLANK(CT20))),"X","")) ->  | EE20: =IF($B20="","",IF(AND(EE$10<(Rounds!$C$5+1),OR(I20="",ISBLANK(I20))),"X","")) ->  | EF20: =IF($B20="","",IF(AND(EF$10<(Rounds!$C$5+1),OR(Q20="",ISBLANK(Q20))),"X","")) ->  | EG20: =IF($B20="","",IF(AND(EG$10<(Rounds!$C$5+1),OR(Y20="",ISBLANK(Y20))),"X","")) ->  | EH20: =IF($B20="","",IF(AND(EH$10<(Rounds!$C$5+1),OR(AG20="",ISBLANK(AG20))),"X","")) ->  | EI20: =IF($B20="","",IF(AND(EI$10<(Rounds!$C$5+1),OR(AO20="",ISBLANK(AO20))),"X","")) ->  | EJ20: =IF($B20="","",IF(AND(EJ$10<(Rounds!$C$5+1),OR(AW20="",ISBLANK(AW20))),"X","")) ->  | EK20: =IF($B20="","",IF(AND(EK$10<(Rounds!$C$5+1),OR(BE20="",ISBLANK(BE20))),"X","")) ->  | EL20: =IF($B20="","",IF(AND(EL$10<(Rounds!$C$5+1),OR(BM20="",ISBLANK(BM20))),"X","")) ->  | EM20: =IF($B20="","",IF(AND(EM$10<(Rounds!$C$5+1),OR(BU20="",ISBLANK(BU20))),"X","")) ->  | EN20: =IF($B20="","",IF(AND(EN$10<(Rounds!$C$5+1),OR(CC20="",ISBLANK(CC20))),"X","")) ->  | EO20: =IF($B20="","",IF(AND(EO$10<(Rounds!$C$5+1),OR(CK20="",ISBLANK(CK20))),"X","")) ->  | EP20: =IF($B20="","",IF(AND(EP$10<(Rounds!$C$5+1),OR(CS20="",ISBLANK(CS20))),"X","")) ->  | ER20: =IF($B20="","",IF(AND(ER$10<(Rounds!$C$5+1),OR(H20="",ISBLANK(H20))),"X","")) ->  | ES20: =IF($B20="","",IF(AND(ES$10<(Rounds!$C$5+1),OR(P20="",ISBLANK(P20))),"X","")) ->  | ET20: =IF($B20="","",IF(AND(ET$10<(Rounds!$C$5+1),OR(X20="",ISBLANK(X20))),"X","")) ->  | EU20: =IF($B20="","",IF(AND(EU$10<(Rounds!$C$5+1),OR(AF20="",ISBLANK(AF20))),"X","")) ->  | EV20: =IF($B20="","",IF(AND(EV$10<(Rounds!$C$5+1),OR(AN20="",ISBLANK(AN20))),"X","")) ->  | EW20: =IF($B20="","",IF(AND(EW$10<(Rounds!$C$5+1),OR(AV20="",ISBLANK(AV20))),"X","")) ->  | EX20: =IF($B20="","",IF(AND(EX$10<(Rounds!$C$5+1),OR(BD20="",ISBLANK(BD20))),"X","")) ->  | EY20: =IF($B20="","",IF(AND(EY$10<(Rounds!$C$5+1),OR(BL20="",ISBLANK(BL20))),"X","")) ->  | EZ20: =IF($B20="","",IF(AND(EZ$10<(Rounds!$C$5+1),OR(BT20="",ISBLANK(BT20))),"X","")) ->  | FA20: =IF($B20="","",IF(AND(FA$10<(Rounds!$C$5+1),OR(CB20="",ISBLANK(CB20))),"X","")) ->  | FB20: =IF($B20="","",IF(AND(FB$10<(Rounds!$C$5+1),OR(CJ20="",ISBLANK(CJ20))),"X","")) ->  | FC20: =IF($B20="","",IF(AND(FC$10<(Rounds!$C$5+1),OR(CR20="",ISBLANK(CR20))),"X","")) ->  | FE20: =IF($B20="","",IF(AND(FE$10<(Rounds!$C$5+1),OR(G20="",ISBLANK(G20))),"X","")) -> X | FF20: =IF($B20="","",IF(AND(FF$10<(Rounds!$C$5+1),OR(O20="",ISBLANK(O20))),"X","")) -> X | FG20: =IF($B20="","",IF(AND(FG$10<(Rounds!$C$5+1),OR(W20="",ISBLANK(W20))),"X","")) -> X | FH20: =IF($B20="","",IF(AND(FH$10<(Rounds!$C$5+1),OR(AE20="",ISBLANK(AE20))),"X","")) ->  | FI20: =IF($B20="","",IF(AND(FI$10<(Rounds!$C$5+1),OR(AM20="",ISBLANK(AM20))),"X","")) ->  | FJ20: =IF($B20="","",IF(AND(FJ$10<(Rounds!$C$5+1),OR(AU20="",ISBLANK(AU20))),"X","")) ->  | FK20: =IF($B20="","",IF(AND(FK$10<(Rounds!$C$5+1),OR(BC20="",ISBLANK(BC20))),"X","")) ->  | FL20: =IF($B20="","",IF(AND(FL$10<(Rounds!$C$5+1),OR(BK20="",ISBLANK(BK20))),"X","")) ->  | FM20: =IF($B20="","",IF(AND(FM$10<(Rounds!$C$5+1),OR(BS20="",ISBLANK(BS20))),"X","")) ->  | FN20: =IF($B20="","",IF(AND(FN$10<(Rounds!$C$5+1),OR(CA20="",ISBLANK(CA20))),"X","")) ->  | FO20: =IF($B20="","",IF(AND(FO$10<(Rounds!$C$5+1),OR(CI20="",ISBLANK(CI20))),"X","")) ->  | FP20: =IF($B20="","",IF(AND(FP$10<(Rounds!$C$5+1),OR(CQ20="",ISBLANK(CQ20))),"X","")) ->  | FR20: =IF($B20="","",IF(AND(FR$10<(Rounds!$C$5+1),OR(D20="",ISBLANK(F20))),"X","")) ->  | FS20: =IF($B20="","",IF(AND(FS$10<(Rounds!$C$5+1),OR(E20="",ISBLANK(N20))),"X","")) ->  | FT20: =IF($B20="","",IF(AND(FT$10<(Rounds!$C$5+1),OR(L20="",ISBLANK(V20))),"X","")) ->  | FU20: =IF($B20="","",IF(AND(FU$10<(Rounds!$C$5+1),OR(M20="",ISBLANK(AD20))),"X","")) ->  | FV20: =IF($B20="","",IF(AND(FV$10<(Rounds!$C$5+1),OR(T20="",ISBLANK(AL20))),"X","")) ->  | FW20: =IF($B20="","",IF(AND(FW$10<(Rounds!$C$5+1),OR(U20="",ISBLANK(AT20))),"X","")) ->  | FX20: =IF($B20="","",IF(AND(FX$10<(Rounds!$C$5+1),OR(AB20="",ISBLANK(BB20))),"X","")) -> X | FY20: =IF($B20="","",IF(AND(FY$10<(Rounds!$C$5+1),OR(AC20="",ISBLANK(BJ20))),"X","")) -> X | FZ20: =IF($B20="","",IF(AND(FZ$10<(Rounds!$C$5+1),OR(AJ20="",ISBLANK(BR20))),"X","")) -> X | GA20: =IF($B20="","",IF(AND(GA$10<(Rounds!$C$5+1),OR(AK20="",ISBLANK(BZ20))),"X","")) -> X | GB20: =IF($B20="","",IF(AND(GB$10<(Rounds!$C$5+1),OR(AR20="",ISBLANK(CH20))),"X","")) ->  | GC20: =IF($B20="","",IF(AND(GC$10<(Rounds!$C$5+1),OR(AS20="",ISBLANK(CP20))),"X","")) ->  | GD20: =IF($B20="","",IF(AND(GD$10<(Rounds!$C$5+1),OR(AZ20="",ISBLANK(#REF!))),"X","")) ->  | GE20: =IF($B20="","",IF(AND(GE$10<(Rounds!$C$5+1),OR(BA20="",ISBLANK(D20))),"X","")) ->  | GF20: =IF($B20="","",IF(AND(GF$10<(Rounds!$C$5+1),OR(BH20="",ISBLANK(E20))),"X","")) ->  | GG20: =IF($B20="","",IF(AND(GG$10<(Rounds!$C$5+1),OR(BI20="",ISBLANK(L20))),"X","")) ->  | GH20: =IF($B20="","",IF(AND(GH$10<(Rounds!$C$5+1),OR(BP20="",ISBLANK(M20))),"X","")) ->  | GI20: =IF($B20="","",IF(AND(GI$10<(Rounds!$C$5+1),OR(BQ20="",ISBLANK(T20))),"X","")) ->  | GJ20: =IF($B20="","",IF(AND(GJ$10<(Rounds!$C$5+1),OR(BX20="",ISBLANK(U20))),"X","")) ->  | GK20: =IF($B20="","",IF(AND(GK$10<(Rounds!$C$5+1),OR(BY20="",ISBLANK(AB20))),"X","")) ->  | GL20: =IF($B20="","",IF(AND(GL$10<(Rounds!$C$5+1),OR(CF20="",ISBLANK(AC20))),"X","")) ->  | GM20: =IF($B20="","",IF(AND(GM$10<(Rounds!$C$5+1),OR(CG20="",ISBLANK(AJ20))),"X","")) ->  | GN20: =IF($B20="","",IF(AND(GN$10<(Rounds!$C$5+1),OR(CN20="",ISBLANK(AK20))),"X","")) ->  | GO20: =IF($B20="","",IF(AND(GO$10<(Rounds!$C$5+1),OR(CO20="",ISBLANK(AR20))),"X","")) -> 
A21: 11 | B21: =+IF(OR(ISERROR(VLOOKUP($A21,Pilots!$B:$U,MATCH(B$1,Pilots!$B$1:$U$1,0),0)),VLOOKUP($A21,Pilots!$B:$U,MATCH(B$1,Pilots!$B$1:$U$1,0),0)=0),"",VLOOKUP($A21,Pilots!$B:$U,MATCH(B$1,Pilots!$B$1:$U$1,0),0)) -> Richárd Nagy | D21: 14:26:00 | E21: 14:29:00 | F21: =+IF(OR(D21="",E21=""),"",ROUND((E21-D21)*24*60,0)) -> 3 | H21: =+IF(H$2>$C$5,"",IFERROR(VLOOKUP(IF(G21="",F21,G21),$CZ:$DB,3,0),"")) -> 470 | I21: 450 | J21: 500 | L21: 15:56:00 | M21: 16:00:00 | N21: =+IF(OR(L21="",M21=""),"",ROUND((M21-L21)*24*60,0)) -> 4 | P21: =+IF(P$2>$C$5,"",IFERROR(VLOOKUP(IF(O21="",N21,O21),$CZ:$DB,3,0),"")) -> 460 | Q21: 500 | R21: 500 | T21: 17:09:00 | U21: 17:15:00 | V21: =+IF(OR(T21="",U21=""),"",ROUND((U21-T21)*24*60,0)) -> 6 | X21: =+IF(X$2>$C$5,"",IFERROR(VLOOKUP(IF(W21="",V21,W21),$CZ:$DB,3,0),"")) -> 440 | Y21: 500 | Z21: 500 | AD21: =+IF(OR(AB21="",AC21=""),"",ROUND((AC21-AB21)*24*60,0)) ->  | AE21: 3 | AF21: =+IF(AF$2>$C$5,"",IFERROR(VLOOKUP(IF(AE21="",AD21,AE21),$CZ:$DB,3,0),"")) -> 470 | AG21: 500 | AH21: 500 | AL21: =+IF(OR(AJ21="",AK21=""),"",ROUND((AK21-AJ21)*24*60,0)) ->  | AM21: 3 | AN21: =+IF(AN$2>$C$5,"",IFERROR(VLOOKUP(IF(AM21="",AL21,AM21),$CZ:$DB,3,0),"")) -> 470 | AO21: 500 | AP21: 500 | AT21: =+IF(OR(AR21="",AS21=""),"",ROUND((AS21-AR21)*24*60,0)) ->  | AV21: =+IF(AV$2>$C$5,"",IFERROR(VLOOKUP(IF(AU21="",AT21,AU21),$CZ:$DB,3,0),"")) ->  | BB21: =+IF(OR(AZ21="",BA21=""),"",ROUND((BA21-AZ21)*24*60,0)) ->  | BD21: =+IF(BD$2>$C$5,"",IFERROR(VLOOKUP(IF(BC21="",BB21,BC21),$CZ:$DB,3,0),"")) ->  | BJ21: =+IF(OR(BH21="",BI21=""),"",ROUND((BI21-BH21)*24*60,0)) ->  | BL21: =+IF(BL$2>$C$5,"",IFERROR(VLOOKUP(IF(BK21="",BJ21,BK21),$CZ:$DB,3,0),"")) ->  | BR21: =+IF(OR(BP21="",BQ21=""),"",ROUND((BQ21-BP21)*24*60,0)) ->  | BT21: =+IF(BT$2>$C$5,"",IFERROR(VLOOKUP(IF(BS21="",BR21,BS21),$CZ:$DB,3,0),"")) ->  | BZ21: =+IF(OR(BX21="",BY21=""),"",ROUND((BY21-BX21)*24*60,0)) ->  | CB21: =+IF(CB$2>$C$5,"",IFERROR(VLOOKUP(IF(CA21="",BZ21,CA21),$CZ:$DB,3,0),"")) ->  | CH21: =+IF(OR(CF21="",CG21=""),"",ROUND((CG21-CF21)*24*60,0)) ->  | CJ21: =+IF(CJ$2>$C$5,"",IFERROR(VLOOKUP(IF(CI21="",CH21,CI21),$CZ:$DB,3,0),"")) ->  | CP21: =+IF(OR(CN21="",CO21=""),"",ROUND((CO21-CN21)*24*60,0)) ->  | CR21: =+IF(CR$2>$C$5,"",IFERROR(VLOOKUP(IF(CQ21="",CP21,CQ21),$CZ:$DB,3,0),"")) ->  | CZ21: 12 | DA21: 120 | DB21: 380 | DR21: =IF($B21="","",IF(AND(DR$10<(Rounds!$C$5+1),OR(J21="",ISBLANK(J21))),"X","")) ->  | DS21: =IF($B21="","",IF(AND(DS$10<(Rounds!$C$5+1),OR(R21="",ISBLANK(R21))),"X","")) ->  | DT21: =IF($B21="","",IF(AND(DT$10<(Rounds!$C$5+1),OR(Z21="",ISBLANK(Z21))),"X","")) ->  | DU21: =IF($B21="","",IF(AND(DU$10<(Rounds!$C$5+1),OR(AH21="",ISBLANK(AH21))),"X","")) ->  | DV21: =IF($B21="","",IF(AND(DV$10<(Rounds!$C$5+1),OR(AP21="",ISBLANK(AP21))),"X","")) ->  | DW21: =IF($B21="","",IF(AND(DW$10<(Rounds!$C$5+1),OR(AX21="",ISBLANK(AX21))),"X","")) ->  | DX21: =IF($B21="","",IF(AND(DX$10<(Rounds!$C$5+1),OR(BF21="",ISBLANK(BF21))),"X","")) ->  | DY21: =IF($B21="","",IF(AND(DY$10<(Rounds!$C$5+1),OR(BN21="",ISBLANK(BN21))),"X","")) ->  | DZ21: =IF($B21="","",IF(AND(DZ$10<(Rounds!$C$5+1),OR(BV21="",ISBLANK(BV21))),"X","")) ->  | EA21: =IF($B21="","",IF(AND(EA$10<(Rounds!$C$5+1),OR(CD21="",ISBLANK(CD21))),"X","")) ->  | EB21: =IF($B21="","",IF(AND(EB$10<(Rounds!$C$5+1),OR(CL21="",ISBLANK(CL21))),"X","")) ->  | EC21: =IF($B21="","",IF(AND(EC$10<(Rounds!$C$5+1),OR(CT21="",ISBLANK(CT21))),"X","")) ->  | EE21: =IF($B21="","",IF(AND(EE$10<(Rounds!$C$5+1),OR(I21="",ISBLANK(I21))),"X","")) ->  | EF21: =IF($B21="","",IF(AND(EF$10<(Rounds!$C$5+1),OR(Q21="",ISBLANK(Q21))),"X","")) ->  | EG21: =IF($B21="","",IF(AND(EG$10<(Rounds!$C$5+1),OR(Y21="",ISBLANK(Y21))),"X","")) ->  | EH21: =IF($B21="","",IF(AND(EH$10<(Rounds!$C$5+1),OR(AG21="",ISBLANK(AG21))),"X","")) ->  | EI21: =IF($B21="","",IF(AND(EI$10<(Rounds!$C$5+1),OR(AO21="",ISBLANK(AO21))),"X","")) ->  | EJ21: =IF($B21="","",IF(AND(EJ$10<(Rounds!$C$5+1),OR(AW21="",ISBLANK(AW21))),"X","")) ->  | EK21: =IF($B21="","",IF(AND(EK$10<(Rounds!$C$5+1),OR(BE21="",ISBLANK(BE21))),"X","")) ->  | EL21: =IF($B21="","",IF(AND(EL$10<(Rounds!$C$5+1),OR(BM21="",ISBLANK(BM21))),"X","")) ->  | EM21: =IF($B21="","",IF(AND(EM$10<(Rounds!$C$5+1),OR(BU21="",ISBLANK(BU21))),"X","")) ->  | EN21: =IF($B21="","",IF(AND(EN$10<(Rounds!$C$5+1),OR(CC21="",ISBLANK(CC21))),"X","")) ->  | EO21: =IF($B21="","",IF(AND(EO$10<(Rounds!$C$5+1),OR(CK21="",ISBLANK(CK21))),"X","")) ->  | EP21: =IF($B21="","",IF(AND(EP$10<(Rounds!$C$5+1),OR(CS21="",ISBLANK(CS21))),"X","")) ->  | ER21: =IF($B21="","",IF(AND(ER$10<(Rounds!$C$5+1),OR(H21="",ISBLANK(H21))),"X","")) ->  | ES21: =IF($B21="","",IF(AND(ES$10<(Rounds!$C$5+1),OR(P21="",ISBLANK(P21))),"X","")) ->  | ET21: =IF($B21="","",IF(AND(ET$10<(Rounds!$C$5+1),OR(X21="",ISBLANK(X21))),"X","")) ->  | EU21: =IF($B21="","",IF(AND(EU$10<(Rounds!$C$5+1),OR(AF21="",ISBLANK(AF21))),"X","")) ->  | EV21: =IF($B21="","",IF(AND(EV$10<(Rounds!$C$5+1),OR(AN21="",ISBLANK(AN21))),"X","")) ->  | EW21: =IF($B21="","",IF(AND(EW$10<(Rounds!$C$5+1),OR(AV21="",ISBLANK(AV21))),"X","")) ->  | EX21: =IF($B21="","",IF(AND(EX$10<(Rounds!$C$5+1),OR(BD21="",ISBLANK(BD21))),"X","")) ->  | EY21: =IF($B21="","",IF(AND(EY$10<(Rounds!$C$5+1),OR(BL21="",ISBLANK(BL21))),"X","")) ->  | EZ21: =IF($B21="","",IF(AND(EZ$10<(Rounds!$C$5+1),OR(BT21="",ISBLANK(BT21))),"X","")) ->  | FA21: =IF($B21="","",IF(AND(FA$10<(Rounds!$C$5+1),OR(CB21="",ISBLANK(CB21))),"X","")) ->  | FB21: =IF($B21="","",IF(AND(FB$10<(Rounds!$C$5+1),OR(CJ21="",ISBLANK(CJ21))),"X","")) ->  | FC21: =IF($B21="","",IF(AND(FC$10<(Rounds!$C$5+1),OR(CR21="",ISBLANK(CR21))),"X","")) ->  | FE21: =IF($B21="","",IF(AND(FE$10<(Rounds!$C$5+1),OR(G21="",ISBLANK(G21))),"X","")) -> X | FF21: =IF($B21="","",IF(AND(FF$10<(Rounds!$C$5+1),OR(O21="",ISBLANK(O21))),"X","")) -> X | FG21: =IF($B21="","",IF(AND(FG$10<(Rounds!$C$5+1),OR(W21="",ISBLANK(W21))),"X","")) -> X | FH21: =IF($B21="","",IF(AND(FH$10<(Rounds!$C$5+1),OR(AE21="",ISBLANK(AE21))),"X","")) ->  | FI21: =IF($B21="","",IF(AND(FI$10<(Rounds!$C$5+1),OR(AM21="",ISBLANK(AM21))),"X","")) ->  | FJ21: =IF($B21="","",IF(AND(FJ$10<(Rounds!$C$5+1),OR(AU21="",ISBLANK(AU21))),"X","")) ->  | FK21: =IF($B21="","",IF(AND(FK$10<(Rounds!$C$5+1),OR(BC21="",ISBLANK(BC21))),"X","")) ->  | FL21: =IF($B21="","",IF(AND(FL$10<(Rounds!$C$5+1),OR(BK21="",ISBLANK(BK21))),"X","")) ->  | FM21: =IF($B21="","",IF(AND(FM$10<(Rounds!$C$5+1),OR(BS21="",ISBLANK(BS21))),"X","")) ->  | FN21: =IF($B21="","",IF(AND(FN$10<(Rounds!$C$5+1),OR(CA21="",ISBLANK(CA21))),"X","")) ->  | FO21: =IF($B21="","",IF(AND(FO$10<(Rounds!$C$5+1),OR(CI21="",ISBLANK(CI21))),"X","")) ->  | FP21: =IF($B21="","",IF(AND(FP$10<(Rounds!$C$5+1),OR(CQ21="",ISBLANK(CQ21))),"X","")) ->  | FR21: =IF($B21="","",IF(AND(FR$10<(Rounds!$C$5+1),OR(D21="",ISBLANK(F21))),"X","")) ->  | FS21: =IF($B21="","",IF(AND(FS$10<(Rounds!$C$5+1),OR(E21="",ISBLANK(N21))),"X","")) ->  | FT21: =IF($B21="","",IF(AND(FT$10<(Rounds!$C$5+1),OR(L21="",ISBLANK(V21))),"X","")) ->  | FU21: =IF($B21="","",IF(AND(FU$10<(Rounds!$C$5+1),OR(M21="",ISBLANK(AD21))),"X","")) ->  | FV21: =IF($B21="","",IF(AND(FV$10<(Rounds!$C$5+1),OR(T21="",ISBLANK(AL21))),"X","")) ->  | FW21: =IF($B21="","",IF(AND(FW$10<(Rounds!$C$5+1),OR(U21="",ISBLANK(AT21))),"X","")) ->  | FX21: =IF($B21="","",IF(AND(FX$10<(Rounds!$C$5+1),OR(AB21="",ISBLANK(BB21))),"X","")) -> X | FY21: =IF($B21="","",IF(AND(FY$10<(Rounds!$C$5+1),OR(AC21="",ISBLANK(BJ21))),"X","")) -> X | FZ21: =IF($B21="","",IF(AND(FZ$10<(Rounds!$C$5+1),OR(AJ21="",ISBLANK(BR21))),"X","")) -> X | GA21: =IF($B21="","",IF(AND(GA$10<(Rounds!$C$5+1),OR(AK21="",ISBLANK(BZ21))),"X","")) -> X | GB21: =IF($B21="","",IF(AND(GB$10<(Rounds!$C$5+1),OR(AR21="",ISBLANK(CH21))),"X","")) ->  | GC21: =IF($B21="","",IF(AND(GC$10<(Rounds!$C$5+1),OR(AS21="",ISBLANK(CP21))),"X","")) ->  | GD21: =IF($B21="","",IF(AND(GD$10<(Rounds!$C$5+1),OR(AZ21="",ISBLANK(#REF!))),"X","")) ->  | GE21: =IF($B21="","",IF(AND(GE$10<(Rounds!$C$5+1),OR(BA21="",ISBLANK(D21))),"X","")) ->  | GF21: =IF($B21="","",IF(AND(GF$10<(Rounds!$C$5+1),OR(BH21="",ISBLANK(E21))),"X","")) ->  | GG21: =IF($B21="","",IF(AND(GG$10<(Rounds!$C$5+1),OR(BI21="",ISBLANK(L21))),"X","")) ->  | GH21: =IF($B21="","",IF(AND(GH$10<(Rounds!$C$5+1),OR(BP21="",ISBLANK(M21))),"X","")) ->  | GI21: =IF($B21="","",IF(AND(GI$10<(Rounds!$C$5+1),OR(BQ21="",ISBLANK(T21))),"X","")) ->  | GJ21: =IF($B21="","",IF(AND(GJ$10<(Rounds!$C$5+1),OR(BX21="",ISBLANK(U21))),"X","")) ->  | GK21: =IF($B21="","",IF(AND(GK$10<(Rounds!$C$5+1),OR(BY21="",ISBLANK(AB21))),"X","")) ->  | GL21: =IF($B21="","",IF(AND(GL$10<(Rounds!$C$5+1),OR(CF21="",ISBLANK(AC21))),"X","")) ->  | GM21: =IF($B21="","",IF(AND(GM$10<(Rounds!$C$5+1),OR(CG21="",ISBLANK(AJ21))),"X","")) ->  | GN21: =IF($B21="","",IF(AND(GN$10<(Rounds!$C$5+1),OR(CN21="",ISBLANK(AK21))),"X","")) ->  | GO21: =IF($B21="","",IF(AND(GO$10<(Rounds!$C$5+1),OR(CO21="",ISBLANK(AR21))),"X","")) -> 
A22: 12 | B22: =+IF(OR(ISERROR(VLOOKUP($A22,Pilots!$B:$U,MATCH(B$1,Pilots!$B$1:$U$1,0),0)),VLOOKUP($A22,Pilots!$B:$U,MATCH(B$1,Pilots!$B$1:$U$1,0),0)=0),"",VLOOKUP($A22,Pilots!$B:$U,MATCH(B$1,Pilots!$B$1:$U$1,0),0)) -> Zeljko Šarčević | D22: 14:31:00 | E22: 14:36:00 | F22: =+IF(OR(D22="",E22=""),"",ROUND((E22-D22)*24*60,0)) -> 5 | H22: =+IF(H$2>$C$5,"",IFERROR(VLOOKUP(IF(G22="",F22,G22),$CZ:$DB,3,0),"")) -> 450 | I22: 480 | J22: 500 | L22: 16:04:00 | M22: 16:07:00 | N22: =+IF(OR(L22="",M22=""),"",ROUND((M22-L22)*24*60,0)) -> 3 | P22: =+IF(P$2>$C$5,"",IFERROR(VLOOKUP(IF(O22="",N22,O22),$CZ:$DB,3,0),"")) -> 470 | Q22: 500 | R22: 500 | T22: 17:23:00 | U22: 17:28:00 | V22: =+IF(OR(T22="",U22=""),"",ROUND((U22-T22)*24*60,0)) -> 5 | X22: =+IF(X$2>$C$5,"",IFERROR(VLOOKUP(IF(W22="",V22,W22),$CZ:$DB,3,0),"")) -> 450 | Y22: 500 | Z22: 500 | AD22: =+IF(OR(AB22="",AC22=""),"",ROUND((AC22-AB22)*24*60,0)) ->  | AF22: =+IF(AF$2>$C$5,"",IFERROR(VLOOKUP(IF(AE22="",AD22,AE22),$CZ:$DB,3,0),"")) ->  | AH22: DNF | AL22: =+IF(OR(AJ22="",AK22=""),"",ROUND((AK22-AJ22)*24*60,0)) ->  | AN22: =+IF(AN$2>$C$5,"",IFERROR(VLOOKUP(IF(AM22="",AL22,AM22),$CZ:$DB,3,0),"")) ->  | AO22: 500 | AP22: DNF | AT22: =+IF(OR(AR22="",AS22=""),"",ROUND((AS22-AR22)*24*60,0)) ->  | AV22: =+IF(AV$2>$C$5,"",IFERROR(VLOOKUP(IF(AU22="",AT22,AU22),$CZ:$DB,3,0),"")) ->  | BB22: =+IF(OR(AZ22="",BA22=""),"",ROUND((BA22-AZ22)*24*60,0)) ->  | BD22: =+IF(BD$2>$C$5,"",IFERROR(VLOOKUP(IF(BC22="",BB22,BC22),$CZ:$DB,3,0),"")) ->  | BJ22: =+IF(OR(BH22="",BI22=""),"",ROUND((BI22-BH22)*24*60,0)) ->  | BL22: =+IF(BL$2>$C$5,"",IFERROR(VLOOKUP(IF(BK22="",BJ22,BK22),$CZ:$DB,3,0),"")) ->  | BR22: =+IF(OR(BP22="",BQ22=""),"",ROUND((BQ22-BP22)*24*60,0)) ->  | BT22: =+IF(BT$2>$C$5,"",IFERROR(VLOOKUP(IF(BS22="",BR22,BS22),$CZ:$DB,3,0),"")) ->  | BZ22: =+IF(OR(BX22="",BY22=""),"",ROUND((BY22-BX22)*24*60,0)) ->  | CB22: =+IF(CB$2>$C$5,"",IFERROR(VLOOKUP(IF(CA22="",BZ22,CA22),$CZ:$DB,3,0),"")) ->  | CH22: =+IF(OR(CF22="",CG22=""),"",ROUND((CG22-CF22)*24*60,0)) ->  | CJ22: =+IF(CJ$2>$C$5,"",IFERROR(VLOOKUP(IF(CI22="",CH22,CI22),$CZ:$DB,3,0),"")) ->  | CP22: =+IF(OR(CN22="",CO22=""),"",ROUND((CO22-CN22)*24*60,0)) ->  | CR22: =+IF(CR$2>$C$5,"",IFERROR(VLOOKUP(IF(CQ22="",CP22,CQ22),$CZ:$DB,3,0),"")) ->  | CZ22: 13 | DA22: 130 | DB22: 370 | DR22: =IF($B22="","",IF(AND(DR$10<(Rounds!$C$5+1),OR(J22="",ISBLANK(J22))),"X","")) ->  | DS22: =IF($B22="","",IF(AND(DS$10<(Rounds!$C$5+1),OR(R22="",ISBLANK(R22))),"X","")) ->  | DT22: =IF($B22="","",IF(AND(DT$10<(Rounds!$C$5+1),OR(Z22="",ISBLANK(Z22))),"X","")) ->  | DU22: =IF($B22="","",IF(AND(DU$10<(Rounds!$C$5+1),OR(AH22="",ISBLANK(AH22))),"X","")) ->  | DV22: =IF($B22="","",IF(AND(DV$10<(Rounds!$C$5+1),OR(AP22="",ISBLANK(AP22))),"X","")) ->  | DW22: =IF($B22="","",IF(AND(DW$10<(Rounds!$C$5+1),OR(AX22="",ISBLANK(AX22))),"X","")) ->  | DX22: =IF($B22="","",IF(AND(DX$10<(Rounds!$C$5+1),OR(BF22="",ISBLANK(BF22))),"X","")) ->  | DY22: =IF($B22="","",IF(AND(DY$10<(Rounds!$C$5+1),OR(BN22="",ISBLANK(BN22))),"X","")) ->  | DZ22: =IF($B22="","",IF(AND(DZ$10<(Rounds!$C$5+1),OR(BV22="",ISBLANK(BV22))),"X","")) ->  | EA22: =IF($B22="","",IF(AND(EA$10<(Rounds!$C$5+1),OR(CD22="",ISBLANK(CD22))),"X","")) ->  | EB22: =IF($B22="","",IF(AND(EB$10<(Rounds!$C$5+1),OR(CL22="",ISBLANK(CL22))),"X","")) ->  | EC22: =IF($B22="","",IF(AND(EC$10<(Rounds!$C$5+1),OR(CT22="",ISBLANK(CT22))),"X","")) ->  | EE22: =IF($B22="","",IF(AND(EE$10<(Rounds!$C$5+1),OR(I22="",ISBLANK(I22))),"X","")) ->  | EF22: =IF($B22="","",IF(AND(EF$10<(Rounds!$C$5+1),OR(Q22="",ISBLANK(Q22))),"X","")) ->  | EG22: =IF($B22="","",IF(AND(EG$10<(Rounds!$C$5+1),OR(Y22="",ISBLANK(Y22))),"X","")) ->  | EH22: =IF($B22="","",IF(AND(EH$10<(Rounds!$C$5+1),OR(AG22="",ISBLANK(AG22))),"X","")) -> X | EI22: =IF($B22="","",IF(AND(EI$10<(Rounds!$C$5+1),OR(AO22="",ISBLANK(AO22))),"X","")) ->  | EJ22: =IF($B22="","",IF(AND(EJ$10<(Rounds!$C$5+1),OR(AW22="",ISBLANK(AW22))),"X","")) ->  | EK22: =IF($B22="","",IF(AND(EK$10<(Rounds!$C$5+1),OR(BE22="",ISBLANK(BE22))),"X","")) ->  | EL22: =IF($B22="","",IF(AND(EL$10<(Rounds!$C$5+1),OR(BM22="",ISBLANK(BM22))),"X","")) ->  | EM22: =IF($B22="","",IF(AND(EM$10<(Rounds!$C$5+1),OR(BU22="",ISBLANK(BU22))),"X","")) ->  | EN22: =IF($B22="","",IF(AND(EN$10<(Rounds!$C$5+1),OR(CC22="",ISBLANK(CC22))),"X","")) ->  | EO22: =IF($B22="","",IF(AND(EO$10<(Rounds!$C$5+1),OR(CK22="",ISBLANK(CK22))),"X","")) ->  | EP22: =IF($B22="","",IF(AND(EP$10<(Rounds!$C$5+1),OR(CS22="",ISBLANK(CS22))),"X","")) ->  | ER22: =IF($B22="","",IF(AND(ER$10<(Rounds!$C$5+1),OR(H22="",ISBLANK(H22))),"X","")) ->  | ES22: =IF($B22="","",IF(AND(ES$10<(Rounds!$C$5+1),OR(P22="",ISBLANK(P22))),"X","")) ->  | ET22: =IF($B22="","",IF(AND(ET$10<(Rounds!$C$5+1),OR(X22="",ISBLANK(X22))),"X","")) ->  | EU22: =IF($B22="","",IF(AND(EU$10<(Rounds!$C$5+1),OR(AF22="",ISBLANK(AF22))),"X","")) -> X | EV22: =IF($B22="","",IF(AND(EV$10<(Rounds!$C$5+1),OR(AN22="",ISBLANK(AN22))),"X","")) -> X | EW22: =IF($B22="","",IF(AND(EW$10<(Rounds!$C$5+1),OR(AV22="",ISBLANK(AV22))),"X","")) ->  | EX22: =IF($B22="","",IF(AND(EX$10<(Rounds!$C$5+1),OR(BD22="",ISBLANK(BD22))),"X","")) ->  | EY22: =IF($B22="","",IF(AND(EY$10<(Rounds!$C$5+1),OR(BL22="",ISBLANK(BL22))),"X","")) ->  | EZ22: =IF($B22="","",IF(AND(EZ$10<(Rounds!$C$5+1),OR(BT22="",ISBLANK(BT22))),"X","")) ->  | FA22: =IF($B22="","",IF(AND(FA$10<(Rounds!$C$5+1),OR(CB22="",ISBLANK(CB22))),"X","")) ->  | FB22: =IF($B22="","",IF(AND(FB$10<(Rounds!$C$5+1),OR(CJ22="",ISBLANK(CJ22))),"X","")) ->  | FC22: =IF($B22="","",IF(AND(FC$10<(Rounds!$C$5+1),OR(CR22="",ISBLANK(CR22))),"X","")) ->  | FE22: =IF($B22="","",IF(AND(FE$10<(Rounds!$C$5+1),OR(G22="",ISBLANK(G22))),"X","")) -> X | FF22: =IF($B22="","",IF(AND(FF$10<(Rounds!$C$5+1),OR(O22="",ISBLANK(O22))),"X","")) -> X | FG22: =IF($B22="","",IF(AND(FG$10<(Rounds!$C$5+1),OR(W22="",ISBLANK(W22))),"X","")) -> X | FH22: =IF($B22="","",IF(AND(FH$10<(Rounds!$C$5+1),OR(AE22="",ISBLANK(AE22))),"X","")) -> X | FI22: =IF($B22="","",IF(AND(FI$10<(Rounds!$C$5+1),OR(AM22="",ISBLANK(AM22))),"X","")) -> X | FJ22: =IF($B22="","",IF(AND(FJ$10<(Rounds!$C$5+1),OR(AU22="",ISBLANK(AU22))),"X","")) ->  | FK22: =IF($B22="","",IF(AND(FK$10<(Rounds!$C$5+1),OR(BC22="",ISBLANK(BC22))),"X","")) ->  | FL22: =IF($B22="","",IF(AND(FL$10<(Rounds!$C$5+1),OR(BK22="",ISBLANK(BK22))),"X","")) ->  | FM22: =IF($B22="","",IF(AND(FM$10<(Rounds!$C$5+1),OR(BS22="",ISBLANK(BS22))),"X","")) ->  | FN22: =IF($B22="","",IF(AND(FN$10<(Rounds!$C$5+1),OR(CA22="",ISBLANK(CA22))),"X","")) ->  | FO22: =IF($B22="","",IF(AND(FO$10<(Rounds!$C$5+1),OR(CI22="",ISBLANK(CI22))),"X","")) ->  | FP22: =IF($B22="","",IF(AND(FP$10<(Rounds!$C$5+1),OR(CQ22="",ISBLANK(CQ22))),"X","")) ->  | FR22: =IF($B22="","",IF(AND(FR$10<(Rounds!$C$5+1),OR(D22="",ISBLANK(F22))),"X","")) ->  | FS22: =IF($B22="","",IF(AND(FS$10<(Rounds!$C$5+1),OR(E22="",ISBLANK(N22))),"X","")) ->  | FT22: =IF($B22="","",IF(AND(FT$10<(Rounds!$C$5+1),OR(L22="",ISBLANK(V22))),"X","")) ->  | FU22: =IF($B22="","",IF(AND(FU$10<(Rounds!$C$5+1),OR(M22="",ISBLANK(AD22))),"X","")) ->  | FV22: =IF($B22="","",IF(AND(FV$10<(Rounds!$C$5+1),OR(T22="",ISBLANK(AL22))),"X","")) ->  | FW22: =IF($B22="","",IF(AND(FW$10<(Rounds!$C$5+1),OR(U22="",ISBLANK(AT22))),"X","")) ->  | FX22: =IF($B22="","",IF(AND(FX$10<(Rounds!$C$5+1),OR(AB22="",ISBLANK(BB22))),"X","")) -> X | FY22: =IF($B22="","",IF(AND(FY$10<(Rounds!$C$5+1),OR(AC22="",ISBLANK(BJ22))),"X","")) -> X | FZ22: =IF($B22="","",IF(AND(FZ$10<(Rounds!$C$5+1),OR(AJ22="",ISBLANK(BR22))),"X","")) -> X | GA22: =IF($B22="","",IF(AND(GA$10<(Rounds!$C$5+1),OR(AK22="",ISBLANK(BZ22))),"X","")) -> X | GB22: =IF($B22="","",IF(AND(GB$10<(Rounds!$C$5+1),OR(AR22="",ISBLANK(CH22))),"X","")) ->  | GC22: =IF($B22="","",IF(AND(GC$10<(Rounds!$C$5+1),OR(AS22="",ISBLANK(CP22))),"X","")) ->  | GD22: =IF($B22="","",IF(AND(GD$10<(Rounds!$C$5+1),OR(AZ22="",ISBLANK(#REF!))),"X","")) ->  | GE22: =IF($B22="","",IF(AND(GE$10<(Rounds!$C$5+1),OR(BA22="",ISBLANK(D22))),"X","")) ->  | GF22: =IF($B22="","",IF(AND(GF$10<(Rounds!$C$5+1),OR(BH22="",ISBLANK(E22))),"X","")) ->  | GG22: =IF($B22="","",IF(AND(GG$10<(Rounds!$C$5+1),OR(BI22="",ISBLANK(L22))),"X","")) ->  | GH22: =IF($B22="","",IF(AND(GH$10<(Rounds!$C$5+1),OR(BP22="",ISBLANK(M22))),"X","")) ->  | GI22: =IF($B22="","",IF(AND(GI$10<(Rounds!$C$5+1),OR(BQ22="",ISBLANK(T22))),"X","")) ->  | GJ22: =IF($B22="","",IF(AND(GJ$10<(Rounds!$C$5+1),OR(BX22="",ISBLANK(U22))),"X","")) ->  | GK22: =IF($B22="","",IF(AND(GK$10<(Rounds!$C$5+1),OR(BY22="",ISBLANK(AB22))),"X","")) ->  | GL22: =IF($B22="","",IF(AND(GL$10<(Rounds!$C$5+1),OR(CF22="",ISBLANK(AC22))),"X","")) ->  | GM22: =IF($B22="","",IF(AND(GM$10<(Rounds!$C$5+1),OR(CG22="",ISBLANK(AJ22))),"X","")) ->  | GN22: =IF($B22="","",IF(AND(GN$10<(Rounds!$C$5+1),OR(CN22="",ISBLANK(AK22))),"X","")) ->  | GO22: =IF($B22="","",IF(AND(GO$10<(Rounds!$C$5+1),OR(CO22="",ISBLANK(AR22))),"X","")) -> 
